{"text_format":"1","workbook":"xlsx","n_sheets":17,"sheets":["Home Page","Decision Guide","Report","Navigation","Safety - Fatalities","Safety - Injuries","Mobility - LOS","Mobility - Recovery","Mobility - Reliability","Sust. - Efficiency","Sust. - Customer Satisfaction","Sust. - Env. Stewardship","Taxonomy","Resources","Lookup","Lookup2","Lookup3"],"not_rendered":{"charts":0,"images":2,"macros":1,"external_links":0,"defined_names":101,"comments":0,"pivot_tables":0},"unopened":[],"bounds":{"document_bytes":16777216,"sheet_cells":100000,"rows_first":2000,"rows_last":500,"rows_between":2000,"halvings":0,"cell_chars":16384,"cell_head_chars":4096},"cells_cut":0,"cells_raw":0,"read":"whole","date_system":"1900"}

{"sheet":"Home Page","index":0,"n_rows":0,"n_cols":0,"rows_kept":0,"cut":false,"hidden":false,"merged":[]}

{"sheet":"Decision Guide","index":1,"n_rows":145,"n_cols":20,"rows_kept":145,"cut":false,"hidden":true,"merged":[[1,2,1,7],[36,4,37,5],[40,4,41,5],[45,4,46,5],[14,2,14,7],[15,2,15,7],[27,2,27,7],[28,2,28,7],[49,4,49,5],[53,4,54,5],[31,4,32,5],[51,12,51,16],[56,12,56,16],[64,4,65,5],[64,11,65,12],[64,15,65,16],[141,4,142,5],[122,4,122,5],[128,4,128,5],[134,4,135,5],[71,4,72,5],[109,4,109,5],[115,4,116,5],[90,4,90,5],[85,4,86,5],[105,4,105,5],[100,4,101,5]]}
[]
[null,null,"Instructions:"]
[]
[null,null,"- In Part 1, describe basic information about your agency (free-text fields)."]
[]
[null,null,"- In Part 2, select an answer for all 15 questions regarding your agency's current winter maintenance capabilities (select appropriate responses from the drop-down lists)."]
[]
[null,null,null,"- In addition to the 15 questions in Part 2, answer the supplementary questions to the right (parts a, b, c, etc.), if they become available."]
[]
[null,null,null,"- These supplementary questions are designed to provide further insight into how particular winter weather-related performance measures can be reported."]
[]
[null,null,"- After completing all the questions, click the button at the bottom of the page to direct you to your customized report."]
[]
[]
[null,null,"Part 1"]
[null,null,"Describe Your Agency",null,null,null,null,null,null,null,null,null,"Note: Click this this button to"]
[]
[null,null,null,"1)","What is the name of your agency?"]
[]
[null,null,null,null,"Enter:"]
[]
[null,null,null,"2)","What is the name of the jurisdiction over which your agency presides?"]
[]
[null,null,null,null,"Enter:"]
[]
[]
[]
[null,null,"Part 2"]
[null,null,"Describe Your Agency's Current Capabilities"]
[]
[]
[null,null,null,"1)","At a minimum, is your agency able to report the number of winter weather-related* fatal crashes (or the number of fatalities) by winter season?",null,null,null,null,null,"1a)","What is the source of the data?",null,null,"1b)","What is the lag time of this data?",null,null,"1c)","What crash factors are available for the data?"]
[]
[]
[null,null,null,null,"Select:",null,null,null,null,null,null,"Select:",null,null,null,"Select:",null,null,null,"Select:"]
[]
[null,null,null,null,"*Note that \"winter weather-related\" refers to whether winter weather conditions were identified as a direct cause of the fatality/fatal crash."]
[]
[]
[]
[null,null,null,"2)","At a minimum, is your agency able to report the number of winter weather-related* serious injury crashes (or the number of serious injuries) by winter season?",null,null,null,null,null,"2a)","What is the source of the data?",null,null,"2b)","What is the lag time of this data?",null,null,"2c)","What crash factors are available for the data?"]
[]
[]
[null,null,null,null,"Select:",null,null,null,null,null,null,"Select:",null,null,null,"Select:",null,null,null,"Select:"]
[]
[null,null,null,null,"*Note that \"winter weather-related\" refers to whether winter weather conditions were identified as a direct cause of the serious injury/crash."]
[]
[]
[]
[null,null,null,"3)","Does your agency define winter weather \"events\"? *",null,null,null,null,null,"3a)","How does your agency define winter weather event start times?"]
[]
[null,null,null,null,"Select:",null,null,null,null,null,null,"Select:"]
[]
[null,null,null,null,"*Note that an \"event\" is defined by the start- and stop-times of the atmospheric conditions that create the event/storm.",null,null,null,null,null,null,null,null,null,null,{"$f":"IF($M$52=Lookup!$P$27,\"Please specify:\",\"\")","v":""}]
[null,null,null,null,null,null,null,null,null,null,"3b)","How does your agency define winter weather event end times? *"]
[]
[null,null,null,null,null,null,null,null,null,null,null,"Select:"]
[]
[null,null,null,null,null,null,null,null,null,null,null,null,null,null,null,{"$f":"IF($M$57=Lookup!$S$28,\"Please specify:\",\"\")","v":""}]
[]
[null,null,null,null,null,null,null,null,null,null,null,"*Note that the “end time” of the event refers to the cessation of the atmospheric conditions; not of the maintenance response.  "]
[]
[]
[]
[null,null,null,"4)","Is your agency able to define winter severity indices?",null,null,null,null,null,"4a)","For Seasonal Severity, what factors does your agency use for establishing severity? (select all that apply)",null,null,"4b)","For Storm/Event Severity, what factors does your agency use for establishing severity? (select all that apply)"]
[]
[]
[null,null,null,null,"Select:",null,null,null,null,null,null,"Select 1:",null,null,null,"Select 1:"]
[null,null,null,null,null,null,null,null,null,null,null,"Select 2:",null,null,null,"Select 2:"]
[null,null,null,null,null,null,null,null,null,null,null,"Select 3:",null,null,null,"Select 3:"]
[null,null,null,null,null,null,null,null,null,null,null,"Select 4:",null,null,null,"Select 4:"]
[null,null,null,"5)","Is your agency able to associate fatality (or serious injury) crash data with a particular winter weather event?",null,null,null,null,null,null,"Select 5:",null,null,null,"Select 5:"]
[null,null,null,null,null,null,null,null,null,null,null,null,null,null,null,"Select 6:"]
[]
[null,null,null,null,"Select:"]
[]
[]
[]
[null,null,null,"6)","By what geographic scale can your agency report fatality (or serious injury) crash data?"]
[]
[null,null,null,null,"Select:"]
[]
[]
[]
[]
[null,null,null,"7)","During a winter weather event, does your agency have a level of service* that is required for its roadways (assuming it is not closed)? "]
[]
[]
[null,null,null,null,"Select:"]
[]
[null,null,null,null,"*Note that this is a level that the agency expects to maintain during the occurrence of the event."]
[]
[]
[]
[]
[null,null,null,"8)","If yes, how is your agency's roadway level of service defined?"]
[null,null,null,null,"Select:"]
[]
[]
[]
[null,null,null,"9)","Following a winter weather event, does your agency have a time-to-recovery* threshold for its roadways that it strives for?",null,null,null,null,null,"9a)","What does your agency's time-to-recovery threshold depend on?"]
[]
[]
[null,null,null,null,"Select:",null,null,null,null,null,null,"Select:"]
[]
[null,null,null,null,"*Note that this pertains to how quickly an agency recovers back to normal conditions after an event.",null,null,null,null,null,null,{"$f":"IF($M$104=Lookup!$P$27,\"Please specify:\",\"\")","v":""}]
[]
[]
[]
[null,null,null,"10)","If yes, how is your agency's roadway time-to-recovery threshold defined?"]
[]
[null,null,null,null,"Select:"]
[]
[]
[]
[null,null,null,"11)","Is your agency able to collect segment- and/or route-based travel times continuously for certain routes in the system?"]
[]
[]
[null,null,null,null,"Select:"]
[]
[]
[]
[null,null,null,"12)","Is your agency able to report cost data for snow and ice response?",null,null,null,null,null,"12a)","What type of costs is your agency able to report?"]
[]
[null,null,null,null,"Select:",null,null,null,null,null,null,"Select:"]
[]
[]
[]
[null,null,null,"13)","If yes, by what geographic scale can your agency report these costs?"]
[]
[null,null,null,null,"Select:"]
[]
[]
[]
[null,null,null,"14)","Does your agency have a way of calculating the expected amount of salt/material usage during winter seasons, as well as for prior winter seasons?",null,null,null,null,null,"14a)","How is your agency able to calculate / predict the expected usage?"]
[]
[]
[null,null,null,null,"Select:",null,null,null,null,null,null,"Select:"]
[]
[]
[]
[null,null,null,"15)","Does your agency have a way to report the level of customer satisfaction (e.g. surveys) of winter maintenance performance during the season?"]
[]
[]
[null,null,null,null,"Select:"]

{"sheet":"Report","index":2,"n_rows":182,"n_cols":17,"rows_kept":182,"cut":false,"hidden":true,"merged":[[76,2,83,3],[130,6,130,9],[133,2,137,3],[133,16,134,17],[135,8,137,15],[100,6,100,9],[101,6,101,9],[102,6,102,9],[103,6,103,9],[110,6,110,9],[114,6,114,9],[118,6,118,9],[110,11,110,14],[114,11,114,14],[118,11,118,14],[124,6,124,9],[165,8,167,15],[171,8,173,15],[177,8,179,15],[171,7,176,7],[177,7,182,7],[165,7,170,7],[94,6,94,9],[95,6,95,9],[99,6,99,9],[153,8,155,15],[159,8,161,15],[135,7,140,7],[141,7,146,7],[147,7,152,7],[153,7,158,7],[159,7,164,7],[138,9,138,15],[139,9,139,15],[133,8,134,15],[133,7,134,7],[147,8,149,15],[141,8,143,15],[69,6,69,9],[133,5,134,5],[133,6,134,6],[5,6,5,9],[9,6,9,9],[17,6,17,9],[21,6,21,9],[25,6,25,9],[87,6,87,15],[53,6,53,9],[57,6,57,9],[49,6,49,9],[61,6,61,9],[65,6,65,9],[104,6,104,9],[73,6,73,9],[83,6,83,15],[165,5,182,5],[135,6,140,6],[141,6,146,6],[147,6,152,6],[153,6,158,6],[159,6,164,6],[165,6,170,6],[171,6,176,6],[177,6,182,6],[135,5,146,5],[147,5,164,5],[91,6,91,9],[124,11,124,14],[92,6,92,9],[93,6,93,9],[2,2,9,3],[37,6,37,9],[41,6,41,9],[45,6,45,9],[12,2,19,3],[29,6,29,9],[33,6,33,9]]}
[]
[]
[null,null,"Part A"]
[null,null,null,null,null,null,"Name of Agency"]
[]
[null,null,null,null,null,null,{"$f":"IF(ISBLANK('Decision Guide'!$F$20),\"\",'Decision Guide'!$F$20)","v":""}]
[]
[null,null,null,null,null,null,"Jurisdiction"]
[]
[null,null,null,null,null,null,{"$f":"IF(ISBLANK('Decision Guide'!$F$24),\"\",'Decision Guide'!$F$24)","v":""}]
[]
[]
[null,null,"Part B"]
[null,null,null,null,null,null,"Results to Decision Guide Questions:"]
[]
[null,null,null,null,null,"1)","At a minimum, is your agency able to report the number of winter weather-related fatal crashes (or the number of fatalities) by winter season?"]
[]
[null,null,null,null,null,null,{"$f":"Response1","v":""}]
[]
[null,null,null,null,null,"2)","At a minimum, is your agency able to report the number of winter weather-related serious injury crashes (or the number of serious injuries) by winter season?"]
[]
[null,null,null,null,null,null,{"$f":"Response2","v":""}]
[]
[null,null,null,null,null,"3)","Does your agency define winter weather events?"]
[]
[null,null,null,null,null,null,{"$f":"Response3","v":""}]
[]
[null,null,null,null,null,"4)","Is your agency able to define winter severity indices?"]
[]
[null,null,null,null,null,null,{"$f":"Response4","v":""}]
[]
[null,null,null,null,null,"5)","Is your agency able to associate fatality (or serious injury) crash data with a particular winter weather event?"]
[]
[null,null,null,null,null,null,{"$f":"IF(AND('Decision Guide'!$F$35=Lookup!$L$15,'Decision Guide'!$F$44=Lookup!$L$21),\"N/A\",Response5)","v":""}]
[]
[null,null,null,null,null,"6)","By what geographic scale can your agency report fatality (or serious injury) crash data?"]
[]
[null,null,null,null,null,null,{"$f":"IF(AND('Decision Guide'!$F$35=Lookup!$L$15,'Decision Guide'!$F$44=Lookup!$L$21),\"N/A\",Response6)","v":""}]
[]
[null,null,null,null,null,"7)","During a winter weather event, does your agency have a level of service that is required for its roadways (assuming it is not closed)? "]
[]
[null,null,null,null,null,null,{"$f":"IF('Decision Guide'!$F$52=Lookup!$L$25,\"N/A\",Response7)","v":""}]
[]
[null,null,null,null,null,"8)","If yes, how is your agency's roadway level of service defined?"]
[]
[null,null,null,null,null,null,{"$f":"IF('Decision Guide'!$F$52=Lookup!$L$25,\"N/A\",IF('Decision Guide'!$F$89=Lookup!$L$43,\"N/A\",Response8))","v":""}]
[]
[null,null,null,null,null,"9)","Following a winter weather event, does your agency have a time-to-recovery threshold for its roadways that it strives for?"]
[]
[null,null,null,null,null,null,{"$f":"IF('Decision Guide'!$F$52=Lookup!$L$25,\"N/A\",Response9)","v":""}]
[]
[null,null,null,null,null,"10)","If yes, how is your agency's roadway time-to-recovery threshold defined?"]
[]
[null,null,null,null,null,null,{"$f":"IF('Decision Guide'!$F$52=Lookup!$L$25,\"N/A\",IF('Decision Guide'!$F$104=Lookup!$L$55,\"N/A\",Response10))","v":""}]
[]
[null,null,null,null,null,"11)","Is your agency able to collect segment- and/or route-based travel times continuously for certain routes in the system?"]
[]
[null,null,null,null,null,null,{"$f":"Response11","v":""}]
[]
[null,null,null,null,null,"12)","Is your agency able to report cost data for snow and ice response?"]
[]
[null,null,null,null,null,null,{"$f":"Response12","v":""}]
[]
[null,null,null,null,null,"13)","If yes, by what geographic scale can your agency report these costs?"]
[]
[null,null,null,null,null,null,{"$f":"IF('Decision Guide'!$F$125=Lookup!$L$70,\"N/A\",Response13)","v":""}]
[]
[null,null,null,null,null,"14)","Does your agency have a way of calculating the expected amount of salt/material usage during winter seasons, as well as for prior winter seasons?"]
[]
[null,null,null,null,null,null,{"$f":"Response14","v":""}]
[]
[null,null,null,null,null,"15)","Does your agency have a way to report the level of customer satisfaction (e.g. surveys) of winter maintenance performance during the season?"]
[]
[null,null,null,null,null,null,{"$f":"Response15","v":""}]
[]
[]
[null,null,"Part C"]
[null,null,null,null,null,null,"Applicable Agency Definitions:"]
[]
[null,null,null,null,null,"a)","For all Performance Measures"]
[]
[null,null,null,null,null,null,"How does your agency define winter weather event start-times?"]
[]
[null,null,null,null,null,null,{"$f":"IF('Decision Guide'!$F$52=Lookup!$L$25,\"N/A\",IF(Response3a=Lookup!$P$27,Response3aOther,Response3a))","v":""}]
[]
[null,null,null,null,null,null,"How does your agency define winter weather event end-times?"]
[]
[null,null,null,null,null,null,{"$f":"IF('Decision Guide'!$F$52=Lookup!$L$25,\"N/A\",IF(Response3b=Lookup!$S$28,Response3bOther,Response3b))","v":""}]
[]
[null,null,null,null,null,null,"What factors does your agency use for establishing a seasonal severity index? (multiple selections possible)"]
[]
[null,null,null,null,null,null,{"$f":"IF(OR(Response4=Lookup!$L$29,Response4=Lookup!$L$30),\"N/A\",Response4a1)","v":""}]
[null,null,null,null,null,null,{"$f":"IF(OR(Response4=Lookup!$L$29,Response4=Lookup!$L$30),\"N/A\",Response4a2)","v":""}]
[null,null,null,null,null,null,{"$f":"IF(OR(Response4=Lookup!$L$29,Response4=Lookup!$L$30),\"N/A\",Response4a3)","v":""}]
[null,null,null,null,null,null,{"$f":"IF(OR(Response4=Lookup!$L$29,Response4=Lookup!$L$30),\"N/A\",Response4a4)","v":""}]
[null,null,null,null,null,null,{"$f":"IF(OR(Response4=Lookup!$L$29,Response4=Lookup!$L$30),\"N/A\",Response4a5)","v":""}]
[]
[null,null,null,null,null,null,"What factors does your agency use for establishing a storm severity index? (multiple selections possible)"]
[]
[null,null,null,null,null,null,{"$f":"IF(OR(Response4=Lookup!$L$28,Response4=Lookup!$L$30),\"N/A\",Response4b1)","v":""}]
[null,null,null,null,null,null,{"$f":"IF(OR(Response4=Lookup!$L$28,Response4=Lookup!$L$30),\"N/A\",Response4b2)","v":""}]
[null,null,null,null,null,null,{"$f":"IF(OR(Response4=Lookup!$L$28,Response4=Lookup!$L$30),\"N/A\",Response4b3)","v":""}]
[null,null,null,null,null,null,{"$f":"IF(OR(Response4=Lookup!$L$28,Response4=Lookup!$L$30),\"N/A\",Response4b4)","v":""}]
[null,null,null,null,null,null,{"$f":"IF(OR(Response4=Lookup!$L$28,Response4=Lookup!$L$30),\"N/A\",Response4b5)","v":""}]
[null,null,null,null,null,null,{"$f":"IF(OR(Response4=Lookup!$L$28,Response4=Lookup!$L$30),\"N/A\",Response4b6)","v":""}]
[]
[null,null,null,null,null,"b)","For Fatality Data Only",null,null,null,"c)","For Injury Data Only"]
[]
[null,null,null,null,null,null,"What is the source of your agency's winter weather-related fatality data?",null,null,null,null,"What is the source of your agency's winter weather-related injury data?"]
[]
[null,null,null,null,null,null,{"$f":"IF(Response1=Lookup!$L$15,\"N/A\",Response1a)","v":""},null,null,null,null,{"$f":"IF(Response2=Lookup!$L$21,\"N/A\",Response2a)","v":""}]
[]
[null,null,null,null,null,null,"What is the lag time of this data?",null,null,null,null,"What is the lag time of this data?"]
[]
[null,null,null,null,null,null,{"$f":"IF(Response1=Lookup!$L$15,\"N/A\",Response1b)","v":""},null,null,null,null,{"$f":"IF(Response2=Lookup!$L$21,\"N/A\",Response2b)","v":""}]
[]
[null,null,null,null,null,null,"What crash factors are available for this data?",null,null,null,null,"What crash factors are available for this data?"]
[]
[null,null,null,null,null,null,{"$f":"IF(Response1=Lookup!$L$15,\"N/A\",Response1c)","v":""},null,null,null,null,{"$f":"IF(Response2=Lookup!$L$21,\"N/A\",Response2c)","v":""}]
[]
[null,null,null,null,null,"d)","For Time-to-Recovery Data Only",null,null,null,"e)","For Cost Efficiency Data Only"]
[]
[null,null,null,null,null,null,"What does your agency's time-to-recovery threshold depend on?",null,null,null,null,"What type of costs is your agency able to report?"]
[]
[null,null,null,null,null,null,{"$f":"IF('Decision Guide'!$F$104=Lookup!$L$55,\"N/A\",IF(Response9a=Lookup!$P$57,Response9aOther,Response9a))","v":""},null,null,null,null,{"$f":"IF(Response12=Lookup!$L$70,\"N/A\",Response12a)","v":""}]
[]
[null,null,null,null,null,"f)","For Environmental Stewardship Data Only"]
[]
[null,null,null,null,null,null,"How is your agency able to calculate / predict expected salt usage?"]
[]
[null,null,null,null,null,null,{"$f":"IF(Response14=Lookup!$L$80,\"N/A\",Response14a)","v":""}]
[]
[]
[null,null,"Part D",null,null,"Area","Performance Measure","Availability of Performance Measure, Based on Results","Recommended Way(s) of Reporting This Performance Measure, Given Available Data",null,null,null,null,null,null,null,"Click for more information/ detailed results"]
[]
[null,null,null,null,null,"Safety","Fatalities",{"$f":"IF(COUNTIF(Lookup!$CD$2:$CD$9,Report!$G$136)>0,\"Available for your agency\",\"Not Available for your agency\")","v":"Available for your agency"},{"$f":"IF(COUNTIF(Lookup!$CD$2:$CD$9,Report!$G$136)>0,\"Your agency should measure and report winter weather-related fatality data by the number of…\",\"Your agency does not have sufficient data for reliably reporting the Fatalities performance measure.\")","v":"Your agency should measure and report winter weather-related fatality data by the number of…"}]
[]
[]
[null,null,null,null,null,null,null,null,{"$f":"IF(LEN(Lookup2!$J2)>0,CONCATENATE(Lookup2!$K2,\".\"),\"\")","v":"1."},{"$f":"IFERROR(VLOOKUP(I139,'Safety - Fatalities'!$R$56:$AA$79,10,FALSE),\"\")","v":"Fatalities, by event, by roadway, with storm severity index."}]
[null,null,null,null,null,null,null,null,{"$f":"IF(LEN(Lookup2!$J3)>0,CONCATENATE(Lookup2!$K3,\".\"),\"\")","v":"2."},{"$f":"IFERROR(VLOOKUP(I140,'Safety - Fatalities'!$R$56:$AA$79,10,FALSE),\"\")","v":"Fatal Crashes, by event, by roadway, with storm severity index."}]
[]
[null,null,null,null,null,null,"Injuries",{"$f":"IF(COUNTIF(Lookup!$CD$2:$CD$9,Report!$G$142)>0,\"Available for your agency\",\"Not Available for your agency\")","v":"Available for your agency"},{"$f":"IF(COUNTIF(Lookup!$CD$2:$CD$9,Report!$G$142)>0,\"Your agency should measure and report winter weather-related serious injury data by the number of…\",\"Your agency does not have sufficient data for reliably reporting the Injuries performance measure.\")","v":"Your agency should measure and report winter weather-related serious injury data by the number of…"}]
[]
[]
[null,null,null,null,null,null,null,null,{"$f":"IF(LEN(Lookup2!$L2)>0,CONCATENATE(Lookup2!$M2,\".\"),\"\")","v":"1."},{"$f":"IFERROR(VLOOKUP(I145,'Safety - Injuries'!$R$56:$AB$79,10,FALSE),\"\")","v":"Serious Injuries, by event, by roadway, with storm severity index."}]
[null,null,null,null,null,null,null,null,{"$f":"IF(LEN(Lookup2!$L3)>0,CONCATENATE(Lookup2!$M3,\".\"),\"\")","v":"2."},{"$f":"IFERROR(VLOOKUP(I146,'Safety - Injuries'!$R$56:$AB$79,10,FALSE),\"\")","v":"Serious Injury Crashes, by event, by roadway, with storm severity index."}]
[]
[null,null,null,null,null,"Mobility","Level of Service",{"$f":"IF(COUNTIF(Lookup!$CD$2:$CD$9,Report!$G$148)>0,\"Available for your agency\",\"Not Available for your agency\")","v":"Available for your agency"},{"$f":"IF(COUNTIF(Lookup!$CD$2:$CD$9,Report!$G$148)>0,\"Your agency should measure and report level of service during a winter weather event by a(n)…\",\"Your agency does not have sufficient data for reliably reporting the Level of Service performance measure.\")","v":"Your agency should measure and report level of service during a winter weather event by a(n)…"}]
[]
[]
[null,null,null,null,null,null,null,null,{"$f":"IF(LEN(Lookup2!$N2)>0,CONCATENATE(Lookup2!$O2,\".\"),\"\")","v":"1."},{"$f":"IFERROR(VLOOKUP(I151,'Mobility - LOS'!$R$56:$AE$67,14,FALSE),\"\")","v":"Accumulation-related threshold, by event, by roadway, with storm severity index, measured by sensors."}]
[null,null,null,null,null,null,null,null,{"$f":"IF(LEN(Lookup2!$N3)>0,CONCATENATE(Lookup2!$O3,\".\"),\"\")","v":"2."},{"$f":"IFERROR(VLOOKUP(I152,'Mobility - LOS'!$R$56:$AE$67,14,FALSE),\"\")","v":"Friction-related threshold, by event, by roadway, with storm severity index, measured by sensors."}]
[]
[null,null,null,null,null,null,"Recovery",{"$f":"IF(COUNTIF(Lookup!$CD$2:$CD$9,Report!$G$154)>0,\"Available for your agency\",\"Not Available for your agency\")","v":"Available for your agency"},{"$f":"IF(COUNTIF(Lookup!$CD$2:$CD$9,Report!$G$154)>0,\"Your agency should measure and report recovery times after winter weather events by…\",\"Your agency does not have sufficient data for reliably reporting the Recovery performance measure.\")","v":"Your agency should measure and report recovery times after winter weather events by…"}]
[]
[]
[null,null,null,null,null,null,null,null,{"$f":"IF(LEN(Lookup2!$P2)>0,CONCATENATE(Lookup2!$Q2,\".\"),\"\")","v":"1."},{"$f":"IFERROR(VLOOKUP(I157,'Mobility - Recovery'!$R$54:$AD$61,13,FALSE),\"\")","v":"Road surface condition, by event, by roadway, with storm severity index, measured (e.g. grip sensors)."}]
[null,null,null,null,null,null,null,null,{"$f":"IF(LEN(Lookup2!$P3)>0,CONCATENATE(Lookup2!$Q3,\".\"),\"\")","v":"2."},{"$f":"IFERROR(VLOOKUP(I158,'Mobility - Recovery'!$R$54:$AD$61,13,FALSE),\"\")","v":"Road surface condition, by event, by roadway, with storm severity index, observed/ estimated."}]
[]
[null,null,null,null,null,null,"Reliability",{"$f":"IF(COUNTIF(Lookup!$CD$2:$CD$9,Report!$G$160)>0,\"Available for your agency\",\"Not Available for your agency\")","v":"Available for your agency"},{"$f":"IF(COUNTIF(Lookup!$CD$2:$CD$9,Report!$G$160)>0,\"Your agency should measure and report winter weather-related reliability data by…\",\"Your agency does not have sufficient data for reliably reporting the Reliability performance measure.\")","v":"Your agency should measure and report winter weather-related reliability data by…"}]
[]
[]
[null,null,null,null,null,null,null,null,{"$f":"IF(LEN(Lookup2!$R2)>0,CONCATENATE(Lookup2!$S2,\".\"),\"\")","v":"1."},{"$f":"IFERROR(VLOOKUP(I163,'Mobility - Reliability'!$R$54:$AB$57,11,FALSE),\"\")","v":"Travel Time Index (TTI), by event, by trip, with storm severity index, measured."}]
[null,null,null,null,null,null,null,null,{"$f":"IF(LEN(Lookup2!$R3)>0,CONCATENATE(Lookup2!$S3,\".\"),\"\")","v":"2."},{"$f":"IFERROR(VLOOKUP(I164,'Mobility - Reliability'!$R$54:$AB$57,11,FALSE),\"\")","v":"Travel Time Index (TTI), by event, by trip, with storm severity index, estimated."}]
[]
[null,null,null,null,null,"Sustainability","Efficiency",{"$f":"IF(COUNTIF(Lookup!$CD$2:$CD$9,Report!$G$166)>0,\"Available for your agency\",\"Not Available for your agency\")","v":"Available for your agency"},{"$f":"IF(COUNTIF(Lookup!$CD$2:$CD$9,Report!$G$166)>0,\"Your agency should measure and report winter weather-related maintenance costs…\",\"Your agency does not have sufficient data for reliably reporting the Efficiency performance measure.\")","v":"Your agency should measure and report winter weather-related maintenance costs…"}]
[]
[]
[null,null,null,null,null,null,null,null,{"$f":"IF(LEN(Lookup2!$T2)>0,CONCATENATE(Lookup2!$U2,\".\"),\"\")","v":"1."},{"$f":"IFERROR(VLOOKUP(I169,'Sust. - Efficiency'!$R$58:$AB$69,11,FALSE),\"\")","v":"by event, by roadway, with storm severity index."}]
[null,null,null,null,null,null,null,null,{"$f":"IF(LEN(Lookup2!$T3)>0,CONCATENATE(Lookup2!$U3,\".\"),\"\")","v":"2."},{"$f":"IFERROR(VLOOKUP(I170,'Sust. - Efficiency'!$R$58:$AB$69,11,FALSE),\"\")","v":"by event, district-wide, with storm severity index."}]
[]
[null,null,null,null,null,null,"Customer Satisfaction",{"$f":"IF(COUNTIF(Lookup!$CD$2:$CD$9,Report!$G$172)>0,\"Available for your agency\",\"Not Available for your agency\")","v":"Available for your agency"},{"$f":"IF(COUNTIF(Lookup!$CD$2:$CD$9,Report!$G$172)>0,\"Your agency should measure and report traveler feedback during the winter season by…\",\"Your agency does not have sufficient data for reliably reporting the Customer Satisfaction performance measure.\")","v":"Your agency should measure and report traveler feedback during the winter season by…"}]
[]
[]
[null,null,null,null,null,null,null,null,{"$f":"IF(LEN(Lookup2!$V2)>0,CONCATENATE(Lookup2!$W2,\".\"),\"\")","v":"1."},{"$f":"IFERROR(VLOOKUP(I175,'Sust. - Customer Satisfaction'!$R$54:$AB$55,11,FALSE),\"\")","v":"Level of satisfaction, by event, state-wide/ region-wide, with or without storm severity index."}]
[null,null,null,null,null,null,null,null,{"$f":"IF(LEN(Lookup2!$V3)>0,CONCATENATE(Lookup2!$W3,\".\"),\"\")","v":"2."},{"$f":"IFERROR(VLOOKUP(I176,'Sust. - Customer Satisfaction'!$R$54:$AB$55,11,FALSE),\"\")","v":"Level of satisfaction, by winter season, state-wide/ region-wide, with or without seasonal severity index."}]
[]
[null,null,null,null,null,null,"Environmental Stewardship",{"$f":"IF(COUNTIF(Lookup!$CD$2:$CD$9,Report!$G$178)>0,\"Available for your agency\",\"Not Available for your agency\")","v":"Available for your agency"},{"$f":"IF(COUNTIF(Lookup!$CD$2:$CD$9,Report!$G$178)>0,\"Your agency should measure and report material usage data during the winter season by…\",\"Your agency does not have sufficient data for reliably reporting the Environmental Stewardship performance measure.\")","v":"Your agency should measure and report material usage data during the winter season by…"}]
[]
[]
[null,null,null,null,null,null,null,null,{"$f":"IF(LEN(Lookup2!$X2)>0,CONCATENATE(Lookup2!$Y2,\".\"),\"\")","v":"1."},{"$f":"IFERROR(VLOOKUP(I181,'Sust. - Env. Stewardship'!$R$59:$AD$62,13,FALSE),\"\")","v":"Current season usage compared to prior seasons, by event, state-wide/ region-wide, with storm severity index."}]
[null,null,null,null,null,null,null,null,{"$f":"IF(LEN(Lookup2!$X3)>0,CONCATENATE(Lookup2!$Y3,\".\"),\"\")","v":"2."},{"$f":"IFERROR(VLOOKUP(I182,'Sust. - Env. Stewardship'!$R$59:$AD$62,13,FALSE),\"\")","v":"Current season usage, by event, state-wide/ region-wide, with storm severity index."}]

{"sheet":"Navigation","index":3,"n_rows":5,"n_cols":3,"rows_kept":5,"cut":false,"hidden":true,"merged":[[1,2,3,19],[51,3,56,9],[4,2,5,19]]}
[]
[null,null,"Performance Measure Navigation\nEach of the 8 Performance Measures described in the Report are presented below, in the context of when they take place within the storm timeline.\nClick the links to any of the Performance Measures to view more information regarding how your agency can report these measures within its snow and ice control operations."]
[]
[]
[null,null,"NOTE: While \"Fatalities\" and \"Injuries\" are grouped together as a single performance measure in the final report, they are split into two distinct measures in this Excel tool -- resulting in 8 performance measures instead of 7."]

{"sheet":"Safety - Fatalities","index":4,"n_rows":79,"n_cols":27,"rows_kept":79,"cut":false,"hidden":true,"merged":[[76,7,76,14],[77,7,77,14],[78,7,78,14],[71,7,71,14],[74,7,74,14],[75,7,75,14],[64,7,64,14],[65,7,65,14],[72,7,72,14],[73,7,73,14],[66,7,66,14],[67,7,67,14],[68,7,68,14],[69,7,69,14],[70,7,70,14],[14,1,21,3],[22,16,25,24],[29,16,33,24],[37,16,40,26],[9,9,11,25],[15,16,18,24],[4,1,10,3],[47,6,50,14],[47,17,50,24],[47,1,54,3],[52,17,54,24],[55,7,55,14],[61,7,61,14],[62,7,62,14],[63,7,63,14],[56,7,56,14],[57,7,57,14],[58,7,58,14],[59,7,59,14],[60,7,60,14]]}
[]
[]
[]
[]
[null,"1. Performance Measure Overview",null,null,null,null,null,"Safety Performance Measure:","Fatalities – Five-Year Rolling Average of Number of Fatalities During a Winter Season."]
[]
[]
[null,null,null,null,null,null,null,"Definition:","This performance measure indicates the number of fatal crashes as it relates to the winter season or winter weather events.  "]
[]
[null,null,null,null,null,null,null,"Required Data",null,"At a minimum, the number of fatal crashes occurring during each winter season month are needed. More detailed information such as causal factors, location, time, and number of individuals involved in the crash can help improve the measure.  Note that TMC incident records may not log all crashes or their severity and official crash records have a time lag associated with them. "]
[null,null,null,null,null,null,null,"Fatal Crash Records"]
[]
[]
[]
[null,"2. Performance Measure Breakdown"]
[null,null,null,null,null,null,"A.","This Performance Measure can be reported in one of two ways:",null,null,null,null,null,null,null,null,"Agencies can document crashes involving a fatality vs. the total number of individuals killed in winter weather-related fatal crashes."]
[]
[null,null,null,null,null,null,null,"1.","The number of winter weather-related fatal crashes"]
[null,null,null,null,null,null,null,"2.","The number of winter weather-related fatalities"]
[]
[]
[]
[null,null,null,null,null,null,"B.","Each data set can then be broken down by a time scale:",null,null,null,null,null,null,null,null,"Agencies should strive to associate winter weather-related fatality data to specific winter weather events. This provides the greatest level of detail and can be aggregated up to any other time frame."]
[]
[null,null,null,null,null,null,null,"1.","By winter season"]
[null,null,null,null,null,null,null,"2.","By winter weather event"]
[]
[]
[]
[null,null,null,null,null,null,"C.","Fatality data can then be broken down by a geographic scale:",null,null,null,null,null,null,null,null,"These options are listed down by increasing level of detail. Agencies should strive to report winter weather-related fatality data to the most detailed geographic scale possible."]
[]
[null,null,null,null,null,null,null,"1.","State-wide (or region-wide)"]
[null,null,null,null,null,null,null,"2.","District-wide"]
[null,null,null,null,null,null,null,"3.","By roadway (or specific road segment)"]
[]
[]
[]
[null,null,null,null,null,null,"D.","And finally, the fatality data can be reported with a winter weather severity index:",null,null,null,null,null,null,null,null,"Storm severity indices (Option 2) provide the greatest level of detail, and should therefore be used if available. Associating a winter weather severity index with fatality data helps agencies better understand how different degrees of adverse winter weather affect public safety in the region."]
[]
[null,null,null,null,null,null,null,"1.","Seasonal severity index (by winter season)"]
[null,null,null,null,null,null,null,"2.","Storm severity index (weather event-specific)"]
[]
[]
[null,null,null,null,null,null,null,"Refer to the section below to see which variations of reporting this performance measure are available for your agency"]
[]
[]
[]
[null,"3. Available Variations",null,null,null,null,"Based on your results to the Decision Guide*, your agency can report winter weather-related fatality data in the following ways (available variations highlighted):",null,null,null,null,null,null,null,null,null,null,"*Note: If you did not take the Decision Guide Route, then the list below shows the total possible variations for reporting this performance measure."]
[]
[]
[]
[]
[null,null,null,null,null,null,null,null,null,null,null,null,null,null,null,null,null,"Your agency can measure and report winter weather-related fatality data by the number of…"]
[]
[]
[null,null,null,null,null,"SF-1",{"$f":"IF(LEN(VLOOKUP(F56,Lookup2!$B$2:$F$91,5,FALSE))>0,VLOOKUP(H56,Lookup2!$J$2:$K$25,2,FALSE),\"\")","v":1},{"$f":"VLOOKUP(F56,Lookup2!$B$2:$F$91,3,FALSE)","v":"Fatal Crashes, by winter season, state-wide/ region-wide, without seasonal severity index."},null,null,null,null,null,null,null,null,{"$f":"IFERROR(VLOOKUP(S56,Lookup3!$N$2:$T$91,7,FALSE),0)","v":1},{"$f":"IF(LEN(Lookup2!$J2)>0,CONCATENATE(Lookup2!$K2,\".\"),\"\")","v":"1."},{"$f":"Lookup2!$J2","v":"Fatal Crashes, by winter season, state-wide/ region-wide, without seasonal severity index."},null,null,null,null,null,null,null,{"$f":"IFERROR(INDEX($S$56:$S$79,MATCH(1,INDEX(($Q$56:$Q$79=LARGE($Q$56:$Q$79,ROWS(AA$55:AA55)))*(COUNTIF(AA$55:AA55,$S$56:$S$79)=0),),0)),\"\")","v":"Fatalities, by event, by roadway, with storm severity index."}]
[null,null,null,null,null,"SF-2",{"$f":"IF(LEN(VLOOKUP(F57,Lookup2!$B$2:$F$91,5,FALSE))>0,VLOOKUP(H57,Lookup2!$J$2:$K$25,2,FALSE),\"\")","v":2},{"$f":"VLOOKUP(F57,Lookup2!$B$2:$F$91,3,FALSE)","v":"Fatalities, by winter season, state-wide/ region-wide, without seasonal severity index."},null,null,null,null,null,null,null,null,{"$f":"IFERROR(VLOOKUP(S57,Lookup3!$N$2:$T$91,7,FALSE),0)","v":1.01},{"$f":"IF(LEN(Lookup2!$J3)>0,CONCATENATE(Lookup2!$K3,\".\"),\"\")","v":"2."},{"$f":"Lookup2!$J3","v":"Fatalities, by winter season, state-wide/ region-wide, without seasonal severity index."},null,null,null,null,null,null,null,{"$f":"IFERROR(INDEX($S$56:$S$79,MATCH(1,INDEX(($Q$56:$Q$79=LARGE($Q$56:$Q$79,ROWS(AA$55:AA56)))*(COUNTIF(AA$55:AA56,$S$56:$S$79)=0),),0)),\"\")","v":"Fatal Crashes, by event, by roadway, with storm severity index."}]
[null,null,null,null,null,"SF-3",{"$f":"IF(LEN(VLOOKUP(F58,Lookup2!$B$2:$F$91,5,FALSE))>0,VLOOKUP(H58,Lookup2!$J$2:$K$25,2,FALSE),\"\")","v":3},{"$f":"VLOOKUP(F58,Lookup2!$B$2:$F$91,3,FALSE)","v":"Fatal Crashes, by winter season, state-wide/ region-wide, with seasonal severity index."},null,null,null,null,null,null,null,null,{"$f":"IFERROR(VLOOKUP(S58,Lookup3!$N$2:$T$91,7,FALSE),0)","v":3},{"$f":"IF(LEN(Lookup2!$J4)>0,CONCATENATE(Lookup2!$K4,\".\"),\"\")","v":"3."},{"$f":"Lookup2!$J4","v":"Fatal Crashes, by winter season, state-wide/ region-wide, with seasonal severity index."},null,null,null,null,null,null,null,{"$f":"IFERROR(INDEX($S$56:$S$79,MATCH(1,INDEX(($Q$56:$Q$79=LARGE($Q$56:$Q$79,ROWS(AA$55:AA57)))*(COUNTIF(AA$55:AA57,$S$56:$S$79)=0),),0)),\"\")","v":"Fatalities, by event, district-wide, with storm severity index."}]
[null,null,null,null,null,"SF-4",{"$f":"IF(LEN(VLOOKUP(F59,Lookup2!$B$2:$F$91,5,FALSE))>0,VLOOKUP(H59,Lookup2!$J$2:$K$25,2,FALSE),\"\")","v":4},{"$f":"VLOOKUP(F59,Lookup2!$B$2:$F$91,3,FALSE)","v":"Fatalities, by winter season, state-wide/ region-wide, with seasonal severity index."},null,null,null,null,null,null,null,null,{"$f":"IFERROR(VLOOKUP(S59,Lookup3!$N$2:$T$91,7,FALSE),0)","v":3.0300000000000002},{"$f":"IF(LEN(Lookup2!$J5)>0,CONCATENATE(Lookup2!$K5,\".\"),\"\")","v":"4."},{"$f":"Lookup2!$J5","v":"Fatalities, by winter season, state-wide/ region-wide, with seasonal severity index."},null,null,null,null,null,null,null,{"$f":"IFERROR(INDEX($S$56:$S$79,MATCH(1,INDEX(($Q$56:$Q$79=LARGE($Q$56:$Q$79,ROWS(AA$55:AA58)))*(COUNTIF(AA$55:AA58,$S$56:$S$79)=0),),0)),\"\")","v":"Fatal Crashes, by event, district-wide, with storm severity index."}]
[null,null,null,null,null,"SF-5",{"$f":"IF(LEN(VLOOKUP(F60,Lookup2!$B$2:$F$91,5,FALSE))>0,VLOOKUP(H60,Lookup2!$J$2:$K$25,2,FALSE),\"\")","v":5},{"$f":"VLOOKUP(F60,Lookup2!$B$2:$F$91,3,FALSE)","v":"Fatal Crashes, by winter season, district-wide, without seasonal severity index."},null,null,null,null,null,null,null,null,{"$f":"IFERROR(VLOOKUP(S60,Lookup3!$N$2:$T$91,7,FALSE),0)","v":2},{"$f":"IF(LEN(Lookup2!$J6)>0,CONCATENATE(Lookup2!$K6,\".\"),\"\")","v":"5."},{"$f":"Lookup2!$J6","v":"Fatal Crashes, by winter season, district-wide, without seasonal severity index."},null,null,null,null,null,null,null,{"$f":"IFERROR(INDEX($S$56:$S$79,MATCH(1,INDEX(($Q$56:$Q$79=LARGE($Q$56:$Q$79,ROWS(AA$55:AA59)))*(COUNTIF(AA$55:AA59,$S$56:$S$79)=0),),0)),\"\")","v":"Fatalities, by winter season, by roadway, with seasonal severity index."}]
[null,null,null,null,null,"SF-6",{"$f":"IF(LEN(VLOOKUP(F61,Lookup2!$B$2:$F$91,5,FALSE))>0,VLOOKUP(H61,Lookup2!$J$2:$K$25,2,FALSE),\"\")","v":6},{"$f":"VLOOKUP(F61,Lookup2!$B$2:$F$91,3,FALSE)","v":"Fatalities, by winter season, district-wide, without seasonal severity index."},null,null,null,null,null,null,null,null,{"$f":"IFERROR(VLOOKUP(S61,Lookup3!$N$2:$T$91,7,FALSE),0)","v":2.02},{"$f":"IF(LEN(Lookup2!$J7)>0,CONCATENATE(Lookup2!$K7,\".\"),\"\")","v":"6."},{"$f":"Lookup2!$J7","v":"Fatalities, by winter season, district-wide, without seasonal severity index."},null,null,null,null,null,null,null,{"$f":"IFERROR(INDEX($S$56:$S$79,MATCH(1,INDEX(($Q$56:$Q$79=LARGE($Q$56:$Q$79,ROWS(AA$55:AA60)))*(COUNTIF(AA$55:AA60,$S$56:$S$79)=0),),0)),\"\")","v":"Fatalities, by event, state-wide/ region-wide, with storm severity index."}]
[null,null,null,null,null,"SF-7",{"$f":"IF(LEN(VLOOKUP(F62,Lookup2!$B$2:$F$91,5,FALSE))>0,VLOOKUP(H62,Lookup2!$J$2:$K$25,2,FALSE),\"\")","v":7},{"$f":"VLOOKUP(F62,Lookup2!$B$2:$F$91,3,FALSE)","v":"Fatal Crashes, by winter season, district-wide, with seasonal severity index."},null,null,null,null,null,null,null,null,{"$f":"IFERROR(VLOOKUP(S62,Lookup3!$N$2:$T$91,7,FALSE),0)","v":6},{"$f":"IF(LEN(Lookup2!$J8)>0,CONCATENATE(Lookup2!$K8,\".\"),\"\")","v":"7."},{"$f":"Lookup2!$J8","v":"Fatal Crashes, by winter season, district-wide, with seasonal severity index."},null,null,null,null,null,null,null,{"$f":"IFERROR(INDEX($S$56:$S$79,MATCH(1,INDEX(($Q$56:$Q$79=LARGE($Q$56:$Q$79,ROWS(AA$55:AA61)))*(COUNTIF(AA$55:AA61,$S$56:$S$79)=0),),0)),\"\")","v":"Fatalities, by event, by roadway, without storm severity index."}]
[null,null,null,null,null,"SF-8",{"$f":"IF(LEN(VLOOKUP(F63,Lookup2!$B$2:$F$91,5,FALSE))>0,VLOOKUP(H63,Lookup2!$J$2:$K$25,2,FALSE),\"\")","v":8},{"$f":"VLOOKUP(F63,Lookup2!$B$2:$F$91,3,FALSE)","v":"Fatalities, by winter season, district-wide, with seasonal severity index."},null,null,null,null,null,null,null,null,{"$f":"IFERROR(VLOOKUP(S63,Lookup3!$N$2:$T$91,7,FALSE),0)","v":6.0600000000000005},{"$f":"IF(LEN(Lookup2!$J9)>0,CONCATENATE(Lookup2!$K9,\".\"),\"\")","v":"8."},{"$f":"Lookup2!$J9","v":"Fatalities, by winter season, district-wide, with seasonal severity index."},null,null,null,null,null,null,null,{"$f":"IFERROR(INDEX($S$56:$S$79,MATCH(1,INDEX(($Q$56:$Q$79=LARGE($Q$56:$Q$79,ROWS(AA$55:AA62)))*(COUNTIF(AA$55:AA62,$S$56:$S$79)=0),),0)),\"\")","v":"Fatal Crashes, by winter season, by roadway, with seasonal severity index."}]
[null,null,null,null,null,"SF-9",{"$f":"IF(LEN(VLOOKUP(F64,Lookup2!$B$2:$F$91,5,FALSE))>0,VLOOKUP(H64,Lookup2!$J$2:$K$25,2,FALSE),\"\")","v":9},{"$f":"VLOOKUP(F64,Lookup2!$B$2:$F$91,3,FALSE)","v":"Fatal Crashes, by winter season, by roadway, without seasonal severity index."},null,null,null,null,null,null,null,null,{"$f":"IFERROR(VLOOKUP(S64,Lookup3!$N$2:$T$91,7,FALSE),0)","v":3},{"$f":"IF(LEN(Lookup2!$J10)>0,CONCATENATE(Lookup2!$K10,\".\"),\"\")","v":"9."},{"$f":"Lookup2!$J10","v":"Fatal Crashes, by winter season, by roadway, without seasonal severity index."},null,null,null,null,null,null,null,{"$f":"IFERROR(INDEX($S$56:$S$79,MATCH(1,INDEX(($Q$56:$Q$79=LARGE($Q$56:$Q$79,ROWS(AA$55:AA63)))*(COUNTIF(AA$55:AA63,$S$56:$S$79)=0),),0)),\"\")","v":"Fatal Crashes, by event, state-wide/ region-wide, with storm severity index."}]
[null,null,null,null,null,"SF-10",{"$f":"IF(LEN(VLOOKUP(F65,Lookup2!$B$2:$F$91,5,FALSE))>0,VLOOKUP(H65,Lookup2!$J$2:$K$25,2,FALSE),\"\")","v":10},{"$f":"VLOOKUP(F65,Lookup2!$B$2:$F$91,3,FALSE)","v":"Fatalities, by winter season, by roadway, without seasonal severity index."},null,null,null,null,null,null,null,null,{"$f":"IFERROR(VLOOKUP(S65,Lookup3!$N$2:$T$91,7,FALSE),0)","v":3.0300000000000002},{"$f":"IF(LEN(Lookup2!$J11)>0,CONCATENATE(Lookup2!$K11,\".\"),\"\")","v":"10."},{"$f":"Lookup2!$J11","v":"Fatalities, by winter season, by roadway, without seasonal severity index."},null,null,null,null,null,null,null,{"$f":"IFERROR(INDEX($S$56:$S$79,MATCH(1,INDEX(($Q$56:$Q$79=LARGE($Q$56:$Q$79,ROWS(AA$55:AA64)))*(COUNTIF(AA$55:AA64,$S$56:$S$79)=0),),0)),\"\")","v":"Fatal Crashes, by event, by roadway, without storm severity index."}]
[null,null,null,null,null,"SF-11",{"$f":"IF(LEN(VLOOKUP(F66,Lookup2!$B$2:$F$91,5,FALSE))>0,VLOOKUP(H66,Lookup2!$J$2:$K$25,2,FALSE),\"\")","v":11},{"$f":"VLOOKUP(F66,Lookup2!$B$2:$F$91,3,FALSE)","v":"Fatal Crashes, by winter season, by roadway, with seasonal severity index."},null,null,null,null,null,null,null,null,{"$f":"IFERROR(VLOOKUP(S66,Lookup3!$N$2:$T$91,7,FALSE),0)","v":9},{"$f":"IF(LEN(Lookup2!$J12)>0,CONCATENATE(Lookup2!$K12,\".\"),\"\")","v":"11."},{"$f":"Lookup2!$J12","v":"Fatal Crashes, by winter season, by roadway, with seasonal severity index."},null,null,null,null,null,null,null,{"$f":"IFERROR(INDEX($S$56:$S$79,MATCH(1,INDEX(($Q$56:$Q$79=LARGE($Q$56:$Q$79,ROWS(AA$55:AA65)))*(COUNTIF(AA$55:AA65,$S$56:$S$79)=0),),0)),\"\")","v":"Fatalities, by winter season, district-wide, with seasonal severity index."}]
[null,null,null,null,null,"SF-12",{"$f":"IF(LEN(VLOOKUP(F67,Lookup2!$B$2:$F$91,5,FALSE))>0,VLOOKUP(H67,Lookup2!$J$2:$K$25,2,FALSE),\"\")","v":12},{"$f":"VLOOKUP(F67,Lookup2!$B$2:$F$91,3,FALSE)","v":"Fatalities, by winter season, by roadway, with seasonal severity index."},null,null,null,null,null,null,null,null,{"$f":"IFERROR(VLOOKUP(S67,Lookup3!$N$2:$T$91,7,FALSE),0)","v":9.09},{"$f":"IF(LEN(Lookup2!$J13)>0,CONCATENATE(Lookup2!$K13,\".\"),\"\")","v":"12."},{"$f":"Lookup2!$J13","v":"Fatalities, by winter season, by roadway, with seasonal severity index."},null,null,null,null,null,null,null,{"$f":"IFERROR(INDEX($S$56:$S$79,MATCH(1,INDEX(($Q$56:$Q$79=LARGE($Q$56:$Q$79,ROWS(AA$55:AA66)))*(COUNTIF(AA$55:AA66,$S$56:$S$79)=0),),0)),\"\")","v":"Fatalities, by event, district-wide, without storm severity index."}]
[null,null,null,null,null,"SF-13",{"$f":"IF(LEN(VLOOKUP(F68,Lookup2!$B$2:$F$91,5,FALSE))>0,VLOOKUP(H68,Lookup2!$J$2:$K$25,2,FALSE),\"\")","v":13},{"$f":"VLOOKUP(F68,Lookup2!$B$2:$F$91,3,FALSE)","v":"Fatal Crashes, by event, state-wide/ region-wide, without storm severity index."},null,null,null,null,null,null,null,null,{"$f":"IFERROR(VLOOKUP(S68,Lookup3!$N$2:$T$91,7,FALSE),0)","v":3},{"$f":"IF(LEN(Lookup2!$J14)>0,CONCATENATE(Lookup2!$K14,\".\"),\"\")","v":"13."},{"$f":"Lookup2!$J14","v":"Fatal Crashes, by event, state-wide/ region-wide, without storm severity index."},null,null,null,null,null,null,null,{"$f":"IFERROR(INDEX($S$56:$S$79,MATCH(1,INDEX(($Q$56:$Q$79=LARGE($Q$56:$Q$79,ROWS(AA$55:AA67)))*(COUNTIF(AA$55:AA67,$S$56:$S$79)=0),),0)),\"\")","v":"Fatal Crashes, by winter season, district-wide, with seasonal severity index."}]
[null,null,null,null,null,"SF-14",{"$f":"IF(LEN(VLOOKUP(F69,Lookup2!$B$2:$F$91,5,FALSE))>0,VLOOKUP(H69,Lookup2!$J$2:$K$25,2,FALSE),\"\")","v":14},{"$f":"VLOOKUP(F69,Lookup2!$B$2:$F$91,3,FALSE)","v":"Fatalities, by event, state-wide/ region-wide, without storm severity index."},null,null,null,null,null,null,null,null,{"$f":"IFERROR(VLOOKUP(S69,Lookup3!$N$2:$T$91,7,FALSE),0)","v":3.0300000000000002},{"$f":"IF(LEN(Lookup2!$J15)>0,CONCATENATE(Lookup2!$K15,\".\"),\"\")","v":"14."},{"$f":"Lookup2!$J15","v":"Fatalities, by event, state-wide/ region-wide, without storm severity index."},null,null,null,null,null,null,null,{"$f":"IFERROR(INDEX($S$56:$S$79,MATCH(1,INDEX(($Q$56:$Q$79=LARGE($Q$56:$Q$79,ROWS(AA$55:AA68)))*(COUNTIF(AA$55:AA68,$S$56:$S$79)=0),),0)),\"\")","v":"Fatal Crashes, by event, district-wide, without storm severity index."}]
[null,null,null,null,null,"SF-15",{"$f":"IF(LEN(VLOOKUP(F70,Lookup2!$B$2:$F$91,5,FALSE))>0,VLOOKUP(H70,Lookup2!$J$2:$K$25,2,FALSE),\"\")","v":15},{"$f":"VLOOKUP(F70,Lookup2!$B$2:$F$91,3,FALSE)","v":"Fatal Crashes, by event, state-wide/ region-wide, with storm severity index."},null,null,null,null,null,null,null,null,{"$f":"IFERROR(VLOOKUP(S70,Lookup3!$N$2:$T$91,7,FALSE),0)","v":9},{"$f":"IF(LEN(Lookup2!$J16)>0,CONCATENATE(Lookup2!$K16,\".\"),\"\")","v":"15."},{"$f":"Lookup2!$J16","v":"Fatal Crashes, by event, state-wide/ region-wide, with storm severity index."},null,null,null,null,null,null,null,{"$f":"IFERROR(INDEX($S$56:$S$79,MATCH(1,INDEX(($Q$56:$Q$79=LARGE($Q$56:$Q$79,ROWS(AA$55:AA69)))*(COUNTIF(AA$55:AA69,$S$56:$S$79)=0),),0)),\"\")","v":"Fatalities, by winter season, state-wide/ region-wide, with seasonal severity index."}]
[null,null,null,null,null,"SF-16",{"$f":"IF(LEN(VLOOKUP(F71,Lookup2!$B$2:$F$91,5,FALSE))>0,VLOOKUP(H71,Lookup2!$J$2:$K$25,2,FALSE),\"\")","v":16},{"$f":"VLOOKUP(F71,Lookup2!$B$2:$F$91,3,FALSE)","v":"Fatalities, by event, state-wide/ region-wide, with storm severity index."},null,null,null,null,null,null,null,null,{"$f":"IFERROR(VLOOKUP(S71,Lookup3!$N$2:$T$91,7,FALSE),0)","v":9.09},{"$f":"IF(LEN(Lookup2!$J17)>0,CONCATENATE(Lookup2!$K17,\".\"),\"\")","v":"16."},{"$f":"Lookup2!$J17","v":"Fatalities, by event, state-wide/ region-wide, with storm severity index."},null,null,null,null,null,null,null,{"$f":"IFERROR(INDEX($S$56:$S$79,MATCH(1,INDEX(($Q$56:$Q$79=LARGE($Q$56:$Q$79,ROWS(AA$55:AA70)))*(COUNTIF(AA$55:AA70,$S$56:$S$79)=0),),0)),\"\")","v":"Fatalities, by winter season, by roadway, without seasonal severity index."}]
[null,null,null,null,null,"SF-17",{"$f":"IF(LEN(VLOOKUP(F72,Lookup2!$B$2:$F$91,5,FALSE))>0,VLOOKUP(H72,Lookup2!$J$2:$K$25,2,FALSE),\"\")","v":17},{"$f":"VLOOKUP(F72,Lookup2!$B$2:$F$91,3,FALSE)","v":"Fatal Crashes, by event, district-wide, without storm severity index."},null,null,null,null,null,null,null,null,{"$f":"IFERROR(VLOOKUP(S72,Lookup3!$N$2:$T$91,7,FALSE),0)","v":6},{"$f":"IF(LEN(Lookup2!$J18)>0,CONCATENATE(Lookup2!$K18,\".\"),\"\")","v":"17."},{"$f":"Lookup2!$J18","v":"Fatal Crashes, by event, district-wide, without storm severity index."},null,null,null,null,null,null,null,{"$f":"IFERROR(INDEX($S$56:$S$79,MATCH(1,INDEX(($Q$56:$Q$79=LARGE($Q$56:$Q$79,ROWS(AA$55:AA71)))*(COUNTIF(AA$55:AA71,$S$56:$S$79)=0),),0)),\"\")","v":"Fatalities, by event, state-wide/ region-wide, without storm severity index."}]
[null,null,null,null,null,"SF-18",{"$f":"IF(LEN(VLOOKUP(F73,Lookup2!$B$2:$F$91,5,FALSE))>0,VLOOKUP(H73,Lookup2!$J$2:$K$25,2,FALSE),\"\")","v":18},{"$f":"VLOOKUP(F73,Lookup2!$B$2:$F$91,3,FALSE)","v":"Fatalities, by event, district-wide, without storm severity index."},null,null,null,null,null,null,null,null,{"$f":"IFERROR(VLOOKUP(S73,Lookup3!$N$2:$T$91,7,FALSE),0)","v":6.0600000000000005},{"$f":"IF(LEN(Lookup2!$J19)>0,CONCATENATE(Lookup2!$K19,\".\"),\"\")","v":"18."},{"$f":"Lookup2!$J19","v":"Fatalities, by event, district-wide, without storm severity index."},null,null,null,null,null,null,null,{"$f":"IFERROR(INDEX($S$56:$S$79,MATCH(1,INDEX(($Q$56:$Q$79=LARGE($Q$56:$Q$79,ROWS(AA$55:AA72)))*(COUNTIF(AA$55:AA72,$S$56:$S$79)=0),),0)),\"\")","v":"Fatal Crashes, by winter season, state-wide/ region-wide, with seasonal severity index."}]
[null,null,null,null,null,"SF-19",{"$f":"IF(LEN(VLOOKUP(F74,Lookup2!$B$2:$F$91,5,FALSE))>0,VLOOKUP(H74,Lookup2!$J$2:$K$25,2,FALSE),\"\")","v":19},{"$f":"VLOOKUP(F74,Lookup2!$B$2:$F$91,3,FALSE)","v":"Fatal Crashes, by event, district-wide, with storm severity index."},null,null,null,null,null,null,null,null,{"$f":"IFERROR(VLOOKUP(S74,Lookup3!$N$2:$T$91,7,FALSE),0)","v":18},{"$f":"IF(LEN(Lookup2!$J20)>0,CONCATENATE(Lookup2!$K20,\".\"),\"\")","v":"19."},{"$f":"Lookup2!$J20","v":"Fatal Crashes, by event, district-wide, with storm severity index."},null,null,null,null,null,null,null,{"$f":"IFERROR(INDEX($S$56:$S$79,MATCH(1,INDEX(($Q$56:$Q$79=LARGE($Q$56:$Q$79,ROWS(AA$55:AA73)))*(COUNTIF(AA$55:AA73,$S$56:$S$79)=0),),0)),\"\")","v":"Fatal Crashes, by winter season, by roadway, without seasonal severity index."}]
[null,null,null,null,null,"SF-20",{"$f":"IF(LEN(VLOOKUP(F75,Lookup2!$B$2:$F$91,5,FALSE))>0,VLOOKUP(H75,Lookup2!$J$2:$K$25,2,FALSE),\"\")","v":20},{"$f":"VLOOKUP(F75,Lookup2!$B$2:$F$91,3,FALSE)","v":"Fatalities, by event, district-wide, with storm severity index."},null,null,null,null,null,null,null,null,{"$f":"IFERROR(VLOOKUP(S75,Lookup3!$N$2:$T$91,7,FALSE),0)","v":18.18},{"$f":"IF(LEN(Lookup2!$J21)>0,CONCATENATE(Lookup2!$K21,\".\"),\"\")","v":"20."},{"$f":"Lookup2!$J21","v":"Fatalities, by event, district-wide, with storm severity index."},null,null,null,null,null,null,null,{"$f":"IFERROR(INDEX($S$56:$S$79,MATCH(1,INDEX(($Q$56:$Q$79=LARGE($Q$56:$Q$79,ROWS(AA$55:AA74)))*(COUNTIF(AA$55:AA74,$S$56:$S$79)=0),),0)),\"\")","v":"Fatal Crashes, by event, state-wide/ region-wide, without storm severity index."}]
[null,null,null,null,null,"SF-21",{"$f":"IF(LEN(VLOOKUP(F76,Lookup2!$B$2:$F$91,5,FALSE))>0,VLOOKUP(H76,Lookup2!$J$2:$K$25,2,FALSE),\"\")","v":21},{"$f":"VLOOKUP(F76,Lookup2!$B$2:$F$91,3,FALSE)","v":"Fatal Crashes, by event, by roadway, without storm severity index."},null,null,null,null,null,null,null,null,{"$f":"IFERROR(VLOOKUP(S76,Lookup3!$N$2:$T$91,7,FALSE),0)","v":9},{"$f":"IF(LEN(Lookup2!$J22)>0,CONCATENATE(Lookup2!$K22,\".\"),\"\")","v":"21."},{"$f":"Lookup2!$J22","v":"Fatal Crashes, by event, by roadway, without storm severity index."},null,null,null,null,null,null,null,{"$f":"IFERROR(INDEX($S$56:$S$79,MATCH(1,INDEX(($Q$56:$Q$79=LARGE($Q$56:$Q$79,ROWS(AA$55:AA75)))*(COUNTIF(AA$55:AA75,$S$56:$S$79)=0),),0)),\"\")","v":"Fatalities, by winter season, district-wide, without seasonal severity index."}]
[null,null,null,null,null,"SF-22",{"$f":"IF(LEN(VLOOKUP(F77,Lookup2!$B$2:$F$91,5,FALSE))>0,VLOOKUP(H77,Lookup2!$J$2:$K$25,2,FALSE),\"\")","v":22},{"$f":"VLOOKUP(F77,Lookup2!$B$2:$F$91,3,FALSE)","v":"Fatalities, by event, by roadway, without storm severity index."},null,null,null,null,null,null,null,null,{"$f":"IFERROR(VLOOKUP(S77,Lookup3!$N$2:$T$91,7,FALSE),0)","v":9.09},{"$f":"IF(LEN(Lookup2!$J23)>0,CONCATENATE(Lookup2!$K23,\".\"),\"\")","v":"22."},{"$f":"Lookup2!$J23","v":"Fatalities, by event, by roadway, without storm severity index."},null,null,null,null,null,null,null,{"$f":"IFERROR(INDEX($S$56:$S$79,MATCH(1,INDEX(($Q$56:$Q$79=LARGE($Q$56:$Q$79,ROWS(AA$55:AA76)))*(COUNTIF(AA$55:AA76,$S$56:$S$79)=0),),0)),\"\")","v":"Fatal Crashes, by winter season, district-wide, without seasonal severity index."}]
[null,null,null,null,null,"SF-23",{"$f":"IF(LEN(VLOOKUP(F78,Lookup2!$B$2:$F$91,5,FALSE))>0,VLOOKUP(H78,Lookup2!$J$2:$K$25,2,FALSE),\"\")","v":23},{"$f":"VLOOKUP(F78,Lookup2!$B$2:$F$91,3,FALSE)","v":"Fatal Crashes, by event, by roadway, with storm severity index."},null,null,null,null,null,null,null,null,{"$f":"IFERROR(VLOOKUP(S78,Lookup3!$N$2:$T$91,7,FALSE),0)","v":27},{"$f":"IF(LEN(Lookup2!$J24)>0,CONCATENATE(Lookup2!$K24,\".\"),\"\")","v":"23."},{"$f":"Lookup2!$J24","v":"Fatal Crashes, by event, by roadway, with storm severity index."},null,null,null,null,null,null,null,{"$f":"IFERROR(INDEX($S$56:$S$79,MATCH(1,INDEX(($Q$56:$Q$79=LARGE($Q$56:$Q$79,ROWS(AA$55:AA77)))*(COUNTIF(AA$55:AA77,$S$56:$S$79)=0),),0)),\"\")","v":"Fatalities, by winter season, state-wide/ region-wide, without seasonal severity index."}]
[null,null,null,null,null,"SF-24",{"$f":"IF(LEN(VLOOKUP(F79,Lookup2!$B$2:$F$91,5,FALSE))>0,VLOOKUP(H79,Lookup2!$J$2:$K$25,2,FALSE),\"\")","v":24},{"$f":"VLOOKUP(F79,Lookup2!$B$2:$F$91,3,FALSE)","v":"Fatalities, by event, by roadway, with storm severity index."},null,null,null,null,null,null,null,null,{"$f":"IFERROR(VLOOKUP(S79,Lookup3!$N$2:$T$91,7,FALSE),0)","v":27.27},{"$f":"IF(LEN(Lookup2!$J25)>0,CONCATENATE(Lookup2!$K25,\".\"),\"\")","v":"24."},{"$f":"Lookup2!$J25","v":"Fatalities, by event, by roadway, with storm severity index."},null,null,null,null,null,null,null,{"$f":"IFERROR(INDEX($S$56:$S$79,MATCH(1,INDEX(($Q$56:$Q$79=LARGE($Q$56:$Q$79,ROWS(AA$55:AA78)))*(COUNTIF(AA$55:AA78,$S$56:$S$79)=0),),0)),\"\")","v":"Fatal Crashes, by winter season, state-wide/ region-wide, without seasonal severity index."}]

{"sheet":"Safety - Injuries","index":5,"n_rows":79,"n_cols":27,"rows_kept":79,"cut":false,"hidden":true,"merged":[[75,7,75,14],[76,7,76,14],[77,7,77,14],[78,7,78,14],[70,7,70,14],[71,7,71,14],[72,7,72,14],[73,7,73,14],[74,7,74,14],[65,7,65,14],[66,7,66,14],[67,7,67,14],[68,7,68,14],[69,7,69,14],[60,7,60,14],[61,7,61,14],[62,7,62,14],[63,7,63,14],[64,7,64,14],[55,7,55,14],[56,7,56,14],[57,7,57,14],[58,7,58,14],[59,7,59,14],[37,16,40,26],[47,1,54,3],[47,6,50,14],[47,17,50,24],[52,17,54,24],[9,9,11,25],[14,1,21,3],[22,16,25,24],[29,16,33,24],[15,16,18,24],[4,1,10,3]]}
[]
[]
[]
[]
[null,"1. Performance Measure Overview",null,null,null,null,null,"Safety Performance Measure:","Injuries – Five-Year Rolling Average of Number of Serious Injuris During a Winter Season."]
[]
[]
[null,null,null,null,null,null,null,"Definition:","This performance measure indicates the number of serious injury crashes as it relates to the winter season or winter weather events.  "]
[]
[null,null,null,null,null,null,null,"Required Data",null,"At a minimum, the number of serious injury crashes occurring during each winter season month are needed.  More detailed information such as causal factors, location, time, and number of individuals involved in the crash can help improve the measure.  Note that TMC incident records may not log all crashes or their severity and official crash records have a time lag associated with them. "]
[null,null,null,null,null,null,null,"Injury Crash Records"]
[]
[]
[]
[null,"2. Performance Measure Breakdown"]
[null,null,null,null,null,null,"A.","This Performance Measure can be reported in one of two ways:",null,null,null,null,null,null,null,null,"Agencies can document crashes involving a serious injury vs. the total number of individuals serious injured in winter weather-related crashes."]
[]
[null,null,null,null,null,null,null,"1.","The number of winter weather-related serious injury crashes"]
[null,null,null,null,null,null,null,"2.","The number of winter weather-related serious injuries"]
[]
[]
[]
[null,null,null,null,null,null,"B.","Each data set can then be broken down by a time scale:",null,null,null,null,null,null,null,null,"Agencies should strive to associate winter weather-related injury data to specific winter weather events. This provides the greatest level of detail and can be aggregated up to any other time frame."]
[]
[null,null,null,null,null,null,null,"1.","By winter season"]
[null,null,null,null,null,null,null,"2.","By winter weather event"]
[]
[]
[]
[null,null,null,null,null,null,"C.","Injury data can then be broken down by a geographic scale:",null,null,null,null,null,null,null,null,"These options are listed down by increasing level of detail. Agencies should strive to report winter weather-related injury data to the most detailed geographic scale possible."]
[]
[null,null,null,null,null,null,null,"1.","State-wide (or region-wide)"]
[null,null,null,null,null,null,null,"2.","District-wide"]
[null,null,null,null,null,null,null,"3.","By roadway (or specific road segment)"]
[]
[]
[]
[null,null,null,null,null,null,"D.","And finally, the injury data can reported with a winter weather severity index:",null,null,null,null,null,null,null,null,"Storm severity indices (Option 2) provide the greatest level of detail, and should therefore be used if available. Associating a winter weather severity index with injury data helps agencies better understand how different degrees of adverse winter weather affect public safety in the region."]
[]
[null,null,null,null,null,null,null,"1.","Seasonal severity index (by winter season)"]
[null,null,null,null,null,null,null,"2.","Storm severity index (weather event-specific)"]
[]
[]
[null,null,null,null,null,null,null,"Refer to the section below to see which variations of reporting this performance measure are available for your agency"]
[]
[]
[]
[null,"3. Available Variations",null,null,null,null,"Based on your results to the Decision Guide*, your agency can report winter weather-related serious injury data in the following ways (available variations highlighted):",null,null,null,null,null,null,null,null,null,null,"*Note: If you did not take the Decision Guide Route, then the list below shows the total possible variations for reporting this performance measure."]
[]
[]
[]
[]
[null,null,null,null,null,null,null,null,null,null,null,null,null,null,null,null,null,"Your agency can measure and report winter weather-related serious injury data by the number of…"]
[]
[]
[null,null,null,null,null,"SI-1",{"$f":"IF(LEN(VLOOKUP(F56,Lookup2!$B$2:$F$91,5,FALSE))>0,VLOOKUP(H56,Lookup2!$L$2:$M$25,2,FALSE),\"\")","v":1},{"$f":"VLOOKUP(F56,Lookup2!$B$2:$F$91,3,FALSE)","v":"Serious Injury Crashes, by winter season, state-wide/ region-wide, without seasonal severity index."},null,null,null,null,null,null,null,null,{"$f":"IFERROR(VLOOKUP(S56,Lookup3!$N$2:$T$91,7,FALSE),0)","v":1},{"$f":"IF(LEN(Lookup2!$L2)>0,CONCATENATE(Lookup2!$M2,\".\"),\"\")","v":"1."},{"$f":"Lookup2!$L2","v":"Serious Injury Crashes, by winter season, state-wide/ region-wide, without seasonal severity index."},null,null,null,null,null,null,null,{"$f":"IFERROR(INDEX($S$56:$S$79,MATCH(1,INDEX(($Q$56:$Q$79=LARGE($Q$56:$Q$79,ROWS(AA$55:AA55)))*(COUNTIF(AA$55:AA55,$S$56:$S$79)=0),),0)),\"\")","v":"Serious Injuries, by event, by roadway, with storm severity index."}]
[null,null,null,null,null,"SI-2",{"$f":"IF(LEN(VLOOKUP(F57,Lookup2!$B$2:$F$91,5,FALSE))>0,VLOOKUP(H57,Lookup2!$L$2:$M$25,2,FALSE),\"\")","v":2},{"$f":"VLOOKUP(F57,Lookup2!$B$2:$F$91,3,FALSE)","v":"Serious Injuries, by winter season, state-wide/ region-wide, without seasonal severity index."},null,null,null,null,null,null,null,null,{"$f":"IFERROR(VLOOKUP(S57,Lookup3!$N$2:$T$91,7,FALSE),0)","v":1.01},{"$f":"IF(LEN(Lookup2!$L3)>0,CONCATENATE(Lookup2!$M3,\".\"),\"\")","v":"2."},{"$f":"Lookup2!$L3","v":"Serious Injuries, by winter season, state-wide/ region-wide, without seasonal severity index."},null,null,null,null,null,null,null,{"$f":"IFERROR(INDEX($S$56:$S$79,MATCH(1,INDEX(($Q$56:$Q$79=LARGE($Q$56:$Q$79,ROWS(AA$55:AA56)))*(COUNTIF(AA$55:AA56,$S$56:$S$79)=0),),0)),\"\")","v":"Serious Injury Crashes, by event, by roadway, with storm severity index."}]
[null,null,null,null,null,"SI-3",{"$f":"IF(LEN(VLOOKUP(F58,Lookup2!$B$2:$F$91,5,FALSE))>0,VLOOKUP(H58,Lookup2!$L$2:$M$25,2,FALSE),\"\")","v":3},{"$f":"VLOOKUP(F58,Lookup2!$B$2:$F$91,3,FALSE)","v":"Serious Injury Crashes, by winter season, state-wide/ region-wide, with seasonal severity index."},null,null,null,null,null,null,null,null,{"$f":"IFERROR(VLOOKUP(S58,Lookup3!$N$2:$T$91,7,FALSE),0)","v":3},{"$f":"IF(LEN(Lookup2!$L4)>0,CONCATENATE(Lookup2!$M4,\".\"),\"\")","v":"3."},{"$f":"Lookup2!$L4","v":"Serious Injury Crashes, by winter season, state-wide/ region-wide, with seasonal severity index."},null,null,null,null,null,null,null,{"$f":"IFERROR(INDEX($S$56:$S$79,MATCH(1,INDEX(($Q$56:$Q$79=LARGE($Q$56:$Q$79,ROWS(AA$55:AA57)))*(COUNTIF(AA$55:AA57,$S$56:$S$79)=0),),0)),\"\")","v":"Serious Injuries, by event, district-wide, with storm severity index."}]
[null,null,null,null,null,"SI-4",{"$f":"IF(LEN(VLOOKUP(F59,Lookup2!$B$2:$F$91,5,FALSE))>0,VLOOKUP(H59,Lookup2!$L$2:$M$25,2,FALSE),\"\")","v":4},{"$f":"VLOOKUP(F59,Lookup2!$B$2:$F$91,3,FALSE)","v":"Serious Injuries, by winter season, state-wide/ region-wide, with seasonal severity index."},null,null,null,null,null,null,null,null,{"$f":"IFERROR(VLOOKUP(S59,Lookup3!$N$2:$T$91,7,FALSE),0)","v":3.0300000000000002},{"$f":"IF(LEN(Lookup2!$L5)>0,CONCATENATE(Lookup2!$M5,\".\"),\"\")","v":"4."},{"$f":"Lookup2!$L5","v":"Serious Injuries, by winter season, state-wide/ region-wide, with seasonal severity index."},null,null,null,null,null,null,null,{"$f":"IFERROR(INDEX($S$56:$S$79,MATCH(1,INDEX(($Q$56:$Q$79=LARGE($Q$56:$Q$79,ROWS(AA$55:AA58)))*(COUNTIF(AA$55:AA58,$S$56:$S$79)=0),),0)),\"\")","v":"Serious Injury Crashes, by event, district-wide, with storm severity index."}]
[null,null,null,null,null,"SI-5",{"$f":"IF(LEN(VLOOKUP(F60,Lookup2!$B$2:$F$91,5,FALSE))>0,VLOOKUP(H60,Lookup2!$L$2:$M$25,2,FALSE),\"\")","v":5},{"$f":"VLOOKUP(F60,Lookup2!$B$2:$F$91,3,FALSE)","v":"Serious Injury Crashes, by winter season, district-wide, without seasonal severity index."},null,null,null,null,null,null,null,null,{"$f":"IFERROR(VLOOKUP(S60,Lookup3!$N$2:$T$91,7,FALSE),0)","v":2},{"$f":"IF(LEN(Lookup2!$L6)>0,CONCATENATE(Lookup2!$M6,\".\"),\"\")","v":"5."},{"$f":"Lookup2!$L6","v":"Serious Injury Crashes, by winter season, district-wide, without seasonal severity index."},null,null,null,null,null,null,null,{"$f":"IFERROR(INDEX($S$56:$S$79,MATCH(1,INDEX(($Q$56:$Q$79=LARGE($Q$56:$Q$79,ROWS(AA$55:AA59)))*(COUNTIF(AA$55:AA59,$S$56:$S$79)=0),),0)),\"\")","v":"Serious Injuries, by winter season, by roadway, with seasonal severity index."}]
[null,null,null,null,null,"SI-6",{"$f":"IF(LEN(VLOOKUP(F61,Lookup2!$B$2:$F$91,5,FALSE))>0,VLOOKUP(H61,Lookup2!$L$2:$M$25,2,FALSE),\"\")","v":6},{"$f":"VLOOKUP(F61,Lookup2!$B$2:$F$91,3,FALSE)","v":"Serious Injuries, by winter season, district-wide, without seasonal severity index."},null,null,null,null,null,null,null,null,{"$f":"IFERROR(VLOOKUP(S61,Lookup3!$N$2:$T$91,7,FALSE),0)","v":2.02},{"$f":"IF(LEN(Lookup2!$L7)>0,CONCATENATE(Lookup2!$M7,\".\"),\"\")","v":"6."},{"$f":"Lookup2!$L7","v":"Serious Injuries, by winter season, district-wide, without seasonal severity index."},null,null,null,null,null,null,null,{"$f":"IFERROR(INDEX($S$56:$S$79,MATCH(1,INDEX(($Q$56:$Q$79=LARGE($Q$56:$Q$79,ROWS(AA$55:AA60)))*(COUNTIF(AA$55:AA60,$S$56:$S$79)=0),),0)),\"\")","v":"Serious Injuries, by event, state-wide/ region-wide, with storm severity index."}]
[null,null,null,null,null,"SI-7",{"$f":"IF(LEN(VLOOKUP(F62,Lookup2!$B$2:$F$91,5,FALSE))>0,VLOOKUP(H62,Lookup2!$L$2:$M$25,2,FALSE),\"\")","v":7},{"$f":"VLOOKUP(F62,Lookup2!$B$2:$F$91,3,FALSE)","v":"Serious Injury Crashes, by winter season, district-wide, with seasonal severity index."},null,null,null,null,null,null,null,null,{"$f":"IFERROR(VLOOKUP(S62,Lookup3!$N$2:$T$91,7,FALSE),0)","v":6},{"$f":"IF(LEN(Lookup2!$L8)>0,CONCATENATE(Lookup2!$M8,\".\"),\"\")","v":"7."},{"$f":"Lookup2!$L8","v":"Serious Injury Crashes, by winter season, district-wide, with seasonal severity index."},null,null,null,null,null,null,null,{"$f":"IFERROR(INDEX($S$56:$S$79,MATCH(1,INDEX(($Q$56:$Q$79=LARGE($Q$56:$Q$79,ROWS(AA$55:AA61)))*(COUNTIF(AA$55:AA61,$S$56:$S$79)=0),),0)),\"\")","v":"Serious Injuries, by event, by roadway, without storm severity index."}]
[null,null,null,null,null,"SI-8",{"$f":"IF(LEN(VLOOKUP(F63,Lookup2!$B$2:$F$91,5,FALSE))>0,VLOOKUP(H63,Lookup2!$L$2:$M$25,2,FALSE),\"\")","v":8},{"$f":"VLOOKUP(F63,Lookup2!$B$2:$F$91,3,FALSE)","v":"Serious Injuries, by winter season, district-wide, with seasonal severity index."},null,null,null,null,null,null,null,null,{"$f":"IFERROR(VLOOKUP(S63,Lookup3!$N$2:$T$91,7,FALSE),0)","v":6.0600000000000005},{"$f":"IF(LEN(Lookup2!$L9)>0,CONCATENATE(Lookup2!$M9,\".\"),\"\")","v":"8."},{"$f":"Lookup2!$L9","v":"Serious Injuries, by winter season, district-wide, with seasonal severity index."},null,null,null,null,null,null,null,{"$f":"IFERROR(INDEX($S$56:$S$79,MATCH(1,INDEX(($Q$56:$Q$79=LARGE($Q$56:$Q$79,ROWS(AA$55:AA62)))*(COUNTIF(AA$55:AA62,$S$56:$S$79)=0),),0)),\"\")","v":"Serious Injury Crashes, by winter season, by roadway, with seasonal severity index."}]
[null,null,null,null,null,"SI-9",{"$f":"IF(LEN(VLOOKUP(F64,Lookup2!$B$2:$F$91,5,FALSE))>0,VLOOKUP(H64,Lookup2!$L$2:$M$25,2,FALSE),\"\")","v":9},{"$f":"VLOOKUP(F64,Lookup2!$B$2:$F$91,3,FALSE)","v":"Serious Injury Crashes, by winter season, by roadway, without seasonal severity index."},null,null,null,null,null,null,null,null,{"$f":"IFERROR(VLOOKUP(S64,Lookup3!$N$2:$T$91,7,FALSE),0)","v":3},{"$f":"IF(LEN(Lookup2!$L10)>0,CONCATENATE(Lookup2!$M10,\".\"),\"\")","v":"9."},{"$f":"Lookup2!$L10","v":"Serious Injury Crashes, by winter season, by roadway, without seasonal severity index."},null,null,null,null,null,null,null,{"$f":"IFERROR(INDEX($S$56:$S$79,MATCH(1,INDEX(($Q$56:$Q$79=LARGE($Q$56:$Q$79,ROWS(AA$55:AA63)))*(COUNTIF(AA$55:AA63,$S$56:$S$79)=0),),0)),\"\")","v":"Serious Injury Crashes, by event, state-wide/ region-wide, with storm severity index."}]
[null,null,null,null,null,"SI-10",{"$f":"IF(LEN(VLOOKUP(F65,Lookup2!$B$2:$F$91,5,FALSE))>0,VLOOKUP(H65,Lookup2!$L$2:$M$25,2,FALSE),\"\")","v":10},{"$f":"VLOOKUP(F65,Lookup2!$B$2:$F$91,3,FALSE)","v":"Serious Injuries, by winter season, by roadway, without seasonal severity index."},null,null,null,null,null,null,null,null,{"$f":"IFERROR(VLOOKUP(S65,Lookup3!$N$2:$T$91,7,FALSE),0)","v":3.0300000000000002},{"$f":"IF(LEN(Lookup2!$L11)>0,CONCATENATE(Lookup2!$M11,\".\"),\"\")","v":"10."},{"$f":"Lookup2!$L11","v":"Serious Injuries, by winter season, by roadway, without seasonal severity index."},null,null,null,null,null,null,null,{"$f":"IFERROR(INDEX($S$56:$S$79,MATCH(1,INDEX(($Q$56:$Q$79=LARGE($Q$56:$Q$79,ROWS(AA$55:AA64)))*(COUNTIF(AA$55:AA64,$S$56:$S$79)=0),),0)),\"\")","v":"Serious Injury Crashes, by event, by roadway, without storm severity index."}]
[null,null,null,null,null,"SI-11",{"$f":"IF(LEN(VLOOKUP(F66,Lookup2!$B$2:$F$91,5,FALSE))>0,VLOOKUP(H66,Lookup2!$L$2:$M$25,2,FALSE),\"\")","v":11},{"$f":"VLOOKUP(F66,Lookup2!$B$2:$F$91,3,FALSE)","v":"Serious Injury Crashes, by winter season, by roadway, with seasonal severity index."},null,null,null,null,null,null,null,null,{"$f":"IFERROR(VLOOKUP(S66,Lookup3!$N$2:$T$91,7,FALSE),0)","v":9},{"$f":"IF(LEN(Lookup2!$L12)>0,CONCATENATE(Lookup2!$M12,\".\"),\"\")","v":"11."},{"$f":"Lookup2!$L12","v":"Serious Injury Crashes, by winter season, by roadway, with seasonal severity index."},null,null,null,null,null,null,null,{"$f":"IFERROR(INDEX($S$56:$S$79,MATCH(1,INDEX(($Q$56:$Q$79=LARGE($Q$56:$Q$79,ROWS(AA$55:AA65)))*(COUNTIF(AA$55:AA65,$S$56:$S$79)=0),),0)),\"\")","v":"Serious Injuries, by winter season, district-wide, with seasonal severity index."}]
[null,null,null,null,null,"SI-12",{"$f":"IF(LEN(VLOOKUP(F67,Lookup2!$B$2:$F$91,5,FALSE))>0,VLOOKUP(H67,Lookup2!$L$2:$M$25,2,FALSE),\"\")","v":12},{"$f":"VLOOKUP(F67,Lookup2!$B$2:$F$91,3,FALSE)","v":"Serious Injuries, by winter season, by roadway, with seasonal severity index."},null,null,null,null,null,null,null,null,{"$f":"IFERROR(VLOOKUP(S67,Lookup3!$N$2:$T$91,7,FALSE),0)","v":9.09},{"$f":"IF(LEN(Lookup2!$L13)>0,CONCATENATE(Lookup2!$M13,\".\"),\"\")","v":"12."},{"$f":"Lookup2!$L13","v":"Serious Injuries, by winter season, by roadway, with seasonal severity index."},null,null,null,null,null,null,null,{"$f":"IFERROR(INDEX($S$56:$S$79,MATCH(1,INDEX(($Q$56:$Q$79=LARGE($Q$56:$Q$79,ROWS(AA$55:AA66)))*(COUNTIF(AA$55:AA66,$S$56:$S$79)=0),),0)),\"\")","v":"Serious Injuries, by event, district-wide, without storm severity index."}]
[null,null,null,null,null,"SI-13",{"$f":"IF(LEN(VLOOKUP(F68,Lookup2!$B$2:$F$91,5,FALSE))>0,VLOOKUP(H68,Lookup2!$L$2:$M$25,2,FALSE),\"\")","v":13},{"$f":"VLOOKUP(F68,Lookup2!$B$2:$F$91,3,FALSE)","v":"Serious Injury Crashes, by event, state-wide/ region-wide, without storm severity index."},null,null,null,null,null,null,null,null,{"$f":"IFERROR(VLOOKUP(S68,Lookup3!$N$2:$T$91,7,FALSE),0)","v":3},{"$f":"IF(LEN(Lookup2!$L14)>0,CONCATENATE(Lookup2!$M14,\".\"),\"\")","v":"13."},{"$f":"Lookup2!$L14","v":"Serious Injury Crashes, by event, state-wide/ region-wide, without storm severity index."},null,null,null,null,null,null,null,{"$f":"IFERROR(INDEX($S$56:$S$79,MATCH(1,INDEX(($Q$56:$Q$79=LARGE($Q$56:$Q$79,ROWS(AA$55:AA67)))*(COUNTIF(AA$55:AA67,$S$56:$S$79)=0),),0)),\"\")","v":"Serious Injury Crashes, by winter season, district-wide, with seasonal severity index."}]
[null,null,null,null,null,"SI-14",{"$f":"IF(LEN(VLOOKUP(F69,Lookup2!$B$2:$F$91,5,FALSE))>0,VLOOKUP(H69,Lookup2!$L$2:$M$25,2,FALSE),\"\")","v":14},{"$f":"VLOOKUP(F69,Lookup2!$B$2:$F$91,3,FALSE)","v":"Serious Injuries, by event, state-wide/ region-wide, without storm severity index."},null,null,null,null,null,null,null,null,{"$f":"IFERROR(VLOOKUP(S69,Lookup3!$N$2:$T$91,7,FALSE),0)","v":3.0300000000000002},{"$f":"IF(LEN(Lookup2!$L15)>0,CONCATENATE(Lookup2!$M15,\".\"),\"\")","v":"14."},{"$f":"Lookup2!$L15","v":"Serious Injuries, by event, state-wide/ region-wide, without storm severity index."},null,null,null,null,null,null,null,{"$f":"IFERROR(INDEX($S$56:$S$79,MATCH(1,INDEX(($Q$56:$Q$79=LARGE($Q$56:$Q$79,ROWS(AA$55:AA68)))*(COUNTIF(AA$55:AA68,$S$56:$S$79)=0),),0)),\"\")","v":"Serious Injury Crashes, by event, district-wide, without storm severity index."}]
[null,null,null,null,null,"SI-15",{"$f":"IF(LEN(VLOOKUP(F70,Lookup2!$B$2:$F$91,5,FALSE))>0,VLOOKUP(H70,Lookup2!$L$2:$M$25,2,FALSE),\"\")","v":15},{"$f":"VLOOKUP(F70,Lookup2!$B$2:$F$91,3,FALSE)","v":"Serious Injury Crashes, by event, state-wide/ region-wide, with storm severity index."},null,null,null,null,null,null,null,null,{"$f":"IFERROR(VLOOKUP(S70,Lookup3!$N$2:$T$91,7,FALSE),0)","v":9},{"$f":"IF(LEN(Lookup2!$L16)>0,CONCATENATE(Lookup2!$M16,\".\"),\"\")","v":"15."},{"$f":"Lookup2!$L16","v":"Serious Injury Crashes, by event, state-wide/ region-wide, with storm severity index."},null,null,null,null,null,null,null,{"$f":"IFERROR(INDEX($S$56:$S$79,MATCH(1,INDEX(($Q$56:$Q$79=LARGE($Q$56:$Q$79,ROWS(AA$55:AA69)))*(COUNTIF(AA$55:AA69,$S$56:$S$79)=0),),0)),\"\")","v":"Serious Injuries, by winter season, state-wide/ region-wide, with seasonal severity index."}]
[null,null,null,null,null,"SI-16",{"$f":"IF(LEN(VLOOKUP(F71,Lookup2!$B$2:$F$91,5,FALSE))>0,VLOOKUP(H71,Lookup2!$L$2:$M$25,2,FALSE),\"\")","v":16},{"$f":"VLOOKUP(F71,Lookup2!$B$2:$F$91,3,FALSE)","v":"Serious Injuries, by event, state-wide/ region-wide, with storm severity index."},null,null,null,null,null,null,null,null,{"$f":"IFERROR(VLOOKUP(S71,Lookup3!$N$2:$T$91,7,FALSE),0)","v":9.09},{"$f":"IF(LEN(Lookup2!$L17)>0,CONCATENATE(Lookup2!$M17,\".\"),\"\")","v":"16."},{"$f":"Lookup2!$L17","v":"Serious Injuries, by event, state-wide/ region-wide, with storm severity index."},null,null,null,null,null,null,null,{"$f":"IFERROR(INDEX($S$56:$S$79,MATCH(1,INDEX(($Q$56:$Q$79=LARGE($Q$56:$Q$79,ROWS(AA$55:AA70)))*(COUNTIF(AA$55:AA70,$S$56:$S$79)=0),),0)),\"\")","v":"Serious Injuries, by winter season, by roadway, without seasonal severity index."}]
[null,null,null,null,null,"SI-17",{"$f":"IF(LEN(VLOOKUP(F72,Lookup2!$B$2:$F$91,5,FALSE))>0,VLOOKUP(H72,Lookup2!$L$2:$M$25,2,FALSE),\"\")","v":17},{"$f":"VLOOKUP(F72,Lookup2!$B$2:$F$91,3,FALSE)","v":"Serious Injury Crashes, by event, district-wide, without storm severity index."},null,null,null,null,null,null,null,null,{"$f":"IFERROR(VLOOKUP(S72,Lookup3!$N$2:$T$91,7,FALSE),0)","v":6},{"$f":"IF(LEN(Lookup2!$L18)>0,CONCATENATE(Lookup2!$M18,\".\"),\"\")","v":"17."},{"$f":"Lookup2!$L18","v":"Serious Injury Crashes, by event, district-wide, without storm severity index."},null,null,null,null,null,null,null,{"$f":"IFERROR(INDEX($S$56:$S$79,MATCH(1,INDEX(($Q$56:$Q$79=LARGE($Q$56:$Q$79,ROWS(AA$55:AA71)))*(COUNTIF(AA$55:AA71,$S$56:$S$79)=0),),0)),\"\")","v":"Serious Injuries, by event, state-wide/ region-wide, without storm severity index."}]
[null,null,null,null,null,"SI-18",{"$f":"IF(LEN(VLOOKUP(F73,Lookup2!$B$2:$F$91,5,FALSE))>0,VLOOKUP(H73,Lookup2!$L$2:$M$25,2,FALSE),\"\")","v":18},{"$f":"VLOOKUP(F73,Lookup2!$B$2:$F$91,3,FALSE)","v":"Serious Injuries, by event, district-wide, without storm severity index."},null,null,null,null,null,null,null,null,{"$f":"IFERROR(VLOOKUP(S73,Lookup3!$N$2:$T$91,7,FALSE),0)","v":6.0600000000000005},{"$f":"IF(LEN(Lookup2!$L19)>0,CONCATENATE(Lookup2!$M19,\".\"),\"\")","v":"18."},{"$f":"Lookup2!$L19","v":"Serious Injuries, by event, district-wide, without storm severity index."},null,null,null,null,null,null,null,{"$f":"IFERROR(INDEX($S$56:$S$79,MATCH(1,INDEX(($Q$56:$Q$79=LARGE($Q$56:$Q$79,ROWS(AA$55:AA72)))*(COUNTIF(AA$55:AA72,$S$56:$S$79)=0),),0)),\"\")","v":"Serious Injury Crashes, by winter season, state-wide/ region-wide, with seasonal severity index."}]
[null,null,null,null,null,"SI-19",{"$f":"IF(LEN(VLOOKUP(F74,Lookup2!$B$2:$F$91,5,FALSE))>0,VLOOKUP(H74,Lookup2!$L$2:$M$25,2,FALSE),\"\")","v":19},{"$f":"VLOOKUP(F74,Lookup2!$B$2:$F$91,3,FALSE)","v":"Serious Injury Crashes, by event, district-wide, with storm severity index."},null,null,null,null,null,null,null,null,{"$f":"IFERROR(VLOOKUP(S74,Lookup3!$N$2:$T$91,7,FALSE),0)","v":18},{"$f":"IF(LEN(Lookup2!$L20)>0,CONCATENATE(Lookup2!$M20,\".\"),\"\")","v":"19."},{"$f":"Lookup2!$L20","v":"Serious Injury Crashes, by event, district-wide, with storm severity index."},null,null,null,null,null,null,null,{"$f":"IFERROR(INDEX($S$56:$S$79,MATCH(1,INDEX(($Q$56:$Q$79=LARGE($Q$56:$Q$79,ROWS(AA$55:AA73)))*(COUNTIF(AA$55:AA73,$S$56:$S$79)=0),),0)),\"\")","v":"Serious Injury Crashes, by winter season, by roadway, without seasonal severity index."}]
[null,null,null,null,null,"SI-20",{"$f":"IF(LEN(VLOOKUP(F75,Lookup2!$B$2:$F$91,5,FALSE))>0,VLOOKUP(H75,Lookup2!$L$2:$M$25,2,FALSE),\"\")","v":20},{"$f":"VLOOKUP(F75,Lookup2!$B$2:$F$91,3,FALSE)","v":"Serious Injuries, by event, district-wide, with storm severity index."},null,null,null,null,null,null,null,null,{"$f":"IFERROR(VLOOKUP(S75,Lookup3!$N$2:$T$91,7,FALSE),0)","v":18.18},{"$f":"IF(LEN(Lookup2!$L21)>0,CONCATENATE(Lookup2!$M21,\".\"),\"\")","v":"20."},{"$f":"Lookup2!$L21","v":"Serious Injuries, by event, district-wide, with storm severity index."},null,null,null,null,null,null,null,{"$f":"IFERROR(INDEX($S$56:$S$79,MATCH(1,INDEX(($Q$56:$Q$79=LARGE($Q$56:$Q$79,ROWS(AA$55:AA74)))*(COUNTIF(AA$55:AA74,$S$56:$S$79)=0),),0)),\"\")","v":"Serious Injury Crashes, by event, state-wide/ region-wide, without storm severity index."}]
[null,null,null,null,null,"SI-21",{"$f":"IF(LEN(VLOOKUP(F76,Lookup2!$B$2:$F$91,5,FALSE))>0,VLOOKUP(H76,Lookup2!$L$2:$M$25,2,FALSE),\"\")","v":21},{"$f":"VLOOKUP(F76,Lookup2!$B$2:$F$91,3,FALSE)","v":"Serious Injury Crashes, by event, by roadway, without storm severity index."},null,null,null,null,null,null,null,null,{"$f":"IFERROR(VLOOKUP(S76,Lookup3!$N$2:$T$91,7,FALSE),0)","v":9},{"$f":"IF(LEN(Lookup2!$L22)>0,CONCATENATE(Lookup2!$M22,\".\"),\"\")","v":"21."},{"$f":"Lookup2!$L22","v":"Serious Injury Crashes, by event, by roadway, without storm severity index."},null,null,null,null,null,null,null,{"$f":"IFERROR(INDEX($S$56:$S$79,MATCH(1,INDEX(($Q$56:$Q$79=LARGE($Q$56:$Q$79,ROWS(AA$55:AA75)))*(COUNTIF(AA$55:AA75,$S$56:$S$79)=0),),0)),\"\")","v":"Serious Injuries, by winter season, district-wide, without seasonal severity index."}]
[null,null,null,null,null,"SI-22",{"$f":"IF(LEN(VLOOKUP(F77,Lookup2!$B$2:$F$91,5,FALSE))>0,VLOOKUP(H77,Lookup2!$L$2:$M$25,2,FALSE),\"\")","v":22},{"$f":"VLOOKUP(F77,Lookup2!$B$2:$F$91,3,FALSE)","v":"Serious Injuries, by event, by roadway, without storm severity index."},null,null,null,null,null,null,null,null,{"$f":"IFERROR(VLOOKUP(S77,Lookup3!$N$2:$T$91,7,FALSE),0)","v":9.09},{"$f":"IF(LEN(Lookup2!$L23)>0,CONCATENATE(Lookup2!$M23,\".\"),\"\")","v":"22."},{"$f":"Lookup2!$L23","v":"Serious Injuries, by event, by roadway, without storm severity index."},null,null,null,null,null,null,null,{"$f":"IFERROR(INDEX($S$56:$S$79,MATCH(1,INDEX(($Q$56:$Q$79=LARGE($Q$56:$Q$79,ROWS(AA$55:AA76)))*(COUNTIF(AA$55:AA76,$S$56:$S$79)=0),),0)),\"\")","v":"Serious Injury Crashes, by winter season, district-wide, without seasonal severity index."}]
[null,null,null,null,null,"SI-23",{"$f":"IF(LEN(VLOOKUP(F78,Lookup2!$B$2:$F$91,5,FALSE))>0,VLOOKUP(H78,Lookup2!$L$2:$M$25,2,FALSE),\"\")","v":23},{"$f":"VLOOKUP(F78,Lookup2!$B$2:$F$91,3,FALSE)","v":"Serious Injury Crashes, by event, by roadway, with storm severity index."},null,null,null,null,null,null,null,null,{"$f":"IFERROR(VLOOKUP(S78,Lookup3!$N$2:$T$91,7,FALSE),0)","v":27},{"$f":"IF(LEN(Lookup2!$L24)>0,CONCATENATE(Lookup2!$M24,\".\"),\"\")","v":"23."},{"$f":"Lookup2!$L24","v":"Serious Injury Crashes, by event, by roadway, with storm severity index."},null,null,null,null,null,null,null,{"$f":"IFERROR(INDEX($S$56:$S$79,MATCH(1,INDEX(($Q$56:$Q$79=LARGE($Q$56:$Q$79,ROWS(AA$55:AA77)))*(COUNTIF(AA$55:AA77,$S$56:$S$79)=0),),0)),\"\")","v":"Serious Injuries, by winter season, state-wide/ region-wide, without seasonal severity index."}]
[null,null,null,null,null,"SI-24",{"$f":"IF(LEN(VLOOKUP(F79,Lookup2!$B$2:$F$91,5,FALSE))>0,VLOOKUP(H79,Lookup2!$L$2:$M$25,2,FALSE),\"\")","v":24},{"$f":"VLOOKUP(F79,Lookup2!$B$2:$F$91,3,FALSE)","v":"Serious Injuries, by event, by roadway, with storm severity index."},null,null,null,null,null,null,null,null,{"$f":"IFERROR(VLOOKUP(S79,Lookup3!$N$2:$T$91,7,FALSE),0)","v":27.27},{"$f":"IF(LEN(Lookup2!$L25)>0,CONCATENATE(Lookup2!$M25,\".\"),\"\")","v":"24."},{"$f":"Lookup2!$L25","v":"Serious Injuries, by event, by roadway, with storm severity index."},null,null,null,null,null,null,null,{"$f":"IFERROR(INDEX($S$56:$S$79,MATCH(1,INDEX(($Q$56:$Q$79=LARGE($Q$56:$Q$79,ROWS(AA$55:AA78)))*(COUNTIF(AA$55:AA78,$S$56:$S$79)=0),),0)),\"\")","v":"Serious Injury Crashes, by winter season, state-wide/ region-wide, without seasonal severity index."}]

{"sheet":"Mobility - LOS","index":6,"n_rows":67,"n_cols":31,"rows_kept":67,"cut":false,"hidden":true,"merged":[[66,7,66,14],[61,7,61,14],[62,7,62,14],[63,7,63,14],[64,7,64,14],[65,7,65,14],[56,7,56,14],[57,7,57,14],[58,7,58,14],[59,7,59,14],[60,7,60,14],[47,1,54,3],[47,6,50,14],[47,17,50,24],[52,17,54,24],[55,7,55,14],[12,7,12,8],[18,1,26,3],[27,16,28,24],[32,16,33,24],[37,16,40,26],[13,7,13,8],[14,7,14,8],[23,16,24,24],[4,1,10,3],[6,8,7,21],[10,7,10,8],[9,7,9,8],[11,7,11,8]]}
[]
[]
[]
[]
[null,"1. Performance Measure Overview",null,null,null,null,null,"Mobility Performance Measure:","Level of Service – Percent of time road segments meet agency-defined level of service thresholds during winter storms. "]
[]
[null,null,null,null,null,null,null,"Definition:","This performance measure assesses whether one or more pre-established service level thresholds were maintained by the agency during a winter weater event. A service level threshold defines the acceptable road conditions during the event.  "]
[]
[]
[null,null,null,null,null,null,null,"Required Data"]
[null,null,null,null,null,null,null,"Service Level Threshold",null,null,"Calculated for each segment based on available reports and time for observed service level threshold."]
[null,null,null,null,null,null,null,"Performance target(s) for service level threshold ",null,null,"May vary based on road segment prioritization, hour of day, day of week, storm severity, and the respective definition for the service level threshold."]
[null,null,null,null,null,null,null,"Weather information ",null,null,"Data from RWIS regarding rate or total precipitation or grip will be needed to determine storm severity, an accumulation-related threshold, or a friction-related threshold."]
[null,null,null,null,null,null,null,"Road segment information ",null,null,"Since this performance measured is reported for a specific roadway/segment, this geographic level must be identified."]
[null,null,null,null,null,null,null,"Timestamp for begin and end of winter event ",null,null,"Estimated time that winter precipitation started and stopped for a given road segment; may be logged from nearby RWIS system snow accumulation data, observed weather radar, or agency personnel reports in the area."]
[]
[]
[]
[null,"2. Performance Measure Breakdown"]
[null,null,null,null,null,null,"A.","This Performance Measure can be reported by one of three service level thresholds:"]
[]
[null,null,null,null,null,null,null,"1.","an accumulation-related threshold",null,null,null,null,null,null,null,"> based on accumulated snow and ice levels; could be estimated by plow driver observations or measured by RWIS."]
[null,null,null,null,null,null,null,"2.","a friction-related threshold",null,null,null,null,null,null,null,"> based on measured grip factor reported by RWIS or plow trucks."]
[null,null,null,null,null,null,null,"3.","a travel speed-related threshold",null,null,null,null,null,null,null,"> based on average measured travel speeds on roadway during event. Speed measurement can be segment-based (e.g. probe data) or point-based (e.g. sensor data)."]
[]
[]
[]
[null,null,null,null,null,null,"B.","Each level of service must be reported by winter weather event.",null,null,null,null,null,null,null,null,"By definition, a specified level of service during a winter weather event is event-dependent. It cannot be aggregated to a month- or season-level."]
[]
[]
[]
[]
[null,null,null,null,null,null,"C.","Each level of service must be reported for a specific roadway/ road segment.",null,null,null,null,null,null,null,null,"By definition, a level of service depends on a specific roadway / road segment, since winter weather does not affect all roadways within a region equally."]
[]
[]
[]
[]
[null,null,null,null,null,null,"D.","And finally, each level of service threshold can be reported with:",null,null,null,null,null,null,null,null,"Ideally, a level of service threshold during a winter weather event should depend on how severe the event is. For example, for more adverse weather conditions, an agency can tolerate a lower average speed as the targeted level of service during the weather event."]
[]
[null,null,null,null,null,null,null,"1.","without a storm severity index (not as effective); or"]
[null,null,null,null,null,null,null,"2.","with a storm severity index (recommended),"]
[]
[]
[null,null,null,null,null,null,null,"Refer to the section below to see which variations of reporting this performance measure are available for your agency"]
[]
[]
[]
[null,"3. Available Variations",null,null,null,null,"Based on your results to the Decision Guide*, your agency can report level of service during a winter weather event in the following ways (available variations highlighted):",null,null,null,null,null,null,null,null,null,null,"*Note: If you did not take the Decision Guide Route, then the list below shows the total possible variations for reporting this performance measure."]
[]
[]
[]
[]
[null,null,null,null,null,null,null,null,null,null,null,null,null,null,null,null,null,"Your agency can measure and report level of service during a winter weather event by a(n)…"]
[]
[]
[null,null,null,null,null,"MS-1",{"$f":"IF(LEN(VLOOKUP(F56,Lookup2!$B$2:$F$91,5,FALSE))>0,VLOOKUP(H56,Lookup2!$N$2:$O$25,2,FALSE),\"\")","v":1},{"$f":"VLOOKUP(F56,Lookup2!$B$2:$F$91,3,FALSE)","v":"Accumulation-related threshold, by event, by roadway, without storm severity index, measured by field personnel."},null,null,null,null,null,null,null,null,{"$f":"IFERROR(VLOOKUP(S56,Lookup3!$N$2:$T$91,7,FALSE),0)","v":9},{"$f":"IF(LEN(Lookup2!$N2)>0,CONCATENATE(Lookup2!$O2,\".\"),\"\")","v":"1."},{"$f":"Lookup2!$N2","v":"Accumulation-related threshold, by event, by roadway, without storm severity index, measured by field personnel."},null,null,null,null,null,null,null,null,null,null,null,{"$f":"IFERROR(INDEX($S$56:$S$67,MATCH(1,INDEX(($Q$56:$Q$67=LARGE($Q$56:$Q$67,ROWS(AE$55:AE55)))*(COUNTIF(AE$55:AE55,$S$56:$S$67)=0),),0)),\"\")","v":"Accumulation-related threshold, by event, by roadway, with storm severity index, measured by sensors."}]
[null,null,null,null,null,"MS-2",{"$f":"IF(LEN(VLOOKUP(F57,Lookup2!$B$2:$F$91,5,FALSE))>0,VLOOKUP(H57,Lookup2!$N$2:$O$25,2,FALSE),\"\")","v":2},{"$f":"VLOOKUP(F57,Lookup2!$B$2:$F$91,3,FALSE)","v":"Accumulation-related threshold, by event, by roadway, without storm severity index, measured by sensors."},null,null,null,null,null,null,null,null,{"$f":"IFERROR(VLOOKUP(S57,Lookup3!$N$2:$T$91,7,FALSE),0)","v":18},{"$f":"IF(LEN(Lookup2!$N3)>0,CONCATENATE(Lookup2!$O3,\".\"),\"\")","v":"2."},{"$f":"Lookup2!$N3","v":"Accumulation-related threshold, by event, by roadway, without storm severity index, measured by sensors."},null,null,null,null,null,null,null,null,null,null,null,{"$f":"IFERROR(INDEX($S$56:$S$67,MATCH(1,INDEX(($Q$56:$Q$67=LARGE($Q$56:$Q$67,ROWS(AE$55:AE56)))*(COUNTIF(AE$55:AE56,$S$56:$S$67)=0),),0)),\"\")","v":"Friction-related threshold, by event, by roadway, with storm severity index, measured by sensors."}]
[null,null,null,null,null,"MS-3",{"$f":"IF(LEN(VLOOKUP(F58,Lookup2!$B$2:$F$91,5,FALSE))>0,VLOOKUP(H58,Lookup2!$N$2:$O$25,2,FALSE),\"\")","v":3},{"$f":"VLOOKUP(F58,Lookup2!$B$2:$F$91,3,FALSE)","v":"Accumulation-related threshold, by event, by roadway, with storm severity index, measured by field personnel."},null,null,null,null,null,null,null,null,{"$f":"IFERROR(VLOOKUP(S58,Lookup3!$N$2:$T$91,7,FALSE),0)","v":27},{"$f":"IF(LEN(Lookup2!$N4)>0,CONCATENATE(Lookup2!$O4,\".\"),\"\")","v":"3."},{"$f":"Lookup2!$N4","v":"Accumulation-related threshold, by event, by roadway, with storm severity index, measured by field personnel."},null,null,null,null,null,null,null,null,null,null,null,{"$f":"IFERROR(INDEX($S$56:$S$67,MATCH(1,INDEX(($Q$56:$Q$67=LARGE($Q$56:$Q$67,ROWS(AE$55:AE57)))*(COUNTIF(AE$55:AE57,$S$56:$S$67)=0),),0)),\"\")","v":"Travel speed-related threshold, by event, by roadway, with storm severity index, point based (e.g. sensor)."}]
[null,null,null,null,null,"MS-4",{"$f":"IF(LEN(VLOOKUP(F59,Lookup2!$B$2:$F$91,5,FALSE))>0,VLOOKUP(H59,Lookup2!$N$2:$O$25,2,FALSE),\"\")","v":4},{"$f":"VLOOKUP(F59,Lookup2!$B$2:$F$91,3,FALSE)","v":"Accumulation-related threshold, by event, by roadway, with storm severity index, measured by sensors."},null,null,null,null,null,null,null,null,{"$f":"IFERROR(VLOOKUP(S59,Lookup3!$N$2:$T$91,7,FALSE),0)","v":54},{"$f":"IF(LEN(Lookup2!$N5)>0,CONCATENATE(Lookup2!$O5,\".\"),\"\")","v":"4."},{"$f":"Lookup2!$N5","v":"Accumulation-related threshold, by event, by roadway, with storm severity index, measured by sensors."},null,null,null,null,null,null,null,null,null,null,null,{"$f":"IFERROR(INDEX($S$56:$S$67,MATCH(1,INDEX(($Q$56:$Q$67=LARGE($Q$56:$Q$67,ROWS(AE$55:AE58)))*(COUNTIF(AE$55:AE58,$S$56:$S$67)=0),),0)),\"\")","v":"Accumulation-related threshold, by event, by roadway, with storm severity index, measured by field personnel."}]
[null,null,null,null,null,"MS-5",{"$f":"IF(LEN(VLOOKUP(F60,Lookup2!$B$2:$F$91,5,FALSE))>0,VLOOKUP(H60,Lookup2!$N$2:$O$25,2,FALSE),\"\")","v":5},{"$f":"VLOOKUP(F60,Lookup2!$B$2:$F$91,3,FALSE)","v":"Friction-related threshold, by event, by roadway, without storm severity index, qualitative estimate by field personnel."},null,null,null,null,null,null,null,null,{"$f":"IFERROR(VLOOKUP(S60,Lookup3!$N$2:$T$91,7,FALSE),0)","v":9},{"$f":"IF(LEN(Lookup2!$N6)>0,CONCATENATE(Lookup2!$O6,\".\"),\"\")","v":"5."},{"$f":"Lookup2!$N6","v":"Friction-related threshold, by event, by roadway, without storm severity index, qualitative estimate by field personnel."},null,null,null,null,null,null,null,null,null,null,null,{"$f":"IFERROR(INDEX($S$56:$S$67,MATCH(1,INDEX(($Q$56:$Q$67=LARGE($Q$56:$Q$67,ROWS(AE$55:AE59)))*(COUNTIF(AE$55:AE59,$S$56:$S$67)=0),),0)),\"\")","v":"Friction-related threshold, by event, by roadway, with storm severity index, qualitative estimate by field personnel."}]
[null,null,null,null,null,"MS-6",{"$f":"IF(LEN(VLOOKUP(F61,Lookup2!$B$2:$F$91,5,FALSE))>0,VLOOKUP(H61,Lookup2!$N$2:$O$25,2,FALSE),\"\")","v":6},{"$f":"VLOOKUP(F61,Lookup2!$B$2:$F$91,3,FALSE)","v":"Friction-related threshold, by event, by roadway, without storm severity index, measured by sensors."},null,null,null,null,null,null,null,null,{"$f":"IFERROR(VLOOKUP(S61,Lookup3!$N$2:$T$91,7,FALSE),0)","v":18},{"$f":"IF(LEN(Lookup2!$N7)>0,CONCATENATE(Lookup2!$O7,\".\"),\"\")","v":"6."},{"$f":"Lookup2!$N7","v":"Friction-related threshold, by event, by roadway, without storm severity index, measured by sensors."},null,null,null,null,null,null,null,null,null,null,null,{"$f":"IFERROR(INDEX($S$56:$S$67,MATCH(1,INDEX(($Q$56:$Q$67=LARGE($Q$56:$Q$67,ROWS(AE$55:AE60)))*(COUNTIF(AE$55:AE60,$S$56:$S$67)=0),),0)),\"\")","v":"Travel speed-related threshold, by event, by roadway, with storm severity index, segment-based (e.g. probe data)."}]
[null,null,null,null,null,"MS-7",{"$f":"IF(LEN(VLOOKUP(F62,Lookup2!$B$2:$F$91,5,FALSE))>0,VLOOKUP(H62,Lookup2!$N$2:$O$25,2,FALSE),\"\")","v":7},{"$f":"VLOOKUP(F62,Lookup2!$B$2:$F$91,3,FALSE)","v":"Friction-related threshold, by event, by roadway, with storm severity index, qualitative estimate by field personnel."},null,null,null,null,null,null,null,null,{"$f":"IFERROR(VLOOKUP(S62,Lookup3!$N$2:$T$91,7,FALSE),0)","v":27},{"$f":"IF(LEN(Lookup2!$N8)>0,CONCATENATE(Lookup2!$O8,\".\"),\"\")","v":"7."},{"$f":"Lookup2!$N8","v":"Friction-related threshold, by event, by roadway, with storm severity index, qualitative estimate by field personnel."},null,null,null,null,null,null,null,null,null,null,null,{"$f":"IFERROR(INDEX($S$56:$S$67,MATCH(1,INDEX(($Q$56:$Q$67=LARGE($Q$56:$Q$67,ROWS(AE$55:AE61)))*(COUNTIF(AE$55:AE61,$S$56:$S$67)=0),),0)),\"\")","v":"Accumulation-related threshold, by event, by roadway, without storm severity index, measured by sensors."}]
[null,null,null,null,null,"MS-8",{"$f":"IF(LEN(VLOOKUP(F63,Lookup2!$B$2:$F$91,5,FALSE))>0,VLOOKUP(H63,Lookup2!$N$2:$O$25,2,FALSE),\"\")","v":8},{"$f":"VLOOKUP(F63,Lookup2!$B$2:$F$91,3,FALSE)","v":"Friction-related threshold, by event, by roadway, with storm severity index, measured by sensors."},null,null,null,null,null,null,null,null,{"$f":"IFERROR(VLOOKUP(S63,Lookup3!$N$2:$T$91,7,FALSE),0)","v":54},{"$f":"IF(LEN(Lookup2!$N9)>0,CONCATENATE(Lookup2!$O9,\".\"),\"\")","v":"8."},{"$f":"Lookup2!$N9","v":"Friction-related threshold, by event, by roadway, with storm severity index, measured by sensors."},null,null,null,null,null,null,null,null,null,null,null,{"$f":"IFERROR(INDEX($S$56:$S$67,MATCH(1,INDEX(($Q$56:$Q$67=LARGE($Q$56:$Q$67,ROWS(AE$55:AE62)))*(COUNTIF(AE$55:AE62,$S$56:$S$67)=0),),0)),\"\")","v":"Friction-related threshold, by event, by roadway, without storm severity index, measured by sensors."}]
[null,null,null,null,null,"MS-9",{"$f":"IF(LEN(VLOOKUP(F64,Lookup2!$B$2:$F$91,5,FALSE))>0,VLOOKUP(H64,Lookup2!$N$2:$O$25,2,FALSE),\"\")","v":9},{"$f":"VLOOKUP(F64,Lookup2!$B$2:$F$91,3,FALSE)","v":"Travel speed-related threshold, by event, by roadway, without storm severity index, segment-based (e.g. probe data)."},null,null,null,null,null,null,null,null,{"$f":"IFERROR(VLOOKUP(S64,Lookup3!$N$2:$T$91,7,FALSE),0)","v":9},{"$f":"IF(LEN(Lookup2!$N10)>0,CONCATENATE(Lookup2!$O10,\".\"),\"\")","v":"9."},{"$f":"Lookup2!$N10","v":"Travel speed-related threshold, by event, by roadway, without storm severity index, segment-based (e.g. probe data)."},null,null,null,null,null,null,null,null,null,null,null,{"$f":"IFERROR(INDEX($S$56:$S$67,MATCH(1,INDEX(($Q$56:$Q$67=LARGE($Q$56:$Q$67,ROWS(AE$55:AE63)))*(COUNTIF(AE$55:AE63,$S$56:$S$67)=0),),0)),\"\")","v":"Travel speed-related threshold, by event, by roadway, without storm severity index, point based (e.g. sensor)."}]
[null,null,null,null,null,"MS-10",{"$f":"IF(LEN(VLOOKUP(F65,Lookup2!$B$2:$F$91,5,FALSE))>0,VLOOKUP(H65,Lookup2!$N$2:$O$25,2,FALSE),\"\")","v":10},{"$f":"VLOOKUP(F65,Lookup2!$B$2:$F$91,3,FALSE)","v":"Travel speed-related threshold, by event, by roadway, without storm severity index, point based (e.g. sensor)."},null,null,null,null,null,null,null,null,{"$f":"IFERROR(VLOOKUP(S65,Lookup3!$N$2:$T$91,7,FALSE),0)","v":18},{"$f":"IF(LEN(Lookup2!$N11)>0,CONCATENATE(Lookup2!$O11,\".\"),\"\")","v":"10."},{"$f":"Lookup2!$N11","v":"Travel speed-related threshold, by event, by roadway, without storm severity index, point based (e.g. sensor)."},null,null,null,null,null,null,null,null,null,null,null,{"$f":"IFERROR(INDEX($S$56:$S$67,MATCH(1,INDEX(($Q$56:$Q$67=LARGE($Q$56:$Q$67,ROWS(AE$55:AE64)))*(COUNTIF(AE$55:AE64,$S$56:$S$67)=0),),0)),\"\")","v":"Accumulation-related threshold, by event, by roadway, without storm severity index, measured by field personnel."}]
[null,null,null,null,null,"MS-11",{"$f":"IF(LEN(VLOOKUP(F66,Lookup2!$B$2:$F$91,5,FALSE))>0,VLOOKUP(H66,Lookup2!$N$2:$O$25,2,FALSE),\"\")","v":11},{"$f":"VLOOKUP(F66,Lookup2!$B$2:$F$91,3,FALSE)","v":"Travel speed-related threshold, by event, by roadway, with storm severity index, segment-based (e.g. probe data)."},null,null,null,null,null,null,null,null,{"$f":"IFERROR(VLOOKUP(S66,Lookup3!$N$2:$T$91,7,FALSE),0)","v":27},{"$f":"IF(LEN(Lookup2!$N12)>0,CONCATENATE(Lookup2!$O12,\".\"),\"\")","v":"11."},{"$f":"Lookup2!$N12","v":"Travel speed-related threshold, by event, by roadway, with storm severity index, segment-based (e.g. probe data)."},null,null,null,null,null,null,null,null,null,null,null,{"$f":"IFERROR(INDEX($S$56:$S$67,MATCH(1,INDEX(($Q$56:$Q$67=LARGE($Q$56:$Q$67,ROWS(AE$55:AE65)))*(COUNTIF(AE$55:AE65,$S$56:$S$67)=0),),0)),\"\")","v":"Friction-related threshold, by event, by roadway, without storm severity index, qualitative estimate by field personnel."}]
[null,null,null,null,null,"MS-12",{"$f":"IF(LEN(VLOOKUP(F67,Lookup2!$B$2:$F$91,5,FALSE))>0,VLOOKUP(H67,Lookup2!$N$2:$O$25,2,FALSE),\"\")","v":12},{"$f":"VLOOKUP(F67,Lookup2!$B$2:$F$91,3,FALSE)","v":"Travel speed-related threshold, by event, by roadway, with storm severity index, point based (e.g. sensor)."},null,null,null,null,null,null,null,null,{"$f":"IFERROR(VLOOKUP(S67,Lookup3!$N$2:$T$91,7,FALSE),0)","v":54},{"$f":"IF(LEN(Lookup2!$N13)>0,CONCATENATE(Lookup2!$O13,\".\"),\"\")","v":"12."},{"$f":"Lookup2!$N13","v":"Travel speed-related threshold, by event, by roadway, with storm severity index, point based (e.g. sensor)."},null,null,null,null,null,null,null,null,null,null,null,{"$f":"IFERROR(INDEX($S$56:$S$67,MATCH(1,INDEX(($Q$56:$Q$67=LARGE($Q$56:$Q$67,ROWS(AE$55:AE66)))*(COUNTIF(AE$55:AE66,$S$56:$S$67)=0),),0)),\"\")","v":"Travel speed-related threshold, by event, by roadway, without storm severity index, segment-based (e.g. probe data)."}]

{"sheet":"Mobility - Recovery","index":7,"n_rows":61,"n_cols":30,"rows_kept":61,"cut":false,"hidden":true,"merged":[[58,7,58,14],[59,7,59,14],[60,7,60,14],[53,7,53,14],[54,7,54,14],[55,7,55,14],[56,7,56,14],[57,7,57,14],[45,1,52,3],[45,6,48,14],[45,17,48,24],[50,17,52,24],[12,7,12,8],[13,7,13,8],[17,1,24,3],[18,16,20,24],[25,16,26,24],[30,16,31,24],[35,16,38,26],[21,16,22,24],[6,8,7,21],[9,7,9,8],[10,7,10,8],[11,7,11,8],[4,1,10,3]]}
[]
[]
[]
[]
[null,"1. Performance Measure Overview",null,null,null,null,null,"Mobility Performance Measure:","Recovery – Percent of segments meeting time to regain or recover to “acceptable criteria” for agency-defined segments after the end of event."]
[]
[null,null,null,null,null,null,null,"Definition:","This performance measure assesses the amount of time required between the end of a winter event until an acceptable surface condition once again exists, e.g., bare pavement."]
[]
[]
[null,null,null,null,null,null,null,"Required Data"]
[null,null,null,null,null,null,null,"Road segment information ",null,null,"Since this performance measured is reported for a specific roadway/segment, this geographic level must be identified."]
[null,null,null,null,null,null,null,"Timestamp for begin and end of winter event ",null,null,"Estimated time that winter precipitation started and stopped for a given road segment; may be logged from nearby RWIS system snow accumulation data, observed weather radar, or agency personnel reports in the area."]
[null,null,null,null,null,null,null,"Roadway condition status",null,null,"Percentage of a road segment that is at the pre-defined acceptable criteria; reported by agency personnel in the field and/or citizen reporters."]
[null,null,null,null,null,null,null,"Timestamp for roadway condition status ",null,null,"Time that the roadway status was observed; note: this is different from the timestamp of the submitted report, because drivers may not submit a report until arriving at their destination."]
[]
[]
[]
[null,"2. Performance Measure Breakdown"]
[null,null,null,null,null,null,"A.","This Performance Measure can be reported by one of two conditions:",null,null,null,null,null,null,null,null,"1. desired time to reach defined, \"acceptable\" pavement condition, which may vary by roadway segment priority. Pavement conditions may be defined using agency guidelines."]
[]
[null,null,null,null,null,null,null,"1.","recovery to a normal roadway surface condition"]
[null,null,null,null,null,null,null,"2.","recovery to a normal roadway speed",null,null,null,null,null,null,null,"2. time to return to an \"acceptable\" speed or free-flow speed (in lieu of roadway pavement condition). This measure variation is not as recommended because it could encourage unsafe driving speeds instead of improved performance of snow maintenance activities."]
[]
[]
[]
[null,null,null,null,null,null,"B.","Recovery times must be reported by winter weather event.",null,null,null,null,null,null,null,null,"By definition, a specified recovery time from a winter weather event is event-dependent. It cannot be aggregated to a month- or season-level."]
[]
[]
[]
[]
[null,null,null,null,null,null,"C.","Recovery times must be reported for a specific roadway/ road segment.",null,null,null,null,null,null,null,null,"By definition, post-event recovery time depends on a specific roadway / road segment, since winter weather does not affect all roadways within a region equally."]
[]
[]
[]
[]
[null,null,null,null,null,null,"D.","And finally, recovery times can be reported:",null,null,null,null,null,null,null,null,"Ideally, the recovery time after a winter weather event should depend on how severe the event was. Note that time-to-recovery thresholds can also depend on functional class or type of roadway (e.g. priority routes, school routes, emergency routes), in lieu of storm severity indices."]
[]
[null,null,null,null,null,null,null,"1.","without a storm severity index (not as effective); or"]
[null,null,null,null,null,null,null,"2.","with a storm severity index (recommended),"]
[]
[]
[null,null,null,null,null,null,null,"Refer to the section below to see which variations of reporting this performance measure are available for your agency"]
[]
[]
[]
[null,"3. Available Variations",null,null,null,null,"Based on your results to the Decision Guide*, your agency can report recovery times after winter weather events in the following ways (available variations highlighted):",null,null,null,null,null,null,null,null,null,null,"*Note: If you did not take the Decision Guide Route, then the list below shows the total possible variations for reporting this performance measure."]
[]
[]
[]
[]
[null,null,null,null,null,null,null,null,null,null,null,null,null,null,null,null,null,"Your agency can measure and report recovery times after winter weather events by…"]
[]
[]
[null,null,null,null,null,"MV-1",{"$f":"IF(LEN(VLOOKUP(F54,Lookup2!$B$2:$F$91,5,FALSE))>0,VLOOKUP(H54,Lookup2!$P$2:$Q$25,2,FALSE),\"\")","v":1},{"$f":"VLOOKUP(F54,Lookup2!$B$2:$F$91,3,FALSE)","v":"Road surface condition, by event, by roadway, without storm severity index, observed/ estimated."},null,null,null,null,null,null,null,null,{"$f":"IFERROR(VLOOKUP(S54,Lookup3!$N$2:$T$91,7,FALSE),0)","v":18},{"$f":"IF(LEN(Lookup2!$P2)>0,CONCATENATE(Lookup2!$Q2,\".\"),\"\")","v":"1."},{"$f":"Lookup2!$P2","v":"Road surface condition, by event, by roadway, without storm severity index, observed/ estimated."},null,null,null,null,null,null,null,null,null,null,{"$f":"IFERROR(INDEX($S$54:$S$61,MATCH(1,INDEX(($Q$54:$Q$61=LARGE($Q$54:$Q$61,ROWS(AD53:AD$53)))*(COUNTIF(AD53:AD$53,$S$54:$S$61)=0),),0)),\"\")","v":"Road surface condition, by event, by roadway, with storm severity index, measured (e.g. grip sensors)."}]
[null,null,null,null,null,"MV-2",{"$f":"IF(LEN(VLOOKUP(F55,Lookup2!$B$2:$F$91,5,FALSE))>0,VLOOKUP(H55,Lookup2!$P$2:$Q$25,2,FALSE),\"\")","v":2},{"$f":"VLOOKUP(F55,Lookup2!$B$2:$F$91,3,FALSE)","v":"Road surface condition, by event, by roadway, without storm severity index, measured (e.g. grip sensors)."},null,null,null,null,null,null,null,null,{"$f":"IFERROR(VLOOKUP(S55,Lookup3!$N$2:$T$91,7,FALSE),0)","v":36},{"$f":"IF(LEN(Lookup2!$P3)>0,CONCATENATE(Lookup2!$Q3,\".\"),\"\")","v":"2."},{"$f":"Lookup2!$P3","v":"Road surface condition, by event, by roadway, without storm severity index, measured (e.g. grip sensors)."},null,null,null,null,null,null,null,null,null,null,{"$f":"IFERROR(INDEX($S$54:$S$61,MATCH(1,INDEX(($Q$54:$Q$61=LARGE($Q$54:$Q$61,ROWS(AD$53:AD54)))*(COUNTIF(AD$53:AD54,$S$54:$S$61)=0),),0)),\"\")","v":"Road surface condition, by event, by roadway, with storm severity index, observed/ estimated."}]
[null,null,null,null,null,"MV-3",{"$f":"IF(LEN(VLOOKUP(F56,Lookup2!$B$2:$F$91,5,FALSE))>0,VLOOKUP(H56,Lookup2!$P$2:$Q$25,2,FALSE),\"\")","v":3},{"$f":"VLOOKUP(F56,Lookup2!$B$2:$F$91,3,FALSE)","v":"Road surface condition, by event, by roadway, with storm severity index, observed/ estimated."},null,null,null,null,null,null,null,null,{"$f":"IFERROR(VLOOKUP(S56,Lookup3!$N$2:$T$91,7,FALSE),0)","v":54},{"$f":"IF(LEN(Lookup2!$P4)>0,CONCATENATE(Lookup2!$Q4,\".\"),\"\")","v":"3."},{"$f":"Lookup2!$P4","v":"Road surface condition, by event, by roadway, with storm severity index, observed/ estimated."},null,null,null,null,null,null,null,null,null,null,{"$f":"IFERROR(INDEX($S$54:$S$61,MATCH(1,INDEX(($Q$54:$Q$61=LARGE($Q$54:$Q$61,ROWS(AD$53:AD55)))*(COUNTIF(AD$53:AD55,$S$54:$S$61)=0),),0)),\"\")","v":"Recovery to normal speeds, by event, by roadway, with storm severity index, measured by sensors."}]
[null,null,null,null,null,"MV-4",{"$f":"IF(LEN(VLOOKUP(F57,Lookup2!$B$2:$F$91,5,FALSE))>0,VLOOKUP(H57,Lookup2!$P$2:$Q$25,2,FALSE),\"\")","v":4},{"$f":"VLOOKUP(F57,Lookup2!$B$2:$F$91,3,FALSE)","v":"Road surface condition, by event, by roadway, with storm severity index, measured (e.g. grip sensors)."},null,null,null,null,null,null,null,null,{"$f":"IFERROR(VLOOKUP(S57,Lookup3!$N$2:$T$91,7,FALSE),0)","v":108},{"$f":"IF(LEN(Lookup2!$P5)>0,CONCATENATE(Lookup2!$Q5,\".\"),\"\")","v":"4."},{"$f":"Lookup2!$P5","v":"Road surface condition, by event, by roadway, with storm severity index, measured (e.g. grip sensors)."},null,null,null,null,null,null,null,null,null,null,{"$f":"IFERROR(INDEX($S$54:$S$61,MATCH(1,INDEX(($Q$54:$Q$61=LARGE($Q$54:$Q$61,ROWS(AD$53:AD56)))*(COUNTIF(AD$53:AD56,$S$54:$S$61)=0),),0)),\"\")","v":"Road surface condition, by event, by roadway, without storm severity index, measured (e.g. grip sensors)."}]
[null,null,null,null,null,"MV-5",{"$f":"IF(LEN(VLOOKUP(F58,Lookup2!$B$2:$F$91,5,FALSE))>0,VLOOKUP(H58,Lookup2!$P$2:$Q$25,2,FALSE),\"\")","v":5},{"$f":"VLOOKUP(F58,Lookup2!$B$2:$F$91,3,FALSE)","v":"Recovery to normal speeds, by event, by roadway, without storm severity index, estimated."},null,null,null,null,null,null,null,null,{"$f":"IFERROR(VLOOKUP(S58,Lookup3!$N$2:$T$91,7,FALSE),0)","v":9},{"$f":"IF(LEN(Lookup2!$P6)>0,CONCATENATE(Lookup2!$Q6,\".\"),\"\")","v":"5."},{"$f":"Lookup2!$P6","v":"Recovery to normal speeds, by event, by roadway, without storm severity index, estimated."},null,null,null,null,null,null,null,null,null,null,{"$f":"IFERROR(INDEX($S$54:$S$61,MATCH(1,INDEX(($Q$54:$Q$61=LARGE($Q$54:$Q$61,ROWS(AD$53:AD57)))*(COUNTIF(AD$53:AD57,$S$54:$S$61)=0),),0)),\"\")","v":"Recovery to normal speeds, by event, by roadway, with storm severity index, estimated."}]
[null,null,null,null,null,"MV-6",{"$f":"IF(LEN(VLOOKUP(F59,Lookup2!$B$2:$F$91,5,FALSE))>0,VLOOKUP(H59,Lookup2!$P$2:$Q$25,2,FALSE),\"\")","v":6},{"$f":"VLOOKUP(F59,Lookup2!$B$2:$F$91,3,FALSE)","v":"Recovery to normal speeds, by event, by roadway, without storm severity index, measured by sensors."},null,null,null,null,null,null,null,null,{"$f":"IFERROR(VLOOKUP(S59,Lookup3!$N$2:$T$91,7,FALSE),0)","v":18},{"$f":"IF(LEN(Lookup2!$P7)>0,CONCATENATE(Lookup2!$Q7,\".\"),\"\")","v":"6."},{"$f":"Lookup2!$P7","v":"Recovery to normal speeds, by event, by roadway, without storm severity index, measured by sensors."},null,null,null,null,null,null,null,null,null,null,{"$f":"IFERROR(INDEX($S$54:$S$61,MATCH(1,INDEX(($Q$54:$Q$61=LARGE($Q$54:$Q$61,ROWS(AD$53:AD58)))*(COUNTIF(AD$53:AD58,$S$54:$S$61)=0),),0)),\"\")","v":"Road surface condition, by event, by roadway, without storm severity index, observed/ estimated."}]
[null,null,null,null,null,"MV-7",{"$f":"IF(LEN(VLOOKUP(F60,Lookup2!$B$2:$F$91,5,FALSE))>0,VLOOKUP(H60,Lookup2!$P$2:$Q$25,2,FALSE),\"\")","v":7},{"$f":"VLOOKUP(F60,Lookup2!$B$2:$F$91,3,FALSE)","v":"Recovery to normal speeds, by event, by roadway, with storm severity index, estimated."},null,null,null,null,null,null,null,null,{"$f":"IFERROR(VLOOKUP(S60,Lookup3!$N$2:$T$91,7,FALSE),0)","v":27},{"$f":"IF(LEN(Lookup2!$P8)>0,CONCATENATE(Lookup2!$Q8,\".\"),\"\")","v":"7."},{"$f":"Lookup2!$P8","v":"Recovery to normal speeds, by event, by roadway, with storm severity index, estimated."},null,null,null,null,null,null,null,null,null,null,{"$f":"IFERROR(INDEX($S$54:$S$61,MATCH(1,INDEX(($Q$54:$Q$61=LARGE($Q$54:$Q$61,ROWS(AD$53:AD59)))*(COUNTIF(AD$53:AD59,$S$54:$S$61)=0),),0)),\"\")","v":"Recovery to normal speeds, by event, by roadway, without storm severity index, measured by sensors."}]
[null,null,null,null,null,"MV-8",{"$f":"IF(LEN(VLOOKUP(F61,Lookup2!$B$2:$F$91,5,FALSE))>0,VLOOKUP(H61,Lookup2!$P$2:$Q$25,2,FALSE),\"\")","v":8},{"$f":"VLOOKUP(F61,Lookup2!$B$2:$F$91,3,FALSE)","v":"Recovery to normal speeds, by event, by roadway, with storm severity index, measured by sensors."},null,null,null,null,null,null,null,null,{"$f":"IFERROR(VLOOKUP(S61,Lookup3!$N$2:$T$91,7,FALSE),0)","v":54},{"$f":"IF(LEN(Lookup2!$P9)>0,CONCATENATE(Lookup2!$Q9,\".\"),\"\")","v":"8."},{"$f":"Lookup2!$P9","v":"Recovery to normal speeds, by event, by roadway, with storm severity index, measured by sensors."},null,null,null,null,null,null,null,null,null,null,{"$f":"IFERROR(INDEX($S$54:$S$61,MATCH(1,INDEX(($Q$54:$Q$61=LARGE($Q$54:$Q$61,ROWS(AD$53:AD60)))*(COUNTIF(AD$53:AD60,$S$54:$S$61)=0),),0)),\"\")","v":"Recovery to normal speeds, by event, by roadway, without storm severity index, estimated."}]

{"sheet":"Mobility - Reliability","index":8,"n_rows":57,"n_cols":28,"rows_kept":57,"cut":false,"hidden":true,"merged":[[53,7,53,14],[54,7,54,14],[55,7,55,14],[56,7,56,14],[45,1,52,3],[45,6,48,14],[45,17,48,24],[50,17,52,24],[11,7,11,8],[17,1,24,3],[12,7,12,8],[14,7,14,8],[18,7,21,14],[18,16,21,24],[25,16,26,24],[30,16,31,24],[35,16,38,26],[6,8,7,21],[9,7,9,8],[10,7,10,8],[13,7,13,8],[4,1,10,3]]}
[]
[]
[]
[]
[null,"1. Performance Measure Overview",null,null,null,null,null,"Mobility Performance Measure:","Reliability – Percent of trips within accepted difference between measured travel time index and “additional expected” travel time index for snow and ice events."]
[]
[null,null,null,null,null,null,null,"Definition:","This performance measure assesses what percentage of trips are within an acceptable difference between measured travel time index and “additional expected” travel time index for snow and ice events."]
[]
[]
[null,null,null,null,null,null,null,"Required Data"]
[null,null,null,null,null,null,null,"List of common routes",null,null,"Road segments comprising common, prioritized routes need to be identified. "]
[null,null,null,null,null,null,null,"Current travel times for common routes",null,null,"Current travel information is needed to estimate the TTI of selected trips in (near) real-time, or at a defined frequency within the duration of the storm (e.g., every 30 minutes)."]
[null,null,null,null,null,null,null,"Historical travel times for common routes",null,null,"Historical travel time data is needed to define the criteria for the additional travel time index. This information should be correlated with or normalized by its respective storm severity. "]
[null,null,null,null,null,null,null,"Timestamp for begin and end of winter event ",null,null,"Estimated time that winter precipitation started and stopped for a given road segment; may be logged from nearby RWIS system snow accumulation data, observed weather radar, or agency personnel reports in the area."]
[null,null,null,null,null,null,null,"Weather Information",null,null,"Data from RWIS regarding rate or total precipitation or grip will be needed to determine storm severity, an accumulation-related threshold, or a friction-related threshold."]
[]
[]
[null,"2. Performance Measure Breakdown"]
[null,null,null,null,null,null,"A.","This Performance Measure is reported by comparing the calculated Travel Time Indices (TTIs) of common routes between current conditions (i.e. during a storm) and historical conditions (i.e. during normal weather).",null,null,null,null,null,null,null,null,"A Travel Time Index (TTI) is measured as the ratio of the peak-period travel time to the free-flow travel time of a particular route, with averages across urban areas, road sections, and/or time periods."]
[]
[]
[]
[]
[]
[]
[null,null,null,null,null,null,"B.","Travel Time Indices (TTIs) must be reported by winter weather event.",null,null,null,null,null,null,null,null,"By definition, the winter weather-impacted Travel Time Index (TTI) is event-dependent. It cannot be aggregated to a month- or season-level."]
[]
[]
[]
[]
[null,null,null,null,null,null,"C.","Travel Time Indices (TTIs) must be reported for a specific route/ trip.",null,null,null,null,null,null,null,null,"Travel Time Indices (TTIs) depends on a specific routes/ trips, since winter weather does not affect all roadways within a region equally."]
[]
[]
[]
[]
[null,null,null,null,null,null,"D.","And finally, travel time indices (TTIs) can be reported with:",null,null,null,null,null,null,null,null,"The weather-impacted travel time index (TTI) should be dependent on the severity of the storm. However, if storm severity index data is not available, this performance measure can be aggregated by storms of all severity levels (although this is not as helpful)."]
[]
[null,null,null,null,null,null,null,"1.","without a storm severity index (not recommended); or"]
[null,null,null,null,null,null,null,"2.","with a storm severity index (recommended),"]
[]
[]
[null,null,null,null,null,null,null,"Refer to the section below to see which variations of reporting this performance measure are available for your agency"]
[]
[]
[]
[null,"3. Available Variations",null,null,null,null,"Based on your results to the Decision Guide*, your agency can report travel time indices (TTIs) for a winter weather events in the following ways (available variations highlighted):",null,null,null,null,null,null,null,null,null,null,"*Note: If you did not take the Decision Guide Route, then the list below shows the total possible variations for reporting this performance measure."]
[]
[]
[]
[]
[null,null,null,null,null,null,null,null,null,null,null,null,null,null,null,null,null,"Your agency can measure and report winter weather-related reliability data by…"]
[]
[]
[null,null,null,null,null,"MB-1",{"$f":"IF(LEN(VLOOKUP(F54,Lookup2!$B$2:$F$91,5,FALSE))>0,VLOOKUP(H54,Lookup2!$R$2:$S$25,2,FALSE),\"\")","v":1},{"$f":"VLOOKUP(F54,Lookup2!$B$2:$F$91,3,FALSE)","v":"Travel Time Index (TTI), by event, by trip, without storm severity index, estimated."},null,null,null,null,null,null,null,null,{"$f":"IFERROR(VLOOKUP(S54,Lookup3!$N$2:$T$91,7,FALSE),0)","v":9},{"$f":"IF(LEN(Lookup2!$R2)>0,CONCATENATE(Lookup2!$S2,\".\"),\"\")","v":"1."},{"$f":"Lookup2!$R2","v":"Travel Time Index (TTI), by event, by trip, without storm severity index, estimated."},null,null,null,null,null,null,null,null,{"$f":"IFERROR(INDEX($S$54:$S$57,MATCH(1,INDEX(($Q$54:$Q$57=LARGE($Q$54:$Q$57,ROWS(AB53:AB$53)))*(COUNTIF(AB53:AB$53,$S$54:$S$57)=0),),0)),\"\")","v":"Travel Time Index (TTI), by event, by trip, with storm severity index, measured."}]
[null,null,null,null,null,"MB-2",{"$f":"IF(LEN(VLOOKUP(F55,Lookup2!$B$2:$F$91,5,FALSE))>0,VLOOKUP(H55,Lookup2!$R$2:$S$25,2,FALSE),\"\")","v":2},{"$f":"VLOOKUP(F55,Lookup2!$B$2:$F$91,3,FALSE)","v":"Travel Time Index (TTI), by event, by trip, without storm severity index, measured."},null,null,null,null,null,null,null,null,{"$f":"IFERROR(VLOOKUP(S55,Lookup3!$N$2:$T$91,7,FALSE),0)","v":18},{"$f":"IF(LEN(Lookup2!$R3)>0,CONCATENATE(Lookup2!$S3,\".\"),\"\")","v":"2."},{"$f":"Lookup2!$R3","v":"Travel Time Index (TTI), by event, by trip, without storm severity index, measured."},null,null,null,null,null,null,null,null,{"$f":"IFERROR(INDEX($S$54:$S$57,MATCH(1,INDEX(($Q$54:$Q$57=LARGE($Q$54:$Q$57,ROWS(AB$53:AB54)))*(COUNTIF(AB$53:AB54,$S$54:$S$57)=0),),0)),\"\")","v":"Travel Time Index (TTI), by event, by trip, with storm severity index, estimated."}]
[null,null,null,null,null,"MB-3",{"$f":"IF(LEN(VLOOKUP(F56,Lookup2!$B$2:$F$91,5,FALSE))>0,VLOOKUP(H56,Lookup2!$R$2:$S$25,2,FALSE),\"\")","v":3},{"$f":"VLOOKUP(F56,Lookup2!$B$2:$F$91,3,FALSE)","v":"Travel Time Index (TTI), by event, by trip, with storm severity index, estimated."},null,null,null,null,null,null,null,null,{"$f":"IFERROR(VLOOKUP(S56,Lookup3!$N$2:$T$91,7,FALSE),0)","v":27},{"$f":"IF(LEN(Lookup2!$R4)>0,CONCATENATE(Lookup2!$S4,\".\"),\"\")","v":"3."},{"$f":"Lookup2!$R4","v":"Travel Time Index (TTI), by event, by trip, with storm severity index, estimated."},null,null,null,null,null,null,null,null,{"$f":"IFERROR(INDEX($S$54:$S$57,MATCH(1,INDEX(($Q$54:$Q$57=LARGE($Q$54:$Q$57,ROWS(AB$53:AB55)))*(COUNTIF(AB$53:AB55,$S$54:$S$57)=0),),0)),\"\")","v":"Travel Time Index (TTI), by event, by trip, without storm severity index, measured."}]
[null,null,null,null,null,"MB-4",{"$f":"IF(LEN(VLOOKUP(F57,Lookup2!$B$2:$F$91,5,FALSE))>0,VLOOKUP(H57,Lookup2!$R$2:$S$25,2,FALSE),\"\")","v":4},{"$f":"VLOOKUP(F57,Lookup2!$B$2:$F$91,3,FALSE)","v":"Travel Time Index (TTI), by event, by trip, with storm severity index, measured."},null,null,null,null,null,null,null,null,{"$f":"IFERROR(VLOOKUP(S57,Lookup3!$N$2:$T$91,7,FALSE),0)","v":54},{"$f":"IF(LEN(Lookup2!$R5)>0,CONCATENATE(Lookup2!$S5,\".\"),\"\")","v":"4."},{"$f":"Lookup2!$R5","v":"Travel Time Index (TTI), by event, by trip, with storm severity index, measured."},null,null,null,null,null,null,null,null,{"$f":"IFERROR(INDEX($S$54:$S$57,MATCH(1,INDEX(($Q$54:$Q$57=LARGE($Q$54:$Q$57,ROWS(AB$53:AB56)))*(COUNTIF(AB$53:AB56,$S$54:$S$57)=0),),0)),\"\")","v":"Travel Time Index (TTI), by event, by trip, without storm severity index, estimated."}]

{"sheet":"Sust. - Efficiency","index":9,"n_rows":69,"n_cols":28,"rows_kept":69,"cut":false,"hidden":true,"merged":[[61,7,61,14],[67,7,67,14],[68,7,68,14],[62,7,62,14],[63,7,63,14],[64,7,64,14],[65,7,65,14],[66,7,66,14],[4,1,11,3],[17,1,23,3],[24,16,27,24],[31,16,35,24],[60,7,60,14],[39,16,42,26],[49,1,56,3],[49,6,52,14],[49,17,52,24],[54,17,56,24],[18,16,20,24],[18,7,20,14],[57,7,57,14],[58,7,58,14],[59,7,59,14]]}
[]
[]
[]
[]
[null,"1. Performance Measure Overview",null,null,null,null,null,"Sustainability Performance Measure:","Efficiency – Cost of Snow and Ice Control spent to meet an established performance criteria for a given winter severity."]
[]
[]
[null,null,null,null,null,null,null,"Definition:","This performance measure is a highly visible parameter of state and local expenditures on snow and ice control (materials, labor, equipment)."]
[]
[null,null,null,null,null,null,null,"Required Data"]
[null,null,null,null,null,null,null,"Unit Costs",null,"Cost of each unit of every resource used in winter maintenance activities."]
[null,null,null,null,null,null,null,"Resource usage ",null,"Total amount of resources used, detailed by category."]
[null,null,null,null,null,null,null,"Time of beginning and end of maintenance activities ",null,"The beginning and end times of all winter maintenance activities are needed to proxy the usage of some resources or to estimate the efficiency of the activities."]
[null,null,null,null,null,null,null,"Mileage and functional classes of roadway",null,"Total length of the maintained roads and functional classes."]
[]
[]
[]
[null,"2. Performance Measure Breakdown"]
[null,null,null,null,null,null,"A.","This Performance Measure is reported by calculating an agency's total cost of snow and ice control during the winter season.",null,null,null,null,null,null,null,null,"Winter maintenance cost information can be viewed as the output of combining usage indicators of labor, equipment, material, and other resources with respective cost information. In this sense, this measure tracks the \"true cost of winter operations\" per storm and season. "]
[]
[]
[]
[]
[]
[null,null,null,null,null,null,"B.","Cost data can be broken down by a time scale:",null,null,null,null,null,null,null,null,"Agencies should strive to associate winter weather-related costs to specific winter weather events. This provides the greatest level of detail and can be aggregated up to any other time frame. However, if this level of detail is not available, then breaking down costs by winter season (or by month) is acceptable."]
[]
[null,null,null,null,null,null,null,"1.","By winter season "]
[null,null,null,null,null,null,null,"2.","By winter weather event"]
[]
[]
[]
[null,null,null,null,null,null,"C.","Costs can then be broken down by a geographic scale and miles:",null,null,null,null,null,null,null,null,"These options are listed down by increasing level of detail. Agencies should strive to report winter weather-related costs to the most detailed geographic scale possible."]
[]
[null,null,null,null,null,null,null,"1.","State-wide (or region-wide)"]
[null,null,null,null,null,null,null,"2.","District-wide"]
[null,null,null,null,null,null,null,"3.","By roadway (or specific road segment)"]
[]
[]
[]
[null,null,null,null,null,null,"D.","And finally, the winter maintenance costs can be reported with a winter weather severity index:",null,null,null,null,null,null,null,null,"Storm severity indices (Option 2) provide the greatest level of detail, and should therefore be used if available. Associating a winter weather severity index with costs helps agencies better understand how different degrees of adverse winter weather affect maintenance costs in the region."]
[]
[null,null,null,null,null,null,null,"1.","Seasonal severity index (by winter season)"]
[null,null,null,null,null,null,null,"2.","Storm severity index (weather event-specific)"]
[]
[]
[null,null,null,null,null,null,null,"Refer to the section below to see which variations of reporting this performance measure are available for your agency"]
[]
[]
[]
[null,"3. Available Variations",null,null,null,null,"Based on your results to the Decision Guide*, your agency can report winter maintenance costs in the following ways (available variations highlighted):",null,null,null,null,null,null,null,null,null,null,"*Note: If you did not take the Decision Guide Route, then the list below shows the total possible variations for reporting this performance measure."]
[]
[]
[]
[]
[null,null,null,null,null,null,null,null,null,null,null,null,null,null,null,null,null,"Your agency can measure and report winter weather-related maintenance costs…"]
[]
[]
[null,null,null,null,null,"SE-1",{"$f":"IF(LEN(VLOOKUP(F58,Lookup2!$B$2:$F$91,5,FALSE))>0,VLOOKUP(H58,Lookup2!$T$2:$U$25,2,FALSE),\"\")","v":1},{"$f":"VLOOKUP(F58,Lookup2!$B$2:$F$91,3,FALSE)","v":"Cost of snow and ice control, by winter season, state-wide/ region-wide, without seasonal severity index."},null,null,null,null,null,null,null,null,{"$f":"IFERROR(VLOOKUP(Lookup2!$T2,Lookup3!$N$2:$T$91,7,FALSE),0)","v":1},{"$f":"IF(LEN(Lookup2!$T2)>0,CONCATENATE(Lookup2!$U2,\".\"),\"\")","v":"1."},{"$f":"IFERROR(RIGHT(Lookup2!$T2,LEN(Lookup2!$T2)-30),\"\")","v":"by winter season, state-wide/ region-wide, without seasonal severity index."},null,null,null,null,null,null,null,null,{"$f":"IFERROR(INDEX($S$58:$S$69,MATCH(1,INDEX(($Q$58:$Q$69=LARGE($Q$58:$Q$69,ROWS(AB$57:AB57)))*(COUNTIF(AB$57:AB57,$S$58:$S$69)=0),),0)),\"\")","v":"by event, by roadway, with storm severity index."}]
[null,null,null,null,null,"SE-2",{"$f":"IF(LEN(VLOOKUP(F59,Lookup2!$B$2:$F$91,5,FALSE))>0,VLOOKUP(H59,Lookup2!$T$2:$U$25,2,FALSE),\"\")","v":2},{"$f":"VLOOKUP(F59,Lookup2!$B$2:$F$91,3,FALSE)","v":"Cost of snow and ice control, by winter season, state-wide/ region-wide, with seasonal severity index."},null,null,null,null,null,null,null,null,{"$f":"IFERROR(VLOOKUP(Lookup2!$T3,Lookup3!$N$2:$T$91,7,FALSE),0)","v":3},{"$f":"IF(LEN(Lookup2!$T3)>0,CONCATENATE(Lookup2!$U3,\".\"),\"\")","v":"2."},{"$f":"IFERROR(RIGHT(Lookup2!$T3,LEN(Lookup2!$T3)-30),\"\")","v":"by winter season, state-wide/ region-wide, with seasonal severity index."},null,null,null,null,null,null,null,null,{"$f":"IFERROR(INDEX($S$58:$S$69,MATCH(1,INDEX(($Q$58:$Q$69=LARGE($Q$58:$Q$69,ROWS(AB$57:AB58)))*(COUNTIF(AB$57:AB58,$S$58:$S$69)=0),),0)),\"\")","v":"by event, district-wide, with storm severity index."}]
[null,null,null,null,null,"SE-3",{"$f":"IF(LEN(VLOOKUP(F60,Lookup2!$B$2:$F$91,5,FALSE))>0,VLOOKUP(H60,Lookup2!$T$2:$U$25,2,FALSE),\"\")","v":3},{"$f":"VLOOKUP(F60,Lookup2!$B$2:$F$91,3,FALSE)","v":"Cost of snow and ice control, by event, state-wide/ region-wide, without storm severity index."},null,null,null,null,null,null,null,null,{"$f":"IFERROR(VLOOKUP(Lookup2!$T4,Lookup3!$N$2:$T$91,7,FALSE),0)","v":3},{"$f":"IF(LEN(Lookup2!$T4)>0,CONCATENATE(Lookup2!$U4,\".\"),\"\")","v":"3."},{"$f":"IFERROR(RIGHT(Lookup2!$T4,LEN(Lookup2!$T4)-30),\"\")","v":"by event, state-wide/ region-wide, without storm severity index."},null,null,null,null,null,null,null,null,{"$f":"IFERROR(INDEX($S$58:$S$69,MATCH(1,INDEX(($Q$58:$Q$69=LARGE($Q$58:$Q$69,ROWS(AB$57:AB59)))*(COUNTIF(AB$57:AB59,$S$58:$S$69)=0),),0)),\"\")","v":"by event, state-wide/ region-wide, with storm severity index."}]
[null,null,null,null,null,"SE-4",{"$f":"IF(LEN(VLOOKUP(F61,Lookup2!$B$2:$F$91,5,FALSE))>0,VLOOKUP(H61,Lookup2!$T$2:$U$25,2,FALSE),\"\")","v":4},{"$f":"VLOOKUP(F61,Lookup2!$B$2:$F$91,3,FALSE)","v":"Cost of snow and ice control, by event, state-wide/ region-wide, with storm severity index."},null,null,null,null,null,null,null,null,{"$f":"IFERROR(VLOOKUP(Lookup2!$T5,Lookup3!$N$2:$T$91,7,FALSE),0)","v":9},{"$f":"IF(LEN(Lookup2!$T5)>0,CONCATENATE(Lookup2!$U5,\".\"),\"\")","v":"4."},{"$f":"IFERROR(RIGHT(Lookup2!$T5,LEN(Lookup2!$T5)-30),\"\")","v":"by event, state-wide/ region-wide, with storm severity index."},null,null,null,null,null,null,null,null,{"$f":"IFERROR(INDEX($S$58:$S$69,MATCH(1,INDEX(($Q$58:$Q$69=LARGE($Q$58:$Q$69,ROWS(AB$57:AB60)))*(COUNTIF(AB$57:AB60,$S$58:$S$69)=0),),0)),\"\")","v":"by winter season, by roadway, with seasonal severity index."}]
[null,null,null,null,null,"SE-5",{"$f":"IF(LEN(VLOOKUP(F62,Lookup2!$B$2:$F$91,5,FALSE))>0,VLOOKUP(H62,Lookup2!$T$2:$U$25,2,FALSE),\"\")","v":5},{"$f":"VLOOKUP(F62,Lookup2!$B$2:$F$91,3,FALSE)","v":"Cost of snow and ice control, by winter season, district-wide, without seasonal severity index."},null,null,null,null,null,null,null,null,{"$f":"IFERROR(VLOOKUP(Lookup2!$T6,Lookup3!$N$2:$T$91,7,FALSE),0)","v":2},{"$f":"IF(LEN(Lookup2!$T6)>0,CONCATENATE(Lookup2!$U6,\".\"),\"\")","v":"5."},{"$f":"IFERROR(RIGHT(Lookup2!$T6,LEN(Lookup2!$T6)-30),\"\")","v":"by winter season, district-wide, without seasonal severity index."},null,null,null,null,null,null,null,null,{"$f":"IFERROR(INDEX($S$58:$S$69,MATCH(1,INDEX(($Q$58:$Q$69=LARGE($Q$58:$Q$69,ROWS(AB$57:AB61)))*(COUNTIF(AB$57:AB61,$S$58:$S$69)=0),),0)),\"\")","v":"by event, by roadway, without storm severity index."}]
[null,null,null,null,null,"SE-6",{"$f":"IF(LEN(VLOOKUP(F63,Lookup2!$B$2:$F$91,5,FALSE))>0,VLOOKUP(H63,Lookup2!$T$2:$U$25,2,FALSE),\"\")","v":6},{"$f":"VLOOKUP(F63,Lookup2!$B$2:$F$91,3,FALSE)","v":"Cost of snow and ice control, by winter season, district-wide, with seasonal severity index."},null,null,null,null,null,null,null,null,{"$f":"IFERROR(VLOOKUP(Lookup2!$T7,Lookup3!$N$2:$T$91,7,FALSE),0)","v":6},{"$f":"IF(LEN(Lookup2!$T7)>0,CONCATENATE(Lookup2!$U7,\".\"),\"\")","v":"6."},{"$f":"IFERROR(RIGHT(Lookup2!$T7,LEN(Lookup2!$T7)-30),\"\")","v":"by winter season, district-wide, with seasonal severity index."},null,null,null,null,null,null,null,null,{"$f":"IFERROR(INDEX($S$58:$S$69,MATCH(1,INDEX(($Q$58:$Q$69=LARGE($Q$58:$Q$69,ROWS(AB$57:AB62)))*(COUNTIF(AB$57:AB62,$S$58:$S$69)=0),),0)),\"\")","v":"by winter season, district-wide, with seasonal severity index."}]
[null,null,null,null,null,"SE-7",{"$f":"IF(LEN(VLOOKUP(F64,Lookup2!$B$2:$F$91,5,FALSE))>0,VLOOKUP(H64,Lookup2!$T$2:$U$25,2,FALSE),\"\")","v":7},{"$f":"VLOOKUP(F64,Lookup2!$B$2:$F$91,3,FALSE)","v":"Cost of snow and ice control, by event, district-wide, without storm severity index."},null,null,null,null,null,null,null,null,{"$f":"IFERROR(VLOOKUP(Lookup2!$T8,Lookup3!$N$2:$T$91,7,FALSE),0)","v":6},{"$f":"IF(LEN(Lookup2!$T8)>0,CONCATENATE(Lookup2!$U8,\".\"),\"\")","v":"7."},{"$f":"IFERROR(RIGHT(Lookup2!$T8,LEN(Lookup2!$T8)-30),\"\")","v":"by event, district-wide, without storm severity index."},null,null,null,null,null,null,null,null,{"$f":"IFERROR(INDEX($S$58:$S$69,MATCH(1,INDEX(($Q$58:$Q$69=LARGE($Q$58:$Q$69,ROWS(AB$57:AB63)))*(COUNTIF(AB$57:AB63,$S$58:$S$69)=0),),0)),\"\")","v":"by event, district-wide, without storm severity index."}]
[null,null,null,null,null,"SE-8",{"$f":"IF(LEN(VLOOKUP(F65,Lookup2!$B$2:$F$91,5,FALSE))>0,VLOOKUP(H65,Lookup2!$T$2:$U$25,2,FALSE),\"\")","v":8},{"$f":"VLOOKUP(F65,Lookup2!$B$2:$F$91,3,FALSE)","v":"Cost of snow and ice control, by event, district-wide, with storm severity index."},null,null,null,null,null,null,null,null,{"$f":"IFERROR(VLOOKUP(Lookup2!$T9,Lookup3!$N$2:$T$91,7,FALSE),0)","v":18},{"$f":"IF(LEN(Lookup2!$T9)>0,CONCATENATE(Lookup2!$U9,\".\"),\"\")","v":"8."},{"$f":"IFERROR(RIGHT(Lookup2!$T9,LEN(Lookup2!$T9)-30),\"\")","v":"by event, district-wide, with storm severity index."},null,null,null,null,null,null,null,null,{"$f":"IFERROR(INDEX($S$58:$S$69,MATCH(1,INDEX(($Q$58:$Q$69=LARGE($Q$58:$Q$69,ROWS(AB$57:AB64)))*(COUNTIF(AB$57:AB64,$S$58:$S$69)=0),),0)),\"\")","v":"by winter season, state-wide/ region-wide, with seasonal severity index."}]
[null,null,null,null,null,"SE-9",{"$f":"IF(LEN(VLOOKUP(F66,Lookup2!$B$2:$F$91,5,FALSE))>0,VLOOKUP(H66,Lookup2!$T$2:$U$25,2,FALSE),\"\")","v":9},{"$f":"VLOOKUP(F66,Lookup2!$B$2:$F$91,3,FALSE)","v":"Cost of snow and ice control, by winter season, by roadway, without seasonal severity index."},null,null,null,null,null,null,null,null,{"$f":"IFERROR(VLOOKUP(Lookup2!$T10,Lookup3!$N$2:$T$91,7,FALSE),0)","v":3},{"$f":"IF(LEN(Lookup2!$T10)>0,CONCATENATE(Lookup2!$U10,\".\"),\"\")","v":"9."},{"$f":"IFERROR(RIGHT(Lookup2!$T10,LEN(Lookup2!$T10)-30),\"\")","v":"by winter season, by roadway, without seasonal severity index."},null,null,null,null,null,null,null,null,{"$f":"IFERROR(INDEX($S$58:$S$69,MATCH(1,INDEX(($Q$58:$Q$69=LARGE($Q$58:$Q$69,ROWS(AB$57:AB65)))*(COUNTIF(AB$57:AB65,$S$58:$S$69)=0),),0)),\"\")","v":"by event, state-wide/ region-wide, without storm severity index."}]
[null,null,null,null,null,"SE-10",{"$f":"IF(LEN(VLOOKUP(F67,Lookup2!$B$2:$F$91,5,FALSE))>0,VLOOKUP(H67,Lookup2!$T$2:$U$25,2,FALSE),\"\")","v":10},{"$f":"VLOOKUP(F67,Lookup2!$B$2:$F$91,3,FALSE)","v":"Cost of snow and ice control, by winter season, by roadway, with seasonal severity index."},null,null,null,null,null,null,null,null,{"$f":"IFERROR(VLOOKUP(Lookup2!$T11,Lookup3!$N$2:$T$91,7,FALSE),0)","v":9},{"$f":"IF(LEN(Lookup2!$T11)>0,CONCATENATE(Lookup2!$U11,\".\"),\"\")","v":"10."},{"$f":"IFERROR(RIGHT(Lookup2!$T11,LEN(Lookup2!$T11)-30),\"\")","v":"by winter season, by roadway, with seasonal severity index."},null,null,null,null,null,null,null,null,{"$f":"IFERROR(INDEX($S$58:$S$69,MATCH(1,INDEX(($Q$58:$Q$69=LARGE($Q$58:$Q$69,ROWS(AB$57:AB66)))*(COUNTIF(AB$57:AB66,$S$58:$S$69)=0),),0)),\"\")","v":"by winter season, by roadway, without seasonal severity index."}]
[null,null,null,null,null,"SE-11",{"$f":"IF(LEN(VLOOKUP(F68,Lookup2!$B$2:$F$91,5,FALSE))>0,VLOOKUP(H68,Lookup2!$T$2:$U$25,2,FALSE),\"\")","v":11},{"$f":"VLOOKUP(F68,Lookup2!$B$2:$F$91,3,FALSE)","v":"Cost of snow and ice control, by event, by roadway, without storm severity index."},null,null,null,null,null,null,null,null,{"$f":"IFERROR(VLOOKUP(Lookup2!$T12,Lookup3!$N$2:$T$91,7,FALSE),0)","v":9},{"$f":"IF(LEN(Lookup2!$T12)>0,CONCATENATE(Lookup2!$U12,\".\"),\"\")","v":"11."},{"$f":"IFERROR(RIGHT(Lookup2!$T12,LEN(Lookup2!$T12)-30),\"\")","v":"by event, by roadway, without storm severity index."},null,null,null,null,null,null,null,null,{"$f":"IFERROR(INDEX($S$58:$S$69,MATCH(1,INDEX(($Q$58:$Q$69=LARGE($Q$58:$Q$69,ROWS(AB$57:AB67)))*(COUNTIF(AB$57:AB67,$S$58:$S$69)=0),),0)),\"\")","v":"by winter season, district-wide, without seasonal severity index."}]
[null,null,null,null,null,"SE-12",{"$f":"IF(LEN(VLOOKUP(F69,Lookup2!$B$2:$F$91,5,FALSE))>0,VLOOKUP(H69,Lookup2!$T$2:$U$25,2,FALSE),\"\")","v":12},{"$f":"VLOOKUP(F69,Lookup2!$B$2:$F$91,3,FALSE)","v":"Cost of snow and ice control, by event, by roadway, with storm severity index."},null,null,null,null,null,null,null,null,{"$f":"IFERROR(VLOOKUP(Lookup2!$T13,Lookup3!$N$2:$T$91,7,FALSE),0)","v":27},{"$f":"IF(LEN(Lookup2!$T13)>0,CONCATENATE(Lookup2!$U13,\".\"),\"\")","v":"12."},{"$f":"IFERROR(RIGHT(Lookup2!$T13,LEN(Lookup2!$T13)-30),\"\")","v":"by event, by roadway, with storm severity index."},null,null,null,null,null,null,null,null,{"$f":"IFERROR(INDEX($S$58:$S$69,MATCH(1,INDEX(($Q$58:$Q$69=LARGE($Q$58:$Q$69,ROWS(AB$57:AB68)))*(COUNTIF(AB$57:AB68,$S$58:$S$69)=0),),0)),\"\")","v":"by winter season, state-wide/ region-wide, without seasonal severity index."}]

{"sheet":"Sust. - Customer Satisfaction","index":10,"n_rows":55,"n_cols":28,"rows_kept":55,"cut":false,"hidden":true,"merged":[[54,7,54,14],[45,1,52,3],[45,6,48,14],[45,17,48,24],[50,17,52,24],[53,7,53,14],[17,1,22,3],[18,16,19,24],[23,16,26,24],[30,16,31,24],[35,16,38,26],[4,1,10,3],[6,8,7,21],[9,7,9,8],[13,7,13,8],[12,7,12,8],[10,7,11,8],[10,10,11,21]]}
[]
[]
[]
[]
[null,"1. Performance Measure Overview",null,null,null,null,null,"Sustainability Performance Measure:","Customer Satisfaction – Ratings for Snow and Ice Response."]
[]
[null,null,null,null,null,null,null,"Definition:","This performance measure assesses the level of satisfaction of travelers during the winter season by tracking their feedback at a regional or statewide level."]
[]
[]
[null,null,null,null,null,null,null,"Required Data"]
[null,null,null,null,null,null,null,"Customer feedback ",null,null,"Although the results can be subjective and expensive to obtain (through comprehensive and representative surveys), direct customer feedback can be vital in ensuring support for snow and ice control operations. "]
[]
[null,null,null,null,null,null,null,"Demographic Information",null,null,"Cost of each unit of every resource used in winter maintenance activities."]
[null,null,null,null,null,null,null,"Storm/Season Information",null,null,"Data and times of all storm/season parameters (e.g., accumulation) for the surveyed areas."]
[]
[]
[]
[null,"2. Performance Measure Breakdown"]
[null,null,null,null,null,null,"A.","This Performance Measure reports the level of satisfaction of travelers during the winter season.",null,null,null,null,null,null,null,null,"Traveler satisfaction, as well as demographic data, is gathered through periodic surveys, focus groups, or other traveler engagement approaches."]
[]
[]
[]
[]
[null,null,null,null,null,null,"B.","Traveler feedback can be broken down by time scale:",null,null,null,null,null,null,null,null,"Agencies should strive to associate satisfaction/feedback to specific winter weather events. This provides the greatest level of detail and can be aggregated up to any other time frame. However, if this level of detail is not available, then breaking down by winter season (or by month) is acceptable."]
[]
[null,null,null,null,null,null,null,"1.","By winter season"]
[null,null,null,null,null,null,null,"2.","By winter weather event"]
[]
[]
[]
[null,null,null,null,null,null,"C.","Traveler feedback is reported on a specific state-wide (or region-wide) level.",null,null,null,null,null,null,null,null,"While agencies could technically report customer feedback by specific district or sub-region, the most important thing is that all of the jurisdiction's feedback is considered (i.e. highest geographic level)."]
[]
[]
[]
[]
[null,null,null,null,null,null,"D.","And finally, traveler feedback can be reported:",null,null,null,null,null,null,null,null,"It is likely that traveler satisfaction will decrease during more severe events, so severity can be considered in evaluating performance. "]
[]
[null,null,null,null,null,null,null,"1.","without a storm/seasonal severity index; or"]
[null,null,null,null,null,null,null,"2.","with a storm/seasonal severity index."]
[]
[]
[null,null,null,null,null,null,null,"Refer to the section below to see which variations of reporting this performance measure are available for your agency"]
[]
[]
[]
[null,"3. Available Variations",null,null,null,null,"Based on your results to the Decision Guide*, your agency can report traveler feedback in the following ways (available variations highlighted):",null,null,null,null,null,null,null,null,null,null,"*Note: If you did not take the Decision Guide Route, then the list below shows the total possible variations for reporting this performance measure."]
[]
[]
[]
[]
[null,null,null,null,null,null,null,null,null,null,null,null,null,null,null,null,null,"Your agency can measure and report traveler feedback during the winter season by…"]
[]
[]
[null,null,null,null,null,"SC-1",{"$f":"IF(LEN(VLOOKUP(F54,Lookup2!$B$2:$F$91,5,FALSE))>0,VLOOKUP(H54,Lookup2!$V$2:$W$25,2,FALSE),\"\")","v":1},{"$f":"VLOOKUP(F54,Lookup2!$B$2:$F$91,3,FALSE)","v":"Level of satisfaction, by winter season, state-wide/ region-wide, with or without seasonal severity index."},null,null,null,null,null,null,null,null,{"$f":"IFERROR(VLOOKUP(S54,Lookup3!$N$2:$T$91,7,FALSE),0)","v":1},{"$f":"IF(LEN(Lookup2!$V2)>0,CONCATENATE(Lookup2!$W2,\".\"),\"\")","v":"1."},{"$f":"Lookup2!$V2","v":"Level of satisfaction, by winter season, state-wide/ region-wide, with or without seasonal severity index."},null,null,null,null,null,null,null,null,{"$f":"IFERROR(INDEX($S$54:$S$55,MATCH(1,INDEX(($Q$54:$Q$55=LARGE($Q$54:$Q$55,ROWS(AB53:AB$53)))*(COUNTIF(AB53:AB$53,$S$54:$S$55)=0),),0)),\"\")","v":"Level of satisfaction, by event, state-wide/ region-wide, with or without storm severity index."}]
[null,null,null,null,null,"SC-2",{"$f":"IF(LEN(VLOOKUP(F55,Lookup2!$B$2:$F$91,5,FALSE))>0,VLOOKUP(H55,Lookup2!$V$2:$W$25,2,FALSE),\"\")","v":2},{"$f":"VLOOKUP(F55,Lookup2!$B$2:$F$91,3,FALSE)","v":"Level of satisfaction, by event, state-wide/ region-wide, with or without storm severity index."},null,null,null,null,null,null,null,null,{"$f":"IFERROR(VLOOKUP(S55,Lookup3!$N$2:$T$91,7,FALSE),0)","v":3},{"$f":"IF(LEN(Lookup2!$V3)>0,CONCATENATE(Lookup2!$W3,\".\"),\"\")","v":"2."},{"$f":"Lookup2!$V3","v":"Level of satisfaction, by event, state-wide/ region-wide, with or without storm severity index."},null,null,null,null,null,null,null,null,{"$f":"IFERROR(INDEX($S$54:$S$55,MATCH(1,INDEX(($Q$54:$Q$55=LARGE($Q$54:$Q$55,ROWS(AB$53:AB54)))*(COUNTIF(AB$53:AB54,$S$54:$S$55)=0),),0)),\"\")","v":"Level of satisfaction, by winter season, state-wide/ region-wide, with or without seasonal severity index."}]

{"sheet":"Sust. - Env. Stewardship","index":11,"n_rows":62,"n_cols":30,"rows_kept":62,"cut":false,"hidden":true,"merged":[[12,10,14,23],[15,10,16,23],[4,1,10,3],[6,8,7,21],[9,7,9,8],[10,7,11,8],[12,7,14,8],[15,7,16,8],[10,10,11,23],[50,1,57,3],[50,6,53,14],[50,17,53,24],[55,17,57,24],[20,1,28,3],[21,7,23,14],[41,7,43,14],[60,7,60,14],[61,7,61,14],[58,7,58,14],[59,7,59,14],[21,16,25,24],[29,16,32,24],[36,16,37,24],[41,16,43,26]]}
[]
[]
[]
[]
[null,"1. Performance Measure Overview",null,null,null,null,null,"Sustainability Performance Measure:","Environmental Stewardship – Agency within “acceptable” difference between expected and actual use of salt and other materials in a season."]
[]
[null,null,null,null,null,null,null,"Definition:","This performance measure assesses the amount of de-icing material (e.g. salt) an agency utilizes in a given winter season for highway maintenance. "]
[]
[]
[null,null,null,null,null,null,null,"Required Data"]
[null,null,null,null,null,null,null,"Material Used",null,null,"Consistent and accurate way of collecting the data for the amount of materials used (e.g. by weight when loaded, using onboard data / records). Data should be compiled per event and per season, and should include materials used in pre-storm operations and in storm operations."]
[]
[null,null,null,null,null,null,null,"Treatment Recommendations and Calibration",null,null,"Accountability and consistency in material being dispensed by trucks and operators following recommendations to ensure that material usage is uniform in every condition/event. Equipment must be calibrated prior to a season and every time material changes or equipment breaks down. Material usage must be consistent from operator to operator given similar conditions.  "]
[]
[]
[null,null,null,null,null,null,null,"Model Techniques and Results",null,null,"Dependent on the expected amount of salt and material usage based on winter severity and the objectives of the response. This requires historical data to correlate actual material expenditures to measured severity, miles of roadway by functional class, and level of service parameters for particular regions.  "]
[null,null,null,null,null,null,null,"Model Techniques and Results"]
[]
[]
[]
[null,"2. Performance Measure Breakdown"]
[null,null,null,null,null,null,"A.","This Performance Measure reports whether an agency is within an “acceptable” difference between expected and actual use of salt and other materials in a season. Expected salt usage levels can be based on either:",null,null,null,null,null,null,null,null,"The amount of material an agency uses is affected by multiple factors. In order to utilize material usage as a performance measure, these factors must be taken into consideration so that consistency from storm to storm or season to season can be achieved. "]
[]
[]
[null,null,null,null,null,null,null,"1.","Current season usage; or"]
[null,null,null,null,null,null,null,"2.","Prior season (i.e. historical) usage."]
[]
[]
[]
[null,null,null,null,null,null,"B.","Material usage can be broken down by time scale:",null,null,null,null,null,null,null,null,"Agencies should strive to associate winter weather-related material usage to specific winter weather events. This provides the greatest level of detail and can be aggregated up to any other time frame. However, if this level of detail is not available, then breaking down usage by winter season (or by month) is acceptable."]
[]
[null,null,null,null,null,null,null,"1.","By winter season"]
[null,null,null,null,null,null,null,"2.","By winter weather event"]
[]
[]
[]
[null,null,null,null,null,null,"C.","Material usage is reported on a specific state-wide (or region-wide) level.",null,null,null,null,null,null,null,null,"While agencies could technically report costs by by specific district or sub-region, the most important thing is that the total costs of all the region are considered (aggregated up to highest level)."]
[]
[]
[]
[]
[null,null,null,null,null,null,"D.","And finally, in order to draw meaningful results from the material usage data, this performance measure should be scaled with a storm (or seasonal) severity index.",null,null,null,null,null,null,null,null,"It is important to model an expected amount of salt and material usage based on winter severity, since more severe winter conditions lead to more salt usage."]
[]
[]
[]
[]
[null,null,null,null,null,null,null,"Refer to the section below to see which variations of reporting this performance measure are available for your agency"]
[]
[]
[]
[null,"3. Available Variations",null,null,null,null,"Based on your results to the Decision Guide*, your agency can report material usage in the following ways (available variations highlighted):",null,null,null,null,null,null,null,null,null,null,"*Note: If you did not take the Decision Guide Route, then the list below shows the total possible variations for reporting this performance measure."]
[]
[]
[]
[]
[null,null,null,null,null,null,null,null,null,null,null,null,null,null,null,null,null,"Your agency can measure and report material usage data during the winter season by…"]
[]
[]
[null,null,null,null,null,"SV-1",{"$f":"IF(LEN(VLOOKUP(F59,Lookup2!$B$2:$F$91,5,FALSE))>0,VLOOKUP(H59,Lookup2!$X$2:$Y$25,2,FALSE),\"\")","v":1},{"$f":"VLOOKUP(F59,Lookup2!$B$2:$F$91,3,FALSE)","v":"Current season usage, by winter season, state-wide/ region-wide, with seasonal severity index."},null,null,null,null,null,null,null,null,{"$f":"IFERROR(VLOOKUP(S59,Lookup3!$N$2:$T$91,7,FALSE),0)","v":3},{"$f":"IF(LEN(Lookup2!$X2)>0,CONCATENATE(Lookup2!$Y2,\".\"),\"\")","v":"1."},{"$f":"Lookup2!$X2","v":"Current season usage, by winter season, state-wide/ region-wide, with seasonal severity index."},null,null,null,null,null,null,null,null,null,null,{"$f":"IFERROR(INDEX($S$59:$S$62,MATCH(1,INDEX(($Q$59:$Q$62=LARGE($Q$59:$Q$62,ROWS(AD58:AD$58)))*(COUNTIF(AD58:AD$58,$S$59:$S$62)=0),),0)),\"\")","v":"Current season usage compared to prior seasons, by event, state-wide/ region-wide, with storm severity index."}]
[null,null,null,null,null,"SV-2",{"$f":"IF(LEN(VLOOKUP(F60,Lookup2!$B$2:$F$91,5,FALSE))>0,VLOOKUP(H60,Lookup2!$X$2:$Y$25,2,FALSE),\"\")","v":2},{"$f":"VLOOKUP(F60,Lookup2!$B$2:$F$91,3,FALSE)","v":"Current season usage compared to prior seasons, by event, state-wide/ region-wide, with storm severity index."},null,null,null,null,null,null,null,null,{"$f":"IFERROR(VLOOKUP(S60,Lookup3!$N$2:$T$91,7,FALSE),0)","v":18},{"$f":"IF(LEN(Lookup2!$X3)>0,CONCATENATE(Lookup2!$Y3,\".\"),\"\")","v":"2."},{"$f":"Lookup2!$X3","v":"Current season usage compared to prior seasons, by event, state-wide/ region-wide, with storm severity index."},null,null,null,null,null,null,null,null,null,null,{"$f":"IFERROR(INDEX($S$59:$S$62,MATCH(1,INDEX(($Q$59:$Q$62=LARGE($Q$59:$Q$62,ROWS(AD$58:AD59)))*(COUNTIF(AD$58:AD59,$S$59:$S$62)=0),),0)),\"\")","v":"Current season usage, by event, state-wide/ region-wide, with storm severity index."}]
[null,null,null,null,null,"SV-3",{"$f":"IF(LEN(VLOOKUP(F61,Lookup2!$B$2:$F$91,5,FALSE))>0,VLOOKUP(H61,Lookup2!$X$2:$Y$25,2,FALSE),\"\")","v":3},{"$f":"VLOOKUP(F61,Lookup2!$B$2:$F$91,3,FALSE)","v":"Current season usage, by event, state-wide/ region-wide, with storm severity index."},null,null,null,null,null,null,null,null,{"$f":"IFERROR(VLOOKUP(S61,Lookup3!$N$2:$T$91,7,FALSE),0)","v":9},{"$f":"IF(LEN(Lookup2!$X4)>0,CONCATENATE(Lookup2!$Y4,\".\"),\"\")","v":"3."},{"$f":"Lookup2!$X4","v":"Current season usage, by event, state-wide/ region-wide, with storm severity index."},null,null,null,null,null,null,null,null,null,null,{"$f":"IFERROR(INDEX($S$59:$S$62,MATCH(1,INDEX(($Q$59:$Q$62=LARGE($Q$59:$Q$62,ROWS(AD$58:AD60)))*(COUNTIF(AD$58:AD60,$S$59:$S$62)=0),),0)),\"\")","v":"Current season usage compared to prior seasons, by winter season, state-wide/ region-wide, with seasonal severity index."}]
[null,null,null,null,null,"SV-4",{"$f":"IF(LEN(VLOOKUP(F62,Lookup2!$B$2:$F$91,5,FALSE))>0,VLOOKUP(H62,Lookup2!$X$2:$Y$25,2,FALSE),\"\")","v":4},{"$f":"VLOOKUP(F62,Lookup2!$B$2:$F$91,3,FALSE)","v":"Current season usage compared to prior seasons, by winter season, state-wide/ region-wide, with seasonal severity index."},null,null,null,null,null,null,null,null,{"$f":"IFERROR(VLOOKUP(S62,Lookup3!$N$2:$T$91,7,FALSE),0)","v":6},{"$f":"IF(LEN(Lookup2!$X5)>0,CONCATENATE(Lookup2!$Y5,\".\"),\"\")","v":"4."},{"$f":"Lookup2!$X5","v":"Current season usage compared to prior seasons, by winter season, state-wide/ region-wide, with seasonal severity index."},null,null,null,null,null,null,null,null,null,null,{"$f":"IFERROR(INDEX($S$59:$S$62,MATCH(1,INDEX(($Q$59:$Q$62=LARGE($Q$59:$Q$62,ROWS(AD$58:AD61)))*(COUNTIF(AD$58:AD61,$S$59:$S$62)=0),),0)),\"\")","v":"Current season usage, by winter season, state-wide/ region-wide, with seasonal severity index."}]

{"sheet":"Taxonomy","index":12,"n_rows":133,"n_cols":14,"rows_kept":133,"cut":false,"hidden":true,"merged":[[10,8,12,8],[10,9,12,9],[10,10,12,10],[10,12,12,12],[10,13,12,13],[16,0,16,13],[5,0,5,13],[9,0,9,13],[10,0,12,0],[10,1,12,1],[10,2,12,2],[10,3,12,3],[10,4,12,4],[10,5,12,5],[10,6,12,6],[10,7,12,7],[21,0,21,13],[30,0,30,13],[31,0,37,0],[31,1,37,1],[31,2,37,2],[31,3,37,3],[31,5,37,5],[31,6,37,6],[31,7,37,7],[31,8,37,8],[40,0,41,0],[40,1,41,1],[40,2,41,2],[40,3,41,3],[40,6,41,6],[31,9,37,9],[31,10,37,10],[31,12,37,12],[38,0,39,0],[38,1,39,1],[38,2,39,2],[38,3,39,3],[38,5,39,5],[38,6,39,6],[38,7,39,7],[40,7,41,7],[40,8,41,8],[40,9,41,9],[40,10,41,10],[40,11,41,11],[40,13,41,13],[38,8,39,8],[38,9,39,9],[38,10,39,10],[38,11,39,11],[38,13,39,13],[42,8,43,8],[42,9,43,9],[42,10,43,10],[42,11,43,11],[42,13,43,13],[42,7,43,7],[44,7,45,7],[44,8,45,8],[44,9,45,9],[44,11,45,11],[46,0,47,0],[46,1,47,1],[46,2,47,2],[46,3,47,3],[46,4,47,4],[46,5,47,5],[44,0,45,0],[44,1,45,1],[44,2,45,2],[44,3,45,3],[44,6,45,6],[42,0,43,0],[42,1,43,1],[42,2,43,2],[42,3,43,3],[42,6,43,6],[46,13,47,13],[48,0,51,0],[48,1,51,1],[48,2,51,2],[48,3,51,3],[48,4,51,4],[48,6,51,6],[48,7,51,7],[48,8,51,8],[48,9,51,9],[46,6,47,6],[46,7,47,7],[46,8,47,8],[46,9,47,9],[46,10,47,10],[46,11,47,11],[48,10,51,10],[48,12,51,12],[48,13,51,13],[52,13,53,13],[54,0,57,0],[54,1,57,1],[54,2,57,2],[54,4,57,4],[54,6,57,6],[54,7,57,7],[54,8,57,8],[54,10,57,10],[54,12,57,12],[54,13,57,13],[52,0,53,0],[52,1,53,1],[52,2,53,2],[52,3,53,3],[52,5,53,5],[52,7,53,7],[52,10,53,10],[52,11,53,11],[52,12,53,12],[58,0,61,0],[58,1,61,1],[58,2,61,2],[58,4,61,4],[58,6,61,6],[58,7,61,7],[58,8,61,8],[58,12,61,12],[58,13,61,13],[62,0,65,0],[62,1,65,1],[62,2,65,2],[62,3,65,3],[62,5,65,5],[62,7,65,7],[62,8,65,8],[62,12,65,12],[62,13,65,13],[66,10,70,10],[66,12,70,12],[66,13,70,13],[71,0,74,0],[71,1,74,1],[71,2,74,2],[71,3,74,3],[71,5,74,5],[71,7,74,7],[71,8,74,8],[66,0,70,0],[66,1,70,1],[66,2,70,2],[66,3,70,3],[66,4,70,4],[66,5,70,5],[66,6,70,6],[66,7,70,7],[66,8,70,8],[79,0,79,13],[80,0,82,0],[80,1,82,1],[80,2,82,2],[80,4,82,4],[80,7,82,7],[80,12,82,12],[80,13,82,13],[71,12,74,12],[71,13,74,13],[75,0,78,0],[75,1,78,1],[75,2,78,2],[75,6,78,6],[75,7,78,7],[75,10,78,10],[75,13,78,13],[87,0,90,0],[87,1,90,1],[87,2,90,2],[87,4,90,4],[87,5,90,5],[83,0,86,0],[83,1,86,1],[83,2,86,2],[83,4,86,4],[100,10,102,10],[100,11,102,11],[87,6,90,6],[87,7,90,7],[87,8,90,8],[87,10,90,10],[87,12,90,12],[87,13,90,13],[83,8,86,8],[83,9,86,9],[83,10,86,10],[83,12,86,12],[83,13,86,13],[83,6,86,6],[83,7,86,7],[104,6,106,6],[104,7,106,7],[100,5,102,5],[100,6,102,6],[100,7,102,7],[91,8,98,8],[91,10,98,10],[91,12,98,12],[91,13,98,13],[99,0,99,13],[100,0,102,0],[100,1,102,1],[100,2,102,2],[100,3,102,3],[100,4,102,4],[91,0,98,0],[91,1,98,1],[91,2,98,2],[91,4,98,4],[91,6,98,6],[91,7,98,7],[100,12,102,12],[100,13,102,13],[100,8,102,8],[107,5,109,5],[107,6,109,6],[107,7,109,7],[104,8,106,8],[104,10,106,10],[104,11,106,11],[104,12,106,12],[104,13,106,13],[107,0,109,0],[107,1,109,1],[107,2,109,2],[107,3,109,3],[107,4,109,4],[107,12,109,12],[107,13,109,13],[107,8,109,8],[107,10,109,10],[107,11,109,11],[104,0,106,0],[104,1,106,1],[104,2,106,2],[104,3,106,3],[104,4,106,4],[104,5,106,5],[110,8,112,8],[110,10,112,10],[110,11,112,11],[110,12,112,12],[110,13,112,13],[113,0,115,0],[113,1,115,1],[113,2,115,2],[113,3,115,3],[113,4,115,4],[110,0,112,0],[110,1,112,1],[110,2,112,2],[110,3,112,3],[110,4,112,4],[110,5,112,5],[110,6,112,6],[110,7,112,7],[113,13,115,13],[113,8,115,8],[113,10,115,10],[113,11,115,11],[116,0,118,0],[116,1,118,1],[116,2,118,2],[116,3,118,3],[116,4,118,4],[116,5,118,5],[116,6,118,6],[116,7,118,7],[113,5,115,5],[113,6,115,6],[113,7,115,7],[1,1,2,3],[120,13,127,13],[128,0,128,13],[129,13,130,13],[131,0,131,13],[120,6,127,6],[120,7,127,7],[120,8,127,8],[120,10,127,10],[120,11,127,11],[120,12,127,12],[120,0,127,0],[120,1,127,1],[120,2,127,2],[120,3,127,3],[120,4,127,4],[120,5,127,5],[116,8,118,8],[116,10,118,10],[116,11,118,11],[116,12,118,12],[116,13,118,13],[119,0,119,13],[113,12,115,12]]}
[]
[null,"For more information on the taxonomy that was developed to collect information on indicators  needed for the evaluation and consideration of potential core performance measures, please click the plus (+) signs in the left-hand margin to expand the list."]
[]
[]
["Elements of Performance Measurement","Definition  of Element or Rationale for Inclusion","Type ","Unit","Data Required","Data Collection Method","Geographic Scale ","Event Scale ","Temporal Scale ","Maintenance Activity Affected","Systems/ Tech Required  ","Type of Decision Support","Variants","Other"]
["A. Storm Characteristics/Severity "]
["Accuracy of weather forecasts ","This measure tracks the accuracy of weather forecasts and drills down to weather parameters that are pertinent to winter maintenance operations. Often these are limited to the onset and cessation of snow including its intensity. However, these may also include: Pavement temperature, time of temperature crossing 0°C/32°C, time of temperature below 0°C/32°C, Strong winds, precipitation start time and duration, precipitation type, precipitation intensity, and Precipitation amount. Weather forecast accuracy reports are usually based on a signal deterministic weather forecast, such as choosing to verify forecasts issued at a specific time and day, which is generally much easier for the end user to understand and track. Probability weather forecasts and those updated frequently (e.g. every hour) can be very difficult to both produce and understand. Adherence to issue time of the weather forecast and whether updates or warnings may also be measured.","Input ","%, Time Period, mm/ inches, speed MPH/ MPS, inches/ mm per hour","Weather forecasts and relevant weather observations","Often, especially in the USA, forecast verification is undertaken on a manual basis. However, automated systems are generally required and preferred.","Since most weather observations utilized in winter maintenance are from RWIS, the distribution is dependent on the number and location of ESS.","Standard weather events are generally captured. It is difficult to observe and therefore measure events such as run-off from melted snow or saturated land.","Often these accuracy reports are only available at the end of the winter season, but can also be made available in near real time. ","Event response and post-event analysis","ESS, RWIS, MDSS and weather forecast provision","Labor and material usage. Vendor monitoring and selection.","None","The extent of weather forecast accuracy varies with the type and detail of forecast provision plus the ability to be able to monitor them, i.e. number and location of ESS."]
["Number of callouts in season","This measure tracks the number of operational call outs and associated resources mobilized per winter season (or FY, depending on authority).","Input ","Number and type (e.g. plow only, material used etc.)","Reported call outs, including operational response (e.g. plow yes/no? and material used and type)","MDSS is leading to an increase in automated systems, however manual reporting is utilized by many authorities","Call outs are generally collated at depot level.","All winter weather events are generally captured, including surface run-off and blowing snow. Non 'weather' events, such as responding to call-outs from the police are also captured.","These reports are generally available in near real time and at the end of the winter season.","Event response and post-event analysis","Operational Management Systems","Labor allocation","None"]
["Number and Intensity of events","This measure tracks the number of events that an authority has to respond to by performing some type of winter maintenance operation i.e. a callout. The intensity of each event is required, since there may be multiple callouts during an event e.g. a 3 day heavy snow storm will usually require more call outs than a single pre-treatment for an expected overnight frost. The nature of the call out operation is also required in order to provide granularity to the event intensity e.g. plowing and treating heavy snow versus a light frost. The period of events is usually over a winter season, but may be defined according to financial year.","Input ","Number (sometimes can be displayed as a % of average)","Reported call outs, including operational response (e.g. plow yes/no? and material used and type) and associated weather observations","MDSS is leading to an increase in automated systems, however manual reporting is utilized by many authorities","Events are generally collated at depot level.","Call out events are generally applied to the following: pre-treatment of expected adverse pavement conditions, ","Often these reports are only available at the end of the winter season, especially concerning the total number of events. However the can also be made available in near real time, especially in terms of intensity.","Event response and post-event analysis (there may be an impact on pre-treatment e.g. should there be an unexpected heavy use of labor/materials early in the season, then decisions may be taken to ration operational responses)","ESS, RWIS, MDSS and Operational Management Systems","Labor and material usage plus future planning. ","None","Event intensity may vary according to climate and available resource e.g. a “2\" snow event in Anchorage may be classified very differently than should the event occur in Dallas."]
["B. Materials Management "]
["Material quantity and unit cost by material types (for pre-treatment, regular and post-event)","This measure simply tracks the amount of material used by the agency.  Typically, this measure is tracked by type of material. Ability to track quantity by event, by district, by season is common but subject to underlying level of capability of the material management system.  Cost information for materials is generally available and the total cost of materials is the product of the quantity and unit cost.  Depending on the procurement method, cost of materials may be static over a season or vary. Per se, the amount of materials used is not a strict performance measure but as an important input to several indicators of performance. Material usage may also be tracked for the event lifecycle (starting with pre-treatment, during and post-event)","Input ","Kilograms or pounds","Material usage by reporting unit (which can be vehicle, garage, district, county, state or seasons)","Typically collected through a material management system. The capabilities of these systems vary from high-level inventory from garages to more sophisticated monitoring of material use by vehicle. ","Various scales are possible but typically measured at garage, district/county levels","For events which require material usage. For example, events which only require plowing or rain events are not subject to this measure.","High-capability systems can collect in real-time, but this is most likely post-event.","Pre-treatment, event response, post-event","Material Management System","Type of materials used","Captured in other measures that seek to normalize material usage based on lane-miles, or storm severity","Material usage may vary based on the specifics of the roadway in question and the level of service required for a roadway type. Similarly, operational approaches like pre-treatment may impact material usage as well."]
[null,null,null,null,null,null,null,null,null,null,null,"timing and amount of materials to be procured"]
[null,null,null,null,null,null,null,null,null,null,null,"Material allocation between locations"]
["Number of Trucks/Equipment Used by type  (for pre-treatment, regular and post-event)","This measure simply totals the equipment used in any give scenario and tracks the number of trucks, trailer etc. used by the agency to complete the treatment of the event.  Some events will require more equipment than others over the same network of roads and some less.  Typically, this measure is tracked by type of equipment and size.","Input ","Number","Number of units.  Trucks, trailers or other equipment by size or type.","Typically collected through a winter maintenance plan either direct manually from garages to more sophisticated central electronic system such as MDSS.  In some cases of selective treatments this figure can vary from event to event.","Collected at an authority level, city, county, or state.","The event will variable, each type will give a differing measurement","Can be collected in real time and post event although post event maybe more accurate due to the nature of some dynamic events","Pre-treatment, event response, post-event","Can be hard copy, email, and electronic system data.","Variable, from local to Statewide.","None","None"]
["Fuel Usage  (for pre-treatment, regular and post-event)","This measure will be the quantity of fuel consumed by the equipment during the event.  Typically equipment will leave the depot with a full tank and be refilled to full upon return where the usage can be logged.  This is not always the case however. Procedures vary from authority to authority and the consumption can be in hundreds or thousands of unit depending on the size of the network and the number of times the equipment is used during any given event.","Input ","Gallons or Liters","Quantity consumed","Typically manual, entered by the operator in a log or by the summed by the resource buyer","Collected at an authority level, city, county or state.","The event will variable, each type will give a differing measurement","Can only be accurately collected post event.  Assumptions based on previous event can be used, but should be used only with caution.","Pre-treatment, event response, post-event","Can be hard copy, email, and electronic system data.","Variable, from local to statewide.","This will be world location dependent, gallons or liters.","None"]
["% of equipment operable at the beginning of storm","This measure will be the number of equipment serviceable prior to the event.  There will be a total number of equipment potentially available to use with some of that potentially out of action or in for repair. Some equipment may be held back as replacements in the event of a breakdown; this should be included in the count.","Input ","Number or %","Number of units. Trucks, trailers or other equipment by size or type.","Typically through the depots.","Collated at various levels: depot, city, county or state.","Not applicable","Only prior to an event.","Pre-treatment, event response, post-event","Can be hard copy, email, electronic system data.","Variable, from local to statewide.","Should be expressed as a %","None"]
["C. Labor Resource Allocations "]
["Number of Personnel hours (for pre-treatment, regular and post-event)    ","This measure tracks the total number of personnel hours used in winter maintenance for snow removal operations. This measure may be tracked at a district level, a regional level or statewide. The purpose of this measure is to determine the total number of man hours needed to complete winter maintenance operations.  This would include all pre-treatments of roadways, maintenance during events, maintenance following events and any individual emergency situations. Costs associated with the number of personnel hours worked may also be included but would not necessarily be relevant to the performance of an agency.  It is important to limit the scope in this measure as some items may be considered winter maintenance but do not involve snow removal or roadway treatments such as pothole patching. ","Input ","Hours worked ","Hours worked as reported by garage district county or state specific to winter maintenance operations. ","Typically tracked through a maintenance management or work order Program.  Hours may also be collected through a time keeping system. ","Generally collected at a garage, district, county, or state level ","All winter events should be captured.  This would include any pre or post storm events. ","With automated systems data can be collected in real time but when data is collected manually it is more likely to be post-event ","All winter events including pre-treatment event response and post event "," Maintenance management systems, work order systems an automated time keeping systems.  "," Staffing levels,, equipment allocation, material usage and budget  ","Personnel hours may be included in other measures that seek to produce overall performance during an event."," Number of hours will vary based on an agency’s practices, level of service provided on any given roadway, proactive approach to winter and topographical conditions such as blowing snow.  "]
["Number of overtime hours  (for pre-treatment, regular and post-event)    ","This measure tracks the toll number of hours personnel work outside of their normal hours.  This measure would be captured at the garage the district the region or even the state level.  The purpose of this measure would be to determine how many hours personnel worked outside their normal hours in completing winter maintenance operations.  This measure could have two primary purpose is one to determine the severity of the winter based on the hours worked the other to track costs associated with winter operations.  This measure will vary based on the type of agency and the policies they have regarding the number of hours and employee is allowed to work and the level of service the agency is providing. ","Input ","Overtime hours worked ","Overtime hours worked as reported by garage, district ,county or state specific to winter operations ","Typically tracked through a maintenance management or work order Program.  Hours may also be collected through a time keeping system.","Generally collected at a garage, district, county or state level ","All winter events should be captured.  This would include any pre or post storm events and any emergency callouts. ","With automated systems, data can be collected in real time. When data is collected manually, it is more likely to be post-event.","All winter events including pre-treatment event response and post event that fall outside of normal working hours ","Maintenance management systems, work order systems an automated time keeping systems. ","Staffing levels, equipment allocation, material usage and budget ","Overtime hours may be included in other measures that seek to produce overall performance during an event.","Number of overtime hours will vary based on an agency’s practices, level of service provided on any given roadway, proactive approach to winter and topographical conditions such as blowing snow. Safety considerations, union contracts and policies can all of effect the amount of overtime and agency may incur "]
["Number of people assigned to snow duty during storm ","This measure tracks the number of personnel a signed to snow removal operations during an event. This measure may be captured at a garage level, a district level, a regional level or at a state level. The purpose of this measure would be to capture the total number of personnel used in an event or used in a winter season. The primary purpose of this measure is to determine the total number of personnel being used during a storm. Many agencies supplement their winter operations with staff from other divisions, seasonal staff and contracted help especially in major events. Likewise in lesser events only a partial crew may be dispatched. In the event of an emergency or perhaps even blowing snow perhaps only one are two personnel are dispatched. Tracking the personnel used in a snow event can help determine the severity of the event and the severity of the season. ","Input ","The number of staff working in an event ","Tracking the number of personnel assigned to a given a snow event ","Typically tracked through a maintenance management or work order Program.  Personnel working may also be collected through a time keeping system.","Generally collected at a garage, district, county or State level ","All winter events should be captured.  This would include any pre or post storm events And any emergency callouts","With automated systems data can be collected in real time but when data is collected manually it is more likely to be post-event","All winter events including pre-treatment event response and post event","Maintenance management systems, work order systems an automated time keeping systems.","Staffing levels, equipment allocation, material usage and budget ","Staffing levels may be included in other measures that seek to produce overall performance during an event.","Number of staff will vary based on the type and severity of an event. It can also vary based on an agency’s practices, level of service provided on any given roadway, proactive approach to winter and topographical conditions such as blowing snow. Union contracts and policies can affect the staffing levels as well. "]
["Number of personnel by labor category/position during storm","This measure tracks the number of personnel used in a winter operation during a storm by their department or labor category. This measure can be captured at a garage level a district level a regional level or at the state level.  The purpose of this measure is to determine personnel that are being used during a winter event by their department or their category. Many agencies supplement their winter operations with staff from other divisions, other departments, seasonal staff and sometimes even contracted help. This is especially true during extreme events or at times when other emergencies deplete the normal number of personnel. ","Input ","The number of personnel working during a winter event based on their department or labor category ","Tracking the number of personnel from each department or by labor category during a winter event ","Typically tracked through a maintenance management or work order Program.  Personnel working may also be collected through a time keeping system.","Generally collected at a garage, district, county or State level","All winter events should be captured.  This would include any pre or post storm events And any emergency callouts","With automated systems data can be collected in real time but when data is collected manually it is more likely to be post-event","All winter events including pre-treatment event response and post event","Maintenance management systems, work order systems an automated time keeping systems.","Staffing levels, equipment allocation, material usage and budget ","Staffing levels may be included in other measures that seek to produce overall performance during an event.","Number of staff will vary based on the type and severity of an event. It can also vary based on an agency’s practices, level of service provided on any given roadway, proactive approach to winter and topographical conditions such as blowing snow. Union contracts and policies can affect the staffing levels as well. "]
["D. Level of Maintenance Response "]
["Cost per lane mile (km)      ","This measure is the cost of treating one mile or kilometer and one lane of a network. Several lanes may be treated at the same time with one truck. However in this instance the requirement is for the cost of just one lane, if the operator has the figures for two lanes this figure should be halved and so on. During plow only events there will obviously be no material costs.","Output ","Monetary units.  Examples - USD, GBP, EUR, etc.","Cost of material (salt etc.) per unit, rate of application of the material, cost of equipment consumables (fuel etc.), cost of equipment hire or maintenance if applicable, cost of human resources, width of a given lane (Lanes may vary in width over a network but an average lane width is acceptable)","These figures will be collated from several sources and therefor may be manual or automated.","Collected at an authority level, City, County or State.","Either for events which require material usage or events which only require plowing.","Can be collected in real time and post event although post event maybe more accurate due to the nature of some dynamic events","Pre-treatment, event response, post-event","Operational Management Systems. Can be hard copy, email, or electronic system data.","Labor and material usage. Vendor and authority monitoring.","Currency types","None"]
["Salt (material? MRH) per lane mile (km)     ","This measure is the amount of material (salt etc.) expended to treat one mile or kilometer and one lane of a network.  Several lanes may be treated at the same time with one truck. However in this instance the requirement is for the cost of just one lane, if the operator has the figures for two lanes this figure should be halved and so on. During plow only events there will obviously be no material costs.","Output ","Pounds or Kilograms","Quantity of material (salt etc.) dependent on the rate of application of the material, width of a given lane. (Lanes may vary in width over a network but an average lane width is acceptable.)","These figures may be collated from several sources and therefore may be manual or automated.","Collected at an authority level, city, county or state.","For events which require material usage only.","Can be collected in real time and post event although post event maybe more accurate due to the nature of some dynamic events","Pre-treatment, event response, post-event","Operational Management Systems. Can be hard copy, email, or electronic system data.","Variable, from local to statewide.","This will be world location dependent on unit type used","Width of carriageway."]
["Number of lane miles (or Km) plowed       ","This measure is the linear distance of the total plow in a network multiplied by the number of lanes in the network. For instance, if a section of highway has three lanes over two miles the number of lane miles totals six and so on over the entire network.","Output ","Miles or Kilometers","Total network distance and the numbers of lanes in any given length.","GIS systems will be the most accurate and will often have the lane data within.  Hardcopies can be used but the hours required to extract could be disproportionate.","Collected at an authority level, city, county or state.","The plowed network.","Can be collected prior to the event, in real time and post event although post event maybe more accurate due to the nature of some dynamic events","Snow event only","Operational Management Systems. Can be hard copy, email, or electronic system data.","Dependent on the network.","Unit types","None"]
["Plow-down miles traveled","This measure tracks the toll number of miles traveled by a vehicle with plow on the surface removing snow and ice. This value takes into account only the times that an operator is actually plowing snow. There are times when vehicles are dispatched and all they need to do is pre-treat roads, or treat roads without plowing such as frost and perhaps times where they are using a direct liquid application and no plowing is required. Another consideration in this measure takes into account if the operator actually plows additional routes other than their own. This measure captures only the times that plowing is occurring.  ","Output ","Miles or Kilometers","This task requires that the miles traveled with the Plow-down be captured. ","These values can be captured by an automatic vehicle location system providing the system has sensors to indicate that the plow is up or down.  It would be very difficult to capture this data manually ","Through the automatic vehicle location system, this can be captured at a garage on a district level, on a regional level, and on the state level, depending on the configuration of the system. ","Only during events which require snow plowing ","This data can be collected in real time if the AVL System is a real time program.  It can also be captured after the event if the system is a passive system and all the data is downloaded once the vehicles returned two the garage ","All snow plowing events ","Automatic vehicle location systems and controllers that can capture this data ","This is just data captured which includes miles traveled and the position of the plow ","This same data may be captured in other performance measures that would include the position of the plow. ","This is contingent on the agency and its policies about plowing snow.  This is contingent on the operator having the Plow-down in every situation where snow was on the pavement. "]
["Number of lane (?MRH) miles per unit of time ","This measure is the linear distance a truck can travel at an average speed within a given time limit.","Output ","Hours or minutes","Miles or Kilometers","Calculations from observations","Collected at an authority level, city, county or state.","Not applicable","Pre or post event.  Not reasonable to calculate during an event.","Pre-treatment, event response, post-event","Average truck speeds","Labor allocation","Unit types","None"]
["Time for the maintenance crew to get on the road after the start of a storm","This measure is the time taken in hours and minutes for the crew to start either treatment or leave the depot to travel to the start of treatment once the decision has been made to treat.","Output ","Hours or minutes","Time","Manual","Typically collected at a depot level although the target will be set by the authority.","The event will variable, each type will give a differing measurement for instance it will take longer to fill with material if treating but less if just plowing or already filled","Can be collected during and event and collated post event.","Pre-treatment, event response, post-event","Operational Management Systems. Can be hard copy, email, or electronic system data.","Labor allocation","None","This measure would be contingent on any agency's policies and contracts regarding show up time to a yard.  It will also be contingent on agency policies as a planned response or an emergency response.  It would be likely that an agency with 24 hour operations will have a quicker response than one that is not 24 hour operations. "]
["Road condition rating (based on material [chemical or sand] present on roadway)","This measure captures the road condition rating of a roadway which has been treated. This is often measured by a roadway weather information system. The road condition rating can be based on the amount of chemical present on the roadway and the surface state of the roadway.  Agencies assigned different levels of service to different roadways. These roadways are sometimes classified different and may require different treatments. Because agencies choose different treatments and have different classification of roadways, the use of friction or grip is also another way to measure the road condition. ","Output "," Percentage of chemical, surface state and friction or grip factor.  This could also be percentage of cleared pavement.  ","Instrumentation to measure chemical concentration or surface state ","Data is collected through instrumentation ","Typically collected at an RWIS but mobile collection is also possible ","Whenever weather is affecting the pavement condition ","Can be collected in real time with the proper instrumentation ","Any type of winter weather event ","RWIS or mobile data collection ","Labor and material use ","None ","This measure is contingent on agency having instrumentation on its roadways or mobile data collection to measure the surface state of a roadway. This enables an agency to determine if it is meeting its goals and levels of service based on observations taken on or long the roadway "]
["Allowable snow accumulation (planned, maximum)","This measure captures the amount of snow accumulation allowable on a roadway. Some agencies have minimum standards which can include a certain amount of accumulation of a roadway prior to winter maintenance operations beginning. There may also be a maximum amount of accumulation allowed prior to winter maintenance operations beginning. This measure would track when and how often this occurred. ","Output ","Inches or Millimeters of snow ","Instrument-ation to measure snow depth or Manual inspection of roadways ","This can be done automatically with the proper instrumentation such as our wits units and cameras or manually through visual inspection. "," This can be collected at a garage district, county or state level  ","This would only apply to snowfall events that exceed the minimum allowable snowfall amount on a roadway ","This data can be collected with the use of and are was or visual cameras providing they are giving real Time Data ","This will affect call out operations and plowing operations depending on the amount of snow accumulation ","This will require instrumentation that can detect snow fall on the roadway and the depth of the snow on the roadway ","Labor and material use ","None ","This measure takes into account the allowable amount of snow on a roadway. Some agencies will not respond to events until a minimal amount of snow has fallen. Likewise there may be a maximum amount of snow allowed on the roadway and that should not be exceeded.  This measure would help determine if an agency is performing with N its guidelines. "]
["E. Maintenance Response Outcomes"]
["Pavement ice condition index (PSIC) (and similar visual inspection methods)","This measure is one approach being used to report Level of Service (LOS) of the roadway. This measure typically uses visual characterization of the road, combined with traffic flow to establish the PSIC at any point in time. This measure classifies the roadway conditions into one of seven (7) levels, ranging from Condition 1 (bare/wet pavement where all snow and ice is prevented from bonding to the road surface) to Condition 7 (road is closed due to weather (e.g. low visibility) or road conditions (e.g. drifting, glare ice, etc.). This measure can be used during all stages of a winter storm (i.e. as the atmospheric conditions begin to affect the roadway surface, as treatment begins to improve the road, and as treatment of the roadway is completed).","Outcome ","Classification into 1 of 7 Condition categories","Visual observation of roadway surface;","Typically observed by plow operators or supervisors observing the roadway during winter storms or the recovery period.","Any scale is possible.  Typically observed for stretches of roadway driven by plow operators, but could be as finite as a bridge, curve, or any other specified location.","For events that impact the ability to drive the road safely.  Ranging from precipitation related events to visibility events.","Real-time observations are needed. However, observations and categorizations can be used for post-event evaluations","Event response, post-event response","None","Resource levels;","Other LOS-related measures.","Condition 1 (bare/wet);"]
[null,null,null,null,"Knowledge of treatment/chemical applications to roadway;",null,null,null,null,null,null,"Strategies and tactics;",null,"Condition 2 (bare/wet with occasional snow/ice;"]
[null,null,null,null,"Traffic speed information (note could be manually observed).",null,null,null,null,null,null,"Materials choices;",null,"Condition 3 (Accumulations of loose snow or ice up to 2 in.;"]
[null,null,null,null,null,null,null,null,null,null,null,"Material application rates",null,"Condition 4 (Continuous stretches of packed snow);"]
[null,null,null,null,null,null,null,null,null,null,null,null,null,"Condition 5(Completely covered w/ packed snow or ice);"]
[null,null,null,null,null,null,null,null,null,null,null,null,null,"Condition 6 (Significant buildup of snow or ice);"]
[null,null,null,null,null,null,null,null,null,null,null,null,null,"Condition 7 (road is temporarily closed);"]
["Time to bare pavement ","This measure is used to assess and report on the performance of winter storm management and response. A time measurement is used to measure the time from when bare pavement is lost until the time that operations have removed snow and ice to the point where bare pavement once again exists. Bare pavement is considered lost when snow or ice is covering the roadway and operations are required to clear the roadway. Bare pavement is considered regained when at least 95% of the affected portion of the roadway is bare.","Outcome ","Minutes or Hours","Visual observation of roadway surface;","Typically observed by DOT operations personnel, law enforcement, or other observers","Any scale is possible.  Typically observed for stretches of roadway driven by plow operators, but could be as finite as a bridge, curve, or any other specified location.","For events that require removal of snow and/or ice covering the roadway","Real-time observations of the time that the pavement begins to be covered until the time it is observed to be at least 95% clear are required.","Event response, post-event response","AVL, friction sensors could be used to supplement visual observations","None","Time to speed recovery;","Time measured, as loss of bare pavement may differ between urban and rural areas."]
[null,null,null,null,"Surrogate measures such as traffic speed have also been used to estimated 'bare pavement'",null,null,null,null,null,null,null,"Time to volume recovery"]
["Time to wet pavement","This measure is used to assess and report on the performance of winter storm management and response. A time measurement is used to measure the time from when bare or wet pavement is lost until the time that operations have removed snow and ice to the point where the pavement is clear of snow and ice but may still have water on the surface. Bare or wet pavement is considered lost when snow or ice is covering the roadway and operations are required to clear the roadway.  Wet pavement is considered regained when at least 95% of the affected portion of the roadway is clear of snow and ice.","Outcome ","Minutes or Hours","Visual observation of roadway surface;","Typically observed by DOT operations personnel, law enforcement, or other observers;","Any scale is possible.  Typically observed for stretches of roadway driven by plow operators, but could be as finite as a bridge, curve, or any other specified location.","For events that require removal of snow and/or ice covering the roadway","Real-time observations of the time that the pavement begins to be covered until the time it is observed to be at least 95% clear of snow and ice (but not specifically dry) are required.","Event response, post-event response","AVL, friction sensors could be used to supplement visual observations","None","Time to speed recovery;","Time measured as loss of bare pavement may differ between urban and rural areas."]
[null,null,null,null,"Roadway surface friction reports","Could also include AVL equipped vehicles with friction sensors",null,null,null,null,null,null,"Time to volume recovery"]
["Time to return to reasonably near-normal winter condition","This measure is used to assess and report on the performance of winter storm management and response. A time measurement is used to measure the time from when reasonable near-normal roadway surface conditions are lost until the time that operations have treated the road to the point where conditions are considered near normal for the local geography and time of year. For example, packed snow with sand or other treatment to increase friction may be considered reasonably near normal conditions for certain road types (especially low volume roads) in selected locations.  ","Outcome ","Minutes or Hours","Visual observation of roadway surface;","Typically observed by DOT operations personnel, law enforcement, or other observers;","Any scale is possible.  Typically observed for stretches of roadway driven by plow operators, but could be as finite as a bridge, curve, or any other specified location.","For events that require removal of snow and/or ice covering the roadway","Real-time observations of the time that the pavement begins to be covered until the time it is observed to be at least 95% clear of snow and ice (but not specifically dry) are required.","Event response, post-event response","AVL, friction sensors could be used to supplement visual observations","None","Time to speed recovery;","\"Reasonably near normal\" conditions will vary by roadway classification and by geographic area of the country, and by prevalent conditions.  For example, a low volume road in an area that experiences heavy snowfall each year will define \"reasonably near normal\" different than an area that experiences limited snowfall."]
[null,null,null,null,"Roadway surface friction reports","Could also include AVL equipped vehicles with friction sensors",null,null,null,null,null,null,"Time to volume recovery"]
["Time for traffic volume to return to normal after the storm ","This measure is used to assess and report on the performance of winter storm management and response.  A time measurement is used to measure the time from when normal traffic volumes reduce as a result of a storm until the volumes reach normal levels again.  ","Outcome ","Minutes, Hours, or Days","Visual observation of traffic patterns;","Manual approach would be observation from field personnel or through CCTV camera;","Any scale is possible.  Typically observed/measured for stretches of roadway with relatively uniform traffic volumes, but could also be for spot locations impacted by storms (e.g. a bridge impacted by flooding).","For events that impact the ability or willingness of travelers to drive a stretch of road.  Snow or ice storms would be the typical event, but could also include flooding conditions caused by runoff, or other storm related closures of lanes or roads","Real-time or post event (if volume data is recorded)","Event response, post-event response","Traffic data collection devices (e.g. loops, non-intrusive detectors, etc.);","None","Time to speed recovery;","Urban and rural areas will likely have different rates that volumes return after a storm;"]
[null,null,null,null,"Traffic volume data","Automated collection would be through traffic detectors reporting volume data.",null,null,null,null,"Visual observations",null,"Time to volume recovery","Factors such as rush hour period and time that the storm began also may impact data collected and used in the decision process."]
["Time to provide on wheel track","This measure is used to assess and report on the performance of winter storm management and response. A time measurement is used to measure the time from when snow and/or ice accumulation begins until the roadway has been treated to provide at least one wheel track of reasonable driving conditions (e.g. bare pavement or treated conditions to achieve reasonable friction).  ","Outcome ","Minutes, Hours, or Days","Visual observation of roadway surface","Manual, typically observed by DOT operations personnel, law enforcement, or other observers","Any scale is possible.  Typically observed for stretches of roadway driven by plow operators, but could be as finite as a bridge, curve, or any other specified location.","For events that require removal of snow and/or ice covering the roadway","Real-time observations of the time that the pavement begins to be covered until the time it is observed that at least one wheel track is available per lane.","Event response, post-event response","Visual observations","None","Time to speed recovery;","One wheel track definitions may vary on roadways with multiple lanes in one direction (e.g. is one wheel track in a single lane required or is at least one wheel track in all lanes required?)"]
[null,null,null,null,null,null,null,null,null,null,null,null,"Time to volume recovery"]
["Pavement Friction (measured in various ways ) ","This measure is one approach being used to report performance of winter storm management and response. Pavement friction measured during stages of the storm describe the extent to which the responsible agency was able to prevent the impacts of snow/rain on the surface friction or remove snow and ice and keep the roadway surface in a condition favorable to vehicular travel. This is generally a real-time performance measure used to adjust actions in real-time, or a measure used to assess pre-treatment or treatment success. It is possible to use pavement friction as a post-event measurement tool.","Outcome ","Friction coefficient (0-1)","Friction coefficient related to location on the roadway","Automated:","Any scale is possible.  Typically measured for stretches of road driven by vehicles equipped with friction sensors.","For events that impact the road surface, including snow, ice, rain, flooding, dust.","Real-time or post-event","Pre-treatment Event response","Vehicle equipped friction sensors or pavement sensors","Resource levels;","Pavement Ice condition index"]
[null,null,null,null,null,"A number of vehicle mounted systems or pavement sensors",null,null,null,null,null,"Strategies and tactics;"]
[null,null,null,null,null,null,null,null,null,null,null,"Materials choices;"]
[null,null,null,null,null,null,null,null,null,null,null,"Material application rates"]
["Traffic volume during storm ","This measure is used to assess and report on the performance of winter storm management and response in relation to how well the volume of travel on the roadway is maintained during the winter storm.","Outcome ","Vehicles per hour or per lane","Recorded volume;","Automated data collection, using ATR or other traffic monitoring systems","Typically per data collection location;","Any winter event impacting traffic flow","Post-event evaluation;","Event pre-treatment;","ATRs or other traffic counters","None - post-evaluation only","Speed drop during winter weather events","Should consider whether volume drops are a result of the maintenance activities or travelers response to storm.  For example, in metro areas, commuters are less likely to cancel a trip than rural travelers."]
[null,null,null,null,"average volume per location and time",null,"Projected onto a segment of the roadway",null,"Real-time collection of data","Event treatment"]
["Segments Not Recovered in “X” hours","This measure is used to assess and report on the performance of winter storm management and response in relation to what number/percent of the roadway segments are recovered within a designated timeframe. Recovered refers to a general description that the roadway is once again operating in reasonably normal conditions.","Outcome ","Number of segments;","Manual or automated determination of segments 'recovered' vs. not recovered","Manual is based on observations of conditions or traffic flow;","Segments, pre-defined or in real-time, including start and end point.  Can be any extent.","Any winter event impacting traffic flow","Real-time or post event.","Event pre-treatment;","Visual observations","Resource levels;","Segments not recovered from speed drop in 'X' hours","Recovery of segments in urban areas or high volume roads may have different definitions than low volume or rural roads."]
[null,null,null,"Actual identities of segments not recovered;",null,"Automated may be based on pavement friction values, speed, or volume of travel.",null,null,null,"Event treatment;",null,"Strategies and tactics;"]
[null,null,null,"Percentage of segments",null,null,null,null,null,"Event post-treatment",null,"Materials choices;"]
[null,null,null,null,null,null,null,null,null,null,null,"Material application rates"]
["Segments not recovered from “speed drop” of “x” mph","This measure is used to assess and report on the performance of winter storm management and response in relation to what number/percent of the roadway segments are recovered from a speed drop within a designated timeframe. Speed drop recovery would be accomplished by determining the average speed reduction during a snow event compared to normal speeds at the location and the duration of time needed to regain normal average vehicle speeds (time from when the minimum speed was detected).","Outcome ","Number of segments;","Manual or automated determination of segments 'recovered from speed drop' vs. not recovered","Manual is based on observations of traffic speeds (e.g. CCTV camera view or field personnel observations);","Segments, pre-defined or in real-time, including start and end point.  Can be any extent.","Any winter event impacting traffic speeds","Real-time or post event.","Event pre-treatment;","Visual observations;","Resource levels;","Segments not recovered in 'X' hours","Recovery of segments in urban areas or high volume roads may have different definitions than low volume or rural roads."]
[null,null,null,"Actual identities of segments not recovered;",null,"Automated may be based on automated speed detection (from various sources)",null,null,null,"Event treatment;","Speed monitoring systems","Strategies and tactics;"]
[null,null,null,"Percentage of segments",null,null,null,null,null,"Event post-treatment",null,"Materials choices;"]
[null,null,null,null,null,null,null,null,null,null,null,"Material application rates"]
["Level of reduction in “speed degradation” due to maintenance response compared to “do-nothing”","This measure is used to assess and report on the performance of winter storm management and response in relation to the affect maintenance response has at minimizing the speed degradation that typically accompanies winter storms. In other words, are the maintenance operations able to prevent the speeds from degrading as much as they would have had there been no maintenance performed?","Outcome ","Miles per hour difference","travel speeds during winter storm;","Automated data collection, using speed detectors, probe vehicles, or other traffic monitoring systems","Typically per data collection location;","Any winter event impacting traffic speeds","Real-time or post event.","Event pre-treatment;","Visual observations;","Resource levels;","Traffic volumes during storms","Estimating speed degradation with no response is a challenge, and would likely be approached differently in urban and rural areas."]
[null,null,null,null,"typical travel speeds during winter storm with no response",null,"Projected onto a segment of the roadway",null,null,"Event treatment;","Speed monitoring systems","Strategies and tactics;"]
[null,null,null,null,null,null,null,null,null,"Event post-treatment",null,"Materials choices;"]
[null,null,null,null,null,null,null,null,null,null,null,"Material application rates"]
["Level of Service maintained during event","This measure refers to the pre-defined goals for maintaining the conditions of roadways during winter weather events. Transportation agencies may use LOS as a means of informing travelers what to expect with different road levels (e.g. DOTs may set a goal of keeping heavily traveled key highways clear of snow/ice for the width of a vehicle, while a goal for lower volume roads may be to maintain at least one wheel track at bare pavement). These measures are used by travelers to plan their routes during winter storms, but also are used by DOTs to assess their performance (e.g. were all Level X roads maintained at the target LOS during the storm?).","Outcome ","Categories, differ by DOT (e.g. Level I, Level II)","Visual observation of conditions","Manual, typically observed by DOT operations personnel, law enforcement, or other observers","Any scale is possible.  Typically observed for stretches of roadway driven by plow operators, but could be as finite as a bridge, curve, or any other specified location.","For events that require removal of snow and/or ice covering the roadway","Real-time observations are needed.  However, observations and categorizations can be used for post-event evaluations","Event pre-treatment;","AVL, friction sensors could be used to supplement visual observations","Resource levels;",null,"Some agencies (e.g. Montana DOT) have pre-defined LOS’s defined by ADT and roadway categorization.  Others (e.g. Michigan DOT) define 2 LOS’s to help travelers understand the treatment plan"]
[null,null,null,null,null,null,null,null,null,"Event treatment;",null,"Hours of operations;"]
[null,null,null,null,null,null,null,null,null,"Event post-treatment",null,"Strategies and tactics;"]
[null,null,null,null,null,null,null,null,null,null,null,"Materials choices;"]
[null,null,null,null,null,null,null,null,null,null,null,"Material application rates"]
["Difference between actual observed speed and acceptable speed levels during storm          ","This measure is used to assess and report on the performance of winter storm management and response in relation to how well the speed of traffic is maintained during the storm when compared to acceptable speed levels.","Outcome ","Miles per hour difference","travel speeds during winter storm;","Automated data collection, using speed detectors, probe vehicles, or other traffic monitoring systems","Typically per data collection location (e.g. where speed is measured or observed);","Any winter event impacting traffic speeds","Real-time or post event.","Event pre-treatment;","Visual observations;","Resource levels;","Segments not recovered from speed drop in 'X' hours","Determining acceptable speeds may be a challenge, and would likely be approached differently in urban and rural areas, as well as differently during peak and off-peak periods."]
[null,null,null,null,"acceptable travel speeds during winter storms",null,"Projected onto a segment of the roadway",null,null,"Event treatment;","Speed monitoring systems","Strategies and tactics;"]
[null,null,null,null,null,null,null,null,null,"Event post-treatment",null,"Materials choices;"]
[null,null,null,null,null,null,null,null,null,null,null,"Material application rates"]
["Percent of Time Highways Clear of Snow/Ice During Winter Storms","This measure is used to assess and report on the performance of winter storm management and response. A time measurement is used to measure the timer period (typically reported as a percentage of the overall storm time) that the roadway is clear of snow and ice.  ","Outcome ","% of overall storm time;","Visual observation of roadway surface;","Typically observed by DOT operations personnel, law enforcement, or other observers;","Any scale is possible.  Typically observed for stretches of roadway driven by plow operators, but could be as finite as a bridge, curve, or any other specified location.","For events that require removal of snow and/or ice covering the roadway","Post-event evaluation;","Event pre-treatment;","AVL, friction sensors could be used to supplement visual observations","Resource levels;","Time to bare pavement;","Definitions for 'clear of snow and ice ' may vary between urban/rural roads and by roadway classification."]
[null,null,null,"hours or minutes","Roadway surface friction reports","Could also include AVL equipped vehicles with friction sensors",null,null,"Real-time observation of the time the roadway is covered in snow until the time the roadway is cleared","Event treatment;",null,"Strategies and tactics;","Time to wet pavement"]
[null,null,null,null,null,null,null,null,null,"Event post-treatment",null,"Materials choices;"]
[null,null,null,null,null,null,null,null,null,null,null,"Material application rates"]
["F. Level of Operational Responses"]
["Number of alerts/advisories issued through traveler information channels (including 511, DMS, Websites)","This measure is used to assess the frequency and thoroughness of winter weather advisories issued during winter weather storms. Travelers who believe information or alerts are no longer timely often dismiss the information as inaccurate. Similarly, the more often that updates or details are made available to travelers through traveler information, the more timely and effective the information.","Input ","Alerts per hour of storm;","Archived data describing alerts/ advisories (created manually or automatically) that were stored in the database and disseminated via information channels.","Automated would involve systems logging all advisories/alerts entered.","Statewide;","For events that impact the ability to drive the road safely.  Ranging from precipitation related events to visibility events.","Real-time systems could support operations by advising agencies to consider posting more frequent advisories.","Road condition reporting;","Road Condition Reporting Systems (RCRS);","Information dissemination;"]
[null,null,null,"Minutes between alerts;",null,"Manual would involve manual logs or notes about advisories created and disseminated.","district-wide;",null,"Post-event would support assessment of traveler information dissemination during the storm.","Traveler information creation","Traveler Information Systems","Public outreach"]
[null,null,null,null,null,null,"any area defined by a storm"]
["Number of segments with variable speed limits activations","This measure can be used to assess either the impact of a winter weather storm on the safe traffic speeds, or the response of a transportation agency posting variable speed messages during a storm. If considering the impact of the storm, an agency could examine the number of segments with VSL messages active as an indication that those segments are impacted, and others are not. The other use would be to measure the actions taken by the number of segments that have variable speeds posted (more postings as an indication that DOT staff resources were available to inform more travelers of the impacts of storms).","Input ","# of segments;","Records of VSL message postings to roadway signs, or other dissemination mechanisms","Automated reports from VSL control systems;","Segments defined to include VSL signs","For events that impact the ability to drive the road safely.  Ranging from precipitation related events to visibility to wind events.","Real-time or post-event assessment","Event / traffic management","VSL control systems","Traffic management;",null,"VSL defined segments will vary in urban and rural areas.  Urban areas may have one VSL sign to control a segment as small as 1/2 mile in length, whereas rural areas the segments controlled by VSL signs will typically be multiple miles."]
[null,null,null,"% of segments equipped with VSL signs;",null,"Manual recordings are possible",null,null,null,null,null,"Information dissemination"]
[null,null,null,"% of VSL signs actively displaying messages during the storm."]
[]
["Number/hours of chain restriction events","This measure is used to report the impact of a winter storm in regards to the extent of time that chain restrictions are in effect, either for commercial vehicles, vehicles without traction tires, or all vehicles. Chain requirements create situations that delay travelers (often commercial vehicles) while chains are installed and eventually removed, in addition to backups and safety impacts of vehicles stopping to apply chains. The ability of a DOT to minimize the number of chain restriction events or the hours in force is a performance measure that reports on the overall mobility of traffic during the event.","Output ","# of events;","Chain restrictions are typically issued as formal events, then disseminated through web and DMS, therefore tracking of restriction start and end times, and locations.","Tracking of events issued.","Typically chain-up areas are pre-defined (e.g. mountain pass, remote road, etc.). However, chain restrictions can be issued for entire areas or entire stretches of highway.","For events that require removal of snow and/or ice covering the roadway","Real-time or post-event.","Event pre-treatment;","Chain restriction entry or tracking system","Resource levels;","Pavement friction","Chain restriction categories vary by agency.  For example, \"carry chains or traction tires\" may be a restriction for a mountain pass during the entire winter season.  Consideration of the restrictions used and the decision factors of when to issue a restriction are critical.  It might not be a factor of the maintenance operations performed; procedures might be to require chains during winter storms regardless of conditions."]
[null,null,null,"Hours that chain restrictions are in effect.",null,null,null,null,null,"Event treatment;",null,"Strategies and tactics;"]
[null,null,null,null,null,null,null,null,null,"Event post-treatment",null,"Materials choices;"]
[null,null,null,null,null,null,null,null,null,null,null,"Material application rates"]
["Road closure frequency and duration (with specific impacts to freight, personal travel)","This measure is used to report the impacts of winter storms in relation to the frequency and duration of road closures, when no traffic is allowed. The increasing reliance on 'just in time' delivery and individual mobility creates situations where road closures that prevent even experienced winter drivers with winter accessories (e.g. chains, 4 wheel drive, etc.) from using the roadway can create serious impacts on economic productivity.","Output ","Closures / season;","Documented closing of the roadway by designated officials.","Manual through logs or reports of closures;","Any scale is possible.  Typically observed for stretches of roadway driven by plow operators, but could be as finite as a bridge, curve, or any other specified location.","For events that impact the ability to drive the road safely.  Ranging from precipitation related events to visibility to wind events.","Post-event evaluation","Event pre-treatment;","Reports of closures","Resource levels;","Number of hours of chain restriction events"]
[null,null,null,"Hours of closure/ storm;",null,"RCRS reports possible",null,null,null,"Event treatment;",null,"Strategies and tactics;"]
[null,null,null,"Hours of closure / season",null,null,null,null,null,"Event post-treatment",null,"Materials choices;"]
[null,null,null,null,null,null,null,null,null,null,null,"Material application rates"]
[]
[]
[]
[]
["G. Traveler Experience, Mobility and Safety "]
["Crash rate/crashes per unit","This measure tracks the crashes during periods of adverse weather. Both numbers and rates are tracked. Crashes may further be broken down into categories (fatality, injury, property damage only). Of particular importance to winter measurement is isolating the beginning and end of winter weather events.","Outcome ","Number or Number per lane-mile","Crashes and accident data, weather event data","Two primary sources - one from TMC incident data or more detailed police crash data are typically used. Matching with events depends on weather events being recorded in some traffic or maintenance management system","Typically measured for roadways and aggregated across various scales","Applicable for all types of events","Post-event evaluation","Event pre-treatment;","Safety Management Systems, Crash Reporting Systems, Event Logs","Identification of maintenance priorities, identification of strategies","None","None"]
[null,null,null,null,null,null,null,null,null,"Event treatment;"]
[null,null,null,null,null,null,null,null,null,"Event post-treatment"]
["Incident clearance times during weather events","This measure is a barometer of how incident management capabilities are maintained during adverse weather events. Incident clearance times during weather events maybe significantly worse during periods of good weather. By tracking the degradation in incident clearance, agencies are able to not only improve mobility, safety is improved by reducing the likelihood of multi-vehicle crashes or secondary accidents","Outcome ","Minutes","Incident logs and weather event logs","Use data from Incident Management Systems, Weather Event Logs","Typically measured at a regional-level but can be specific to freeways or high-priority routes with incident management programs","Applicable to all types of events","Post-event evaluations","Incident management strategy (pre-positioning, wrecker contracts etc.)","Need an incident management system that timestamps incident response (from notification to verification to clearance). Also need event start and stop times)","Incident Management Plan","None","None"]
["Travel time and Delay during event ","This derived measure calculates the increased travel time and the associated delay with weather. This measure uses speed data or directly measured travel times and delays (from probe-vehicles) and correlates it with event start and end times","Outcome ","Minutes","Speed data as well as event logs","Most agencies have some access to speed data based on their ITS equipment. However in recent years, the availability of probe-based data  has greatly increased the coverage and availability of speed data","Typically measured for roadways and aggregated across various scales","Applicable to all types of events","In general, these are post-event evaluations. However, some agencies monitor speed during events and implement appropriate responses","Event pre-treatment;","Traffic data collection devices, other sources of speed data, event logs","Identification of maintenance priorities, identification of strategies","Hours to return to normal speeds","Low-volume segments and hours pose a particular challenge to using speed reductions as a sole determinant of performance. "]
[null,null,null,null,null,null,null,null,null,"Event treatment;"]
[null,null,null,null,null,null,null,null,null,"Event post-treatment"]
["Change in trip reliability (measured through buffer index or planning time index)","This derived measure calculates the change in travel reliability due to the weather event. Reliability measures commonly used include buffer time and planning time index. Both these measures try to estimate the amount of extra time that a traveler needs to factor into making the trip successfully for certain percentage of times they attempt the trip. Traditionally, these are calculated over a long period of time but isolating the impact during weather events is the focus of this measure","Outcome ","Minutes","Speed data as well as event logs","Most agencies have some access to speed data based on their ITS equipment. However in recent years, the availability of probe-based data  has greatly increased the coverage and availability of speed data","Typically measured for roadways and aggregated across various scales","Applicable to all types of events","In general, these are post-event evaluations. However, some agencies monitor speed during events and implement appropriate responses","Event pre-treatment;","Traffic data collection devices, other sources of speed data, event logs","Identification of maintenance priorities, identification of strategies","Hours to return to normal speeds","Low-volume segments and hours pose a particular challenge to using speed reductions as a sole determinant of performance. "]
[null,null,null,null,null,null,null,null,null,"Event treatment;"]
[null,null,null,null,null,null,null,null,null,"Event post-treatment"]
["Value of Avoided fatalities, injuries and property damage ","This derived measure reports the value of reduction in crashes and incidents due to winter maintenance response by multiplying the reductions in crashes (either measured or estimated) by the appropriate monetary factor.","Outcome","Dollars","Crashes and accident data, weather event data","Two primary sources - one from TMC incident data or more detailed police crash data are typically used. Matching with events depends on weather events being recorded in some traffic or maintenance management system","Typically measured for roadways and aggregated across various scales","Applicable for all types of events","Post-event evaluation","Event pre-treatment;","Safety Management Systems, Crash Reporting Systems, Event Logs","Identification of maintenance priorities, identification of strategies","None","None"]
[null,null,null,null,null,null,null,null,null,"Event treatment;"]
[null,null,null,null,null,null,null,null,null,"Event post-treatment"]
["Customer satisfaction (measured through surveys, complaints)","This measure tracks traveler feedback and customer satisfaction with winter maintenance activities. Typically, these measures are calculated by conducting a periodic survey, focus groups or other traveler engagement approaches. ","Outcome","NA","Traveler feedback","Surveys are the dominant form of data collection for these measures. However, the nature of surveys range from telephone surveys to web surveys","Region or Statewide","Applicable to all types but difficult to assess satisfaction with a particular event response","Generally done seasonally. However, web and app capabilities may enable event-specific satisfaction measures","Event pre-treatment;","NA","Identification of maintenance priorities, identification of strategies including traveler information approaches","None","None"]
[null,null,null,null,null,null,null,null,null,"Event treatment;"]
[null,null,null,null,null,null,null,null,null,"Event post-treatment; Traveler information"]
["Secondary incidents during events","This measure tracks the change in the number of secondary incidents (accidents that can be related to a preceding primary incident temporally and spatially) during weather events.","Outcome ","Number or number per lane-mile","Crashes and accident data, weather event data","Two primary sources - one from TMC incident data or more detailed police crash data are typically used. Matching with events depends on weather events being recorded in some traffic or maintenance management system","Typically measured for roadways and aggregated across various scales","Applicable for all types of events","Post-event evaluation","Event pre-treatment;","Safety Management Systems, Crash Reporting Systems, Event Logs. ","Identification of maintenance priorities, identification of strategies","None","Need to have an accepted definition for spatial and temporal thresholds for secondary accidents"]
[null,null,null,null,null,null,null,null,null,"Event treatment;"]
[null,null,null,null,null,null,null,null,null,"Event post-treatment"]
["H. Cost, Budget and Funding "]
["Cost of winter operations per unit including materials, equipment, labor, and administrative costs (normalized by winter or storm severity or not-normalized)","This measure tracks the \"true cost of winter operations\" per season and normalizes it by a severity index to account for variations between events and seasons. This measure can be used to benchmark agency performance vis-à-vis other agencies or internally across seasons","Output ","Dollars/ lane mile or dollars/ inches of snow","Cost data, weather data by event","Agency records are the primary source of this information","Measured at a district or statewide level","Applicable for all types of events","Post-event evaluation","Event pre-treatment;","Material and labor management systems are critical to calculate this measure","Identification of maintenance priorities, identification of strategies","None","Must have an accepted normalization approach as well clear identification of weather-related labor costs."]
[null,null,null,null,null,null,null,null,null,"Event treatment;"]
[null,null,null,null,null,null,null,null,null,"Event post-treatment"]
[]
[]
[]
[]
[]
["I. Transportation Resilience "]
["Robustness","This measure is an assessment of the ability of transportation system/system elements, and other units of analysis to withstand disaster conditions without significant degradation or loss of performance","Outcome ","NA","TBD","Agency records are the primary source of this information","Measured at a district or statewide level","Generally applicable for large extreme weather events","Post-event evaluation but can be done pre-event with historical data as part of emergency preparedness","TBD","TBD","TBD","TBD","Resilience measures are just starting to emerge in transportation operations. In general, calculation of these measures depends on the types of units being analyzed. For example, these measures could be calculated for roadway segments but also for ITS devices"]
["Redundancy/ Reserve Capacity","This measure provides an assessment of the extent to which systems, system elements, or other units are substitutable, that is, capable of satisfying functional requirements, if significant degradation or loss of functionality occurs","Outcome ","NA","TBD","Agency records are the primary source of this information","Measured at a district or statewide level","Generally applicable for large extreme weather events","Post-event evaluation but can be done pre-event with historical data as part of emergency preparedness","TBD","TBD","TBD","TBD"]
["J. Economic Activity"]
["Lost Economic Activity","This measure calculates the economic losses that would result from a weather event by including lost earnings and lost revenue (both of businesses and consequently taxes for federal, state and local agencies)","Outcome","$ per event","Wage data, tax data and trade data","National and State level economic data sources combined with economic modeling","Measured at a State-level","Generally applicable for large extreme weather events","Post-event evaluation","NA","An economic model for the state is required. These may be available outside the transportation operations groups and may exist in DOT planning ","Funding allocations and justification for the cost of snow removal","NA"]

{"sheet":"Resources","index":13,"n_rows":141,"n_cols":4,"rows_kept":141,"cut":false,"hidden":true,"merged":[[1,3,3,17]]}
[]
[null,null,null,"Performance measurement is a common practice amongst agencies, albeit the level of detailed information provided does differ depending on the capability maturity of each agency. Winter maintenance is also a heavily studied topic in academia. The subsections below summarize useful technical references for agencies that seek to develop performance measures for snow and ice control operations. "]
[]
[]
[]
[null,null,null,"Resources"]
[]
[null,null,null,"Examples of DOT Performance Reports and Fact Books"]
[]
[null,null,null,"The following are examples of winter performance reports developed by local and State agencies that can be used as reference:"]
[]
[null,null,null,"·        Minnesota DOT (2016). 2015-2016 Winter Maintenance Report"]
[null,null,null,"http://www.dot.state.mn.us/maintenance/pdf/winterMaintenanceAnnualReport-2015.pdf"]
[]
[null,null,null,"·        Wisconsin DOT. 2014. Annual Winter Maintenance Report 2013-2014: Keeping Wisconsin Moving During the Polar Vortex. Division of Transportation System Development Bureau of Highway Maintenance Winter Operations Unit."]
[]
[null,null,null,"·        Wisconsin DOT (2015). 2014-2015 Winter Maintenance at a Glance"]
[null,null,null,"http://wisconsindot.gov/Documents/doing-bus/local-gov/hwy-mnt/winter-maintenance/workers/2014-2015annualminireport.pdf"]
[]
[null,null,null,"·        Colorado DOT (2016). Winter Maintenance Performance Measure, https://www.codot.gov/programs/research/pdfs/2016-research-reports/winter-performance-measure"]
[null,null,null,"https://www.codot.gov/programs/research/pdfs/2016-research-reports/winter-performance-measure"]
[]
[null,null,null,"·        Michigan DOT. Winter Maintenance FAQs. "]
[null,null,null,"http://www.michigan.gov/mdot/0,4616,7-151-12967_52374---F,00.html"]
[]
[null,null,null,"Relevant Research Reports"]
[]
[null,null,null,"The following are examples of research reports that provide information and guidance in measuring performance, including approaches to collect and analyze data."]
[null,null,null,"·        Cox K (2010). Wyoming DOT Statewide Transportation Management Center (TMC) Weather Integration Plan. Wyoming DOT."]
[]
[null,null,null,"·        Cui, N., & Shi, X. (2015). Life-cycle Sustainability Assessment of Highway Winter Maintenance Operations (Phase I). Tier 1 UTC for Environmentally Sustainable Transportation in Cold Climates."]
[]
[null,null,null,"·        Decker, R.; Bignel, J.; Lambertsen, C.; and Porter, K. (2001). Measuring Efficiency of Winter Maintenance Practices. Transportation Research Record Journal of the Transportation Research Board 1741(1):167-175"]
[]
[null,null,null,"·        Deeter D., Crowson G., Roelofs T., Schroeder J., and D. Gopalakrishna (2014). Best Practices for Road Condition Reporting Systems: Synthesis Report. Prepared for FHWA in cooperation with the Traffic Management Center Pooled Fund Study, FHWA-HOP-14-023."]
[]
[null,null,null,"·        Department of Transport (2013). Well Maintained Highways: Code of Practice for Highway Maintenance Management. Updated 2005 Edition."]
[]
[null,null,null,"·        Farr W. and L. Sturges L. 2012. Utah Winter Severity Index Phase I. Prepared for Utah Department of Transportation Research Division by UDOT Weather Operations."]
[]
[null,null,null,"·        Fay, F., Akin, M., Shi, X., & Veneziano, D. (2013). Revised Chapter 8, Winter Operations and Salt, Sand and Chemical Management, of the Final Report on NCHRP 25-25(04). Washington, DC. American Association of State Highway (AASHTO) Standing Committee on Highways."]
[]
[null,null,null,"·        Matthews, L.; Andrey, J.; Hambly, D.; and Minokhin, I. (2017). Development of a Flexible Winter Severity Index for Snow and Ice Control. Journal of Cold Regions Engineering, Volume 31, Issue 3."]
[]
[null,null,null,"·        National Highway Institute. (2016). Workshop: Steps to Effective Target Setting for Transportation Performance Management. Washington, D.C.: Federal Highway Administration."]
[]
[null,null,null,"·        Nixon, W. and Qiu, L. (2005). Developing a Storm Severity Index. Transportation Research Board, Volume 1911, http://dx.doi.org/10.3141/1911-14"]
[]
[null,null,null,"·        Qiu, L. 2008. Performance Measurement for Highway Winter Maintenance Operations. PhD Thesis, University of Iowa, http://ir.uiowa.edu/etd/28."]
[]
[null,null,null,"·        Strong, C. and Shvetsov, Y. (2006). Development of roadway weather severity index. Transportation Research Record 1948, 161-169."]
[]
[null,null,null,"·        Suggett, J., Hadayegi, Al., Mills, B. Andrey, J., Leach, G. (2006). Development of winter severity indicator models for Canadian winter road maintenance. Transportation Association of Canada."]
[]
[null,null,null,"·        Veneziano, D., Fay, L., Shi. X., and L. Ballard. 2013. Development of a Toolkit for Cost-Benefit Analysis of Specific Winter Maintenance Practices, Equipment and Operations Phase 2: Final Report. Prepared for the Minnesota Department of Transportation and Clear Roads Program."]
[]
[null,null,null,"·        Veneziano, D., Fay, L., Ye, Z., and X. Shi. 2010. Development of a Toolkit for Cost-Benefit Analysis of Specific Winter Maintenance Practices, Equipment and Operations: Final Report. Prepared for ClearRoads, Project 0092-09-08/CR08-02."]
[]
[null,null,null,"·        Ye et al. (2012), Methods for Estimating the Benefits of Winter Maintenance Operations – NCHRP Project 20-07, Task 300. National Cooperative Highway Research Program, Transportation Research Board."]
[]
[null,null,null,"Federal and State Guidance and Reports"]
[]
[null,null,null,"Over the years, the Federal Highways Administration has developed important resources of general transportation performance management through it many related programs, such as the Transportation Performance Management (TPM) Toolbox. Some of these are listed below. "]
[]
[null,null,null,"·        TPM Toolbox "]
[null,null,null,"www.tpmtools.org  "]
[]
[null,null,null,"·        FHWA Transportation Performance Management "]
[null,null,null,"http://www.fhwa.dot.gov/tpm/links_fhwa.cfm  "]
[]
[null,null,null,"·        FHWA Fact Sheets on Fixing America’s Surface Transportation (FAST) Act https://www.fhwa.dot.gov/fastact/factsheets/  "]
[null,null,null,"https://www.fhwa.dot.gov/fastact/factsheets/  "]
[]
[null,null,null,"·        FHWA Fact Sheets on Moving Ahead for Progress in the 21st Century (MAP-21) "]
[null,null,null,"https://www.fhwa.dot.gov/map21/factsheets/  "]
[]
[null,null,null,"·        FHWA Resources on MAP-21 Rulemaking "]
[null,null,null,"https://www.fhwa.dot.gov/tpm/rule.cfm  "]
[]
[null,null,null,"·        FHWA TPM Noteworthy Practices "]
[null,null,null,"http://www.fhwa.dot.gov/tpm/resources/noteworthy.cfm  "]
[]
[null,null,null,"·        Transforming Performance Measurement for the 21st Century (2014)  "]
[null,null,null,"http://www.urban.org/sites/default/files/alfresco/publication-pdfs/413197-Transforming-PerformanceMeasurement-for-the-st-Century.PDF"]
[]
[null,null,null,"·        Performance Based Planning and Programming Guidebook (2013) "]
[null,null,null,"http://www.fhwa.dot.gov/planning/performance_based_planning/pbpp_guidebook/  "]
[]
[null,null,null,"·        NCHRP Report 660: Transportation Performance Management: Insight from Practitioners (2010) "]
[null,null,null,"http://onlinepubs.trb.org/onlinepubs/nchrp/nchrp_rpt_660.pdf  "]
[]
[null,null,null,"·        Communicating Performance (2015) "]
[null,null,null,"http://communicatingperformance.com/  "]
[]
[null,null,null,"·        FHWA Performance Reporting "]
[]
[null,null,null,"·        Part one of Final Report (2013) "]
[null,null,null,"http://www.fhwa.dot.gov/tpm/resources/docs/hif13043.pdf  "]
[]
[null,null,null,"·        Part 2 of Final Report (2013)  "]
[null,null,null,"https://www.fhwa.dot.gov/tpm/resources/docs/hif13044.pdf  "]
[]
[null,null,null,"·        Target Setting Peer Exchange (2014) "]
[null,null,null,"https://www.planning.dot.gov/Peer/Arizona/scottsdale_6-17-14_FHWA_target_setting.pdf  "]
[]
[null,null,null,"·        PlanWorks (2015) "]
[null,null,null,"https://fhwaapps.fhwa.dot.gov/planworks/Home  "]
[]
[null,null,null,"·       NCHRP Report 814: Data to Support Transportation Agency Business Needs: A Self-Assessment Guide (2015) "]
[null,null,null,"http://onlinepubs.trb.org/onlinepubs/nchrp/nchrp_rpt_814.pdf  "]
[]
[null,null,null,"·        Local Research Board (2016). Snow and Ice Control Guidebook - Report #2016RIC11. "]
[null,null,null,"http://www.dot.state.mn.us/research/TS/2016/2016RIC11.pdf"]
[]
[null,null,null,"Pooled Fund Study Reports"]
[]
[null,null,null,"Pooled Fund Programs facilitate research by combining resources of different stakeholders in order to achieve common research goals. Selected references funded through this program are presented below: "]
[]
[null,null,null,"o   Transportation Pooled Fund Program – Clear Roads http://clearroads.org/  "]
[]
[null,null,null,"o   15-03: North American Study on Contracting Snow and Ice Response  "]
[]
[null,null,null,"o   14-07: Identifying Best Practices for Snowplow Route Optimization (January 2017) "]
[]
[null,null,null,"o   14-10: Roadway Salt Best Management Practices (November 2015) "]
[]
[null,null,null,"o   13-03: Cost-Benefit of Various Winter Maintenance Strategies (September 2015) "]
[]
[null,null,null,"o   14-08: Weather Severity Mapping Enhancement (March 2015) "]
[]
[null,null,null,"o   10-03: Understanding the True Costs of Snow and Ice Control (January 2014) "]
[]
[null,null,null,"o   11-01: Cost-Benefit Analysis Toolkit (Phase II) (June 2013) "]
[]
[null,null,null,"o   Aurora, an international partnership of public road agencies working together to perform joint road weather research http://www.aurora-program.org/  "]
[]
[null,null,null,"o   2013-06: Make the Aurora Winter Severity Index Available to All (December 2015) "]
[]
[null,null,null,"o   2013-03: Improving Traffic Speed Estimations for Winter Maintenance Performance (April 2017) "]
[]
[null,null,null,"o   2012-02: Winter Weather Severity Index Enhancements, Phase 2 "]

{"sheet":"Lookup","index":14,"n_rows":92,"n_cols":86,"rows_kept":92,"cut":false,"hidden":true,"merged":[[0,1,0,3],[0,5,0,7]]}
[null,"Data Validation for 4a",null,null,null,"Data Validation for 4b",null,null,null,null,null,null,null,null,null,null,null,null,null,null,null,null,null,"Total Number of Variations","ID","Category","Performance Measure","Type","Timeframe","Geography","Severity Index Status","Additional","Concatenate","AVAILABLE VARIATIONS","ID","Available Variations",null,"Available Variations - Reformatted","Available Performance Measures:",{"$f":"$AA$2","v":"Fatalities"},{"$f":"$AA$26","v":"Injuries"},{"$f":"$AA$50","v":"Level of Service"},{"$f":"$AA$62","v":"Recovery"},{"$f":"$AA$70","v":"Reliability"},{"$f":"$AA$74","v":"Efficiency"},{"$f":"$AA$86","v":"Customer Satisfaction"},{"$f":"$AA$88","v":"Environmental Stewardship"},"AVAILABLE VARIATIONS",null,null,{"$f":"$AA$2","v":"Fatalities"},null,null,{"$f":"$AA$26","v":"Injuries"},null,null,{"$f":"$AA$50","v":"Level of Service"},null,null,{"$f":"$AA$62","v":"Recovery"},null,null,{"$f":"$AA$70","v":"Reliability"},null,null,{"$f":"$AA$74","v":"Efficiency"},null,null,{"$f":"$AA$86","v":"Customer Satisfaction"},null,null,{"$f":"$AA$88","v":"Environmental Stewardship"},null,null,"Totals","Max","Completeness","SumCheck:",null,null,null,"Available Performance Measures",null,null,null,"Unavailable Performance Measures"]
[null,"Number of events by type",{"$f":"IF(COUNTIF('Decision Guide'!$M$68:$M$72,B2)>=1,\"\",ROW()-1)","v":1},{"$f":"IF(ROW(B2:B6)-ROW($B$2:$B$6)+1>COUNT(C$2:C$6),\"\",INDEX($B$2:$B$6,SMALL(C$2:C$6,1+ROW(B2:B6)-ROW(B$2:B$6))))","v":"Number of events by type"},null,"Type of storm (freezing rain, sleet, snow, ice)",{"$f":"IF(COUNTIF('Decision Guide'!$Q$68:$Q$73,F2)>=1,\"\",ROW()-1)","v":1},{"$f":"IF(ROW(F2:F7)-ROW($F$2:$F$7)+1>COUNT(G$2:G$7),\"\",INDEX($F$2:$F$7,SMALL(G$2:G$7,1+ROW(F2:F7)-ROW(F$2:F$7))))","v":"Type of storm (freezing rain, sleet, snow, ice)"},null,null,null,null,null,null,null,null,null,null,null,null,null,null,null,null,1,"Safety","Fatalities","Winter Weather-Related Fatal Crashes","by winter season","state-wide/ region-wide","without seasonal severity index",null,{"$f":"IF(ISBLANK(AF2),CONCATENATE(Z2,\" \",\"-\",\" \",AA2,\":\",\" \",AB2,\",\",\" \",AC2,\",\",\" \",AD2,\",\",\" \",AE2,\".\"),CONCATENATE(Z2,\" \",\"-\",\" \",AA2,\":\",\" \",AB2,\",\",\" \",AC2,\",\",\" \",AD2,\",\",\" \",AE2,\",\",\" \",AF2,\".\"))","v":"Safety - Fatalities: Winter Weather-Related Fatal Crashes, by winter season, state-wide/ region-wide, without seasonal severity index."},null,1,{"$f":"IF(Response1=$L$15,\"\",IF(Response1=$L$13,\"\",$AG2))","v":"Safety - Fatalities: Winter Weather-Related Fatal Crashes, by winter season, state-wide/ region-wide, without seasonal severity index."},{"$f":"IF(COUNTIF($AJ$2:$AJ$91,AJ2)<>1,\"\",ROW()-1)","v":1},{"$f":"IF(ROW(AJ2:AJ91)-ROW($AJ$2:$AJ$91)+1>COUNT(AK$2:AK$91),\"\",INDEX($AJ$2:$AJ$91,SMALL(AK$2:AK$91,1+ROW(AJ2:AJ91)-ROW(AJ$2:AJ$91))))","v":"Safety - Fatalities: Winter Weather-Related Fatal Crashes, by winter season, state-wide/ region-wide, without seasonal severity index."},null,{"$f":"IFERROR(IF(FIND(AN$1,$AL2)>0,1,0),0)","v":1},{"$f":"IFERROR(IF(FIND(AO$1,$AL2)>0,1,0),0)","v":0},0,0,0,0,0,0,null,{"$f":"IF(AN2=1,INDEX($AL$1:$AL$91,ROW(),1),\"\")","v":"Safety - Fatalities: Winter Weather-Related Fatal Crashes, by winter season, state-wide/ region-wide, without seasonal severity index."},{"$f":"IF(COUNTIF($AW$2:$AW$91,AW2)<>1,\"\",ROW()-1)","v":1},{"$f":"IF(ROW(AW2:AW91)-ROW($AW$2:$AW$91)+1>COUNT(AX$2:AX$91),\"\",INDEX($AW$2:$AW$91,SMALL(AX$2:AX$91,1+ROW(AW2:AW91)-ROW(AW$2:AW$91))))","v":"Safety - Fatalities: Winter Weather-Related Fatal Crashes, by winter season, state-wide/ region-wide, without seasonal severity index."},{"$f":"IF(AO2=1,INDEX($AL$1:$AL$91,ROW(),1),\"\")","v":""},{"$f":"IF(COUNTIF($AZ$2:$AZ$91,AZ2)<>1,\"\",ROW()-1)","v":""},{"$f":"IF(ROW(AZ2:AZ91)-ROW($AZ$2:$AZ$91)+1>COUNT(BA$2:BA$91),\"\",INDEX($AZ$2:$AZ$91,SMALL(BA$2:BA$91,1+ROW(AZ2:AZ91)-ROW(AZ$2:AZ$91))))","v":"Safety - Injuries: Winter Weather-Related Serious Injury Crashes, by winter season, state-wide/ region-wide, without seasonal severity index."},{"$f":"IF(AP2=1,INDEX($AL$1:$AL$91,ROW(),1),\"\")","v":""},{"$f":"IF(COUNTIF($BC$2:$BC$91,BC2)<>1,\"\",ROW()-1)","v":""},{"$f":"IF(ROW(BC2:BC91)-ROW($BC$2:$BC$91)+1>COUNT(BD$2:BD$91),\"\",INDEX($BC$2:$BC$91,SMALL(BD$2:BD$91,1+ROW(BC2:BC91)-ROW(BC$2:BC$91))))","v":"Mobility - Level of Service: Accumulation-related threshold, by event, by roadway, without storm severity index, measured by field personnel."},{"$f":"IF(AQ2=1,INDEX($AL$1:$AL$91,ROW(),1),\"\")","v":""},{"$f":"IF(COUNTIF($BF$2:$BF$91,BF2)<>1,\"\",ROW()-1)","v":""},{"$f":"IF(ROW(BF2:BF91)-ROW($BF$2:$BF$91)+1>COUNT(BG$2:BG$91),\"\",INDEX($BF$2:$BF$91,SMALL(BG$2:BG$91,1+ROW(BF2:BF91)-ROW(BF$2:BF$91))))","v":"Mobility - Recovery: Road surface condition, by event, by roadway, without storm severity index, observed/ estimated."},{"$f":"IF(AR2=1,INDEX($AL$1:$AL$91,ROW(),1),\"\")","v":""},{"$f":"IF(COUNTIF($BI$2:$BI$91,BI2)<>1,\"\",ROW()-1)","v":""},{"$f":"IF(ROW(BI2:BI91)-ROW($BI$2:$BI$91)+1>COUNT(BJ$2:BJ$91),\"\",INDEX($BI$2:$BI$91,SMALL(BJ$2:BJ$91,1+ROW(BI2:BI91)-ROW(BI$2:BI$91))))","v":"Mobility - Reliability: Travel Time Index (TTI), by event, by trip, without storm severity index, estimated."},{"$f":"IF(AS2=1,INDEX($AL$1:$AL$91,ROW(),1),\"\")","v":""},{"$f":"IF(COUNTIF($BL$2:$BL$91,BL2)<>1,\"\",ROW()-1)","v":""},{"$f":"IF(ROW(BL2:BL91)-ROW($BL$2:$BL$91)+1>COUNT(BM$2:BM$91),\"\",INDEX($BL$2:$BL$91,SMALL(BM$2:BM$91,1+ROW(BL2:BL91)-ROW(BL$2:BL$91))))","v":"Sustainability - Efficiency: Cost of snow and ice control, by winter season, state-wide/ region-wide, without seasonal severity index."},{"$f":"IF(AT2=1,INDEX($AL$1:$AL$91,ROW(),1),\"\")","v":""},{"$f":"IF(COUNTIF($BO$2:$BO$91,BO2)<>1,\"\",ROW()-1)","v":""},{"$f":"IF(ROW(BO2:BO91)-ROW($BO$2:$BO$91)+1>COUNT(BP$2:BP$91),\"\",INDEX($BO$2:$BO$91,SMALL(BP$2:BP$91,1+ROW(BO2:BO91)-ROW(BO$2:BO$91))))","v":"Sustainability - Customer Satisfaction: Level of satisfaction, by winter season, state-wide/ region-wide, with or without seasonal severity index."},{"$f":"IF(AU2=1,INDEX($AL$1:$AL$91,ROW(),1),\"\")","v":""},{"$f":"IF(COUNTIF($BR$2:$BR$91,BR2)<>1,\"\",ROW()-1)","v":""},{"$f":"IF(ROW(BR2:BR91)-ROW($BR$2:$BR$91)+1>COUNT(BS$2:BS$91),\"\",INDEX($BR$2:$BR$91,SMALL(BS$2:BS$91,1+ROW(BR2:BR91)-ROW(BR$2:BR$91))))","v":"Sustainability - Environmental Stewardship: Current season usage, by winter season, state-wide/ region-wide, with seasonal severity index."},null,{"$f":"TRANSPOSE($AN$1:$AU$1)","v":"Fatalities"},{"$f":"HLOOKUP($BV2,$AN$1:$AU$92,ROW(AN$92),FALSE)","v":24},{"$f":"COUNTIF($AA$2:$AA$91,$BV2)","v":24},{"$f":"BW2/BX2","v":1},{"$f":"(SUM($AN$92:$AU$92)=$AL$92)","v":true},null,{"$f":"IF(BW2>0,INDEX($BV$2:$BV$9,ROW(BV2)-1,1),\"\")","v":"Fatalities"},{"$f":"IF(COUNTIF($CB$2:$CB$9,CB2)<>1,\"\",ROW()-1)","v":1},{"$f":"IF(ROW(CB2:CB9)-ROW($CB$2:$CB$9)+1>COUNT(CC$2:CC$9),\"\",INDEX($CB$2:$CB$9,SMALL(CC$2:CC$9,1+ROW(CB2:CB9)-ROW(CB$2:CB$9))))","v":"Fatalities"},null,{"$f":"IF(BW2=0,INDEX($BV$2:$BV$9,ROW(BV2)-1,1),\"\")","v":""},{"$f":"IF(COUNTIF($CF$2:$CF$9,CF2)<>1,\"\",ROW()-1)","v":""},{"$f":"IF(ROW(CF2:CF9)-ROW($CF$2:$CF$9)+1>COUNT(CG$2:CG$9),\"\",INDEX($CF$2:$CF$9,SMALL(CG$2:CG$9,1+ROW(CF2:CF9)-ROW(CF$2:CF$9))))","v":""}]
[null,"Daily weather \"scores\" during winter seasons",{"$f":"IF(COUNTIF('Decision Guide'!$M$68:$M$72,B3)>=1,\"\",ROW()-1)","v":2},{"$f":"IF(ROW(B3:B7)-ROW($B$2:$B$6)+1>COUNT(C$2:C$6),\"\",INDEX($B$2:$B$6,SMALL(C$2:C$6,1+ROW(B3:B7)-ROW(B$2:B$6))))","v":"Daily weather \"scores\" during winter seasons"},null,"Precipitation amount",{"$f":"IF(COUNTIF('Decision Guide'!$Q$68:$Q$73,F3)>=1,\"\",ROW()-1)","v":2},{"$f":"IF(ROW(F3:F8)-ROW($F$2:$F$7)+1>COUNT(G$2:G$7),\"\",INDEX($F$2:$F$7,SMALL(G$2:G$7,1+ROW(F3:F8)-ROW(F$2:F$7))))","v":"Precipitation amount"},null,null,null,null,null,null,null,null,null,null,null,null,null,null,null,null,2,"Safety","Fatalities","Winter Weather-Related Fatalities","by winter season","state-wide/ region-wide","without seasonal severity index",null,{"$f":"IF(ISBLANK(AF3),CONCATENATE(Z3,\" \",\"-\",\" \",AA3,\":\",\" \",AB3,\",\",\" \",AC3,\",\",\" \",AD3,\",\",\" \",AE3,\".\"),CONCATENATE(Z3,\" \",\"-\",\" \",AA3,\":\",\" \",AB3,\",\",\" \",AC3,\",\",\" \",AD3,\",\",\" \",AE3,\",\",\" \",AF3,\".\"))","v":"Safety - Fatalities: Winter Weather-Related Fatalities, by winter season, state-wide/ region-wide, without seasonal severity index."},null,2,{"$f":"IF(Response1=$L$15,\"\",IF(Response1=$L$12,\"\",$AG3))","v":"Safety - Fatalities: Winter Weather-Related Fatalities, by winter season, state-wide/ region-wide, without seasonal severity index."},2,"Safety - Fatalities: Winter Weather-Related Fatalities, by winter season, state-wide/ region-wide, without seasonal severity index.",null,{"$f":"IFERROR(IF(FIND(AN$1,$AL3)>0,1,0),0)","v":1},0,0,0,0,0,0,0,null,"Safety - Fatalities: Winter Weather-Related Fatalities, by winter season, state-wide/ region-wide, without seasonal severity index.",2,"Safety - Fatalities: Winter Weather-Related Fatalities, by winter season, state-wide/ region-wide, without seasonal severity index.","","","Safety - Injuries: Winter Weather-Related Serious Injuries, by winter season, state-wide/ region-wide, without seasonal severity index.","","","Mobility - Level of Service: Accumulation-related threshold, by event, by roadway, without storm severity index, measured by sensors.","","","Mobility - Recovery: Road surface condition, by event, by roadway, without storm severity index, measured (e.g. grip sensors).","","","Mobility - Reliability: Travel Time Index (TTI), by event, by trip, without storm severity index, measured.","","","Sustainability - Efficiency: Cost of snow and ice control, by winter season, state-wide/ region-wide, with seasonal severity index.","","","Sustainability - Customer Satisfaction: Level of satisfaction, by event, state-wide/ region-wide, with or without storm severity index.","","","Sustainability - Environmental Stewardship: Current season usage compared to prior seasons, by event, state-wide/ region-wide, with storm severity index.",null,"Injuries",24,24,{"$f":"BW3/BX3","v":1},null,null,{"$f":"IF(BW3>0,INDEX($BV$2:$BV$9,ROW(BV3)-1,1),\"\")","v":"Injuries"},{"$f":"IF(COUNTIF($CB$2:$CB$9,CB3)<>1,\"\",ROW()-1)","v":2},{"$f":"IF(ROW(CB3:CB10)-ROW($CB$2:$CB$9)+1>COUNT(CC$2:CC$9),\"\",INDEX($CB$2:$CB$9,SMALL(CC$2:CC$9,1+ROW(CB3:CB10)-ROW(CB$2:CB$9))))","v":"Injuries"},null,{"$f":"IF(BW3=0,INDEX($BV$2:$BV$9,ROW(BV3)-1,1),\"\")","v":""},{"$f":"IF(COUNTIF($CF$2:$CF$9,CF3)<>1,\"\",ROW()-1)","v":""},{"$f":"IF(ROW(CF3:CF10)-ROW($CF$2:$CF$9)+1>COUNT(CG$2:CG$9),\"\",INDEX($CF$2:$CF$9,SMALL(CG$2:CG$9,1+ROW(CF3:CF10)-ROW(CF$2:CF$9))))","v":""}]
[null,"Total precipitation amounts",{"$f":"IF(COUNTIF('Decision Guide'!$M$68:$M$72,B4)>=1,\"\",ROW()-1)","v":3},"Total precipitation amounts",null,"Precipitation intensity",{"$f":"IF(COUNTIF('Decision Guide'!$Q$68:$Q$73,F4)>=1,\"\",ROW()-1)","v":3},"Precipitation intensity",null,null,null,null,null,null,null,null,null,null,null,null,null,null,null,null,3,"Safety","Fatalities","Winter Weather-Related Fatal Crashes","by winter season","state-wide/ region-wide","with seasonal severity index",null,"Safety - Fatalities: Winter Weather-Related Fatal Crashes, by winter season, state-wide/ region-wide, with seasonal severity index.",null,3,{"$f":"IF(Response1=$L$15,\"\",IF(Response1=$L$13,\"\",IF(Response4=$L$30,\"\",$AG4)))","v":"Safety - Fatalities: Winter Weather-Related Fatal Crashes, by winter season, state-wide/ region-wide, with seasonal severity index."},3,"Safety - Fatalities: Winter Weather-Related Fatal Crashes, by winter season, state-wide/ region-wide, with seasonal severity index.",null,1,0,0,0,0,0,0,0,null,"Safety - Fatalities: Winter Weather-Related Fatal Crashes, by winter season, state-wide/ region-wide, with seasonal severity index.",3,"Safety - Fatalities: Winter Weather-Related Fatal Crashes, by winter season, state-wide/ region-wide, with seasonal severity index.","","","Safety - Injuries: Winter Weather-Related Serious Injury Crashes, by winter season, state-wide/ region-wide, with seasonal severity index.","","","Mobility - Level of Service: Accumulation-related threshold, by event, by roadway, with storm severity index, measured by field personnel.","","","Mobility - Recovery: Road surface condition, by event, by roadway, with storm severity index, observed/ estimated.","","","Mobility - Reliability: Travel Time Index (TTI), by event, by trip, with storm severity index, estimated.","","","Sustainability - Efficiency: Cost of snow and ice control, by event, state-wide/ region-wide, without storm severity index.","","","","","","Sustainability - Environmental Stewardship: Current season usage, by event, state-wide/ region-wide, with storm severity index.",null,"Level of Service",12,12,1,null,null,"Level of Service",3,"Level of Service",null,"","",""]
[null,"Total weather-hours or weather-days",{"$f":"IF(COUNTIF('Decision Guide'!$M$68:$M$72,B5)>=1,\"\",ROW()-1)","v":4},"Total weather-hours or weather-days",null,"Precipitation timing",{"$f":"IF(COUNTIF('Decision Guide'!$Q$68:$Q$73,F5)>=1,\"\",ROW()-1)","v":4},"Precipitation timing",null,null,null,null,null,null,null,null,null,null,null,null,null,null,null,null,4,"Safety","Fatalities","Winter Weather-Related Fatalities","by winter season","state-wide/ region-wide","with seasonal severity index",null,"Safety - Fatalities: Winter Weather-Related Fatalities, by winter season, state-wide/ region-wide, with seasonal severity index.",null,4,{"$f":"IF(Response1=$L$15,\"\",IF(Response1=$L$12,\"\",IF(Response4=$L$30,\"\",$AG5)))","v":"Safety - Fatalities: Winter Weather-Related Fatalities, by winter season, state-wide/ region-wide, with seasonal severity index."},4,"Safety - Fatalities: Winter Weather-Related Fatalities, by winter season, state-wide/ region-wide, with seasonal severity index.",null,1,0,0,0,0,0,0,0,null,"Safety - Fatalities: Winter Weather-Related Fatalities, by winter season, state-wide/ region-wide, with seasonal severity index.",4,"Safety - Fatalities: Winter Weather-Related Fatalities, by winter season, state-wide/ region-wide, with seasonal severity index.","","","Safety - Injuries: Winter Weather-Related Serious Injuries, by winter season, state-wide/ region-wide, with seasonal severity index.","","","Mobility - Level of Service: Accumulation-related threshold, by event, by roadway, with storm severity index, measured by sensors.","","","Mobility - Recovery: Road surface condition, by event, by roadway, with storm severity index, measured (e.g. grip sensors).","","","Mobility - Reliability: Travel Time Index (TTI), by event, by trip, with storm severity index, measured.","","","Sustainability - Efficiency: Cost of snow and ice control, by event, state-wide/ region-wide, with storm severity index.","","","","","","Sustainability - Environmental Stewardship: Current season usage compared to prior seasons, by winter season, state-wide/ region-wide, with seasonal severity index.",null,"Recovery",8,8,1,null,null,"Recovery",4,"Recovery",null,"","",""]
[null,"Other factors",{"$f":"IF(COUNTIF('Decision Guide'!$M$68:$M$72,B6)>=1,\"\",ROW()-1)","v":5},"Other factors",null,"Precipitation extent",{"$f":"IF(COUNTIF('Decision Guide'!$Q$68:$Q$73,F6)>=1,\"\",ROW()-1)","v":5},"Precipitation extent",null,null,null,null,null,null,null,null,null,null,null,null,null,null,null,null,5,"Safety","Fatalities","Winter Weather-Related Fatal Crashes","by winter season","district-wide","without seasonal severity index",null,"Safety - Fatalities: Winter Weather-Related Fatal Crashes, by winter season, district-wide, without seasonal severity index.",null,5,{"$f":"IF(Response1=$L$15,\"\",IF(Response1=$L$13,\"\",IF(Response6=$L$37,\"\",$AG6)))","v":"Safety - Fatalities: Winter Weather-Related Fatal Crashes, by winter season, district-wide, without seasonal severity index."},5,"Safety - Fatalities: Winter Weather-Related Fatal Crashes, by winter season, district-wide, without seasonal severity index.",null,1,0,0,0,0,0,0,0,null,"Safety - Fatalities: Winter Weather-Related Fatal Crashes, by winter season, district-wide, without seasonal severity index.",5,"Safety - Fatalities: Winter Weather-Related Fatal Crashes, by winter season, district-wide, without seasonal severity index.","","","Safety - Injuries: Winter Weather-Related Serious Injury Crashes, by winter season, district-wide, without seasonal severity index.","","","Mobility - Level of Service: Friction-related threshold, by event, by roadway, without storm severity index, qualitative estimate by field personnel.","","","Mobility - Recovery: Recovery to normal speeds, by event, by roadway, without storm severity index, estimated.","","","","","","Sustainability - Efficiency: Cost of snow and ice control, by winter season, district-wide, without seasonal severity index.","","","","","","",null,"Reliability",4,4,1,null,null,"Reliability",5,"Reliability",null,"","",""]
[null,null,null,null,null,"Other factors present during event (wind, visibility)",{"$f":"IF(COUNTIF('Decision Guide'!$Q$68:$Q$73,F7)>=1,\"\",ROW()-1)","v":6},"Other factors present during event (wind, visibility)",null,null,null,null,null,null,null,null,null,null,null,null,null,null,null,null,6,"Safety","Fatalities","Winter Weather-Related Fatalities","by winter season","district-wide","without seasonal severity index",null,"Safety - Fatalities: Winter Weather-Related Fatalities, by winter season, district-wide, without seasonal severity index.",null,6,{"$f":"IF(Response1=$L$15,\"\",IF(Response1=$L$12,\"\",IF(Response6=$L$37,\"\",$AG7)))","v":"Safety - Fatalities: Winter Weather-Related Fatalities, by winter season, district-wide, without seasonal severity index."},6,"Safety - Fatalities: Winter Weather-Related Fatalities, by winter season, district-wide, without seasonal severity index.",null,1,0,0,0,0,0,0,0,null,"Safety - Fatalities: Winter Weather-Related Fatalities, by winter season, district-wide, without seasonal severity index.",6,"Safety - Fatalities: Winter Weather-Related Fatalities, by winter season, district-wide, without seasonal severity index.","","","Safety - Injuries: Winter Weather-Related Serious Injuries, by winter season, district-wide, without seasonal severity index.","","","Mobility - Level of Service: Friction-related threshold, by event, by roadway, without storm severity index, measured by sensors.","","","Mobility - Recovery: Recovery to normal speeds, by event, by roadway, without storm severity index, measured by sensors.","","","","","","Sustainability - Efficiency: Cost of snow and ice control, by winter season, district-wide, with seasonal severity index.","","","","","","",null,"Efficiency",12,12,1,null,null,"Efficiency",6,"Efficiency",null,"","",""]
[null,null,null,null,null,null,null,null,null,null,null,null,null,null,null,null,null,null,null,null,null,null,null,null,7,"Safety","Fatalities","Winter Weather-Related Fatal Crashes","by winter season","district-wide","with seasonal severity index",null,"Safety - Fatalities: Winter Weather-Related Fatal Crashes, by winter season, district-wide, with seasonal severity index.",null,7,{"$f":"IF(Response1=$L$15,\"\",IF(Response1=$L$13,\"\",IF(Response4=$L$30,\"\",IF(Response6=$L$37,\"\",$AG8))))","v":"Safety - Fatalities: Winter Weather-Related Fatal Crashes, by winter season, district-wide, with seasonal severity index."},7,"Safety - Fatalities: Winter Weather-Related Fatal Crashes, by winter season, district-wide, with seasonal severity index.",null,1,0,0,0,0,0,0,0,null,"Safety - Fatalities: Winter Weather-Related Fatal Crashes, by winter season, district-wide, with seasonal severity index.",7,"Safety - Fatalities: Winter Weather-Related Fatal Crashes, by winter season, district-wide, with seasonal severity index.","","","Safety - Injuries: Winter Weather-Related Serious Injury Crashes, by winter season, district-wide, with seasonal severity index.","","","Mobility - Level of Service: Friction-related threshold, by event, by roadway, with storm severity index, qualitative estimate by field personnel.","","","Mobility - Recovery: Recovery to normal speeds, by event, by roadway, with storm severity index, estimated.","","","","","","Sustainability - Efficiency: Cost of snow and ice control, by event, district-wide, without storm severity index.","","","","","","",null,"Customer Satisfaction",2,2,1,null,null,"Customer Satisfaction",7,"Customer Satisfaction",null,"","",""]
[null,null,null,null,null,null,null,null,null,null,null,null,null,null,null,null,"User Response:",null,null,"User Response:",null,null,"User Response:",null,8,"Safety","Fatalities","Winter Weather-Related Fatalities","by winter season","district-wide","with seasonal severity index",null,"Safety - Fatalities: Winter Weather-Related Fatalities, by winter season, district-wide, with seasonal severity index.",null,8,{"$f":"IF(Response1=$L$15,\"\",IF(Response1=$L$12,\"\",IF(Response4=$L$30,\"\",IF(Response6=$L$37,\"\",$AG9))))","v":"Safety - Fatalities: Winter Weather-Related Fatalities, by winter season, district-wide, with seasonal severity index."},8,"Safety - Fatalities: Winter Weather-Related Fatalities, by winter season, district-wide, with seasonal severity index.",null,1,0,0,0,0,0,0,0,null,"Safety - Fatalities: Winter Weather-Related Fatalities, by winter season, district-wide, with seasonal severity index.",8,"Safety - Fatalities: Winter Weather-Related Fatalities, by winter season, district-wide, with seasonal severity index.","","","Safety - Injuries: Winter Weather-Related Serious Injuries, by winter season, district-wide, with seasonal severity index.","","","Mobility - Level of Service: Friction-related threshold, by event, by roadway, with storm severity index, measured by sensors.","","","Mobility - Recovery: Recovery to normal speeds, by event, by roadway, with storm severity index, measured by sensors.","","","","","","Sustainability - Efficiency: Cost of snow and ice control, by event, district-wide, with storm severity index.","","","","","","",null,"Environmental Stewardship",4,4,1,null,null,"Environmental Stewardship",8,"Environmental Stewardship",null,"","",""]
[null,null,null,null,null,null,null,null,null,null,null,null,"User Response:","Alterative Responses (N/As)","1a","Choose among:",{"$f":"IF(ISBLANK('Decision Guide'!$M$35),\"\",'Decision Guide'!$M$35)","v":""},"1b","Choose among:",{"$f":"IF(ISBLANK('Decision Guide'!$Q$35),\"\",'Decision Guide'!$Q$35)","v":""},"1c","Choose among:",{"$f":"IF(ISBLANK('Decision Guide'!$U$35),\"\",'Decision Guide'!$U$35)","v":""},null,9,"Safety","Fatalities","Winter Weather-Related Fatal Crashes","by winter season","by roadway","without seasonal severity index",null,"Safety - Fatalities: Winter Weather-Related Fatal Crashes, by winter season, by roadway, without seasonal severity index.",null,9,{"$f":"IF(Response1=$L$15,\"\",IF(Response1=$L$13,\"\",IF(OR(Response6=$L$37,Response6=$L$38),\"\",$AG10)))","v":"Safety - Fatalities: Winter Weather-Related Fatal Crashes, by winter season, by roadway, without seasonal severity index."},9,{"$f":"IF(ROW(AJ10:AJ98)-ROW($AJ$2:$AJ$91)+1>COUNT(AK$2:AK$91),\"\",INDEX($AJ$2:$AJ$91,SMALL(AK$2:AK$91,1+ROW(AJ10:AJ98)-ROW(AJ$2:AJ$91))))","v":"Safety - Fatalities: Winter Weather-Related Fatal Crashes, by winter season, by roadway, without seasonal severity index."},null,1,0,0,0,0,0,0,0,null,"Safety - Fatalities: Winter Weather-Related Fatal Crashes, by winter season, by roadway, without seasonal severity index.",9,{"$f":"IF(ROW(AW10:AW98)-ROW($AW$2:$AW$91)+1>COUNT(AX$2:AX$91),\"\",INDEX($AW$2:$AW$91,SMALL(AX$2:AX$91,1+ROW(AW10:AW98)-ROW(AW$2:AW$91))))","v":"Safety - Fatalities: Winter Weather-Related Fatal Crashes, by winter season, by roadway, without seasonal severity index."},"","",{"$f":"IF(ROW(AZ10:AZ98)-ROW($AZ$2:$AZ$91)+1>COUNT(BA$2:BA$91),\"\",INDEX($AZ$2:$AZ$91,SMALL(BA$2:BA$91,1+ROW(AZ10:AZ98)-ROW(AZ$2:AZ$91))))","v":"Safety - Injuries: Winter Weather-Related Serious Injury Crashes, by winter season, by roadway, without seasonal severity index."},"","",{"$f":"IF(ROW(BC10:BC98)-ROW($BC$2:$BC$91)+1>COUNT(BD$2:BD$91),\"\",INDEX($BC$2:$BC$91,SMALL(BD$2:BD$91,1+ROW(BC10:BC98)-ROW(BC$2:BC$91))))","v":"Mobility - Level of Service: Travel speed-related threshold, by event, by roadway, without storm severity index, segment-based (e.g. probe data)."},"","",{"$f":"IF(ROW(BF10:BF98)-ROW($BF$2:$BF$91)+1>COUNT(BG$2:BG$91),\"\",INDEX($BF$2:$BF$91,SMALL(BG$2:BG$91,1+ROW(BF10:BF98)-ROW(BF$2:BF$91))))","v":""},"","",{"$f":"IF(ROW(BI10:BI98)-ROW($BI$2:$BI$91)+1>COUNT(BJ$2:BJ$91),\"\",INDEX($BI$2:$BI$91,SMALL(BJ$2:BJ$91,1+ROW(BI10:BI98)-ROW(BI$2:BI$91))))","v":""},"","",{"$f":"IF(ROW(BL10:BL98)-ROW($BL$2:$BL$91)+1>COUNT(BM$2:BM$91),\"\",INDEX($BL$2:$BL$91,SMALL(BM$2:BM$91,1+ROW(BL10:BL98)-ROW(BL$2:BL$91))))","v":"Sustainability - Efficiency: Cost of snow and ice control, by winter season, by roadway, without seasonal severity index."},"","",{"$f":"IF(ROW(BO10:BO98)-ROW($BO$2:$BO$91)+1>COUNT(BP$2:BP$91),\"\",INDEX($BO$2:$BO$91,SMALL(BP$2:BP$91,1+ROW(BO10:BO98)-ROW(BO$2:BO$91))))","v":""},"","",{"$f":"IF(ROW(BR10:BR98)-ROW($BR$2:$BR$91)+1>COUNT(BS$2:BS$91),\"\",INDEX($BR$2:$BR$91,SMALL(BS$2:BS$91,1+ROW(BR10:BR98)-ROW(BR$2:BR$91))))","v":""}]
[null,null,null,null,null,null,null,null,null,null,1,"Choose among:",{"$f":"IF(ISBLANK('Decision Guide'!$F$35),\"\",'Decision Guide'!$F$35)","v":""},null,null,"Agency-owned database",null,null,"1-2 months",null,null,"Visibility conditions",null,null,10,"Safety","Fatalities","Winter Weather-Related Fatalities","by winter season","by roadway","without seasonal severity index",null,"Safety - Fatalities: Winter Weather-Related Fatalities, by winter season, by roadway, without seasonal severity index.",null,10,{"$f":"IF(Response1=$L$15,\"\",IF(Response1=$L$12,\"\",IF(OR(Response6=$L$37,Response6=$L$38),\"\",$AG11)))","v":"Safety - Fatalities: Winter Weather-Related Fatalities, by winter season, by roadway, without seasonal severity index."},10,{"$f":"IF(ROW(AJ11:AJ98)-ROW($AJ$2:$AJ$91)+1>COUNT(AK$2:AK$91),\"\",INDEX($AJ$2:$AJ$91,SMALL(AK$2:AK$91,1+ROW(AJ11:AJ98)-ROW(AJ$2:AJ$91))))","v":"Safety - Fatalities: Winter Weather-Related Fatalities, by winter season, by roadway, without seasonal severity index."},null,1,0,0,0,0,0,0,0,null,"Safety - Fatalities: Winter Weather-Related Fatalities, by winter season, by roadway, without seasonal severity index.",10,{"$f":"IF(ROW(AW11:AW98)-ROW($AW$2:$AW$91)+1>COUNT(AX$2:AX$91),\"\",INDEX($AW$2:$AW$91,SMALL(AX$2:AX$91,1+ROW(AW11:AW98)-ROW(AW$2:AW$91))))","v":"Safety - Fatalities: Winter Weather-Related Fatalities, by winter season, by roadway, without seasonal severity index."},"","",{"$f":"IF(ROW(AZ11:AZ98)-ROW($AZ$2:$AZ$91)+1>COUNT(BA$2:BA$91),\"\",INDEX($AZ$2:$AZ$91,SMALL(BA$2:BA$91,1+ROW(AZ11:AZ98)-ROW(AZ$2:AZ$91))))","v":"Safety - Injuries: Winter Weather-Related Serious Injuries, by winter season, by roadway, without seasonal severity index."},"","",{"$f":"IF(ROW(BC11:BC98)-ROW($BC$2:$BC$91)+1>COUNT(BD$2:BD$91),\"\",INDEX($BC$2:$BC$91,SMALL(BD$2:BD$91,1+ROW(BC11:BC98)-ROW(BC$2:BC$91))))","v":"Mobility - Level of Service: Travel speed-related threshold, by event, by roadway, without storm severity index, point based (e.g. sensor)."},"","",{"$f":"IF(ROW(BF11:BF98)-ROW($BF$2:$BF$91)+1>COUNT(BG$2:BG$91),\"\",INDEX($BF$2:$BF$91,SMALL(BG$2:BG$91,1+ROW(BF11:BF98)-ROW(BF$2:BF$91))))","v":""},"","",{"$f":"IF(ROW(BI11:BI98)-ROW($BI$2:$BI$91)+1>COUNT(BJ$2:BJ$91),\"\",INDEX($BI$2:$BI$91,SMALL(BJ$2:BJ$91,1+ROW(BI11:BI98)-ROW(BI$2:BI$91))))","v":""},"","",{"$f":"IF(ROW(BL11:BL98)-ROW($BL$2:$BL$91)+1>COUNT(BM$2:BM$91),\"\",INDEX($BL$2:$BL$91,SMALL(BM$2:BM$91,1+ROW(BL11:BL98)-ROW(BL$2:BL$91))))","v":"Sustainability - Efficiency: Cost of snow and ice control, by winter season, by roadway, with seasonal severity index."},"","",{"$f":"IF(ROW(BO11:BO98)-ROW($BO$2:$BO$91)+1>COUNT(BP$2:BP$91),\"\",INDEX($BO$2:$BO$91,SMALL(BP$2:BP$91,1+ROW(BO11:BO98)-ROW(BO$2:BO$91))))","v":""},"","",{"$f":"IF(ROW(BR11:BR98)-ROW($BR$2:$BR$91)+1>COUNT(BS$2:BS$91),\"\",INDEX($BR$2:$BR$91,SMALL(BS$2:BS$91,1+ROW(BR11:BR98)-ROW(BR$2:BR$91))))","v":""}]
[null,null,null,null,null,null,null,null,null,null,null,"Yes, fatal crashes by winter season",null,null,null,"Police or law enforcement records",null,null,"2-6 months",null,null,"Atmospheric conditions during the time of the incident",null,null,11,"Safety","Fatalities","Winter Weather-Related Fatal Crashes","by winter season","by roadway","with seasonal severity index",null,"Safety - Fatalities: Winter Weather-Related Fatal Crashes, by winter season, by roadway, with seasonal severity index.",null,11,{"$f":"IF(Response1=$L$15,\"\",IF(Response1=$L$13,\"\",IF(Response4=$L$30,\"\",IF(OR(Response6=$L$37,Response6=$L$38),\"\",$AG12))))","v":"Safety - Fatalities: Winter Weather-Related Fatal Crashes, by winter season, by roadway, with seasonal severity index."},11,{"$f":"IF(ROW(AJ12:AJ98)-ROW($AJ$2:$AJ$91)+1>COUNT(AK$2:AK$91),\"\",INDEX($AJ$2:$AJ$91,SMALL(AK$2:AK$91,1+ROW(AJ12:AJ98)-ROW(AJ$2:AJ$91))))","v":"Safety - Fatalities: Winter Weather-Related Fatal Crashes, by winter season, by roadway, with seasonal severity index."},null,1,0,0,0,0,0,0,0,null,"Safety - Fatalities: Winter Weather-Related Fatal Crashes, by winter season, by roadway, with seasonal severity index.",11,{"$f":"IF(ROW(AW12:AW98)-ROW($AW$2:$AW$91)+1>COUNT(AX$2:AX$91),\"\",INDEX($AW$2:$AW$91,SMALL(AX$2:AX$91,1+ROW(AW12:AW98)-ROW(AW$2:AW$91))))","v":"Safety - Fatalities: Winter Weather-Related Fatal Crashes, by winter season, by roadway, with seasonal severity index."},"","",{"$f":"IF(ROW(AZ12:AZ98)-ROW($AZ$2:$AZ$91)+1>COUNT(BA$2:BA$91),\"\",INDEX($AZ$2:$AZ$91,SMALL(BA$2:BA$91,1+ROW(AZ12:AZ98)-ROW(AZ$2:AZ$91))))","v":"Safety - Injuries: Winter Weather-Related Serious Injury Crashes, by winter season, by roadway, with seasonal severity index."},"","",{"$f":"IF(ROW(BC12:BC98)-ROW($BC$2:$BC$91)+1>COUNT(BD$2:BD$91),\"\",INDEX($BC$2:$BC$91,SMALL(BD$2:BD$91,1+ROW(BC12:BC98)-ROW(BC$2:BC$91))))","v":"Mobility - Level of Service: Travel speed-related threshold, by event, by roadway, with storm severity index, segment-based (e.g. probe data)."},"","",{"$f":"IF(ROW(BF12:BF98)-ROW($BF$2:$BF$91)+1>COUNT(BG$2:BG$91),\"\",INDEX($BF$2:$BF$91,SMALL(BG$2:BG$91,1+ROW(BF12:BF98)-ROW(BF$2:BF$91))))","v":""},"","",{"$f":"IF(ROW(BI12:BI98)-ROW($BI$2:$BI$91)+1>COUNT(BJ$2:BJ$91),\"\",INDEX($BI$2:$BI$91,SMALL(BJ$2:BJ$91,1+ROW(BI12:BI98)-ROW(BI$2:BI$91))))","v":""},"","",{"$f":"IF(ROW(BL12:BL98)-ROW($BL$2:$BL$91)+1>COUNT(BM$2:BM$91),\"\",INDEX($BL$2:$BL$91,SMALL(BM$2:BM$91,1+ROW(BL12:BL98)-ROW(BL$2:BL$91))))","v":"Sustainability - Efficiency: Cost of snow and ice control, by event, by roadway, without storm severity index."},"","",{"$f":"IF(ROW(BO12:BO98)-ROW($BO$2:$BO$91)+1>COUNT(BP$2:BP$91),\"\",INDEX($BO$2:$BO$91,SMALL(BP$2:BP$91,1+ROW(BO12:BO98)-ROW(BO$2:BO$91))))","v":""},"","",{"$f":"IF(ROW(BR12:BR98)-ROW($BR$2:$BR$91)+1>COUNT(BS$2:BS$91),\"\",INDEX($BR$2:$BR$91,SMALL(BS$2:BS$91,1+ROW(BR12:BR98)-ROW(BR$2:BR$91))))","v":""}]
[null,null,null,null,null,null,null,null,null,null,null,"Yes, fatalities by winter season",null,null,null,"Federal crash databases",null,null,"6 months to a year",null,null,"Roadway surface conditions at the time of the incident",null,null,12,"Safety","Fatalities","Winter Weather-Related Fatalities","by winter season","by roadway","with seasonal severity index",null,"Safety - Fatalities: Winter Weather-Related Fatalities, by winter season, by roadway, with seasonal severity index.",null,12,{"$f":"IF(Response1=$L$15,\"\",IF(Response1=$L$12,\"\",IF(Response4=$L$30,\"\",IF(OR(Response6=$L$37,Response6=$L$38),\"\",$AG13))))","v":"Safety - Fatalities: Winter Weather-Related Fatalities, by winter season, by roadway, with seasonal severity index."},12,"Safety - Fatalities: Winter Weather-Related Fatalities, by winter season, by roadway, with seasonal severity index.",null,1,0,0,0,0,0,0,0,null,"Safety - Fatalities: Winter Weather-Related Fatalities, by winter season, by roadway, with seasonal severity index.",12,"Safety - Fatalities: Winter Weather-Related Fatalities, by winter season, by roadway, with seasonal severity index.","","","Safety - Injuries: Winter Weather-Related Serious Injuries, by winter season, by roadway, with seasonal severity index.","","","Mobility - Level of Service: Travel speed-related threshold, by event, by roadway, with storm severity index, point based (e.g. sensor).","","","","","","","","","Sustainability - Efficiency: Cost of snow and ice control, by event, by roadway, with storm severity index.","","","","","",""]
[null,null,null,null,null,null,null,null,null,null,null,"Yes, both fatal crashes and fatalities by winter season",null,null,null,"2 or all 3 of the above (agency-owned database, police records, federal crash databases)",null,null,null,null,null,"2 or all 3 of the above (visibility conditions, atmospheric conditions, roadway surface conditions)",null,null,13,"Safety","Fatalities","Winter Weather-Related Fatal Crashes","by event","state-wide/ region-wide","without storm severity index",null,"Safety - Fatalities: Winter Weather-Related Fatal Crashes, by event, state-wide/ region-wide, without storm severity index.",null,13,{"$f":"IF(Response1=$L$15,\"\",IF(Response1=$L$13,\"\",IF(Response3=$L$25,\"\",IF(Response5=$L$34,\"\",$AG14))))","v":"Safety - Fatalities: Winter Weather-Related Fatal Crashes, by event, state-wide/ region-wide, without storm severity index."},13,"Safety - Fatalities: Winter Weather-Related Fatal Crashes, by event, state-wide/ region-wide, without storm severity index.",null,1,0,0,0,0,0,0,0,null,"Safety - Fatalities: Winter Weather-Related Fatal Crashes, by event, state-wide/ region-wide, without storm severity index.",13,"Safety - Fatalities: Winter Weather-Related Fatal Crashes, by event, state-wide/ region-wide, without storm severity index.","","","Safety - Injuries: Winter Weather-Related Serious Injury Crashes, by event, state-wide/ region-wide, without storm severity index.","","","","","","","","","","","","","","","","","",""]
[null,null,null,null,null,null,null,null,null,null,null,"No",null,null,null,null,null,null,null,null,null,"No additional factors available",null,null,14,"Safety","Fatalities","Winter Weather-Related Fatalities","by event","state-wide/ region-wide","without storm severity index",null,"Safety - Fatalities: Winter Weather-Related Fatalities, by event, state-wide/ region-wide, without storm severity index.",null,14,{"$f":"IF(Response1=$L$15,\"\",IF(Response1=$L$12,\"\",IF(Response3=$L$25,\"\",IF(Response5=$L$34,\"\",$AG15))))","v":"Safety - Fatalities: Winter Weather-Related Fatalities, by event, state-wide/ region-wide, without storm severity index."},14,"Safety - Fatalities: Winter Weather-Related Fatalities, by event, state-wide/ region-wide, without storm severity index.",null,1,0,0,0,0,0,0,0,null,"Safety - Fatalities: Winter Weather-Related Fatalities, by event, state-wide/ region-wide, without storm severity index.",14,"Safety - Fatalities: Winter Weather-Related Fatalities, by event, state-wide/ region-wide, without storm severity index.","","","Safety - Injuries: Winter Weather-Related Serious Injuries, by event, state-wide/ region-wide, without storm severity index.","","","","","","","","","","","","","","","","","",""]
[null,null,null,null,null,null,null,null,null,null,null,null,null,null,null,null,null,null,null,null,null,null,null,null,15,"Safety","Fatalities","Winter Weather-Related Fatal Crashes","by event","state-wide/ region-wide","with storm severity index",null,"Safety - Fatalities: Winter Weather-Related Fatal Crashes, by event, state-wide/ region-wide, with storm severity index.",null,15,{"$f":"IF(Response1=$L$15,\"\",IF(Response1=$L$13,\"\",IF(Response3=$L$25,\"\",IF(OR(Response4=$L$30,Response4=$L$28),\"\",IF(Response5=$L$34,\"\",$AG16)))))","v":"Safety - Fatalities: Winter Weather-Related Fatal Crashes, by event, state-wide/ region-wide, with storm severity index."},15,"Safety - Fatalities: Winter Weather-Related Fatal Crashes, by event, state-wide/ region-wide, with storm severity index.",null,1,0,0,0,0,0,0,0,null,"Safety - Fatalities: Winter Weather-Related Fatal Crashes, by event, state-wide/ region-wide, with storm severity index.",15,"Safety - Fatalities: Winter Weather-Related Fatal Crashes, by event, state-wide/ region-wide, with storm severity index.","","","Safety - Injuries: Winter Weather-Related Serious Injury Crashes, by event, state-wide/ region-wide, with storm severity index.","","","","","","","","","","","","","","","","","",""]
[null,null,null,null,null,null,null,null,null,null,2,"Choose among:",{"$f":"IF(ISBLANK('Decision Guide'!$F$44),\"\",'Decision Guide'!$F$44)","v":""},null,"2a","Choose among:",{"$f":"IF(ISBLANK('Decision Guide'!$M$44),\"\",'Decision Guide'!$M$44)","v":""},"2b","Choose among:",{"$f":"IF(ISBLANK('Decision Guide'!$Q$44),\"\",'Decision Guide'!$Q$44)","v":""},"2c","Choose among:",{"$f":"IF(ISBLANK('Decision Guide'!$U$44),\"\",'Decision Guide'!$U$44)","v":""},null,16,"Safety","Fatalities","Winter Weather-Related Fatalities","by event","state-wide/ region-wide","with storm severity index",null,"Safety - Fatalities: Winter Weather-Related Fatalities, by event, state-wide/ region-wide, with storm severity index.",null,16,{"$f":"IF(Response1=$L$15,\"\",IF(Response1=$L$12,\"\",IF(Response3=$L$25,\"\",IF(OR(Response4=$L$30,Response4=$L$28),\"\",IF(Response5=$L$34,\"\",$AG17)))))","v":"Safety - Fatalities: Winter Weather-Related Fatalities, by event, state-wide/ region-wide, with storm severity index."},16,"Safety - Fatalities: Winter Weather-Related Fatalities, by event, state-wide/ region-wide, with storm severity index.",null,1,0,0,0,0,0,0,0,null,"Safety - Fatalities: Winter Weather-Related Fatalities, by event, state-wide/ region-wide, with storm severity index.",16,"Safety - Fatalities: Winter Weather-Related Fatalities, by event, state-wide/ region-wide, with storm severity index.","","","Safety - Injuries: Winter Weather-Related Serious Injuries, by event, state-wide/ region-wide, with storm severity index.","","","","","","","","","","","","","","","","","",""]
[null,null,null,null,null,null,null,null,null,null,null,"Yes, serious injury crashes by winter season",null,null,null,"Agency-owned database",null,null,"1-2 months",null,null,"Visibility conditions",null,null,17,"Safety","Fatalities","Winter Weather-Related Fatal Crashes","by event","district-wide","without storm severity index",null,"Safety - Fatalities: Winter Weather-Related Fatal Crashes, by event, district-wide, without storm severity index.",null,17,{"$f":"IF(Response1=$L$15,\"\",IF(Response1=$L$13,\"\",IF(Response3=$L$25,\"\",IF(Response5=$L$34,\"\",IF(Response6=$L$37,\"\",$AG18)))))","v":"Safety - Fatalities: Winter Weather-Related Fatal Crashes, by event, district-wide, without storm severity index."},17,"Safety - Fatalities: Winter Weather-Related Fatal Crashes, by event, district-wide, without storm severity index.",null,1,0,0,0,0,0,0,0,null,"Safety - Fatalities: Winter Weather-Related Fatal Crashes, by event, district-wide, without storm severity index.",17,"Safety - Fatalities: Winter Weather-Related Fatal Crashes, by event, district-wide, without storm severity index.","","","Safety - Injuries: Winter Weather-Related Serious Injury Crashes, by event, district-wide, without storm severity index.","","","","","","","","","","","","","","","","","",""]
[null,null,null,null,null,null,null,null,null,null,null,"Yes, serious injuries by winter season",null,null,null,"Police or law enforcement records",null,null,"2-6 months",null,null,"Atmospheric conditions during the time of the incident",null,null,18,"Safety","Fatalities","Winter Weather-Related Fatalities","by event","district-wide","without storm severity index",null,"Safety - Fatalities: Winter Weather-Related Fatalities, by event, district-wide, without storm severity index.",null,18,{"$f":"IF(Response1=$L$15,\"\",IF(Response1=$L$12,\"\",IF(Response3=$L$25,\"\",IF(Response5=$L$34,\"\",IF(Response6=$L$37,\"\",$AG19)))))","v":"Safety - Fatalities: Winter Weather-Related Fatalities, by event, district-wide, without storm severity index."},18,"Safety - Fatalities: Winter Weather-Related Fatalities, by event, district-wide, without storm severity index.",null,1,0,0,0,0,0,0,0,null,"Safety - Fatalities: Winter Weather-Related Fatalities, by event, district-wide, without storm severity index.",18,"Safety - Fatalities: Winter Weather-Related Fatalities, by event, district-wide, without storm severity index.","","","Safety - Injuries: Winter Weather-Related Serious Injuries, by event, district-wide, without storm severity index.","","","","","","","","","","","","","","","","","",""]
[null,null,null,null,null,null,null,null,null,null,null,"Yes, both serious injury crashes and serious injuries by winter season",null,null,null,"Federal crash databases",null,null,"6 months to a year",null,null,"Roadway surface conditions at the time of the incident",null,null,19,"Safety","Fatalities","Winter Weather-Related Fatal Crashes","by event","district-wide","with storm severity index",null,"Safety - Fatalities: Winter Weather-Related Fatal Crashes, by event, district-wide, with storm severity index.",null,19,{"$f":"IF(Response1=$L$15,\"\",IF(Response1=$L$13,\"\",IF(Response3=$L$25,\"\",IF(OR(Response4=$L$30,Response4=$L$28),\"\",IF(Response5=$L$34,\"\",IF(Response6=$L$37,\"\",$AG20))))))","v":"Safety - Fatalities: Winter Weather-Related Fatal Crashes, by event, district-wide, with storm severity index."},19,"Safety - Fatalities: Winter Weather-Related Fatal Crashes, by event, district-wide, with storm severity index.",null,1,0,0,0,0,0,0,0,null,"Safety - Fatalities: Winter Weather-Related Fatal Crashes, by event, district-wide, with storm severity index.",19,"Safety - Fatalities: Winter Weather-Related Fatal Crashes, by event, district-wide, with storm severity index.","","","Safety - Injuries: Winter Weather-Related Serious Injury Crashes, by event, district-wide, with storm severity index.","","","","","","","","","","","","","","","","","",""]
[null,null,null,null,null,null,null,null,null,null,null,"No",null,null,null,"2 or all 3 of the above (agency-owned database, police records, federal crash databases)",null,null,null,null,null,"2 or all 3 of the above (visibility conditions, atmospheric conditions, roadway surface conditions)",null,null,20,"Safety","Fatalities","Winter Weather-Related Fatalities","by event","district-wide","with storm severity index",null,"Safety - Fatalities: Winter Weather-Related Fatalities, by event, district-wide, with storm severity index.",null,20,{"$f":"IF(Response1=$L$15,\"\",IF(Response1=$L$12,\"\",IF(Response3=$L$25,\"\",IF(OR(Response4=$L$30,Response4=$L$28),\"\",IF(Response5=$L$34,\"\",IF(Response6=$L$37,\"\",$AG21))))))","v":"Safety - Fatalities: Winter Weather-Related Fatalities, by event, district-wide, with storm severity index."},20,{"$f":"IF(ROW(AJ21:AJ106)-ROW($AJ$2:$AJ$91)+1>COUNT(AK$2:AK$91),\"\",INDEX($AJ$2:$AJ$91,SMALL(AK$2:AK$91,1+ROW(AJ21:AJ106)-ROW(AJ$2:AJ$91))))","v":"Safety - Fatalities: Winter Weather-Related Fatalities, by event, district-wide, with storm severity index."},null,1,0,0,0,0,0,0,0,null,"Safety - Fatalities: Winter Weather-Related Fatalities, by event, district-wide, with storm severity index.",20,{"$f":"IF(ROW(AW21:AW106)-ROW($AW$2:$AW$91)+1>COUNT(AX$2:AX$91),\"\",INDEX($AW$2:$AW$91,SMALL(AX$2:AX$91,1+ROW(AW21:AW106)-ROW(AW$2:AW$91))))","v":"Safety - Fatalities: Winter Weather-Related Fatalities, by event, district-wide, with storm severity index."},"","",{"$f":"IF(ROW(AZ21:AZ106)-ROW($AZ$2:$AZ$91)+1>COUNT(BA$2:BA$91),\"\",INDEX($AZ$2:$AZ$91,SMALL(BA$2:BA$91,1+ROW(AZ21:AZ106)-ROW(AZ$2:AZ$91))))","v":"Safety - Injuries: Winter Weather-Related Serious Injuries, by event, district-wide, with storm severity index."},"","",{"$f":"IF(ROW(BC21:BC106)-ROW($BC$2:$BC$91)+1>COUNT(BD$2:BD$91),\"\",INDEX($BC$2:$BC$91,SMALL(BD$2:BD$91,1+ROW(BC21:BC106)-ROW(BC$2:BC$91))))","v":""},"","",{"$f":"IF(ROW(BF21:BF106)-ROW($BF$2:$BF$91)+1>COUNT(BG$2:BG$91),\"\",INDEX($BF$2:$BF$91,SMALL(BG$2:BG$91,1+ROW(BF21:BF106)-ROW(BF$2:BF$91))))","v":""},"","",{"$f":"IF(ROW(BI21:BI106)-ROW($BI$2:$BI$91)+1>COUNT(BJ$2:BJ$91),\"\",INDEX($BI$2:$BI$91,SMALL(BJ$2:BJ$91,1+ROW(BI21:BI106)-ROW(BI$2:BI$91))))","v":""},"","",{"$f":"IF(ROW(BL21:BL106)-ROW($BL$2:$BL$91)+1>COUNT(BM$2:BM$91),\"\",INDEX($BL$2:$BL$91,SMALL(BM$2:BM$91,1+ROW(BL21:BL106)-ROW(BL$2:BL$91))))","v":""},"","",{"$f":"IF(ROW(BO21:BO106)-ROW($BO$2:$BO$91)+1>COUNT(BP$2:BP$91),\"\",INDEX($BO$2:$BO$91,SMALL(BP$2:BP$91,1+ROW(BO21:BO106)-ROW(BO$2:BO$91))))","v":""},"","",{"$f":"IF(ROW(BR21:BR106)-ROW($BR$2:$BR$91)+1>COUNT(BS$2:BS$91),\"\",INDEX($BR$2:$BR$91,SMALL(BS$2:BS$91,1+ROW(BR21:BR106)-ROW(BR$2:BR$91))))","v":""}]
[null,null,null,null,null,null,null,null,null,null,null,null,null,null,null,null,null,null,null,null,null,"No additional factors available",null,null,21,"Safety","Fatalities","Winter Weather-Related Fatal Crashes","by event","by roadway","without storm severity index",null,"Safety - Fatalities: Winter Weather-Related Fatal Crashes, by event, by roadway, without storm severity index.",null,21,{"$f":"IF(Response1=$L$15,\"\",IF(Response1=$L$13,\"\",IF(Response3=$L$25,\"\",IF(Response5=$L$34,\"\",IF(OR(Response6=$L$37,Response6=$L$38),\"\",$AG22)))))","v":"Safety - Fatalities: Winter Weather-Related Fatal Crashes, by event, by roadway, without storm severity index."},21,{"$f":"IF(ROW(AJ22:AJ106)-ROW($AJ$2:$AJ$91)+1>COUNT(AK$2:AK$91),\"\",INDEX($AJ$2:$AJ$91,SMALL(AK$2:AK$91,1+ROW(AJ22:AJ106)-ROW(AJ$2:AJ$91))))","v":"Safety - Fatalities: Winter Weather-Related Fatal Crashes, by event, by roadway, without storm severity index."},null,1,0,0,0,0,0,0,0,null,"Safety - Fatalities: Winter Weather-Related Fatal Crashes, by event, by roadway, without storm severity index.",21,{"$f":"IF(ROW(AW22:AW106)-ROW($AW$2:$AW$91)+1>COUNT(AX$2:AX$91),\"\",INDEX($AW$2:$AW$91,SMALL(AX$2:AX$91,1+ROW(AW22:AW106)-ROW(AW$2:AW$91))))","v":"Safety - Fatalities: Winter Weather-Related Fatal Crashes, by event, by roadway, without storm severity index."},"","",{"$f":"IF(ROW(AZ22:AZ106)-ROW($AZ$2:$AZ$91)+1>COUNT(BA$2:BA$91),\"\",INDEX($AZ$2:$AZ$91,SMALL(BA$2:BA$91,1+ROW(AZ22:AZ106)-ROW(AZ$2:AZ$91))))","v":"Safety - Injuries: Winter Weather-Related Serious Injury Crashes, by event, by roadway, without storm severity index."},"","",{"$f":"IF(ROW(BC22:BC106)-ROW($BC$2:$BC$91)+1>COUNT(BD$2:BD$91),\"\",INDEX($BC$2:$BC$91,SMALL(BD$2:BD$91,1+ROW(BC22:BC106)-ROW(BC$2:BC$91))))","v":""},"","",{"$f":"IF(ROW(BF22:BF106)-ROW($BF$2:$BF$91)+1>COUNT(BG$2:BG$91),\"\",INDEX($BF$2:$BF$91,SMALL(BG$2:BG$91,1+ROW(BF22:BF106)-ROW(BF$2:BF$91))))","v":""},"","",{"$f":"IF(ROW(BI22:BI106)-ROW($BI$2:$BI$91)+1>COUNT(BJ$2:BJ$91),\"\",INDEX($BI$2:$BI$91,SMALL(BJ$2:BJ$91,1+ROW(BI22:BI106)-ROW(BI$2:BI$91))))","v":""},"","",{"$f":"IF(ROW(BL22:BL106)-ROW($BL$2:$BL$91)+1>COUNT(BM$2:BM$91),\"\",INDEX($BL$2:$BL$91,SMALL(BM$2:BM$91,1+ROW(BL22:BL106)-ROW(BL$2:BL$91))))","v":""},"","",{"$f":"IF(ROW(BO22:BO106)-ROW($BO$2:$BO$91)+1>COUNT(BP$2:BP$91),\"\",INDEX($BO$2:$BO$91,SMALL(BP$2:BP$91,1+ROW(BO22:BO106)-ROW(BO$2:BO$91))))","v":""},"","",{"$f":"IF(ROW(BR22:BR106)-ROW($BR$2:$BR$91)+1>COUNT(BS$2:BS$91),\"\",INDEX($BR$2:$BR$91,SMALL(BS$2:BS$91,1+ROW(BR22:BR106)-ROW(BR$2:BR$91))))","v":""}]
[null,null,null,null,null,null,null,null,null,null,3,"Choose among:",{"$f":"IF(ISBLANK('Decision Guide'!$F$52),\"\",'Decision Guide'!$F$52)","v":""},null,"3a","Choose among:",{"$f":"IF(ISBLANK('Decision Guide'!$M$52),\"\",'Decision Guide'!$M$52)","v":""},"3b","Choose among:",{"$f":"IF(ISBLANK('Decision Guide'!$M$57),\"\",'Decision Guide'!$M$57)","v":""},null,null,null,null,22,"Safety","Fatalities","Winter Weather-Related Fatalities","by event","by roadway","without storm severity index",null,"Safety - Fatalities: Winter Weather-Related Fatalities, by event, by roadway, without storm severity index.",null,22,{"$f":"IF(Response1=$L$15,\"\",IF(Response1=$L$12,\"\",IF(Response3=$L$25,\"\",IF(Response5=$L$34,\"\",IF(OR(Response6=$L$37,Response6=$L$38),\"\",$AG23)))))","v":"Safety - Fatalities: Winter Weather-Related Fatalities, by event, by roadway, without storm severity index."},22,"Safety - Fatalities: Winter Weather-Related Fatalities, by event, by roadway, without storm severity index.",null,1,0,0,0,0,0,0,0,null,"Safety - Fatalities: Winter Weather-Related Fatalities, by event, by roadway, without storm severity index.",22,"Safety - Fatalities: Winter Weather-Related Fatalities, by event, by roadway, without storm severity index.","","","Safety - Injuries: Winter Weather-Related Serious Injuries, by event, by roadway, without storm severity index.","","","","","","","","","","","","","","","","","",""]
[null,null,null,null,null,null,null,null,null,null,null,"Yes",null,null,null,"Time stamp is based on reports by maintenance field personnel for the particular region",null,null,"Time stamp is based on reports by maintenance field personnel for the particular region",null,null,null,null,null,23,"Safety","Fatalities","Winter Weather-Related Fatal Crashes","by event","by roadway","with storm severity index",null,"Safety - Fatalities: Winter Weather-Related Fatal Crashes, by event, by roadway, with storm severity index.",null,23,{"$f":"IF(Response1=$L$15,\"\",IF(Response1=$L$13,\"\",IF(Response3=$L$25,\"\",IF(OR(Response4=$L$30,Response4=$L$28),\"\",IF(Response5=$L$34,\"\",IF(OR(Response6=$L$37,Response6=$L$38),\"\",$AG24))))))","v":"Safety - Fatalities: Winter Weather-Related Fatal Crashes, by event, by roadway, with storm severity index."},23,"Safety - Fatalities: Winter Weather-Related Fatal Crashes, by event, by roadway, with storm severity index.",null,1,0,0,0,0,0,0,0,null,"Safety - Fatalities: Winter Weather-Related Fatal Crashes, by event, by roadway, with storm severity index.",23,"Safety - Fatalities: Winter Weather-Related Fatal Crashes, by event, by roadway, with storm severity index.","","","Safety - Injuries: Winter Weather-Related Serious Injury Crashes, by event, by roadway, with storm severity index.","","","","","","","","","","","","","","","","","",""]
[null,null,null,null,null,null,null,null,null,null,null,"No",null,null,null,"Time stamp is based on reported precipitation from sensors on the roadway (e.g. RWIS) for each region/district",null,null,"Time stamp is based on reported precipitation from sensors on the roadway (e.g. RWIS) for each region/district",null,null,null,null,null,24,"Safety","Fatalities","Winter Weather-Related Fatalities","by event","by roadway","with storm severity index",null,"Safety - Fatalities: Winter Weather-Related Fatalities, by event, by roadway, with storm severity index.",null,24,{"$f":"IF(Response1=$L$15,\"\",IF(Response1=$L$12,\"\",IF(Response3=$L$25,\"\",IF(OR(Response4=$L$30,Response4=$L$28),\"\",IF(Response5=$L$34,\"\",IF(OR(Response6=$L$37,Response6=$L$38),\"\",$AG25))))))","v":"Safety - Fatalities: Winter Weather-Related Fatalities, by event, by roadway, with storm severity index."},24,"Safety - Fatalities: Winter Weather-Related Fatalities, by event, by roadway, with storm severity index.",null,1,0,0,0,0,0,0,0,null,"Safety - Fatalities: Winter Weather-Related Fatalities, by event, by roadway, with storm severity index.",24,"Safety - Fatalities: Winter Weather-Related Fatalities, by event, by roadway, with storm severity index.","","","Safety - Injuries: Winter Weather-Related Serious Injuries, by event, by roadway, with storm severity index.","","","","","","","","","","","","","","","","","",""]
[null,null,null,null,null,null,null,null,null,null,null,null,null,null,null,"Time stamp is based on observed precipitation from camera images at central location (e.g. TMC) or external sources",null,null,"Time stamp is based on observed precipitation from camera images at central location (e.g. TMC) or external sources",null,null,null,null,null,25,"Safety","Injuries","Winter Weather-Related Serious Injury Crashes","by winter season","state-wide/ region-wide","without seasonal severity index",null,"Safety - Injuries: Winter Weather-Related Serious Injury Crashes, by winter season, state-wide/ region-wide, without seasonal severity index.",null,25,{"$f":"IF(Response2=$L$21,\"\",IF(Response2=$L$19,\"\",$AG26))","v":"Safety - Injuries: Winter Weather-Related Serious Injury Crashes, by winter season, state-wide/ region-wide, without seasonal severity index."},25,"Safety - Injuries: Winter Weather-Related Serious Injury Crashes, by winter season, state-wide/ region-wide, without seasonal severity index.",null,0,1,0,0,0,0,0,0,null,"","","","Safety - Injuries: Winter Weather-Related Serious Injury Crashes, by winter season, state-wide/ region-wide, without seasonal severity index.",25,"","","","","","","","","","","","","","","","","","",""]
[null,null,null,null,null,null,null,null,null,null,4,"Choose among:",{"$f":"IF(ISBLANK('Decision Guide'!$F$68),\"\",'Decision Guide'!$F$68)","v":""},"Alt:",null,"Other: please specify",null,null,"Time stamp is based on end of all maintenance activities and return to \"acceptable\" conditions",null,null,null,null,null,26,"Safety","Injuries","Winter Weather-Related Serious Injuries","by winter season","state-wide/ region-wide","without seasonal severity index",null,"Safety - Injuries: Winter Weather-Related Serious Injuries, by winter season, state-wide/ region-wide, without seasonal severity index.",null,26,{"$f":"IF(Response2=$L$21,\"\",IF(Response2=$L$18,\"\",$AG27))","v":"Safety - Injuries: Winter Weather-Related Serious Injuries, by winter season, state-wide/ region-wide, without seasonal severity index."},26,"Safety - Injuries: Winter Weather-Related Serious Injuries, by winter season, state-wide/ region-wide, without seasonal severity index.",null,0,1,0,0,0,0,0,0,null,"","","","Safety - Injuries: Winter Weather-Related Serious Injuries, by winter season, state-wide/ region-wide, without seasonal severity index.",26,"","","","","","","","","","","","","","","","","","",""]
[null,null,null,null,null,null,null,null,null,null,null,"Yes, seasonal severity index only",null,"Yes, seasonal severity index only",null,null,null,null,"Other: please specify",null,null,null,null,null,27,"Safety","Injuries","Winter Weather-Related Serious Injury Crashes","by winter season","state-wide/ region-wide","with seasonal severity index",null,"Safety - Injuries: Winter Weather-Related Serious Injury Crashes, by winter season, state-wide/ region-wide, with seasonal severity index.",null,27,{"$f":"IF(Response2=$L$21,\"\",IF(Response2=$L$19,\"\",IF(Response4=$L$30,\"\",$AG28)))","v":"Safety - Injuries: Winter Weather-Related Serious Injury Crashes, by winter season, state-wide/ region-wide, with seasonal severity index."},27,"Safety - Injuries: Winter Weather-Related Serious Injury Crashes, by winter season, state-wide/ region-wide, with seasonal severity index.",null,0,1,0,0,0,0,0,0,null,"","","","Safety - Injuries: Winter Weather-Related Serious Injury Crashes, by winter season, state-wide/ region-wide, with seasonal severity index.",27,"","","","","","","","","","","","","","","","","","",""]
[null,null,null,null,null,null,null,null,null,null,null,"Yes, storm severity index (by weather event)",null,"No",null,null,null,null,null,null,null,null,null,null,28,"Safety","Injuries","Winter Weather-Related Serious Injuries","by winter season","state-wide/ region-wide","with seasonal severity index",null,"Safety - Injuries: Winter Weather-Related Serious Injuries, by winter season, state-wide/ region-wide, with seasonal severity index.",null,28,{"$f":"IF(Response2=$L$21,\"\",IF(Response2=$L$18,\"\",IF(Response4=$L$30,\"\",$AG29)))","v":"Safety - Injuries: Winter Weather-Related Serious Injuries, by winter season, state-wide/ region-wide, with seasonal severity index."},28,"Safety - Injuries: Winter Weather-Related Serious Injuries, by winter season, state-wide/ region-wide, with seasonal severity index.",null,0,1,0,0,0,0,0,0,null,"","","","Safety - Injuries: Winter Weather-Related Serious Injuries, by winter season, state-wide/ region-wide, with seasonal severity index.",28,"","","","","","","","","","","","","","","","","","",""]
[null,null,null,null,null,null,null,null,null,null,null,"No",null,null,"4a","Choose among:",{"$f":"IF(ISBLANK('Decision Guide'!$M$68),\"\",'Decision Guide'!$M$68)","v":""},"4b","Choose among:",{"$f":"IF(ISBLANK('Decision Guide'!$Q$68),\"\",'Decision Guide'!$Q$68)","v":""},null,null,null,null,29,"Safety","Injuries","Winter Weather-Related Serious Injury Crashes","by winter season","district-wide","without seasonal severity index",null,"Safety - Injuries: Winter Weather-Related Serious Injury Crashes, by winter season, district-wide, without seasonal severity index.",null,29,{"$f":"IF(Response2=$L$21,\"\",IF(Response2=$L$19,\"\",IF(Response6=$L$37,\"\",$AG30)))","v":"Safety - Injuries: Winter Weather-Related Serious Injury Crashes, by winter season, district-wide, without seasonal severity index."},29,"Safety - Injuries: Winter Weather-Related Serious Injury Crashes, by winter season, district-wide, without seasonal severity index.",null,0,1,0,0,0,0,0,0,null,"","","","Safety - Injuries: Winter Weather-Related Serious Injury Crashes, by winter season, district-wide, without seasonal severity index.",29,"","","","","","","","","","","","","","","","","","",""]
[null,null,null,null,null,null,null,null,null,null,null,null,null,null,null,"Multiple Selection - See validation tables above",{"$f":"IF(ISBLANK('Decision Guide'!$M$69),\"\",'Decision Guide'!$M$69)","v":""},null,"Multiple Selection - See validation tables above",{"$f":"IF(ISBLANK('Decision Guide'!$Q$69),\"\",'Decision Guide'!$Q$69)","v":""},null,null,null,null,30,"Safety","Injuries","Winter Weather-Related Serious Injuries","by winter season","district-wide","without seasonal severity index",null,"Safety - Injuries: Winter Weather-Related Serious Injuries, by winter season, district-wide, without seasonal severity index.",null,30,{"$f":"IF(Response2=$L$21,\"\",IF(Response2=$L$18,\"\",IF(Response6=$L$37,\"\",$AG31)))","v":"Safety - Injuries: Winter Weather-Related Serious Injuries, by winter season, district-wide, without seasonal severity index."},30,"Safety - Injuries: Winter Weather-Related Serious Injuries, by winter season, district-wide, without seasonal severity index.",null,0,1,0,0,0,0,0,0,null,"","","","Safety - Injuries: Winter Weather-Related Serious Injuries, by winter season, district-wide, without seasonal severity index.",30,"","","","","","","","","","","","","","","","","","",""]
[null,null,null,null,null,null,null,null,null,null,5,"Choose among:",{"$f":"IF(ISBLANK('Decision Guide'!$F$75),\"\",'Decision Guide'!$F$75)","v":""},"Alt:",null,null,{"$f":"IF(ISBLANK('Decision Guide'!$M$70),\"\",'Decision Guide'!$M$70)","v":""},null,null,{"$f":"IF(ISBLANK('Decision Guide'!$Q$70),\"\",'Decision Guide'!$Q$70)","v":""},null,null,null,null,31,"Safety","Injuries","Winter Weather-Related Serious Injury Crashes","by winter season","district-wide","with seasonal severity index",null,"Safety - Injuries: Winter Weather-Related Serious Injury Crashes, by winter season, district-wide, with seasonal severity index.",null,31,{"$f":"IF(Response2=$L$21,\"\",IF(Response2=$L$19,\"\",IF(Response4=$L$30,\"\",IF(Response6=$L$37,\"\",$AG32))))","v":"Safety - Injuries: Winter Weather-Related Serious Injury Crashes, by winter season, district-wide, with seasonal severity index."},31,"Safety - Injuries: Winter Weather-Related Serious Injury Crashes, by winter season, district-wide, with seasonal severity index.",null,0,1,0,0,0,0,0,0,null,"","","","Safety - Injuries: Winter Weather-Related Serious Injury Crashes, by winter season, district-wide, with seasonal severity index.",31,"","","","","","","","","","","","","","","","","","",""]
[null,null,null,null,null,null,null,null,null,null,null,"Yes",null,"N/A",null,null,{"$f":"IF(ISBLANK('Decision Guide'!$M$71),\"\",'Decision Guide'!$M$71)","v":""},null,null,{"$f":"IF(ISBLANK('Decision Guide'!$Q$71),\"\",'Decision Guide'!$Q$71)","v":""},null,null,null,null,32,"Safety","Injuries","Winter Weather-Related Serious Injuries","by winter season","district-wide","with seasonal severity index",null,"Safety - Injuries: Winter Weather-Related Serious Injuries, by winter season, district-wide, with seasonal severity index.",null,32,{"$f":"IF(Response2=$L$21,\"\",IF(Response2=$L$18,\"\",IF(Response4=$L$30,\"\",IF(Response6=$L$37,\"\",$AG33))))","v":"Safety - Injuries: Winter Weather-Related Serious Injuries, by winter season, district-wide, with seasonal severity index."},32,"Safety - Injuries: Winter Weather-Related Serious Injuries, by winter season, district-wide, with seasonal severity index.",null,0,1,0,0,0,0,0,0,null,"","","","Safety - Injuries: Winter Weather-Related Serious Injuries, by winter season, district-wide, with seasonal severity index.",32,"","","","","","","","","","","","","","","","","","",""]
[null,null,null,null,null,null,null,null,null,null,null,"No",null,null,null,null,{"$f":"IF(ISBLANK('Decision Guide'!$M$72),\"\",'Decision Guide'!$M$72)","v":""},null,null,{"$f":"IF(ISBLANK('Decision Guide'!$Q$72),\"\",'Decision Guide'!$Q$72)","v":""},null,null,null,null,33,"Safety","Injuries","Winter Weather-Related Serious Injury Crashes","by winter season","by roadway","without seasonal severity index",null,"Safety - Injuries: Winter Weather-Related Serious Injury Crashes, by winter season, by roadway, without seasonal severity index.",null,33,{"$f":"IF(Response2=$L$21,\"\",IF(Response2=$L$19,\"\",IF(OR(Response6=$L$37,Response6=$L$38),\"\",$AG34)))","v":"Safety - Injuries: Winter Weather-Related Serious Injury Crashes, by winter season, by roadway, without seasonal severity index."},{"$f":"IF(COUNTIF($AJ$2:$AJ$91,AJ34)<>1,\"\",ROW()-1)","v":33},"Safety - Injuries: Winter Weather-Related Serious Injury Crashes, by winter season, by roadway, without seasonal severity index.",null,0,1,0,0,0,0,0,0,null,{"$f":"IF(AN34=1,INDEX($AL$1:$AL$91,ROW(),1),\"\")","v":""},{"$f":"IF(COUNTIF($AW$2:$AW$91,AW34)<>1,\"\",ROW()-1)","v":""},"",{"$f":"IF(AO34=1,INDEX($AL$1:$AL$91,ROW(),1),\"\")","v":"Safety - Injuries: Winter Weather-Related Serious Injury Crashes, by winter season, by roadway, without seasonal severity index."},{"$f":"IF(COUNTIF($AZ$2:$AZ$91,AZ34)<>1,\"\",ROW()-1)","v":33},"",{"$f":"IF(AP34=1,INDEX($AL$1:$AL$91,ROW(),1),\"\")","v":""},{"$f":"IF(COUNTIF($BC$2:$BC$91,BC34)<>1,\"\",ROW()-1)","v":""},"",{"$f":"IF(AQ34=1,INDEX($AL$1:$AL$91,ROW(),1),\"\")","v":""},{"$f":"IF(COUNTIF($BF$2:$BF$91,BF34)<>1,\"\",ROW()-1)","v":""},"",{"$f":"IF(AR34=1,INDEX($AL$1:$AL$91,ROW(),1),\"\")","v":""},{"$f":"IF(COUNTIF($BI$2:$BI$91,BI34)<>1,\"\",ROW()-1)","v":""},"",{"$f":"IF(AS34=1,INDEX($AL$1:$AL$91,ROW(),1),\"\")","v":""},{"$f":"IF(COUNTIF($BL$2:$BL$91,BL34)<>1,\"\",ROW()-1)","v":""},"",{"$f":"IF(AT34=1,INDEX($AL$1:$AL$91,ROW(),1),\"\")","v":""},{"$f":"IF(COUNTIF($BO$2:$BO$91,BO34)<>1,\"\",ROW()-1)","v":""},"",{"$f":"IF(AU34=1,INDEX($AL$1:$AL$91,ROW(),1),\"\")","v":""},{"$f":"IF(COUNTIF($BR$2:$BR$91,BR34)<>1,\"\",ROW()-1)","v":""},""]
[null,null,null,null,null,null,null,null,null,null,null,null,null,null,null,null,null,null,null,{"$f":"IF(ISBLANK('Decision Guide'!$Q$73),\"\",'Decision Guide'!$Q$73)","v":""},null,null,null,null,34,"Safety","Injuries","Winter Weather-Related Serious Injuries","by winter season","by roadway","without seasonal severity index",null,"Safety - Injuries: Winter Weather-Related Serious Injuries, by winter season, by roadway, without seasonal severity index.",null,34,{"$f":"IF(Response2=$L$21,\"\",IF(Response2=$L$18,\"\",IF(OR(Response6=$L$37,Response6=$L$38),\"\",$AG35)))","v":"Safety - Injuries: Winter Weather-Related Serious Injuries, by winter season, by roadway, without seasonal severity index."},34,"Safety - Injuries: Winter Weather-Related Serious Injuries, by winter season, by roadway, without seasonal severity index.",null,{"$f":"IFERROR(IF(FIND(AN$1,$AL35)>0,1,0),0)","v":0},1,0,0,0,0,0,0,null,"","","","Safety - Injuries: Winter Weather-Related Serious Injuries, by winter season, by roadway, without seasonal severity index.",34,"","","","","","","","","","","","","","","","","","",""]
[null,null,null,null,null,null,null,null,null,null,6,"Choose among:",{"$f":"IF(ISBLANK('Decision Guide'!$F$81),\"\",'Decision Guide'!$F$81)","v":""},"Alt:",null,null,null,null,null,null,null,null,null,null,35,"Safety","Injuries","Winter Weather-Related Serious Injury Crashes","by winter season","by roadway","with seasonal severity index",null,"Safety - Injuries: Winter Weather-Related Serious Injury Crashes, by winter season, by roadway, with seasonal severity index.",null,35,{"$f":"IF(Response2=$L$21,\"\",IF(Response2=$L$19,\"\",IF(Response4=$L$30,\"\",IF(OR(Response6=$L$37,Response6=$L$38),\"\",$AG36))))","v":"Safety - Injuries: Winter Weather-Related Serious Injury Crashes, by winter season, by roadway, with seasonal severity index."},35,"Safety - Injuries: Winter Weather-Related Serious Injury Crashes, by winter season, by roadway, with seasonal severity index.",null,0,1,0,0,0,0,0,0,null,"","","","Safety - Injuries: Winter Weather-Related Serious Injury Crashes, by winter season, by roadway, with seasonal severity index.",35,"","","","","","","","","","","","","","","","","","",""]
[null,null,null,null,null,null,null,null,null,null,null,"state-wide/ region-wide only",null,"N/A",null,null,null,null,null,null,null,null,null,null,36,"Safety","Injuries","Winter Weather-Related Serious Injuries","by winter season","by roadway","with seasonal severity index",null,"Safety - Injuries: Winter Weather-Related Serious Injuries, by winter season, by roadway, with seasonal severity index.",null,36,{"$f":"IF(Response2=$L$21,\"\",IF(Response2=$L$18,\"\",IF(Response4=$L$30,\"\",IF(OR(Response6=$L$37,Response6=$L$38),\"\",$AG37))))","v":"Safety - Injuries: Winter Weather-Related Serious Injuries, by winter season, by roadway, with seasonal severity index."},36,"Safety - Injuries: Winter Weather-Related Serious Injuries, by winter season, by roadway, with seasonal severity index.",null,0,1,0,0,0,0,0,0,null,"","","","Safety - Injuries: Winter Weather-Related Serious Injuries, by winter season, by roadway, with seasonal severity index.",36,"","","","","","","","","","","","","","","","","","",""]
[null,null,null,null,null,null,null,null,null,null,null,"by district",null,null,null,null,null,null,null,null,null,null,null,null,37,"Safety","Injuries","Winter Weather-Related Serious Injury Crashes","by event","state-wide/ region-wide","without storm severity index",null,"Safety - Injuries: Winter Weather-Related Serious Injury Crashes, by event, state-wide/ region-wide, without storm severity index.",null,37,{"$f":"IF(Response2=$L$21,\"\",IF(Response2=$L$19,\"\",IF(Response3=$L$25,\"\",IF(Response5=$L$34,\"\",$AG38))))","v":"Safety - Injuries: Winter Weather-Related Serious Injury Crashes, by event, state-wide/ region-wide, without storm severity index."},37,"Safety - Injuries: Winter Weather-Related Serious Injury Crashes, by event, state-wide/ region-wide, without storm severity index.",null,0,1,0,0,0,0,0,0,null,"","","","Safety - Injuries: Winter Weather-Related Serious Injury Crashes, by event, state-wide/ region-wide, without storm severity index.",37,"","","","","","","","","","","","","","","","","","",""]
[null,null,null,null,null,null,null,null,null,null,null,"by road segment",null,null,null,null,null,null,null,null,null,null,null,null,38,"Safety","Injuries","Winter Weather-Related Serious Injuries","by event","state-wide/ region-wide","without storm severity index",null,"Safety - Injuries: Winter Weather-Related Serious Injuries, by event, state-wide/ region-wide, without storm severity index.",null,38,{"$f":"IF(Response2=$L$21,\"\",IF(Response2=$L$18,\"\",IF(Response3=$L$25,\"\",IF(Response5=$L$34,\"\",$AG39))))","v":"Safety - Injuries: Winter Weather-Related Serious Injuries, by event, state-wide/ region-wide, without storm severity index."},38,"Safety - Injuries: Winter Weather-Related Serious Injuries, by event, state-wide/ region-wide, without storm severity index.",null,0,1,0,0,0,0,0,0,null,"","","","Safety - Injuries: Winter Weather-Related Serious Injuries, by event, state-wide/ region-wide, without storm severity index.",38,"","","","","","","","","","","","","","","","","","",""]
[null,null,null,null,null,null,null,null,null,null,null,null,null,null,null,null,null,null,null,null,null,null,null,null,39,"Safety","Injuries","Winter Weather-Related Serious Injury Crashes","by event","state-wide/ region-wide","with storm severity index",null,"Safety - Injuries: Winter Weather-Related Serious Injury Crashes, by event, state-wide/ region-wide, with storm severity index.",null,39,{"$f":"IF(Response2=$L$21,\"\",IF(Response2=$L$19,\"\",IF(Response3=$L$25,\"\",IF(OR(Response4=$L$30,Response4=$L$28),\"\",IF(Response5=$L$34,\"\",$AG40)))))","v":"Safety - Injuries: Winter Weather-Related Serious Injury Crashes, by event, state-wide/ region-wide, with storm severity index."},39,"Safety - Injuries: Winter Weather-Related Serious Injury Crashes, by event, state-wide/ region-wide, with storm severity index.",null,0,1,0,0,0,0,0,0,null,"","","","Safety - Injuries: Winter Weather-Related Serious Injury Crashes, by event, state-wide/ region-wide, with storm severity index.",39,"","","","","","","","","","","","","","","","","","",""]
[null,null,null,null,null,null,null,null,null,null,7,"Choose among:",{"$f":"IF(ISBLANK('Decision Guide'!$F$89),\"\",'Decision Guide'!$F$89)","v":""},"Alt:",null,null,null,null,null,null,null,null,null,null,40,"Safety","Injuries","Winter Weather-Related Serious Injuries","by event","state-wide/ region-wide","with storm severity index",null,"Safety - Injuries: Winter Weather-Related Serious Injuries, by event, state-wide/ region-wide, with storm severity index.",null,40,{"$f":"IF(Response2=$L$21,\"\",IF(Response2=$L$18,\"\",IF(Response3=$L$25,\"\",IF(OR(Response4=$L$30,Response4=$L$28),\"\",IF(Response5=$L$34,\"\",$AG41)))))","v":"Safety - Injuries: Winter Weather-Related Serious Injuries, by event, state-wide/ region-wide, with storm severity index."},40,"Safety - Injuries: Winter Weather-Related Serious Injuries, by event, state-wide/ region-wide, with storm severity index.",null,0,1,0,0,0,0,0,0,null,"","","","Safety - Injuries: Winter Weather-Related Serious Injuries, by event, state-wide/ region-wide, with storm severity index.",40,"","","","","","","","","","","","","","","","","","",""]
[null,null,null,null,null,null,null,null,null,null,null,"Yes",null,"N/A",null,null,null,null,null,null,null,null,null,null,41,"Safety","Injuries","Winter Weather-Related Serious Injury Crashes","by event","district-wide","without storm severity index",null,"Safety - Injuries: Winter Weather-Related Serious Injury Crashes, by event, district-wide, without storm severity index.",null,41,{"$f":"IF(Response2=$L$21,\"\",IF(Response2=$L$19,\"\",IF(Response3=$L$25,\"\",IF(Response5=$L$34,\"\",IF(Response6=$L$37,\"\",$AG42)))))","v":"Safety - Injuries: Winter Weather-Related Serious Injury Crashes, by event, district-wide, without storm severity index."},41,"Safety - Injuries: Winter Weather-Related Serious Injury Crashes, by event, district-wide, without storm severity index.",null,0,1,0,0,0,0,0,0,null,"","","","Safety - Injuries: Winter Weather-Related Serious Injury Crashes, by event, district-wide, without storm severity index.",41,"","","","","","","","","","","","","","","","","","",""]
[null,null,null,null,null,null,null,null,null,null,null,"No",null,null,null,null,null,null,null,null,null,null,null,null,42,"Safety","Injuries","Winter Weather-Related Serious Injuries","by event","district-wide","without storm severity index",null,"Safety - Injuries: Winter Weather-Related Serious Injuries, by event, district-wide, without storm severity index.",null,42,{"$f":"IF(Response2=$L$21,\"\",IF(Response2=$L$18,\"\",IF(Response3=$L$25,\"\",IF(Response5=$L$34,\"\",IF(Response6=$L$37,\"\",$AG43)))))","v":"Safety - Injuries: Winter Weather-Related Serious Injuries, by event, district-wide, without storm severity index."},42,"Safety - Injuries: Winter Weather-Related Serious Injuries, by event, district-wide, without storm severity index.",null,0,1,0,0,0,0,0,0,null,"","","","Safety - Injuries: Winter Weather-Related Serious Injuries, by event, district-wide, without storm severity index.",42,"","","","","","","","","","","","","","","","","","",""]
[null,null,null,null,null,null,null,null,null,null,null,null,null,null,null,null,null,null,null,null,null,null,null,null,43,"Safety","Injuries","Winter Weather-Related Serious Injury Crashes","by event","district-wide","with storm severity index",null,"Safety - Injuries: Winter Weather-Related Serious Injury Crashes, by event, district-wide, with storm severity index.",null,43,{"$f":"IF(Response2=$L$21,\"\",IF(Response2=$L$19,\"\",IF(Response3=$L$25,\"\",IF(OR(Response4=$L$30,Response4=$L$28),\"\",IF(Response5=$L$34,\"\",IF(Response6=$L$37,\"\",$AG44))))))","v":"Safety - Injuries: Winter Weather-Related Serious Injury Crashes, by event, district-wide, with storm severity index."},43,"Safety - Injuries: Winter Weather-Related Serious Injury Crashes, by event, district-wide, with storm severity index.",null,0,1,0,0,0,0,0,0,null,"","","","Safety - Injuries: Winter Weather-Related Serious Injury Crashes, by event, district-wide, with storm severity index.",43,"","","","","","","","","","","","","","","","","","",""]
[null,null,null,null,null,null,null,null,null,null,8,"Choose among:",{"$f":"IF(ISBLANK('Decision Guide'!$F$97),\"\",'Decision Guide'!$F$97)","v":""},"Alt:",null,null,null,null,null,null,null,null,null,null,44,"Safety","Injuries","Winter Weather-Related Serious Injuries","by event","district-wide","with storm severity index",null,"Safety - Injuries: Winter Weather-Related Serious Injuries, by event, district-wide, with storm severity index.",null,44,{"$f":"IF(Response2=$L$21,\"\",IF(Response2=$L$18,\"\",IF(Response3=$L$25,\"\",IF(OR(Response4=$L$30,Response4=$L$28),\"\",IF(Response5=$L$34,\"\",IF(Response6=$L$37,\"\",$AG45))))))","v":"Safety - Injuries: Winter Weather-Related Serious Injuries, by event, district-wide, with storm severity index."},44,"Safety - Injuries: Winter Weather-Related Serious Injuries, by event, district-wide, with storm severity index.",null,0,1,0,0,0,0,0,0,null,"","","","Safety - Injuries: Winter Weather-Related Serious Injuries, by event, district-wide, with storm severity index.",44,"","","","","","","","","","","","","","","","","","",""]
[null,null,null,null,null,null,null,null,null,"accu - estimated",null,"Maximum allowable accumulation on roadway (measured by field personnel)",null,"N/A",null,null,null,null,null,null,null,null,null,null,45,"Safety","Injuries","Winter Weather-Related Serious Injury Crashes","by event","by roadway","without storm severity index",null,"Safety - Injuries: Winter Weather-Related Serious Injury Crashes, by event, by roadway, without storm severity index.",null,45,{"$f":"IF(Response2=$L$21,\"\",IF(Response2=$L$19,\"\",IF(Response3=$L$25,\"\",IF(Response5=$L$34,\"\",IF(OR(Response6=$L$37,Response6=$L$38),\"\",$AG46)))))","v":"Safety - Injuries: Winter Weather-Related Serious Injury Crashes, by event, by roadway, without storm severity index."},45,"Safety - Injuries: Winter Weather-Related Serious Injury Crashes, by event, by roadway, without storm severity index.",null,0,1,0,0,0,0,0,0,null,"","","","Safety - Injuries: Winter Weather-Related Serious Injury Crashes, by event, by roadway, without storm severity index.",45,"","","","","","","","","","","","","","","","","","",""]
[null,null,null,null,null,null,null,null,null,"accu - measured",null,"Maximum allowable accumulation on roadway (measured by sensors)",null,"Alt no:",null,null,null,null,null,null,null,null,null,null,46,"Safety","Injuries","Winter Weather-Related Serious Injuries","by event","by roadway","without storm severity index",null,"Safety - Injuries: Winter Weather-Related Serious Injuries, by event, by roadway, without storm severity index.",null,46,{"$f":"IF(Response2=$L$21,\"\",IF(Response2=$L$18,\"\",IF(Response3=$L$25,\"\",IF(Response5=$L$34,\"\",IF(OR(Response6=$L$37,Response6=$L$38),\"\",$AG47)))))","v":"Safety - Injuries: Winter Weather-Related Serious Injuries, by event, by roadway, without storm severity index."},46,"Safety - Injuries: Winter Weather-Related Serious Injuries, by event, by roadway, without storm severity index.",null,0,1,0,0,0,0,0,0,null,"","","","Safety - Injuries: Winter Weather-Related Serious Injuries, by event, by roadway, without storm severity index.",46,"","","","","","","","","","","","","","","","","","",""]
[null,null,null,null,null,null,null,null,null,"friction - estimated",null,"Maximum allowable drop in road traction/grip (qualitative estimate by field personnel)",null,"N/A",null,null,null,null,null,null,null,null,null,null,47,"Safety","Injuries","Winter Weather-Related Serious Injury Crashes","by event","by roadway","with storm severity index",null,"Safety - Injuries: Winter Weather-Related Serious Injury Crashes, by event, by roadway, with storm severity index.",null,47,{"$f":"IF(Response2=$L$21,\"\",IF(Response2=$L$19,\"\",IF(Response3=$L$25,\"\",IF(OR(Response4=$L$30,Response4=$L$28),\"\",IF(Response5=$L$34,\"\",IF(OR(Response6=$L$37,Response6=$L$38),\"\",$AG48))))))","v":"Safety - Injuries: Winter Weather-Related Serious Injury Crashes, by event, by roadway, with storm severity index."},47,"Safety - Injuries: Winter Weather-Related Serious Injury Crashes, by event, by roadway, with storm severity index.",null,0,1,0,0,0,0,0,0,null,"","","","Safety - Injuries: Winter Weather-Related Serious Injury Crashes, by event, by roadway, with storm severity index.",47,"","","","","","","","","","","","","","","","","","",""]
[null,null,null,null,null,null,null,null,null,"friction - measured",null,"Maximum allowable drop in road traction/grip (measured by sensors)",null,null,null,null,null,null,null,null,null,null,null,null,48,"Safety","Injuries","Winter Weather-Related Serious Injuries","by event","by roadway","with storm severity index",null,"Safety - Injuries: Winter Weather-Related Serious Injuries, by event, by roadway, with storm severity index.",null,48,{"$f":"IF(Response2=$L$21,\"\",IF(Response2=$L$18,\"\",IF(Response3=$L$25,\"\",IF(OR(Response4=$L$30,Response4=$L$28),\"\",IF(Response5=$L$34,\"\",IF(OR(Response6=$L$37,Response6=$L$38),\"\",$AG49))))))","v":"Safety - Injuries: Winter Weather-Related Serious Injuries, by event, by roadway, with storm severity index."},48,"Safety - Injuries: Winter Weather-Related Serious Injuries, by event, by roadway, with storm severity index.",null,0,1,0,0,0,0,0,0,null,"","","","Safety - Injuries: Winter Weather-Related Serious Injuries, by event, by roadway, with storm severity index.",48,"","","","","","","","","","","","","","","","","","",""]
[null,null,null,null,null,null,null,null,null,"speed - segment",null,"Maximum allowable drop in measured speeds from \"normal\" speeds (segment-based)",null,null,null,null,null,null,null,null,null,null,null,null,49,"Mobility","Level of Service","Accumulation-related threshold","by event","by roadway","without storm severity index","measured by field personnel","Mobility - Level of Service: Accumulation-related threshold, by event, by roadway, without storm severity index, measured by field personnel.",null,49,{"$f":"IF(Response3=$L$25,\"\",IF(Response7=$L$43,\"\",IF(OR(Response8=$L$48,Response8=$L$49,Response8=$L$50,Response8=$L$51),\"\",$AG50)))","v":"Mobility - Level of Service: Accumulation-related threshold, by event, by roadway, without storm severity index, measured by field personnel."},49,"Mobility - Level of Service: Accumulation-related threshold, by event, by roadway, without storm severity index, measured by field personnel.",null,0,0,1,0,0,0,0,0,null,"","","","","","","Mobility - Level of Service: Accumulation-related threshold, by event, by roadway, without storm severity index, measured by field personnel.",49,"","","","","","","","","","","","","","","",""]
[null,null,null,null,null,null,null,null,null,"speed - point",null,"Maximum allowable drop in measured speeds from \"normal\" speeds (point-based)",null,null,null,null,null,null,null,null,null,null,null,null,50,"Mobility","Level of Service","Accumulation-related threshold","by event","by roadway","without storm severity index","measured by sensors","Mobility - Level of Service: Accumulation-related threshold, by event, by roadway, without storm severity index, measured by sensors.",null,50,{"$f":"IF(Response3=$L$25,\"\",IF(Response7=$L$43,\"\",IF(OR(Response8=$L$46,Response8=$L$48,Response8=$L$49,Response8=$L$50,Response8=$L$51),\"\",$AG51)))","v":"Mobility - Level of Service: Accumulation-related threshold, by event, by roadway, without storm severity index, measured by sensors."},50,"Mobility - Level of Service: Accumulation-related threshold, by event, by roadway, without storm severity index, measured by sensors.",null,0,0,1,0,0,0,0,0,null,"","","","","","","Mobility - Level of Service: Accumulation-related threshold, by event, by roadway, without storm severity index, measured by sensors.",50,"","","","","","","","","","","","","","","",""]
[null,null,null,null,null,null,null,null,null,null,null,null,null,null,null,null,null,null,null,null,null,null,null,null,51,"Mobility","Level of Service","Accumulation-related threshold","by event","by roadway","with storm severity index","measured by field personnel","Mobility - Level of Service: Accumulation-related threshold, by event, by roadway, with storm severity index, measured by field personnel.",null,51,{"$f":"IF(Response3=$L$25,\"\",IF(OR(Response4=$L$30,Response4=$L$28),\"\",IF(Response7=$L$43,\"\",IF(OR(Response8=$L$48,Response8=$L$49,Response8=$L$50,Response8=$L$51),\"\",$AG52))))","v":"Mobility - Level of Service: Accumulation-related threshold, by event, by roadway, with storm severity index, measured by field personnel."},51,"Mobility - Level of Service: Accumulation-related threshold, by event, by roadway, with storm severity index, measured by field personnel.",null,0,0,1,0,0,0,0,0,null,"","","","","","","Mobility - Level of Service: Accumulation-related threshold, by event, by roadway, with storm severity index, measured by field personnel.",51,"","","","","","","","","","","","","","","",""]
[null,null,null,null,null,null,null,null,null,null,9,"Choose among:",{"$f":"IF(ISBLANK('Decision Guide'!$F$104),\"\",'Decision Guide'!$F$104)","v":""},"Alt:","9a","Choose among:",{"$f":"IF(ISBLANK('Decision Guide'!$M$104),\"\",'Decision Guide'!$M$104)","v":""},null,null,null,null,null,null,null,52,"Mobility","Level of Service","Accumulation-related threshold","by event","by roadway","with storm severity index","measured by sensors","Mobility - Level of Service: Accumulation-related threshold, by event, by roadway, with storm severity index, measured by sensors.",null,52,{"$f":"IF(Response3=$L$25,\"\",IF(OR(Response4=$L$30,Response4=$L$28),\"\",IF(Response7=$L$43,\"\",IF(OR(Response8=$L$46,Response8=$L$48,Response8=$L$49,Response8=$L$50,Response8=$L$51),\"\",$AG53))))","v":"Mobility - Level of Service: Accumulation-related threshold, by event, by roadway, with storm severity index, measured by sensors."},52,"Mobility - Level of Service: Accumulation-related threshold, by event, by roadway, with storm severity index, measured by sensors.",null,0,0,1,0,0,0,0,0,null,"","","","","","","Mobility - Level of Service: Accumulation-related threshold, by event, by roadway, with storm severity index, measured by sensors.",52,"","","","","","","","","","","","","","","",""]
[null,null,null,null,null,null,null,null,null,null,null,"Yes",null,"N/A",null,"Functional class",null,null,null,null,null,null,null,null,53,"Mobility","Level of Service","Friction-related threshold","by event","by roadway","without storm severity index","qualitative estimate by field personnel","Mobility - Level of Service: Friction-related threshold, by event, by roadway, without storm severity index, qualitative estimate by field personnel.",null,53,{"$f":"IF(Response3=$L$25,\"\",IF(Response7=$L$43,\"\",IF(OR(Response8=$L$46,Response8=$L$47,Response8=$L$50,Response8=$L$51),\"\",$AG54)))","v":"Mobility - Level of Service: Friction-related threshold, by event, by roadway, without storm severity index, qualitative estimate by field personnel."},53,{"$f":"IF(ROW(AJ54:AJ138)-ROW($AJ$2:$AJ$91)+1>COUNT(AK$2:AK$91),\"\",INDEX($AJ$2:$AJ$91,SMALL(AK$2:AK$91,1+ROW(AJ54:AJ138)-ROW(AJ$2:AJ$91))))","v":"Mobility - Level of Service: Friction-related threshold, by event, by roadway, without storm severity index, qualitative estimate by field personnel."},null,0,0,1,0,0,0,0,0,null,"","",{"$f":"IF(ROW(AW54:AW138)-ROW($AW$2:$AW$91)+1>COUNT(AX$2:AX$91),\"\",INDEX($AW$2:$AW$91,SMALL(AX$2:AX$91,1+ROW(AW54:AW138)-ROW(AW$2:AW$91))))","v":""},"","",{"$f":"IF(ROW(AZ54:AZ138)-ROW($AZ$2:$AZ$91)+1>COUNT(BA$2:BA$91),\"\",INDEX($AZ$2:$AZ$91,SMALL(BA$2:BA$91,1+ROW(AZ54:AZ138)-ROW(AZ$2:AZ$91))))","v":""},"Mobility - Level of Service: Friction-related threshold, by event, by roadway, without storm severity index, qualitative estimate by field personnel.",53,{"$f":"IF(ROW(BC54:BC138)-ROW($BC$2:$BC$91)+1>COUNT(BD$2:BD$91),\"\",INDEX($BC$2:$BC$91,SMALL(BD$2:BD$91,1+ROW(BC54:BC138)-ROW(BC$2:BC$91))))","v":""},"","",{"$f":"IF(ROW(BF54:BF138)-ROW($BF$2:$BF$91)+1>COUNT(BG$2:BG$91),\"\",INDEX($BF$2:$BF$91,SMALL(BG$2:BG$91,1+ROW(BF54:BF138)-ROW(BF$2:BF$91))))","v":""},"","",{"$f":"IF(ROW(BI54:BI138)-ROW($BI$2:$BI$91)+1>COUNT(BJ$2:BJ$91),\"\",INDEX($BI$2:$BI$91,SMALL(BJ$2:BJ$91,1+ROW(BI54:BI138)-ROW(BI$2:BI$91))))","v":""},"","",{"$f":"IF(ROW(BL54:BL138)-ROW($BL$2:$BL$91)+1>COUNT(BM$2:BM$91),\"\",INDEX($BL$2:$BL$91,SMALL(BM$2:BM$91,1+ROW(BL54:BL138)-ROW(BL$2:BL$91))))","v":""},"","",{"$f":"IF(ROW(BO54:BO138)-ROW($BO$2:$BO$91)+1>COUNT(BP$2:BP$91),\"\",INDEX($BO$2:$BO$91,SMALL(BP$2:BP$91,1+ROW(BO54:BO138)-ROW(BO$2:BO$91))))","v":""},"","",{"$f":"IF(ROW(BR54:BR138)-ROW($BR$2:$BR$91)+1>COUNT(BS$2:BS$91),\"\",INDEX($BR$2:$BR$91,SMALL(BS$2:BS$91,1+ROW(BR54:BR138)-ROW(BR$2:BR$91))))","v":""}]
[null,null,null,null,null,null,null,null,null,null,null,"No",null,null,null,"Type of roadway (priority routes, school routes, emergency routes)",null,null,null,null,null,null,null,null,54,"Mobility","Level of Service","Friction-related threshold","by event","by roadway","without storm severity index","measured by sensors","Mobility - Level of Service: Friction-related threshold, by event, by roadway, without storm severity index, measured by sensors.",null,54,{"$f":"IF(Response3=$L$25,\"\",IF(Response7=$L$43,\"\",IF(OR(Response8=$L$46,Response8=$L$48,Response8=$L$47,Response8=$L$50,Response8=$L$51),\"\",$AG55)))","v":"Mobility - Level of Service: Friction-related threshold, by event, by roadway, without storm severity index, measured by sensors."},54,"Mobility - Level of Service: Friction-related threshold, by event, by roadway, without storm severity index, measured by sensors.",null,0,0,1,0,0,0,0,0,null,"","","","","","","Mobility - Level of Service: Friction-related threshold, by event, by roadway, without storm severity index, measured by sensors.",54,"","","","","","","","","","","","","","","",""]
[null,null,null,null,null,null,null,null,null,null,null,null,null,null,null,"Storm severity",null,null,null,null,null,null,null,null,55,"Mobility","Level of Service","Friction-related threshold","by event","by roadway","with storm severity index","qualitative estimate by field personnel","Mobility - Level of Service: Friction-related threshold, by event, by roadway, with storm severity index, qualitative estimate by field personnel.",null,55,{"$f":"IF(Response3=$L$25,\"\",IF(OR(Response4=$L$30,Response4=$L$28),\"\",IF(Response7=$L$43,\"\",IF(OR(Response8=$L$46,Response8=$L$47,Response8=$L$50,Response8=$L$51),\"\",$AG56))))","v":"Mobility - Level of Service: Friction-related threshold, by event, by roadway, with storm severity index, qualitative estimate by field personnel."},55,"Mobility - Level of Service: Friction-related threshold, by event, by roadway, with storm severity index, qualitative estimate by field personnel.",null,0,0,1,0,0,0,0,0,null,"","","","","","","Mobility - Level of Service: Friction-related threshold, by event, by roadway, with storm severity index, qualitative estimate by field personnel.",55,"","","","","","","","","","","","","","","",""]
[null,null,null,null,null,null,null,null,null,null,10,"Choose among:",{"$f":"IF(ISBLANK('Decision Guide'!$F$112),\"\",'Decision Guide'!$F$112)","v":""},"Alt:",null,"Other: please specify",null,null,null,null,null,null,null,null,56,"Mobility","Level of Service","Friction-related threshold","by event","by roadway","with storm severity index","measured by sensors","Mobility - Level of Service: Friction-related threshold, by event, by roadway, with storm severity index, measured by sensors.",null,56,{"$f":"IF(Response3=$L$25,\"\",IF(OR(Response4=$L$30,Response4=$L$28),\"\",IF(Response7=$L$43,\"\",IF(OR(Response8=$L$46,Response8=$L$48,Response8=$L$47,Response8=$L$50,Response8=$L$51),\"\",$AG57))))","v":"Mobility - Level of Service: Friction-related threshold, by event, by roadway, with storm severity index, measured by sensors."},56,"Mobility - Level of Service: Friction-related threshold, by event, by roadway, with storm severity index, measured by sensors.",null,0,0,1,0,0,0,0,0,null,"","","","","","","Mobility - Level of Service: Friction-related threshold, by event, by roadway, with storm severity index, measured by sensors.",56,"","","","","","","","","","","","","","","",""]
[null,null,null,null,null,null,null,null,null,"Recovery to specific road surface condition (estimated)",null,"Based on return to normal pavement surface condition (observed/ estimated)",null,"N/A",null,null,null,null,null,null,null,null,null,null,57,"Mobility","Level of Service","Travel speed-related threshold","by event","by roadway","without storm severity index","segment-based (e.g. probe data)","Mobility - Level of Service: Travel speed-related threshold, by event, by roadway, without storm severity index, segment-based (e.g. probe data).",null,57,{"$f":"IF(Response3=$L$25,\"\",IF(Response7=$L$43,\"\",IF(OR(Response8=$L$46,Response8=$L$47,Response8=$L$48,Response8=$L$49,Response8=$L$51),\"\",$AG58)))","v":"Mobility - Level of Service: Travel speed-related threshold, by event, by roadway, without storm severity index, segment-based (e.g. probe data)."},57,"Mobility - Level of Service: Travel speed-related threshold, by event, by roadway, without storm severity index, segment-based (e.g. probe data).",null,0,0,1,0,0,0,0,0,null,"","","","","","","Mobility - Level of Service: Travel speed-related threshold, by event, by roadway, without storm severity index, segment-based (e.g. probe data).",57,"","","","","","","","","","","","","","","",""]
[null,null,null,null,null,null,null,null,null,"Recovery to specific road surface condition (measured)",null,"Based on return to normal measured friction factors (e.g. using grip sensors)",null,"Alt no:",null,null,null,null,null,null,null,null,null,null,58,"Mobility","Level of Service","Travel speed-related threshold","by event","by roadway","without storm severity index","point based (e.g. sensor)","Mobility - Level of Service: Travel speed-related threshold, by event, by roadway, without storm severity index, point based (e.g. sensor).",null,58,{"$f":"IF(Response3=$L$25,\"\",IF(Response7=$L$43,\"\",IF(OR(Response8=$L$46,Response8=$L$47,Response8=$L$48,Response8=$L$49,Response8=$L$50),\"\",$AG59)))","v":"Mobility - Level of Service: Travel speed-related threshold, by event, by roadway, without storm severity index, point based (e.g. sensor)."},58,"Mobility - Level of Service: Travel speed-related threshold, by event, by roadway, without storm severity index, point based (e.g. sensor).",null,0,0,1,0,0,0,0,0,null,"","","","","","","Mobility - Level of Service: Travel speed-related threshold, by event, by roadway, without storm severity index, point based (e.g. sensor).",58,"","","","","","","","","","","","","","","",""]
[null,null,null,null,null,null,null,null,null,"Recovery to specific speed (estimated)",null,"Based on return to normal speeds (estimated / informed by citizen reports)",null,"N/A",null,null,null,null,null,null,null,null,null,null,59,"Mobility","Level of Service","Travel speed-related threshold","by event","by roadway","with storm severity index","segment-based (e.g. probe data)","Mobility - Level of Service: Travel speed-related threshold, by event, by roadway, with storm severity index, segment-based (e.g. probe data).",null,59,{"$f":"IF(Response3=$L$25,\"\",IF(OR(Response4=$L$30,Response4=$L$28),\"\",IF(Response7=$L$43,\"\",IF(OR(Response8=$L$46,Response8=$L$47,Response8=$L$48,Response8=$L$49,Response8=$L$51),\"\",$AG60))))","v":"Mobility - Level of Service: Travel speed-related threshold, by event, by roadway, with storm severity index, segment-based (e.g. probe data)."},59,"Mobility - Level of Service: Travel speed-related threshold, by event, by roadway, with storm severity index, segment-based (e.g. probe data).",null,0,0,1,0,0,0,0,0,null,"","","","","","","Mobility - Level of Service: Travel speed-related threshold, by event, by roadway, with storm severity index, segment-based (e.g. probe data).",59,"","","","","","","","","","","","","","","",""]
[null,null,null,null,null,null,null,null,null,"Recovery to specific speed (measured)",null,"Based on return to normal speeds (measured by sensors)",null,null,null,null,null,null,null,null,null,null,null,null,60,"Mobility","Level of Service","Travel speed-related threshold","by event","by roadway","with storm severity index","point based (e.g. sensor)","Mobility - Level of Service: Travel speed-related threshold, by event, by roadway, with storm severity index, point based (e.g. sensor).",null,60,{"$f":"IF(Response3=$L$25,\"\",IF(OR(Response4=$L$30,Response4=$L$28),\"\",IF(Response7=$L$43,\"\",IF(OR(Response8=$L$46,Response8=$L$47,Response8=$L$48,Response8=$L$49,Response8=$L$50),\"\",$AG61))))","v":"Mobility - Level of Service: Travel speed-related threshold, by event, by roadway, with storm severity index, point based (e.g. sensor)."},60,"Mobility - Level of Service: Travel speed-related threshold, by event, by roadway, with storm severity index, point based (e.g. sensor).",null,0,0,1,0,0,0,0,0,null,"","","","","","","Mobility - Level of Service: Travel speed-related threshold, by event, by roadway, with storm severity index, point based (e.g. sensor).",60,"","","","","","","","","","","","","","","",""]
[null,null,null,null,null,null,null,null,null,null,null,null,null,null,null,null,null,null,null,null,null,null,null,null,61,"Mobility","Recovery","Road surface condition","by event","by roadway","without storm severity index","observed/ estimated","Mobility - Recovery: Road surface condition, by event, by roadway, without storm severity index, observed/ estimated.",null,61,{"$f":"IF(Response3=$L$25,\"\",IF(Response9=$L$55,\"\",IF(OR(Response10=$L$60,Response10=$L$61),\"\",$AG62)))","v":"Mobility - Recovery: Road surface condition, by event, by roadway, without storm severity index, observed/ estimated."},61,"Mobility - Recovery: Road surface condition, by event, by roadway, without storm severity index, observed/ estimated.",null,0,0,0,1,0,0,0,0,null,"","","","","","","","","","Mobility - Recovery: Road surface condition, by event, by roadway, without storm severity index, observed/ estimated.",61,"","","","","","","","","","","","",""]
[null,null,null,null,null,null,null,null,null,null,11,"Choose among:",{"$f":"IF(ISBLANK('Decision Guide'!$F$119),\"\",'Decision Guide'!$F$119)","v":""},null,null,null,null,null,null,null,null,null,null,null,62,"Mobility","Recovery","Road surface condition","by event","by roadway","without storm severity index","measured (e.g. grip sensors)","Mobility - Recovery: Road surface condition, by event, by roadway, without storm severity index, measured (e.g. grip sensors).",null,62,{"$f":"IF(Response3=$L$25,\"\",IF(Response9=$L$55,\"\",IF(OR(Response10=$L$58,Response10=$L$60,Response10=$L$61),\"\",$AG63)))","v":"Mobility - Recovery: Road surface condition, by event, by roadway, without storm severity index, measured (e.g. grip sensors)."},62,"Mobility - Recovery: Road surface condition, by event, by roadway, without storm severity index, measured (e.g. grip sensors).",null,0,0,0,1,0,0,0,0,null,"","","","","","","","","","Mobility - Recovery: Road surface condition, by event, by roadway, without storm severity index, measured (e.g. grip sensors).",62,"","","","","","","","","","","","",""]
[null,null,null,null,null,null,null,null,null,null,null,"Yes",null,null,null,null,null,null,null,null,null,null,null,null,63,"Mobility","Recovery","Road surface condition","by event","by roadway","with storm severity index","observed/ estimated","Mobility - Recovery: Road surface condition, by event, by roadway, with storm severity index, observed/ estimated.",null,63,{"$f":"IF(Response3=$L$25,\"\",IF(OR(Response4=$L$30,Response4=$L$28),\"\",IF(Response9=$L$55,\"\",IF(OR(Response10=$L$60,Response10=$L$61),\"\",$AG64))))","v":"Mobility - Recovery: Road surface condition, by event, by roadway, with storm severity index, observed/ estimated."},63,"Mobility - Recovery: Road surface condition, by event, by roadway, with storm severity index, observed/ estimated.",null,0,0,0,1,0,0,0,0,null,"","","","","","","","","","Mobility - Recovery: Road surface condition, by event, by roadway, with storm severity index, observed/ estimated.",63,"","","","","","","","","","","","",""]
[null,null,null,null,null,null,null,null,null,null,null,"No",null,null,null,null,null,null,null,null,null,null,null,null,64,"Mobility","Recovery","Road surface condition","by event","by roadway","with storm severity index","measured (e.g. grip sensors)","Mobility - Recovery: Road surface condition, by event, by roadway, with storm severity index, measured (e.g. grip sensors).",null,64,{"$f":"IF(Response3=$L$25,\"\",IF(OR(Response4=$L$30,Response4=$L$28),\"\",IF(Response9=$L$55,\"\",IF(OR(Response10=$L$58,Response10=$L$60,Response10=$L$61),\"\",$AG65))))","v":"Mobility - Recovery: Road surface condition, by event, by roadway, with storm severity index, measured (e.g. grip sensors)."},64,"Mobility - Recovery: Road surface condition, by event, by roadway, with storm severity index, measured (e.g. grip sensors).",null,0,0,0,1,0,0,0,0,null,"","","","","","","","","","Mobility - Recovery: Road surface condition, by event, by roadway, with storm severity index, measured (e.g. grip sensors).",64,"","","","","","","","","","","","",""]
[null,null,null,null,null,null,null,null,null,null,null,null,null,null,null,null,null,null,null,null,null,null,null,null,65,"Mobility","Recovery","Recovery to normal speeds","by event","by roadway","without storm severity index","estimated","Mobility - Recovery: Recovery to normal speeds, by event, by roadway, without storm severity index, estimated.",null,65,{"$f":"IF(Response3=$L$25,\"\",IF(Response9=$L$55,\"\",IF(OR(Response10=$L$58,Response10=$L$59),\"\",$AG66)))","v":"Mobility - Recovery: Recovery to normal speeds, by event, by roadway, without storm severity index, estimated."},{"$f":"IF(COUNTIF($AJ$2:$AJ$91,AJ66)<>1,\"\",ROW()-1)","v":65},"Mobility - Recovery: Recovery to normal speeds, by event, by roadway, without storm severity index, estimated.",null,0,0,0,1,0,0,0,{"$f":"IFERROR(IF(FIND(AU$1,$AL66)>0,1,0),0)","v":0},null,{"$f":"IF(AN66=1,INDEX($AL$1:$AL$91,ROW(),1),\"\")","v":""},{"$f":"IF(COUNTIF($AW$2:$AW$91,AW66)<>1,\"\",ROW()-1)","v":""},"",{"$f":"IF(AO66=1,INDEX($AL$1:$AL$91,ROW(),1),\"\")","v":""},{"$f":"IF(COUNTIF($AZ$2:$AZ$91,AZ66)<>1,\"\",ROW()-1)","v":""},"",{"$f":"IF(AP66=1,INDEX($AL$1:$AL$91,ROW(),1),\"\")","v":""},{"$f":"IF(COUNTIF($BC$2:$BC$91,BC66)<>1,\"\",ROW()-1)","v":""},"",{"$f":"IF(AQ66=1,INDEX($AL$1:$AL$91,ROW(),1),\"\")","v":"Mobility - Recovery: Recovery to normal speeds, by event, by roadway, without storm severity index, estimated."},{"$f":"IF(COUNTIF($BF$2:$BF$91,BF66)<>1,\"\",ROW()-1)","v":65},"",{"$f":"IF(AR66=1,INDEX($AL$1:$AL$91,ROW(),1),\"\")","v":""},{"$f":"IF(COUNTIF($BI$2:$BI$91,BI66)<>1,\"\",ROW()-1)","v":""},"",{"$f":"IF(AS66=1,INDEX($AL$1:$AL$91,ROW(),1),\"\")","v":""},{"$f":"IF(COUNTIF($BL$2:$BL$91,BL66)<>1,\"\",ROW()-1)","v":""},"",{"$f":"IF(AT66=1,INDEX($AL$1:$AL$91,ROW(),1),\"\")","v":""},{"$f":"IF(COUNTIF($BO$2:$BO$91,BO66)<>1,\"\",ROW()-1)","v":""},"",{"$f":"IF(AU66=1,INDEX($AL$1:$AL$91,ROW(),1),\"\")","v":""},{"$f":"IF(COUNTIF($BR$2:$BR$91,BR66)<>1,\"\",ROW()-1)","v":""},""]
[null,null,null,null,null,null,null,null,null,null,12,"Choose among:",{"$f":"IF(ISBLANK('Decision Guide'!$F$125),\"\",'Decision Guide'!$F$125)","v":""},null,"12a","Choose among:",{"$f":"IF(ISBLANK('Decision Guide'!$M$125),\"\",'Decision Guide'!$M$125)","v":""},null,null,null,null,null,null,null,66,"Mobility","Recovery","Recovery to normal speeds","by event","by roadway","without storm severity index","measured by sensors","Mobility - Recovery: Recovery to normal speeds, by event, by roadway, without storm severity index, measured by sensors.",null,66,{"$f":"IF(Response3=$L$25,\"\",IF(Response9=$L$55,\"\",IF(OR(Response10=$L$59,Response10=$L$60,Response10=$L$58),\"\",$AG67)))","v":"Mobility - Recovery: Recovery to normal speeds, by event, by roadway, without storm severity index, measured by sensors."},66,"Mobility - Recovery: Recovery to normal speeds, by event, by roadway, without storm severity index, measured by sensors.",null,{"$f":"IFERROR(IF(FIND(AN$1,$AL67)>0,1,0),0)","v":0},0,0,1,0,0,0,0,null,"","","","","","","","","","Mobility - Recovery: Recovery to normal speeds, by event, by roadway, without storm severity index, measured by sensors.",66,"","","","","","","","","","","","",""]
[null,null,null,null,null,null,null,null,null,null,null,"Yes, by winter season only",null,null,null,"Material costs",null,null,null,null,null,null,null,null,67,"Mobility","Recovery","Recovery to normal speeds","by event","by roadway","with storm severity index","estimated","Mobility - Recovery: Recovery to normal speeds, by event, by roadway, with storm severity index, estimated.",null,67,{"$f":"IF(Response3=$L$25,\"\",IF(OR(Response4=$L$30,Response4=$L$28),\"\",IF(Response9=$L$55,\"\",IF(OR(Response10=$L$58,Response10=$L$59),\"\",$AG68))))","v":"Mobility - Recovery: Recovery to normal speeds, by event, by roadway, with storm severity index, estimated."},67,"Mobility - Recovery: Recovery to normal speeds, by event, by roadway, with storm severity index, estimated.",null,0,0,0,1,0,0,0,0,null,"","","","","","","","","","Mobility - Recovery: Recovery to normal speeds, by event, by roadway, with storm severity index, estimated.",67,"","","","","","","","","","","","",""]
[null,null,null,null,null,null,null,null,null,null,null,"Yes, by winter weather event",null,null,null,"Labor costs",null,null,null,null,null,null,null,null,68,"Mobility","Recovery","Recovery to normal speeds","by event","by roadway","with storm severity index","measured by sensors","Mobility - Recovery: Recovery to normal speeds, by event, by roadway, with storm severity index, measured by sensors.",null,68,{"$f":"IF(Response3=$L$25,\"\",IF(OR(Response4=$L$30,Response4=$L$28),\"\",IF(Response9=$L$55,\"\",IF(OR(Response10=$L$59,Response10=$L$60,Response10=$L$58),\"\",$AG69))))","v":"Mobility - Recovery: Recovery to normal speeds, by event, by roadway, with storm severity index, measured by sensors."},68,"Mobility - Recovery: Recovery to normal speeds, by event, by roadway, with storm severity index, measured by sensors.",null,0,0,0,1,0,0,0,0,null,"","","","","","","","","","Mobility - Recovery: Recovery to normal speeds, by event, by roadway, with storm severity index, measured by sensors.",68,"","","","","","","","","","","","",""]
[null,null,null,null,null,null,null,null,null,null,null,"No",null,null,null,"Equipment costs",null,null,null,null,null,null,null,null,69,"Mobility","Reliability","Travel Time Index (TTI)","by event","by trip","without storm severity index","estimated","Mobility - Reliability: Travel Time Index (TTI), by event, by trip, without storm severity index, estimated.",null,69,{"$f":"IF(Response3=$L$25,\"\",IF(Response9=$L$55,\"\",IF(Response11=$L$65,\"\",$AG70)))","v":"Mobility - Reliability: Travel Time Index (TTI), by event, by trip, without storm severity index, estimated."},69,"Mobility - Reliability: Travel Time Index (TTI), by event, by trip, without storm severity index, estimated.",null,0,0,0,0,1,0,0,0,null,"","","","","","","","","","","","","Mobility - Reliability: Travel Time Index (TTI), by event, by trip, without storm severity index, estimated.",69,"","","","","","","","","",""]
[null,null,null,null,null,null,null,null,null,null,null,null,null,null,null,"2 of the above (material costs, labor costs, equipment costs)",null,null,null,null,null,null,null,null,70,"Mobility","Reliability","Travel Time Index (TTI)","by event","by trip","without storm severity index","measured","Mobility - Reliability: Travel Time Index (TTI), by event, by trip, without storm severity index, measured.",null,70,{"$f":"IF(Response3=$L$25,\"\",IF(Response9=$L$55,\"\",IF(Response11=$L$65,\"\",$AG71)))","v":"Mobility - Reliability: Travel Time Index (TTI), by event, by trip, without storm severity index, measured."},70,"Mobility - Reliability: Travel Time Index (TTI), by event, by trip, without storm severity index, measured.",null,0,0,0,0,1,0,0,0,null,"","","","","","","","","","","","","Mobility - Reliability: Travel Time Index (TTI), by event, by trip, without storm severity index, measured.",70,"","","","","","","","","",""]
[null,null,null,null,null,null,null,null,null,null,13,"Choose among:",{"$f":"IF(ISBLANK('Decision Guide'!$F$131),\"\",'Decision Guide'!$F$131)","v":""},"Alt:",null,"All of the above (material costs, labor costs, equipment costs)",null,null,null,null,null,null,null,null,71,"Mobility","Reliability","Travel Time Index (TTI)","by event","by trip","with storm severity index","estimated","Mobility - Reliability: Travel Time Index (TTI), by event, by trip, with storm severity index, estimated.",null,71,{"$f":"IF(Response3=$L$25,\"\",IF(OR(Response4=$L$30,Response4=$L$28),\"\",IF(Response9=$L$55,\"\",IF(Response11=$L$65,\"\",$AG72))))","v":"Mobility - Reliability: Travel Time Index (TTI), by event, by trip, with storm severity index, estimated."},71,"Mobility - Reliability: Travel Time Index (TTI), by event, by trip, with storm severity index, estimated.",null,0,0,0,0,1,0,0,0,null,"","","","","","","","","","","","","Mobility - Reliability: Travel Time Index (TTI), by event, by trip, with storm severity index, estimated.",71,"","","","","","","","","",""]
[null,null,null,null,null,null,null,null,null,null,null,"state-wide/ region-wide only",null,"N/A",null,null,null,null,null,null,null,null,null,null,72,"Mobility","Reliability","Travel Time Index (TTI)","by event","by trip","with storm severity index","measured",{"$f":"IF(ISBLANK(AF73),CONCATENATE(Z73,\" \",\"-\",\" \",AA73,\":\",\" \",AB73,\",\",\" \",AC73,\",\",\" \",AD73,\",\",\" \",AE73,\".\"),CONCATENATE(Z73,\" \",\"-\",\" \",AA73,\":\",\" \",AB73,\",\",\" \",AC73,\",\",\" \",AD73,\",\",\" \",AE73,\",\",\" \",AF73,\".\"))","v":"Mobility - Reliability: Travel Time Index (TTI), by event, by trip, with storm severity index, measured."},null,72,{"$f":"IF(Response3=$L$25,\"\",IF(OR(Response4=$L$30,Response4=$L$28),\"\",IF(Response9=$L$55,\"\",IF(Response11=$L$65,\"\",$AG73))))","v":"Mobility - Reliability: Travel Time Index (TTI), by event, by trip, with storm severity index, measured."},72,"Mobility - Reliability: Travel Time Index (TTI), by event, by trip, with storm severity index, measured.",null,0,0,0,0,1,0,0,0,null,"","","","","","","","","","","","","Mobility - Reliability: Travel Time Index (TTI), by event, by trip, with storm severity index, measured.",72,"","","","","","","","","",""]
[null,null,null,null,null,null,null,null,null,null,null,"by district",null,null,null,null,null,null,null,null,null,null,null,null,73,"Sustainability","Efficiency","Cost of snow and ice control","by winter season","state-wide/ region-wide","without seasonal severity index",null,"Sustainability - Efficiency: Cost of snow and ice control, by winter season, state-wide/ region-wide, without seasonal severity index.",null,73,{"$f":"IF(Response12=$L$70,\"\",$AG74)","v":"Sustainability - Efficiency: Cost of snow and ice control, by winter season, state-wide/ region-wide, without seasonal severity index."},73,"Sustainability - Efficiency: Cost of snow and ice control, by winter season, state-wide/ region-wide, without seasonal severity index.",null,0,0,0,0,0,1,0,0,null,"","","","","","","","","","","","","","","","Sustainability - Efficiency: Cost of snow and ice control, by winter season, state-wide/ region-wide, without seasonal severity index.",73,"","","","","","",""]
[null,null,null,null,null,null,null,null,null,null,null,"by road segment",null,null,null,null,null,null,null,null,null,null,null,null,74,"Sustainability","Efficiency","Cost of snow and ice control","by winter season","state-wide/ region-wide","with seasonal severity index",null,"Sustainability - Efficiency: Cost of snow and ice control, by winter season, state-wide/ region-wide, with seasonal severity index.",null,74,{"$f":"IF(Response4=$L$30,\"\",IF(Response12=$L$70,\"\",$AG75))","v":"Sustainability - Efficiency: Cost of snow and ice control, by winter season, state-wide/ region-wide, with seasonal severity index."},74,"Sustainability - Efficiency: Cost of snow and ice control, by winter season, state-wide/ region-wide, with seasonal severity index.",null,0,0,0,0,0,1,0,0,null,"","","","","","","","","","","","","","","","Sustainability - Efficiency: Cost of snow and ice control, by winter season, state-wide/ region-wide, with seasonal severity index.",74,"","","","","","",""]
[null,null,null,null,null,null,null,null,null,null,null,null,null,null,null,null,null,null,null,null,null,null,null,null,75,"Sustainability","Efficiency","Cost of snow and ice control","by event","state-wide/ region-wide","without storm severity index",null,"Sustainability - Efficiency: Cost of snow and ice control, by event, state-wide/ region-wide, without storm severity index.",null,75,{"$f":"IF(Response3=$L$25,\"\",IF(OR(Response12=$L$70,Response12=$L$68),\"\",$AG76))","v":"Sustainability - Efficiency: Cost of snow and ice control, by event, state-wide/ region-wide, without storm severity index."},75,"Sustainability - Efficiency: Cost of snow and ice control, by event, state-wide/ region-wide, without storm severity index.",null,0,0,0,0,0,1,0,0,null,"","","","","","","","","","","","","","","","Sustainability - Efficiency: Cost of snow and ice control, by event, state-wide/ region-wide, without storm severity index.",75,"","","","","","",""]
[null,null,null,null,null,null,null,null,null,null,14,"Choose among:",{"$f":"IF(ISBLANK('Decision Guide'!$F$138),\"\",'Decision Guide'!$F$138)","v":""},null,"14a","Choose among:",{"$f":"IF(ISBLANK('Decision Guide'!$M$138),\"\",'Decision Guide'!$M$138)","v":""},null,null,null,null,null,null,null,76,"Sustainability","Efficiency","Cost of snow and ice control","by event","state-wide/ region-wide","with storm severity index",null,"Sustainability - Efficiency: Cost of snow and ice control, by event, state-wide/ region-wide, with storm severity index.",null,76,{"$f":"IF(Response3=$L$25,\"\",IF(OR(Response4=$L$30,Response4=$L$28),\"\",IF(OR(Response12=$L$70,Response12=$L$68),\"\",$AG77)))","v":"Sustainability - Efficiency: Cost of snow and ice control, by event, state-wide/ region-wide, with storm severity index."},76,"Sustainability - Efficiency: Cost of snow and ice control, by event, state-wide/ region-wide, with storm severity index.",null,0,0,0,0,0,1,0,0,null,"","","","","","","","","","","","","","","","Sustainability - Efficiency: Cost of snow and ice control, by event, state-wide/ region-wide, with storm severity index.",76,"","","","","","",""]
[null,null,null,null,null,null,null,null,null,null,null,"Yes, current winter season only",null,null,null,"By a model that correlates salt/material usage to storm severity",null,null,null,null,null,null,null,null,77,"Sustainability","Efficiency","Cost of snow and ice control","by winter season","district-wide","without seasonal severity index",null,"Sustainability - Efficiency: Cost of snow and ice control, by winter season, district-wide, without seasonal severity index.",null,77,{"$f":"IF(Response12=$L$70,\"\",IF(Response13=$L$73,\"\",$AG78))","v":"Sustainability - Efficiency: Cost of snow and ice control, by winter season, district-wide, without seasonal severity index."},77,"Sustainability - Efficiency: Cost of snow and ice control, by winter season, district-wide, without seasonal severity index.",null,0,0,0,0,0,1,0,0,null,"","","","","","","","","","","","","","","","Sustainability - Efficiency: Cost of snow and ice control, by winter season, district-wide, without seasonal severity index.",77,"","","","","","",""]
[null,null,null,null,null,null,null,null,null,null,null,"Yes, current winter season as well as prior winter seasons",null,null,null,"By a model that correlates salt/material usage to seasonal severity",null,null,null,null,null,null,null,null,78,"Sustainability","Efficiency","Cost of snow and ice control","by winter season","district-wide","with seasonal severity index",null,"Sustainability - Efficiency: Cost of snow and ice control, by winter season, district-wide, with seasonal severity index.",null,78,{"$f":"IF(Response4=$L$30,\"\",IF(Response12=$L$70,\"\",IF(Response13=$L$73,\"\",$AG79)))","v":"Sustainability - Efficiency: Cost of snow and ice control, by winter season, district-wide, with seasonal severity index."},78,"Sustainability - Efficiency: Cost of snow and ice control, by winter season, district-wide, with seasonal severity index.",null,0,0,0,0,0,1,0,0,null,"","","","","","","","","","","","","","","","Sustainability - Efficiency: Cost of snow and ice control, by winter season, district-wide, with seasonal severity index.",78,"","","","","","",""]
[null,null,null,null,null,null,null,null,null,null,null,"No",null,null,null,null,null,null,null,null,null,null,null,null,79,"Sustainability","Efficiency","Cost of snow and ice control","by event","district-wide","without storm severity index",null,"Sustainability - Efficiency: Cost of snow and ice control, by event, district-wide, without storm severity index.",null,79,{"$f":"IF(Response3=$L$25,\"\",IF(OR(Response12=$L$70,Response12=$L$68),\"\",IF(Response13=$L$73,\"\",$AG80)))","v":"Sustainability - Efficiency: Cost of snow and ice control, by event, district-wide, without storm severity index."},79,"Sustainability - Efficiency: Cost of snow and ice control, by event, district-wide, without storm severity index.",null,0,0,0,0,0,1,0,0,null,"","","","","","","","","","","","","","","","Sustainability - Efficiency: Cost of snow and ice control, by event, district-wide, without storm severity index.",79,"","","","","","",""]
[null,null,null,null,null,null,null,null,null,null,null,null,null,null,null,null,null,null,null,null,null,null,null,null,80,"Sustainability","Efficiency","Cost of snow and ice control","by event","district-wide","with storm severity index",null,"Sustainability - Efficiency: Cost of snow and ice control, by event, district-wide, with storm severity index.",null,80,{"$f":"IF(Response3=$L$25,\"\",IF(OR(Response4=$L$30,Response4=$L$28),\"\",IF(OR(Response12=$L$70,Response12=$L$68),\"\",IF(Response13=$L$73,\"\",$AG81))))","v":"Sustainability - Efficiency: Cost of snow and ice control, by event, district-wide, with storm severity index."},80,"Sustainability - Efficiency: Cost of snow and ice control, by event, district-wide, with storm severity index.",null,0,0,0,0,0,1,0,0,null,"","","","","","","","","","","","","","","","Sustainability - Efficiency: Cost of snow and ice control, by event, district-wide, with storm severity index.",80,"","","","","","",""]
[null,null,null,null,null,null,null,null,null,null,15,"Choose among:",{"$f":"IF(ISBLANK('Decision Guide'!$F$145),\"\",'Decision Guide'!$F$145)","v":""},null,null,null,null,null,null,null,null,null,null,null,81,"Sustainability","Efficiency","Cost of snow and ice control","by winter season","by roadway","without seasonal severity index",null,"Sustainability - Efficiency: Cost of snow and ice control, by winter season, by roadway, without seasonal severity index.",null,81,{"$f":"IF(Response12=$L$70,\"\",IF(OR(Response13=$L$73,Response13=$L$74),\"\",$AG82))","v":"Sustainability - Efficiency: Cost of snow and ice control, by winter season, by roadway, without seasonal severity index."},81,"Sustainability - Efficiency: Cost of snow and ice control, by winter season, by roadway, without seasonal severity index.",null,0,0,0,0,0,1,0,0,null,"","","","","","","","","","","","","","","","Sustainability - Efficiency: Cost of snow and ice control, by winter season, by roadway, without seasonal severity index.",81,"","","","","","",""]
[null,null,null,null,null,null,null,null,null,null,null,"Yes, by winter season only",null,null,null,null,null,null,null,null,null,null,null,null,82,"Sustainability","Efficiency","Cost of snow and ice control","by winter season","by roadway","with seasonal severity index",null,"Sustainability - Efficiency: Cost of snow and ice control, by winter season, by roadway, with seasonal severity index.",null,82,{"$f":"IF(Response4=$L$30,\"\",IF(Response12=$L$70,\"\",IF(OR(Response13=$L$73,Response13=$L$74),\"\",$AG83)))","v":"Sustainability - Efficiency: Cost of snow and ice control, by winter season, by roadway, with seasonal severity index."},82,"Sustainability - Efficiency: Cost of snow and ice control, by winter season, by roadway, with seasonal severity index.",null,0,0,0,0,0,1,0,0,null,"","","","","","","","","","","","","","","","Sustainability - Efficiency: Cost of snow and ice control, by winter season, by roadway, with seasonal severity index.",82,"","","","","","",""]
[null,null,null,null,null,null,null,null,null,null,null,"Yes, by winter weather event",null,null,null,null,null,null,null,null,null,null,null,null,83,"Sustainability","Efficiency","Cost of snow and ice control","by event","by roadway","without storm severity index",null,"Sustainability - Efficiency: Cost of snow and ice control, by event, by roadway, without storm severity index.",null,83,{"$f":"IF(Response3=$L$25,\"\",IF(OR(Response12=$L$70,Response12=$L$68),\"\",IF(OR(Response13=$L$73,Response13=$L$74),\"\",$AG84)))","v":"Sustainability - Efficiency: Cost of snow and ice control, by event, by roadway, without storm severity index."},83,"Sustainability - Efficiency: Cost of snow and ice control, by event, by roadway, without storm severity index.",null,0,0,0,0,0,1,0,0,null,"","","","","","","","","","","","","","","","Sustainability - Efficiency: Cost of snow and ice control, by event, by roadway, without storm severity index.",83,"","","","","","",""]
[null,null,null,null,null,null,null,null,null,null,null,"No",null,null,null,null,null,null,null,null,null,null,null,null,84,"Sustainability","Efficiency","Cost of snow and ice control","by event","by roadway","with storm severity index",null,"Sustainability - Efficiency: Cost of snow and ice control, by event, by roadway, with storm severity index.",null,84,{"$f":"IF(Response3=$L$25,\"\",IF(OR(Response4=$L$30,Response4=$L$28),\"\",IF(OR(Response12=$L$70,Response12=$L$68),\"\",IF(OR(Response13=$L$73,Response13=$L$74),\"\",$AG85))))","v":"Sustainability - Efficiency: Cost of snow and ice control, by event, by roadway, with storm severity index."},84,"Sustainability - Efficiency: Cost of snow and ice control, by event, by roadway, with storm severity index.",null,0,0,0,0,0,1,0,0,null,"","","","","","","","","","","","","","","","Sustainability - Efficiency: Cost of snow and ice control, by event, by roadway, with storm severity index.",84,"","","","","","",""]
[null,null,null,null,null,null,null,null,null,null,null,null,null,null,null,null,null,null,null,null,null,null,null,null,85,"Sustainability","Customer Satisfaction","Level of satisfaction","by winter season","state-wide/ region-wide","with or without seasonal severity index",null,"Sustainability - Customer Satisfaction: Level of satisfaction, by winter season, state-wide/ region-wide, with or without seasonal severity index.",null,85,{"$f":"IF(Response15=$L$85,\"\",$AG86)","v":"Sustainability - Customer Satisfaction: Level of satisfaction, by winter season, state-wide/ region-wide, with or without seasonal severity index."},85,{"$f":"IF(ROW(AJ86:AJ170)-ROW($AJ$2:$AJ$91)+1>COUNT(AK$2:AK$91),\"\",INDEX($AJ$2:$AJ$91,SMALL(AK$2:AK$91,1+ROW(AJ86:AJ170)-ROW(AJ$2:AJ$91))))","v":"Sustainability - Customer Satisfaction: Level of satisfaction, by winter season, state-wide/ region-wide, with or without seasonal severity index."},null,0,0,0,0,0,0,1,0,null,"","",{"$f":"IF(ROW(AW86:AW170)-ROW($AW$2:$AW$91)+1>COUNT(AX$2:AX$91),\"\",INDEX($AW$2:$AW$91,SMALL(AX$2:AX$91,1+ROW(AW86:AW170)-ROW(AW$2:AW$91))))","v":""},"","",{"$f":"IF(ROW(AZ86:AZ170)-ROW($AZ$2:$AZ$91)+1>COUNT(BA$2:BA$91),\"\",INDEX($AZ$2:$AZ$91,SMALL(BA$2:BA$91,1+ROW(AZ86:AZ170)-ROW(AZ$2:AZ$91))))","v":""},"","",{"$f":"IF(ROW(BC86:BC170)-ROW($BC$2:$BC$91)+1>COUNT(BD$2:BD$91),\"\",INDEX($BC$2:$BC$91,SMALL(BD$2:BD$91,1+ROW(BC86:BC170)-ROW(BC$2:BC$91))))","v":""},"","",{"$f":"IF(ROW(BF86:BF170)-ROW($BF$2:$BF$91)+1>COUNT(BG$2:BG$91),\"\",INDEX($BF$2:$BF$91,SMALL(BG$2:BG$91,1+ROW(BF86:BF170)-ROW(BF$2:BF$91))))","v":""},"","",{"$f":"IF(ROW(BI86:BI170)-ROW($BI$2:$BI$91)+1>COUNT(BJ$2:BJ$91),\"\",INDEX($BI$2:$BI$91,SMALL(BJ$2:BJ$91,1+ROW(BI86:BI170)-ROW(BI$2:BI$91))))","v":""},"","",{"$f":"IF(ROW(BL86:BL170)-ROW($BL$2:$BL$91)+1>COUNT(BM$2:BM$91),\"\",INDEX($BL$2:$BL$91,SMALL(BM$2:BM$91,1+ROW(BL86:BL170)-ROW(BL$2:BL$91))))","v":""},"Sustainability - Customer Satisfaction: Level of satisfaction, by winter season, state-wide/ region-wide, with or without seasonal severity index.",85,{"$f":"IF(ROW(BO86:BO170)-ROW($BO$2:$BO$91)+1>COUNT(BP$2:BP$91),\"\",INDEX($BO$2:$BO$91,SMALL(BP$2:BP$91,1+ROW(BO86:BO170)-ROW(BO$2:BO$91))))","v":""},"","",{"$f":"IF(ROW(BR86:BR170)-ROW($BR$2:$BR$91)+1>COUNT(BS$2:BS$91),\"\",INDEX($BR$2:$BR$91,SMALL(BS$2:BS$91,1+ROW(BR86:BR170)-ROW(BR$2:BR$91))))","v":""}]
[null,null,null,null,null,null,null,null,null,null,null,null,null,null,null,"N/A for all:",null,null,null,null,null,null,null,null,86,"Sustainability","Customer Satisfaction","Level of satisfaction","by event","state-wide/ region-wide","with or without storm severity index",null,"Sustainability - Customer Satisfaction: Level of satisfaction, by event, state-wide/ region-wide, with or without storm severity index.",null,86,{"$f":"IF(Response3=$L$25,\"\",IF(OR(Response15=$L$85,Response15=$L$83),\"\",$AG87))","v":"Sustainability - Customer Satisfaction: Level of satisfaction, by event, state-wide/ region-wide, with or without storm severity index."},86,"Sustainability - Customer Satisfaction: Level of satisfaction, by event, state-wide/ region-wide, with or without storm severity index.",null,0,0,0,0,0,0,1,0,null,"","","","","","","","","","","","","","","","","","","Sustainability - Customer Satisfaction: Level of satisfaction, by event, state-wide/ region-wide, with or without storm severity index.",86,"","","",""]
[null,null,null,null,null,null,null,null,null,null,null,null,null,null,null,"N/A",null,null,null,null,null,null,null,null,87,"Sustainability","Environmental Stewardship","Current season usage","by winter season","state-wide/ region-wide","with seasonal severity index",null,"Sustainability - Environmental Stewardship: Current season usage, by winter season, state-wide/ region-wide, with seasonal severity index.",null,87,{"$f":"IF(Response4=$L$30,\"\",IF(Response14=$L$80,\"\",$AG88))","v":"Sustainability - Environmental Stewardship: Current season usage, by winter season, state-wide/ region-wide, with seasonal severity index."},87,"Sustainability - Environmental Stewardship: Current season usage, by winter season, state-wide/ region-wide, with seasonal severity index.",null,0,0,0,0,0,0,0,1,null,"","","","","","","","","","","","","","","","","","","","","","Sustainability - Environmental Stewardship: Current season usage, by winter season, state-wide/ region-wide, with seasonal severity index.",87,""]
[null,null,null,null,null,null,null,null,null,null,null,null,null,null,null,null,null,null,null,null,null,null,null,null,88,"Sustainability","Environmental Stewardship","Current season usage compared to prior seasons","by event","state-wide/ region-wide","with storm severity index",null,"Sustainability - Environmental Stewardship: Current season usage compared to prior seasons, by event, state-wide/ region-wide, with storm severity index.",null,88,{"$f":"IF(Response3=$L$25,\"\",IF(OR(Response4=$L$30,Response4=$L$28),\"\",IF(OR(Response14=$L$80,Response14=$L$78),\"\",$AG89)))","v":"Sustainability - Environmental Stewardship: Current season usage compared to prior seasons, by event, state-wide/ region-wide, with storm severity index."},88,"Sustainability - Environmental Stewardship: Current season usage compared to prior seasons, by event, state-wide/ region-wide, with storm severity index.",null,0,0,0,0,0,0,0,1,null,"","","","","","","","","","","","","","","","","","","","","","Sustainability - Environmental Stewardship: Current season usage compared to prior seasons, by event, state-wide/ region-wide, with storm severity index.",88,""]
[null,null,null,null,null,null,null,null,null,null,null,null,null,null,null,null,null,null,null,null,null,null,null,null,89,"Sustainability","Environmental Stewardship","Current season usage","by event","state-wide/ region-wide","with storm severity index",null,"Sustainability - Environmental Stewardship: Current season usage, by event, state-wide/ region-wide, with storm severity index.",null,89,{"$f":"IF(Response3=$L$25,\"\",IF(OR(Response4=$L$30,Response4=$L$28),\"\",IF(Response14=$L$80,\"\",$AG90)))","v":"Sustainability - Environmental Stewardship: Current season usage, by event, state-wide/ region-wide, with storm severity index."},89,"Sustainability - Environmental Stewardship: Current season usage, by event, state-wide/ region-wide, with storm severity index.",null,0,0,0,0,0,0,0,1,null,"","","","","","","","","","","","","","","","","","","","","","Sustainability - Environmental Stewardship: Current season usage, by event, state-wide/ region-wide, with storm severity index.",89,""]
[null,null,null,null,null,null,null,null,null,null,null,null,null,null,null,null,null,null,null,null,null,null,null,null,90,"Sustainability","Environmental Stewardship","Current season usage compared to prior seasons","by winter season","state-wide/ region-wide","with seasonal severity index",null,"Sustainability - Environmental Stewardship: Current season usage compared to prior seasons, by winter season, state-wide/ region-wide, with seasonal severity index.",null,90,{"$f":"IF(Response4=$L$30,\"\",IF(OR(Response14=$L$80,Response14=$L$78),\"\",$AG91))","v":"Sustainability - Environmental Stewardship: Current season usage compared to prior seasons, by winter season, state-wide/ region-wide, with seasonal severity index."},90,"Sustainability - Environmental Stewardship: Current season usage compared to prior seasons, by winter season, state-wide/ region-wide, with seasonal severity index.",null,0,0,0,0,0,0,0,1,null,"","","","","","","","","","","","","","","","","","","","","","Sustainability - Environmental Stewardship: Current season usage compared to prior seasons, by winter season, state-wide/ region-wide, with seasonal severity index.",90,""]
[null,null,null,null,null,null,null,null,null,null,null,null,null,null,null,null,null,null,null,null,null,null,null,null,null,null,null,null,null,null,null,null,null,null,null,null,"Total:",{"$f":"COUNTA($AL$2:$AL$91)-COUNTBLANK($AL$2:$AL$91)","v":90},"Sum:",{"$f":"SUM(AN$2:AN$91)","v":24},24,12,8,4,12,2,4]

{"sheet":"Lookup2","index":15,"n_rows":91,"n_cols":25,"rows_kept":91,"cut":false,"hidden":true,"merged":[]}
[null,"ID","Total Variations (Long)","Total Variations (Shortened)","Available Variations (Long)","Available Variations (Shortened)",null,null,"Available Variations (Shortened, Restructured)","Fatalities",null,"Injuries",null,"Level of Service",null,"Recovery",null,"Reliability",null,"Efficiency",null,"Customer Satisfaction",null,"Environmental Stewardship"]
[null,"SF-1",{"$f":"Lookup!$AG2","v":"Safety - Fatalities: Winter Weather-Related Fatal Crashes, by winter season, state-wide/ region-wide, without seasonal severity index."},{"$f":"RIGHT(C2,LEN(C2)-44)","v":"Fatal Crashes, by winter season, state-wide/ region-wide, without seasonal severity index."},{"$f":"Lookup!$AJ2","v":"Safety - Fatalities: Winter Weather-Related Fatal Crashes, by winter season, state-wide/ region-wide, without seasonal severity index."},{"$f":"IFERROR(RIGHT(E2,LEN(E2)-44),\"\")","v":"Fatal Crashes, by winter season, state-wide/ region-wide, without seasonal severity index."},null,null,1,{"$f":"IFERROR(RIGHT(Lookup!$AY2,LEN(Lookup!$AY2)-44),\"\")","v":"Fatal Crashes, by winter season, state-wide/ region-wide, without seasonal severity index."},1,{"$f":"IFERROR(RIGHT(Lookup!$BB2,LEN(Lookup!$BB2)-42),\"\")","v":"Serious Injury Crashes, by winter season, state-wide/ region-wide, without seasonal severity index."},1,{"$f":"IFERROR(RIGHT(Lookup!$BE2,LEN(Lookup!$BE2)-29),\"\")","v":"Accumulation-related threshold, by event, by roadway, without storm severity index, measured by field personnel."},1,{"$f":"IFERROR(RIGHT(Lookup!$BH2,LEN(Lookup!$BH2)-21),\"\")","v":"Road surface condition, by event, by roadway, without storm severity index, observed/ estimated."},1,{"$f":"IFERROR(RIGHT(Lookup!$BK2,LEN(Lookup!$BK2)-24),\"\")","v":"Travel Time Index (TTI), by event, by trip, without storm severity index, estimated."},1,{"$f":"IFERROR(RIGHT(Lookup!$BN2,LEN(Lookup!$BN2)-29),\"\")","v":"Cost of snow and ice control, by winter season, state-wide/ region-wide, without seasonal severity index."},1,{"$f":"IFERROR(RIGHT(Lookup!$BQ2,LEN(Lookup!$BQ2)-40),\"\")","v":"Level of satisfaction, by winter season, state-wide/ region-wide, with or without seasonal severity index."},1,{"$f":"IFERROR(RIGHT(Lookup!$BT2,LEN(Lookup!$BT2)-44),\"\")","v":"Current season usage, by winter season, state-wide/ region-wide, with seasonal severity index."},1]
[null,"SF-2",{"$f":"Lookup!$AG3","v":"Safety - Fatalities: Winter Weather-Related Fatalities, by winter season, state-wide/ region-wide, without seasonal severity index."},{"$f":"RIGHT(C3,LEN(C3)-44)","v":"Fatalities, by winter season, state-wide/ region-wide, without seasonal severity index."},{"$f":"Lookup!$AJ3","v":"Safety - Fatalities: Winter Weather-Related Fatalities, by winter season, state-wide/ region-wide, without seasonal severity index."},{"$f":"IFERROR(RIGHT(E3,LEN(E3)-44),\"\")","v":"Fatalities, by winter season, state-wide/ region-wide, without seasonal severity index."},null,null,2,{"$f":"IFERROR(RIGHT(Lookup!$AY3,LEN(Lookup!$AY3)-44),\"\")","v":"Fatalities, by winter season, state-wide/ region-wide, without seasonal severity index."},2,{"$f":"IFERROR(RIGHT(Lookup!$BB3,LEN(Lookup!$BB3)-42),\"\")","v":"Serious Injuries, by winter season, state-wide/ region-wide, without seasonal severity index."},2,{"$f":"IFERROR(RIGHT(Lookup!$BE3,LEN(Lookup!$BE3)-29),\"\")","v":"Accumulation-related threshold, by event, by roadway, without storm severity index, measured by sensors."},2,{"$f":"IFERROR(RIGHT(Lookup!$BH3,LEN(Lookup!$BH3)-21),\"\")","v":"Road surface condition, by event, by roadway, without storm severity index, measured (e.g. grip sensors)."},2,{"$f":"IFERROR(RIGHT(Lookup!$BK3,LEN(Lookup!$BK3)-24),\"\")","v":"Travel Time Index (TTI), by event, by trip, without storm severity index, measured."},2,{"$f":"IFERROR(RIGHT(Lookup!$BN3,LEN(Lookup!$BN3)-29),\"\")","v":"Cost of snow and ice control, by winter season, state-wide/ region-wide, with seasonal severity index."},2,{"$f":"IFERROR(RIGHT(Lookup!$BQ3,LEN(Lookup!$BQ3)-40),\"\")","v":"Level of satisfaction, by event, state-wide/ region-wide, with or without storm severity index."},2,{"$f":"IFERROR(RIGHT(Lookup!$BT3,LEN(Lookup!$BT3)-44),\"\")","v":"Current season usage compared to prior seasons, by event, state-wide/ region-wide, with storm severity index."},2]
[null,"SF-3",{"$f":"Lookup!$AG4","v":"Safety - Fatalities: Winter Weather-Related Fatal Crashes, by winter season, state-wide/ region-wide, with seasonal severity index."},"Fatal Crashes, by winter season, state-wide/ region-wide, with seasonal severity index.",{"$f":"Lookup!$AJ4","v":"Safety - Fatalities: Winter Weather-Related Fatal Crashes, by winter season, state-wide/ region-wide, with seasonal severity index."},"Fatal Crashes, by winter season, state-wide/ region-wide, with seasonal severity index.",null,null,3,{"$f":"IFERROR(RIGHT(Lookup!$AY4,LEN(Lookup!$AY4)-44),\"\")","v":"Fatal Crashes, by winter season, state-wide/ region-wide, with seasonal severity index."},3,{"$f":"IFERROR(RIGHT(Lookup!$BB4,LEN(Lookup!$BB4)-42),\"\")","v":"Serious Injury Crashes, by winter season, state-wide/ region-wide, with seasonal severity index."},3,{"$f":"IFERROR(RIGHT(Lookup!$BE4,LEN(Lookup!$BE4)-29),\"\")","v":"Accumulation-related threshold, by event, by roadway, with storm severity index, measured by field personnel."},3,{"$f":"IFERROR(RIGHT(Lookup!$BH4,LEN(Lookup!$BH4)-21),\"\")","v":"Road surface condition, by event, by roadway, with storm severity index, observed/ estimated."},3,{"$f":"IFERROR(RIGHT(Lookup!$BK4,LEN(Lookup!$BK4)-24),\"\")","v":"Travel Time Index (TTI), by event, by trip, with storm severity index, estimated."},3,{"$f":"IFERROR(RIGHT(Lookup!$BN4,LEN(Lookup!$BN4)-29),\"\")","v":"Cost of snow and ice control, by event, state-wide/ region-wide, without storm severity index."},3,{"$f":"IFERROR(RIGHT(Lookup!$BQ4,LEN(Lookup!$BQ4)-40),\"\")","v":""},3,{"$f":"IFERROR(RIGHT(Lookup!$BT4,LEN(Lookup!$BT4)-44),\"\")","v":"Current season usage, by event, state-wide/ region-wide, with storm severity index."},3]
[null,"SF-4",{"$f":"Lookup!$AG5","v":"Safety - Fatalities: Winter Weather-Related Fatalities, by winter season, state-wide/ region-wide, with seasonal severity index."},"Fatalities, by winter season, state-wide/ region-wide, with seasonal severity index.",{"$f":"Lookup!$AJ5","v":"Safety - Fatalities: Winter Weather-Related Fatalities, by winter season, state-wide/ region-wide, with seasonal severity index."},"Fatalities, by winter season, state-wide/ region-wide, with seasonal severity index.",null,null,4,{"$f":"IFERROR(RIGHT(Lookup!$AY5,LEN(Lookup!$AY5)-44),\"\")","v":"Fatalities, by winter season, state-wide/ region-wide, with seasonal severity index."},4,{"$f":"IFERROR(RIGHT(Lookup!$BB5,LEN(Lookup!$BB5)-42),\"\")","v":"Serious Injuries, by winter season, state-wide/ region-wide, with seasonal severity index."},4,{"$f":"IFERROR(RIGHT(Lookup!$BE5,LEN(Lookup!$BE5)-29),\"\")","v":"Accumulation-related threshold, by event, by roadway, with storm severity index, measured by sensors."},4,{"$f":"IFERROR(RIGHT(Lookup!$BH5,LEN(Lookup!$BH5)-21),\"\")","v":"Road surface condition, by event, by roadway, with storm severity index, measured (e.g. grip sensors)."},4,{"$f":"IFERROR(RIGHT(Lookup!$BK5,LEN(Lookup!$BK5)-24),\"\")","v":"Travel Time Index (TTI), by event, by trip, with storm severity index, measured."},4,{"$f":"IFERROR(RIGHT(Lookup!$BN5,LEN(Lookup!$BN5)-29),\"\")","v":"Cost of snow and ice control, by event, state-wide/ region-wide, with storm severity index."},4,{"$f":"IFERROR(RIGHT(Lookup!$BQ5,LEN(Lookup!$BQ5)-40),\"\")","v":""},4,{"$f":"IFERROR(RIGHT(Lookup!$BT5,LEN(Lookup!$BT5)-44),\"\")","v":"Current season usage compared to prior seasons, by winter season, state-wide/ region-wide, with seasonal severity index."},4]
[null,"SF-5",{"$f":"Lookup!$AG6","v":"Safety - Fatalities: Winter Weather-Related Fatal Crashes, by winter season, district-wide, without seasonal severity index."},"Fatal Crashes, by winter season, district-wide, without seasonal severity index.",{"$f":"Lookup!$AJ6","v":"Safety - Fatalities: Winter Weather-Related Fatal Crashes, by winter season, district-wide, without seasonal severity index."},"Fatal Crashes, by winter season, district-wide, without seasonal severity index.",null,null,5,{"$f":"IFERROR(RIGHT(Lookup!$AY6,LEN(Lookup!$AY6)-44),\"\")","v":"Fatal Crashes, by winter season, district-wide, without seasonal severity index."},5,{"$f":"IFERROR(RIGHT(Lookup!$BB6,LEN(Lookup!$BB6)-42),\"\")","v":"Serious Injury Crashes, by winter season, district-wide, without seasonal severity index."},5,{"$f":"IFERROR(RIGHT(Lookup!$BE6,LEN(Lookup!$BE6)-29),\"\")","v":"Friction-related threshold, by event, by roadway, without storm severity index, qualitative estimate by field personnel."},5,{"$f":"IFERROR(RIGHT(Lookup!$BH6,LEN(Lookup!$BH6)-21),\"\")","v":"Recovery to normal speeds, by event, by roadway, without storm severity index, estimated."},5,{"$f":"IFERROR(RIGHT(Lookup!$BK6,LEN(Lookup!$BK6)-24),\"\")","v":""},5,{"$f":"IFERROR(RIGHT(Lookup!$BN6,LEN(Lookup!$BN6)-29),\"\")","v":"Cost of snow and ice control, by winter season, district-wide, without seasonal severity index."},5,{"$f":"IFERROR(RIGHT(Lookup!$BQ6,LEN(Lookup!$BQ6)-40),\"\")","v":""},5,{"$f":"IFERROR(RIGHT(Lookup!$BT6,LEN(Lookup!$BT6)-44),\"\")","v":""},5]
[null,"SF-6",{"$f":"Lookup!$AG7","v":"Safety - Fatalities: Winter Weather-Related Fatalities, by winter season, district-wide, without seasonal severity index."},"Fatalities, by winter season, district-wide, without seasonal severity index.",{"$f":"Lookup!$AJ7","v":"Safety - Fatalities: Winter Weather-Related Fatalities, by winter season, district-wide, without seasonal severity index."},"Fatalities, by winter season, district-wide, without seasonal severity index.",null,null,6,{"$f":"IFERROR(RIGHT(Lookup!$AY7,LEN(Lookup!$AY7)-44),\"\")","v":"Fatalities, by winter season, district-wide, without seasonal severity index."},6,{"$f":"IFERROR(RIGHT(Lookup!$BB7,LEN(Lookup!$BB7)-42),\"\")","v":"Serious Injuries, by winter season, district-wide, without seasonal severity index."},6,{"$f":"IFERROR(RIGHT(Lookup!$BE7,LEN(Lookup!$BE7)-29),\"\")","v":"Friction-related threshold, by event, by roadway, without storm severity index, measured by sensors."},6,{"$f":"IFERROR(RIGHT(Lookup!$BH7,LEN(Lookup!$BH7)-21),\"\")","v":"Recovery to normal speeds, by event, by roadway, without storm severity index, measured by sensors."},6,{"$f":"IFERROR(RIGHT(Lookup!$BK7,LEN(Lookup!$BK7)-24),\"\")","v":""},6,{"$f":"IFERROR(RIGHT(Lookup!$BN7,LEN(Lookup!$BN7)-29),\"\")","v":"Cost of snow and ice control, by winter season, district-wide, with seasonal severity index."},6,{"$f":"IFERROR(RIGHT(Lookup!$BQ7,LEN(Lookup!$BQ7)-40),\"\")","v":""},6,{"$f":"IFERROR(RIGHT(Lookup!$BT7,LEN(Lookup!$BT7)-44),\"\")","v":""},6]
[null,"SF-7",{"$f":"Lookup!$AG8","v":"Safety - Fatalities: Winter Weather-Related Fatal Crashes, by winter season, district-wide, with seasonal severity index."},"Fatal Crashes, by winter season, district-wide, with seasonal severity index.",{"$f":"Lookup!$AJ8","v":"Safety - Fatalities: Winter Weather-Related Fatal Crashes, by winter season, district-wide, with seasonal severity index."},"Fatal Crashes, by winter season, district-wide, with seasonal severity index.",null,null,7,{"$f":"IFERROR(RIGHT(Lookup!$AY8,LEN(Lookup!$AY8)-44),\"\")","v":"Fatal Crashes, by winter season, district-wide, with seasonal severity index."},7,{"$f":"IFERROR(RIGHT(Lookup!$BB8,LEN(Lookup!$BB8)-42),\"\")","v":"Serious Injury Crashes, by winter season, district-wide, with seasonal severity index."},7,{"$f":"IFERROR(RIGHT(Lookup!$BE8,LEN(Lookup!$BE8)-29),\"\")","v":"Friction-related threshold, by event, by roadway, with storm severity index, qualitative estimate by field personnel."},7,{"$f":"IFERROR(RIGHT(Lookup!$BH8,LEN(Lookup!$BH8)-21),\"\")","v":"Recovery to normal speeds, by event, by roadway, with storm severity index, estimated."},7,{"$f":"IFERROR(RIGHT(Lookup!$BK8,LEN(Lookup!$BK8)-24),\"\")","v":""},7,{"$f":"IFERROR(RIGHT(Lookup!$BN8,LEN(Lookup!$BN8)-29),\"\")","v":"Cost of snow and ice control, by event, district-wide, without storm severity index."},7,{"$f":"IFERROR(RIGHT(Lookup!$BQ8,LEN(Lookup!$BQ8)-40),\"\")","v":""},7,{"$f":"IFERROR(RIGHT(Lookup!$BT8,LEN(Lookup!$BT8)-44),\"\")","v":""},7]
[null,"SF-8",{"$f":"Lookup!$AG9","v":"Safety - Fatalities: Winter Weather-Related Fatalities, by winter season, district-wide, with seasonal severity index."},"Fatalities, by winter season, district-wide, with seasonal severity index.",{"$f":"Lookup!$AJ9","v":"Safety - Fatalities: Winter Weather-Related Fatalities, by winter season, district-wide, with seasonal severity index."},"Fatalities, by winter season, district-wide, with seasonal severity index.",null,null,8,{"$f":"IFERROR(RIGHT(Lookup!$AY9,LEN(Lookup!$AY9)-44),\"\")","v":"Fatalities, by winter season, district-wide, with seasonal severity index."},8,{"$f":"IFERROR(RIGHT(Lookup!$BB9,LEN(Lookup!$BB9)-42),\"\")","v":"Serious Injuries, by winter season, district-wide, with seasonal severity index."},8,{"$f":"IFERROR(RIGHT(Lookup!$BE9,LEN(Lookup!$BE9)-29),\"\")","v":"Friction-related threshold, by event, by roadway, with storm severity index, measured by sensors."},8,{"$f":"IFERROR(RIGHT(Lookup!$BH9,LEN(Lookup!$BH9)-21),\"\")","v":"Recovery to normal speeds, by event, by roadway, with storm severity index, measured by sensors."},8,{"$f":"IFERROR(RIGHT(Lookup!$BK9,LEN(Lookup!$BK9)-24),\"\")","v":""},8,{"$f":"IFERROR(RIGHT(Lookup!$BN9,LEN(Lookup!$BN9)-29),\"\")","v":"Cost of snow and ice control, by event, district-wide, with storm severity index."},8,{"$f":"IFERROR(RIGHT(Lookup!$BQ9,LEN(Lookup!$BQ9)-40),\"\")","v":""},8,{"$f":"IFERROR(RIGHT(Lookup!$BT9,LEN(Lookup!$BT9)-44),\"\")","v":""},8]
[null,"SF-9",{"$f":"Lookup!$AG10","v":"Safety - Fatalities: Winter Weather-Related Fatal Crashes, by winter season, by roadway, without seasonal severity index."},"Fatal Crashes, by winter season, by roadway, without seasonal severity index.",{"$f":"Lookup!$AJ10","v":"Safety - Fatalities: Winter Weather-Related Fatal Crashes, by winter season, by roadway, without seasonal severity index."},"Fatal Crashes, by winter season, by roadway, without seasonal severity index.",null,null,9,{"$f":"IFERROR(RIGHT(Lookup!$AY10,LEN(Lookup!$AY10)-44),\"\")","v":"Fatal Crashes, by winter season, by roadway, without seasonal severity index."},9,{"$f":"IFERROR(RIGHT(Lookup!$BB10,LEN(Lookup!$BB10)-42),\"\")","v":"Serious Injury Crashes, by winter season, by roadway, without seasonal severity index."},9,{"$f":"IFERROR(RIGHT(Lookup!$BE10,LEN(Lookup!$BE10)-29),\"\")","v":"Travel speed-related threshold, by event, by roadway, without storm severity index, segment-based (e.g. probe data)."},9,{"$f":"IFERROR(RIGHT(Lookup!$BH10,LEN(Lookup!$BH10)-21),\"\")","v":""},9,{"$f":"IFERROR(RIGHT(Lookup!$BK10,LEN(Lookup!$BK10)-24),\"\")","v":""},9,{"$f":"IFERROR(RIGHT(Lookup!$BN10,LEN(Lookup!$BN10)-29),\"\")","v":"Cost of snow and ice control, by winter season, by roadway, without seasonal severity index."},9,{"$f":"IFERROR(RIGHT(Lookup!$BQ10,LEN(Lookup!$BQ10)-40),\"\")","v":""},9,{"$f":"IFERROR(RIGHT(Lookup!$BT10,LEN(Lookup!$BT10)-44),\"\")","v":""},9]
[null,"SF-10",{"$f":"Lookup!$AG11","v":"Safety - Fatalities: Winter Weather-Related Fatalities, by winter season, by roadway, without seasonal severity index."},"Fatalities, by winter season, by roadway, without seasonal severity index.",{"$f":"Lookup!$AJ11","v":"Safety - Fatalities: Winter Weather-Related Fatalities, by winter season, by roadway, without seasonal severity index."},"Fatalities, by winter season, by roadway, without seasonal severity index.",null,null,10,{"$f":"IFERROR(RIGHT(Lookup!$AY11,LEN(Lookup!$AY11)-44),\"\")","v":"Fatalities, by winter season, by roadway, without seasonal severity index."},10,{"$f":"IFERROR(RIGHT(Lookup!$BB11,LEN(Lookup!$BB11)-42),\"\")","v":"Serious Injuries, by winter season, by roadway, without seasonal severity index."},10,{"$f":"IFERROR(RIGHT(Lookup!$BE11,LEN(Lookup!$BE11)-29),\"\")","v":"Travel speed-related threshold, by event, by roadway, without storm severity index, point based (e.g. sensor)."},10,{"$f":"IFERROR(RIGHT(Lookup!$BH11,LEN(Lookup!$BH11)-21),\"\")","v":""},10,{"$f":"IFERROR(RIGHT(Lookup!$BK11,LEN(Lookup!$BK11)-24),\"\")","v":""},10,{"$f":"IFERROR(RIGHT(Lookup!$BN11,LEN(Lookup!$BN11)-29),\"\")","v":"Cost of snow and ice control, by winter season, by roadway, with seasonal severity index."},10,{"$f":"IFERROR(RIGHT(Lookup!$BQ11,LEN(Lookup!$BQ11)-40),\"\")","v":""},10,{"$f":"IFERROR(RIGHT(Lookup!$BT11,LEN(Lookup!$BT11)-44),\"\")","v":""},10]
[null,"SF-11",{"$f":"Lookup!$AG12","v":"Safety - Fatalities: Winter Weather-Related Fatal Crashes, by winter season, by roadway, with seasonal severity index."},"Fatal Crashes, by winter season, by roadway, with seasonal severity index.",{"$f":"Lookup!$AJ12","v":"Safety - Fatalities: Winter Weather-Related Fatal Crashes, by winter season, by roadway, with seasonal severity index."},"Fatal Crashes, by winter season, by roadway, with seasonal severity index.",null,null,11,{"$f":"IFERROR(RIGHT(Lookup!$AY12,LEN(Lookup!$AY12)-44),\"\")","v":"Fatal Crashes, by winter season, by roadway, with seasonal severity index."},11,{"$f":"IFERROR(RIGHT(Lookup!$BB12,LEN(Lookup!$BB12)-42),\"\")","v":"Serious Injury Crashes, by winter season, by roadway, with seasonal severity index."},11,{"$f":"IFERROR(RIGHT(Lookup!$BE12,LEN(Lookup!$BE12)-29),\"\")","v":"Travel speed-related threshold, by event, by roadway, with storm severity index, segment-based (e.g. probe data)."},11,{"$f":"IFERROR(RIGHT(Lookup!$BH12,LEN(Lookup!$BH12)-21),\"\")","v":""},11,{"$f":"IFERROR(RIGHT(Lookup!$BK12,LEN(Lookup!$BK12)-24),\"\")","v":""},11,{"$f":"IFERROR(RIGHT(Lookup!$BN12,LEN(Lookup!$BN12)-29),\"\")","v":"Cost of snow and ice control, by event, by roadway, without storm severity index."},11,{"$f":"IFERROR(RIGHT(Lookup!$BQ12,LEN(Lookup!$BQ12)-40),\"\")","v":""},11,{"$f":"IFERROR(RIGHT(Lookup!$BT12,LEN(Lookup!$BT12)-44),\"\")","v":""},11]
[null,"SF-12",{"$f":"Lookup!$AG13","v":"Safety - Fatalities: Winter Weather-Related Fatalities, by winter season, by roadway, with seasonal severity index."},"Fatalities, by winter season, by roadway, with seasonal severity index.",{"$f":"Lookup!$AJ13","v":"Safety - Fatalities: Winter Weather-Related Fatalities, by winter season, by roadway, with seasonal severity index."},"Fatalities, by winter season, by roadway, with seasonal severity index.",null,null,12,{"$f":"IFERROR(RIGHT(Lookup!$AY13,LEN(Lookup!$AY13)-44),\"\")","v":"Fatalities, by winter season, by roadway, with seasonal severity index."},12,{"$f":"IFERROR(RIGHT(Lookup!$BB13,LEN(Lookup!$BB13)-42),\"\")","v":"Serious Injuries, by winter season, by roadway, with seasonal severity index."},12,{"$f":"IFERROR(RIGHT(Lookup!$BE13,LEN(Lookup!$BE13)-29),\"\")","v":"Travel speed-related threshold, by event, by roadway, with storm severity index, point based (e.g. sensor)."},12,{"$f":"IFERROR(RIGHT(Lookup!$BH13,LEN(Lookup!$BH13)-21),\"\")","v":""},12,{"$f":"IFERROR(RIGHT(Lookup!$BK13,LEN(Lookup!$BK13)-24),\"\")","v":""},12,{"$f":"IFERROR(RIGHT(Lookup!$BN13,LEN(Lookup!$BN13)-29),\"\")","v":"Cost of snow and ice control, by event, by roadway, with storm severity index."},12,{"$f":"IFERROR(RIGHT(Lookup!$BQ13,LEN(Lookup!$BQ13)-40),\"\")","v":""},12,{"$f":"IFERROR(RIGHT(Lookup!$BT13,LEN(Lookup!$BT13)-44),\"\")","v":""},12]
[null,"SF-13",{"$f":"Lookup!$AG14","v":"Safety - Fatalities: Winter Weather-Related Fatal Crashes, by event, state-wide/ region-wide, without storm severity index."},"Fatal Crashes, by event, state-wide/ region-wide, without storm severity index.",{"$f":"Lookup!$AJ14","v":"Safety - Fatalities: Winter Weather-Related Fatal Crashes, by event, state-wide/ region-wide, without storm severity index."},"Fatal Crashes, by event, state-wide/ region-wide, without storm severity index.",null,null,13,{"$f":"IFERROR(RIGHT(Lookup!$AY14,LEN(Lookup!$AY14)-44),\"\")","v":"Fatal Crashes, by event, state-wide/ region-wide, without storm severity index."},13,{"$f":"IFERROR(RIGHT(Lookup!$BB14,LEN(Lookup!$BB14)-42),\"\")","v":"Serious Injury Crashes, by event, state-wide/ region-wide, without storm severity index."},13,{"$f":"IFERROR(RIGHT(Lookup!$BE14,LEN(Lookup!$BE14)-29),\"\")","v":""},13,{"$f":"IFERROR(RIGHT(Lookup!$BH14,LEN(Lookup!$BH14)-21),\"\")","v":""},13,{"$f":"IFERROR(RIGHT(Lookup!$BK14,LEN(Lookup!$BK14)-24),\"\")","v":""},13,{"$f":"IFERROR(RIGHT(Lookup!$BN14,LEN(Lookup!$BN14)-29),\"\")","v":""},13,{"$f":"IFERROR(RIGHT(Lookup!$BQ14,LEN(Lookup!$BQ14)-40),\"\")","v":""},13,{"$f":"IFERROR(RIGHT(Lookup!$BT14,LEN(Lookup!$BT14)-44),\"\")","v":""},13]
[null,"SF-14",{"$f":"Lookup!$AG15","v":"Safety - Fatalities: Winter Weather-Related Fatalities, by event, state-wide/ region-wide, without storm severity index."},"Fatalities, by event, state-wide/ region-wide, without storm severity index.",{"$f":"Lookup!$AJ15","v":"Safety - Fatalities: Winter Weather-Related Fatalities, by event, state-wide/ region-wide, without storm severity index."},"Fatalities, by event, state-wide/ region-wide, without storm severity index.",null,null,14,{"$f":"IFERROR(RIGHT(Lookup!$AY15,LEN(Lookup!$AY15)-44),\"\")","v":"Fatalities, by event, state-wide/ region-wide, without storm severity index."},14,{"$f":"IFERROR(RIGHT(Lookup!$BB15,LEN(Lookup!$BB15)-42),\"\")","v":"Serious Injuries, by event, state-wide/ region-wide, without storm severity index."},14,{"$f":"IFERROR(RIGHT(Lookup!$BE15,LEN(Lookup!$BE15)-29),\"\")","v":""},14,{"$f":"IFERROR(RIGHT(Lookup!$BH15,LEN(Lookup!$BH15)-21),\"\")","v":""},14,{"$f":"IFERROR(RIGHT(Lookup!$BK15,LEN(Lookup!$BK15)-24),\"\")","v":""},14,{"$f":"IFERROR(RIGHT(Lookup!$BN15,LEN(Lookup!$BN15)-29),\"\")","v":""},14,{"$f":"IFERROR(RIGHT(Lookup!$BQ15,LEN(Lookup!$BQ15)-40),\"\")","v":""},14,{"$f":"IFERROR(RIGHT(Lookup!$BT15,LEN(Lookup!$BT15)-44),\"\")","v":""},14]
[null,"SF-15",{"$f":"Lookup!$AG16","v":"Safety - Fatalities: Winter Weather-Related Fatal Crashes, by event, state-wide/ region-wide, with storm severity index."},"Fatal Crashes, by event, state-wide/ region-wide, with storm severity index.",{"$f":"Lookup!$AJ16","v":"Safety - Fatalities: Winter Weather-Related Fatal Crashes, by event, state-wide/ region-wide, with storm severity index."},"Fatal Crashes, by event, state-wide/ region-wide, with storm severity index.",null,null,15,{"$f":"IFERROR(RIGHT(Lookup!$AY16,LEN(Lookup!$AY16)-44),\"\")","v":"Fatal Crashes, by event, state-wide/ region-wide, with storm severity index."},15,{"$f":"IFERROR(RIGHT(Lookup!$BB16,LEN(Lookup!$BB16)-42),\"\")","v":"Serious Injury Crashes, by event, state-wide/ region-wide, with storm severity index."},15,{"$f":"IFERROR(RIGHT(Lookup!$BE16,LEN(Lookup!$BE16)-29),\"\")","v":""},15,{"$f":"IFERROR(RIGHT(Lookup!$BH16,LEN(Lookup!$BH16)-21),\"\")","v":""},15,{"$f":"IFERROR(RIGHT(Lookup!$BK16,LEN(Lookup!$BK16)-24),\"\")","v":""},15,{"$f":"IFERROR(RIGHT(Lookup!$BN16,LEN(Lookup!$BN16)-29),\"\")","v":""},15,{"$f":"IFERROR(RIGHT(Lookup!$BQ16,LEN(Lookup!$BQ16)-40),\"\")","v":""},15,{"$f":"IFERROR(RIGHT(Lookup!$BT16,LEN(Lookup!$BT16)-44),\"\")","v":""},15]
[null,"SF-16",{"$f":"Lookup!$AG17","v":"Safety - Fatalities: Winter Weather-Related Fatalities, by event, state-wide/ region-wide, with storm severity index."},"Fatalities, by event, state-wide/ region-wide, with storm severity index.",{"$f":"Lookup!$AJ17","v":"Safety - Fatalities: Winter Weather-Related Fatalities, by event, state-wide/ region-wide, with storm severity index."},"Fatalities, by event, state-wide/ region-wide, with storm severity index.",null,null,16,{"$f":"IFERROR(RIGHT(Lookup!$AY17,LEN(Lookup!$AY17)-44),\"\")","v":"Fatalities, by event, state-wide/ region-wide, with storm severity index."},16,{"$f":"IFERROR(RIGHT(Lookup!$BB17,LEN(Lookup!$BB17)-42),\"\")","v":"Serious Injuries, by event, state-wide/ region-wide, with storm severity index."},16,{"$f":"IFERROR(RIGHT(Lookup!$BE17,LEN(Lookup!$BE17)-29),\"\")","v":""},16,{"$f":"IFERROR(RIGHT(Lookup!$BH17,LEN(Lookup!$BH17)-21),\"\")","v":""},16,{"$f":"IFERROR(RIGHT(Lookup!$BK17,LEN(Lookup!$BK17)-24),\"\")","v":""},16,{"$f":"IFERROR(RIGHT(Lookup!$BN17,LEN(Lookup!$BN17)-29),\"\")","v":""},16,{"$f":"IFERROR(RIGHT(Lookup!$BQ17,LEN(Lookup!$BQ17)-40),\"\")","v":""},16,{"$f":"IFERROR(RIGHT(Lookup!$BT17,LEN(Lookup!$BT17)-44),\"\")","v":""},16]
[null,"SF-17",{"$f":"Lookup!$AG18","v":"Safety - Fatalities: Winter Weather-Related Fatal Crashes, by event, district-wide, without storm severity index."},"Fatal Crashes, by event, district-wide, without storm severity index.",{"$f":"Lookup!$AJ18","v":"Safety - Fatalities: Winter Weather-Related Fatal Crashes, by event, district-wide, without storm severity index."},"Fatal Crashes, by event, district-wide, without storm severity index.",null,null,17,{"$f":"IFERROR(RIGHT(Lookup!$AY18,LEN(Lookup!$AY18)-44),\"\")","v":"Fatal Crashes, by event, district-wide, without storm severity index."},17,{"$f":"IFERROR(RIGHT(Lookup!$BB18,LEN(Lookup!$BB18)-42),\"\")","v":"Serious Injury Crashes, by event, district-wide, without storm severity index."},17,{"$f":"IFERROR(RIGHT(Lookup!$BE18,LEN(Lookup!$BE18)-29),\"\")","v":""},17,{"$f":"IFERROR(RIGHT(Lookup!$BH18,LEN(Lookup!$BH18)-21),\"\")","v":""},17,{"$f":"IFERROR(RIGHT(Lookup!$BK18,LEN(Lookup!$BK18)-24),\"\")","v":""},17,{"$f":"IFERROR(RIGHT(Lookup!$BN18,LEN(Lookup!$BN18)-29),\"\")","v":""},17,{"$f":"IFERROR(RIGHT(Lookup!$BQ18,LEN(Lookup!$BQ18)-40),\"\")","v":""},17,{"$f":"IFERROR(RIGHT(Lookup!$BT18,LEN(Lookup!$BT18)-44),\"\")","v":""},17]
[null,"SF-18",{"$f":"Lookup!$AG19","v":"Safety - Fatalities: Winter Weather-Related Fatalities, by event, district-wide, without storm severity index."},"Fatalities, by event, district-wide, without storm severity index.",{"$f":"Lookup!$AJ19","v":"Safety - Fatalities: Winter Weather-Related Fatalities, by event, district-wide, without storm severity index."},"Fatalities, by event, district-wide, without storm severity index.",null,null,18,{"$f":"IFERROR(RIGHT(Lookup!$AY19,LEN(Lookup!$AY19)-44),\"\")","v":"Fatalities, by event, district-wide, without storm severity index."},18,{"$f":"IFERROR(RIGHT(Lookup!$BB19,LEN(Lookup!$BB19)-42),\"\")","v":"Serious Injuries, by event, district-wide, without storm severity index."},18,{"$f":"IFERROR(RIGHT(Lookup!$BE19,LEN(Lookup!$BE19)-29),\"\")","v":""},18,{"$f":"IFERROR(RIGHT(Lookup!$BH19,LEN(Lookup!$BH19)-21),\"\")","v":""},18,{"$f":"IFERROR(RIGHT(Lookup!$BK19,LEN(Lookup!$BK19)-24),\"\")","v":""},18,{"$f":"IFERROR(RIGHT(Lookup!$BN19,LEN(Lookup!$BN19)-29),\"\")","v":""},18,{"$f":"IFERROR(RIGHT(Lookup!$BQ19,LEN(Lookup!$BQ19)-40),\"\")","v":""},18,{"$f":"IFERROR(RIGHT(Lookup!$BT19,LEN(Lookup!$BT19)-44),\"\")","v":""},18]
[null,"SF-19",{"$f":"Lookup!$AG20","v":"Safety - Fatalities: Winter Weather-Related Fatal Crashes, by event, district-wide, with storm severity index."},"Fatal Crashes, by event, district-wide, with storm severity index.",{"$f":"Lookup!$AJ20","v":"Safety - Fatalities: Winter Weather-Related Fatal Crashes, by event, district-wide, with storm severity index."},"Fatal Crashes, by event, district-wide, with storm severity index.",null,null,19,{"$f":"IFERROR(RIGHT(Lookup!$AY20,LEN(Lookup!$AY20)-44),\"\")","v":"Fatal Crashes, by event, district-wide, with storm severity index."},19,{"$f":"IFERROR(RIGHT(Lookup!$BB20,LEN(Lookup!$BB20)-42),\"\")","v":"Serious Injury Crashes, by event, district-wide, with storm severity index."},19,{"$f":"IFERROR(RIGHT(Lookup!$BE20,LEN(Lookup!$BE20)-29),\"\")","v":""},19,{"$f":"IFERROR(RIGHT(Lookup!$BH20,LEN(Lookup!$BH20)-21),\"\")","v":""},19,{"$f":"IFERROR(RIGHT(Lookup!$BK20,LEN(Lookup!$BK20)-24),\"\")","v":""},19,{"$f":"IFERROR(RIGHT(Lookup!$BN20,LEN(Lookup!$BN20)-29),\"\")","v":""},19,{"$f":"IFERROR(RIGHT(Lookup!$BQ20,LEN(Lookup!$BQ20)-40),\"\")","v":""},19,{"$f":"IFERROR(RIGHT(Lookup!$BT20,LEN(Lookup!$BT20)-44),\"\")","v":""},19]
[null,"SF-20",{"$f":"Lookup!$AG21","v":"Safety - Fatalities: Winter Weather-Related Fatalities, by event, district-wide, with storm severity index."},"Fatalities, by event, district-wide, with storm severity index.",{"$f":"Lookup!$AJ21","v":"Safety - Fatalities: Winter Weather-Related Fatalities, by event, district-wide, with storm severity index."},"Fatalities, by event, district-wide, with storm severity index.",null,null,20,{"$f":"IFERROR(RIGHT(Lookup!$AY21,LEN(Lookup!$AY21)-44),\"\")","v":"Fatalities, by event, district-wide, with storm severity index."},20,{"$f":"IFERROR(RIGHT(Lookup!$BB21,LEN(Lookup!$BB21)-42),\"\")","v":"Serious Injuries, by event, district-wide, with storm severity index."},20,{"$f":"IFERROR(RIGHT(Lookup!$BE21,LEN(Lookup!$BE21)-29),\"\")","v":""},20,{"$f":"IFERROR(RIGHT(Lookup!$BH21,LEN(Lookup!$BH21)-21),\"\")","v":""},20,{"$f":"IFERROR(RIGHT(Lookup!$BK21,LEN(Lookup!$BK21)-24),\"\")","v":""},20,{"$f":"IFERROR(RIGHT(Lookup!$BN21,LEN(Lookup!$BN21)-29),\"\")","v":""},20,{"$f":"IFERROR(RIGHT(Lookup!$BQ21,LEN(Lookup!$BQ21)-40),\"\")","v":""},20,{"$f":"IFERROR(RIGHT(Lookup!$BT21,LEN(Lookup!$BT21)-44),\"\")","v":""},20]
[null,"SF-21",{"$f":"Lookup!$AG22","v":"Safety - Fatalities: Winter Weather-Related Fatal Crashes, by event, by roadway, without storm severity index."},"Fatal Crashes, by event, by roadway, without storm severity index.",{"$f":"Lookup!$AJ22","v":"Safety - Fatalities: Winter Weather-Related Fatal Crashes, by event, by roadway, without storm severity index."},"Fatal Crashes, by event, by roadway, without storm severity index.",null,null,21,{"$f":"IFERROR(RIGHT(Lookup!$AY22,LEN(Lookup!$AY22)-44),\"\")","v":"Fatal Crashes, by event, by roadway, without storm severity index."},21,{"$f":"IFERROR(RIGHT(Lookup!$BB22,LEN(Lookup!$BB22)-42),\"\")","v":"Serious Injury Crashes, by event, by roadway, without storm severity index."},21,{"$f":"IFERROR(RIGHT(Lookup!$BE22,LEN(Lookup!$BE22)-29),\"\")","v":""},21,{"$f":"IFERROR(RIGHT(Lookup!$BH22,LEN(Lookup!$BH22)-21),\"\")","v":""},21,{"$f":"IFERROR(RIGHT(Lookup!$BK22,LEN(Lookup!$BK22)-24),\"\")","v":""},21,{"$f":"IFERROR(RIGHT(Lookup!$BN22,LEN(Lookup!$BN22)-29),\"\")","v":""},21,{"$f":"IFERROR(RIGHT(Lookup!$BQ22,LEN(Lookup!$BQ22)-40),\"\")","v":""},21,{"$f":"IFERROR(RIGHT(Lookup!$BT22,LEN(Lookup!$BT22)-44),\"\")","v":""},21]
[null,"SF-22",{"$f":"Lookup!$AG23","v":"Safety - Fatalities: Winter Weather-Related Fatalities, by event, by roadway, without storm severity index."},"Fatalities, by event, by roadway, without storm severity index.",{"$f":"Lookup!$AJ23","v":"Safety - Fatalities: Winter Weather-Related Fatalities, by event, by roadway, without storm severity index."},"Fatalities, by event, by roadway, without storm severity index.",null,null,22,{"$f":"IFERROR(RIGHT(Lookup!$AY23,LEN(Lookup!$AY23)-44),\"\")","v":"Fatalities, by event, by roadway, without storm severity index."},22,{"$f":"IFERROR(RIGHT(Lookup!$BB23,LEN(Lookup!$BB23)-42),\"\")","v":"Serious Injuries, by event, by roadway, without storm severity index."},22,{"$f":"IFERROR(RIGHT(Lookup!$BE23,LEN(Lookup!$BE23)-29),\"\")","v":""},22,{"$f":"IFERROR(RIGHT(Lookup!$BH23,LEN(Lookup!$BH23)-21),\"\")","v":""},22,{"$f":"IFERROR(RIGHT(Lookup!$BK23,LEN(Lookup!$BK23)-24),\"\")","v":""},22,{"$f":"IFERROR(RIGHT(Lookup!$BN23,LEN(Lookup!$BN23)-29),\"\")","v":""},22,{"$f":"IFERROR(RIGHT(Lookup!$BQ23,LEN(Lookup!$BQ23)-40),\"\")","v":""},22,{"$f":"IFERROR(RIGHT(Lookup!$BT23,LEN(Lookup!$BT23)-44),\"\")","v":""},22]
[null,"SF-23",{"$f":"Lookup!$AG24","v":"Safety - Fatalities: Winter Weather-Related Fatal Crashes, by event, by roadway, with storm severity index."},"Fatal Crashes, by event, by roadway, with storm severity index.",{"$f":"Lookup!$AJ24","v":"Safety - Fatalities: Winter Weather-Related Fatal Crashes, by event, by roadway, with storm severity index."},"Fatal Crashes, by event, by roadway, with storm severity index.",null,null,23,{"$f":"IFERROR(RIGHT(Lookup!$AY24,LEN(Lookup!$AY24)-44),\"\")","v":"Fatal Crashes, by event, by roadway, with storm severity index."},23,{"$f":"IFERROR(RIGHT(Lookup!$BB24,LEN(Lookup!$BB24)-42),\"\")","v":"Serious Injury Crashes, by event, by roadway, with storm severity index."},23,{"$f":"IFERROR(RIGHT(Lookup!$BE24,LEN(Lookup!$BE24)-29),\"\")","v":""},23,{"$f":"IFERROR(RIGHT(Lookup!$BH24,LEN(Lookup!$BH24)-21),\"\")","v":""},23,{"$f":"IFERROR(RIGHT(Lookup!$BK24,LEN(Lookup!$BK24)-24),\"\")","v":""},23,{"$f":"IFERROR(RIGHT(Lookup!$BN24,LEN(Lookup!$BN24)-29),\"\")","v":""},23,{"$f":"IFERROR(RIGHT(Lookup!$BQ24,LEN(Lookup!$BQ24)-40),\"\")","v":""},23,{"$f":"IFERROR(RIGHT(Lookup!$BT24,LEN(Lookup!$BT24)-44),\"\")","v":""},23]
[null,"SF-24",{"$f":"Lookup!$AG25","v":"Safety - Fatalities: Winter Weather-Related Fatalities, by event, by roadway, with storm severity index."},"Fatalities, by event, by roadway, with storm severity index.",{"$f":"Lookup!$AJ25","v":"Safety - Fatalities: Winter Weather-Related Fatalities, by event, by roadway, with storm severity index."},"Fatalities, by event, by roadway, with storm severity index.",null,null,24,{"$f":"IFERROR(RIGHT(Lookup!$AY25,LEN(Lookup!$AY25)-44),\"\")","v":"Fatalities, by event, by roadway, with storm severity index."},24,{"$f":"IFERROR(RIGHT(Lookup!$BB25,LEN(Lookup!$BB25)-42),\"\")","v":"Serious Injuries, by event, by roadway, with storm severity index."},24,{"$f":"IFERROR(RIGHT(Lookup!$BE25,LEN(Lookup!$BE25)-29),\"\")","v":""},24,{"$f":"IFERROR(RIGHT(Lookup!$BH25,LEN(Lookup!$BH25)-21),\"\")","v":""},24,{"$f":"IFERROR(RIGHT(Lookup!$BK25,LEN(Lookup!$BK25)-24),\"\")","v":""},24,{"$f":"IFERROR(RIGHT(Lookup!$BN25,LEN(Lookup!$BN25)-29),\"\")","v":""},24,{"$f":"IFERROR(RIGHT(Lookup!$BQ25,LEN(Lookup!$BQ25)-40),\"\")","v":""},24,{"$f":"IFERROR(RIGHT(Lookup!$BT25,LEN(Lookup!$BT25)-44),\"\")","v":""},24]
[null,"SI-1",{"$f":"Lookup!$AG26","v":"Safety - Injuries: Winter Weather-Related Serious Injury Crashes, by winter season, state-wide/ region-wide, without seasonal severity index."},{"$f":"RIGHT(C26,LEN(C26)-42)","v":"Serious Injury Crashes, by winter season, state-wide/ region-wide, without seasonal severity index."},{"$f":"Lookup!$AJ26","v":"Safety - Injuries: Winter Weather-Related Serious Injury Crashes, by winter season, state-wide/ region-wide, without seasonal severity index."},{"$f":"IFERROR(RIGHT(E26,LEN(E26)-42),\"\")","v":"Serious Injury Crashes, by winter season, state-wide/ region-wide, without seasonal severity index."}]
[null,"SI-2",{"$f":"Lookup!$AG27","v":"Safety - Injuries: Winter Weather-Related Serious Injuries, by winter season, state-wide/ region-wide, without seasonal severity index."},{"$f":"RIGHT(C27,LEN(C27)-42)","v":"Serious Injuries, by winter season, state-wide/ region-wide, without seasonal severity index."},{"$f":"Lookup!$AJ27","v":"Safety - Injuries: Winter Weather-Related Serious Injuries, by winter season, state-wide/ region-wide, without seasonal severity index."},{"$f":"IFERROR(RIGHT(E27,LEN(E27)-42),\"\")","v":"Serious Injuries, by winter season, state-wide/ region-wide, without seasonal severity index."}]
[null,"SI-3",{"$f":"Lookup!$AG28","v":"Safety - Injuries: Winter Weather-Related Serious Injury Crashes, by winter season, state-wide/ region-wide, with seasonal severity index."},"Serious Injury Crashes, by winter season, state-wide/ region-wide, with seasonal severity index.",{"$f":"Lookup!$AJ28","v":"Safety - Injuries: Winter Weather-Related Serious Injury Crashes, by winter season, state-wide/ region-wide, with seasonal severity index."},"Serious Injury Crashes, by winter season, state-wide/ region-wide, with seasonal severity index."]
[null,"SI-4",{"$f":"Lookup!$AG29","v":"Safety - Injuries: Winter Weather-Related Serious Injuries, by winter season, state-wide/ region-wide, with seasonal severity index."},"Serious Injuries, by winter season, state-wide/ region-wide, with seasonal severity index.",{"$f":"Lookup!$AJ29","v":"Safety - Injuries: Winter Weather-Related Serious Injuries, by winter season, state-wide/ region-wide, with seasonal severity index."},"Serious Injuries, by winter season, state-wide/ region-wide, with seasonal severity index."]
[null,"SI-5",{"$f":"Lookup!$AG30","v":"Safety - Injuries: Winter Weather-Related Serious Injury Crashes, by winter season, district-wide, without seasonal severity index."},"Serious Injury Crashes, by winter season, district-wide, without seasonal severity index.",{"$f":"Lookup!$AJ30","v":"Safety - Injuries: Winter Weather-Related Serious Injury Crashes, by winter season, district-wide, without seasonal severity index."},"Serious Injury Crashes, by winter season, district-wide, without seasonal severity index."]
[null,"SI-6",{"$f":"Lookup!$AG31","v":"Safety - Injuries: Winter Weather-Related Serious Injuries, by winter season, district-wide, without seasonal severity index."},"Serious Injuries, by winter season, district-wide, without seasonal severity index.",{"$f":"Lookup!$AJ31","v":"Safety - Injuries: Winter Weather-Related Serious Injuries, by winter season, district-wide, without seasonal severity index."},"Serious Injuries, by winter season, district-wide, without seasonal severity index."]
[null,"SI-7",{"$f":"Lookup!$AG32","v":"Safety - Injuries: Winter Weather-Related Serious Injury Crashes, by winter season, district-wide, with seasonal severity index."},"Serious Injury Crashes, by winter season, district-wide, with seasonal severity index.",{"$f":"Lookup!$AJ32","v":"Safety - Injuries: Winter Weather-Related Serious Injury Crashes, by winter season, district-wide, with seasonal severity index."},"Serious Injury Crashes, by winter season, district-wide, with seasonal severity index."]
[null,"SI-8",{"$f":"Lookup!$AG33","v":"Safety - Injuries: Winter Weather-Related Serious Injuries, by winter season, district-wide, with seasonal severity index."},"Serious Injuries, by winter season, district-wide, with seasonal severity index.",{"$f":"Lookup!$AJ33","v":"Safety - Injuries: Winter Weather-Related Serious Injuries, by winter season, district-wide, with seasonal severity index."},"Serious Injuries, by winter season, district-wide, with seasonal severity index."]
[null,"SI-9",{"$f":"Lookup!$AG34","v":"Safety - Injuries: Winter Weather-Related Serious Injury Crashes, by winter season, by roadway, without seasonal severity index."},"Serious Injury Crashes, by winter season, by roadway, without seasonal severity index.",{"$f":"Lookup!$AJ34","v":"Safety - Injuries: Winter Weather-Related Serious Injury Crashes, by winter season, by roadway, without seasonal severity index."},"Serious Injury Crashes, by winter season, by roadway, without seasonal severity index."]
[null,"SI-10",{"$f":"Lookup!$AG35","v":"Safety - Injuries: Winter Weather-Related Serious Injuries, by winter season, by roadway, without seasonal severity index."},"Serious Injuries, by winter season, by roadway, without seasonal severity index.",{"$f":"Lookup!$AJ35","v":"Safety - Injuries: Winter Weather-Related Serious Injuries, by winter season, by roadway, without seasonal severity index."},"Serious Injuries, by winter season, by roadway, without seasonal severity index."]
[null,"SI-11",{"$f":"Lookup!$AG36","v":"Safety - Injuries: Winter Weather-Related Serious Injury Crashes, by winter season, by roadway, with seasonal severity index."},"Serious Injury Crashes, by winter season, by roadway, with seasonal severity index.",{"$f":"Lookup!$AJ36","v":"Safety - Injuries: Winter Weather-Related Serious Injury Crashes, by winter season, by roadway, with seasonal severity index."},"Serious Injury Crashes, by winter season, by roadway, with seasonal severity index."]
[null,"SI-12",{"$f":"Lookup!$AG37","v":"Safety - Injuries: Winter Weather-Related Serious Injuries, by winter season, by roadway, with seasonal severity index."},"Serious Injuries, by winter season, by roadway, with seasonal severity index.",{"$f":"Lookup!$AJ37","v":"Safety - Injuries: Winter Weather-Related Serious Injuries, by winter season, by roadway, with seasonal severity index."},"Serious Injuries, by winter season, by roadway, with seasonal severity index."]
[null,"SI-13",{"$f":"Lookup!$AG38","v":"Safety - Injuries: Winter Weather-Related Serious Injury Crashes, by event, state-wide/ region-wide, without storm severity index."},"Serious Injury Crashes, by event, state-wide/ region-wide, without storm severity index.",{"$f":"Lookup!$AJ38","v":"Safety - Injuries: Winter Weather-Related Serious Injury Crashes, by event, state-wide/ region-wide, without storm severity index."},"Serious Injury Crashes, by event, state-wide/ region-wide, without storm severity index."]
[null,"SI-14",{"$f":"Lookup!$AG39","v":"Safety - Injuries: Winter Weather-Related Serious Injuries, by event, state-wide/ region-wide, without storm severity index."},"Serious Injuries, by event, state-wide/ region-wide, without storm severity index.",{"$f":"Lookup!$AJ39","v":"Safety - Injuries: Winter Weather-Related Serious Injuries, by event, state-wide/ region-wide, without storm severity index."},"Serious Injuries, by event, state-wide/ region-wide, without storm severity index."]
[null,"SI-15",{"$f":"Lookup!$AG40","v":"Safety - Injuries: Winter Weather-Related Serious Injury Crashes, by event, state-wide/ region-wide, with storm severity index."},"Serious Injury Crashes, by event, state-wide/ region-wide, with storm severity index.",{"$f":"Lookup!$AJ40","v":"Safety - Injuries: Winter Weather-Related Serious Injury Crashes, by event, state-wide/ region-wide, with storm severity index."},"Serious Injury Crashes, by event, state-wide/ region-wide, with storm severity index."]
[null,"SI-16",{"$f":"Lookup!$AG41","v":"Safety - Injuries: Winter Weather-Related Serious Injuries, by event, state-wide/ region-wide, with storm severity index."},"Serious Injuries, by event, state-wide/ region-wide, with storm severity index.",{"$f":"Lookup!$AJ41","v":"Safety - Injuries: Winter Weather-Related Serious Injuries, by event, state-wide/ region-wide, with storm severity index."},"Serious Injuries, by event, state-wide/ region-wide, with storm severity index."]
[null,"SI-17",{"$f":"Lookup!$AG42","v":"Safety - Injuries: Winter Weather-Related Serious Injury Crashes, by event, district-wide, without storm severity index."},"Serious Injury Crashes, by event, district-wide, without storm severity index.",{"$f":"Lookup!$AJ42","v":"Safety - Injuries: Winter Weather-Related Serious Injury Crashes, by event, district-wide, without storm severity index."},"Serious Injury Crashes, by event, district-wide, without storm severity index."]
[null,"SI-18",{"$f":"Lookup!$AG43","v":"Safety - Injuries: Winter Weather-Related Serious Injuries, by event, district-wide, without storm severity index."},"Serious Injuries, by event, district-wide, without storm severity index.",{"$f":"Lookup!$AJ43","v":"Safety - Injuries: Winter Weather-Related Serious Injuries, by event, district-wide, without storm severity index."},"Serious Injuries, by event, district-wide, without storm severity index."]
[null,"SI-19",{"$f":"Lookup!$AG44","v":"Safety - Injuries: Winter Weather-Related Serious Injury Crashes, by event, district-wide, with storm severity index."},"Serious Injury Crashes, by event, district-wide, with storm severity index.",{"$f":"Lookup!$AJ44","v":"Safety - Injuries: Winter Weather-Related Serious Injury Crashes, by event, district-wide, with storm severity index."},"Serious Injury Crashes, by event, district-wide, with storm severity index."]
[null,"SI-20",{"$f":"Lookup!$AG45","v":"Safety - Injuries: Winter Weather-Related Serious Injuries, by event, district-wide, with storm severity index."},"Serious Injuries, by event, district-wide, with storm severity index.",{"$f":"Lookup!$AJ45","v":"Safety - Injuries: Winter Weather-Related Serious Injuries, by event, district-wide, with storm severity index."},"Serious Injuries, by event, district-wide, with storm severity index."]
[null,"SI-21",{"$f":"Lookup!$AG46","v":"Safety - Injuries: Winter Weather-Related Serious Injury Crashes, by event, by roadway, without storm severity index."},"Serious Injury Crashes, by event, by roadway, without storm severity index.",{"$f":"Lookup!$AJ46","v":"Safety - Injuries: Winter Weather-Related Serious Injury Crashes, by event, by roadway, without storm severity index."},"Serious Injury Crashes, by event, by roadway, without storm severity index."]
[null,"SI-22",{"$f":"Lookup!$AG47","v":"Safety - Injuries: Winter Weather-Related Serious Injuries, by event, by roadway, without storm severity index."},"Serious Injuries, by event, by roadway, without storm severity index.",{"$f":"Lookup!$AJ47","v":"Safety - Injuries: Winter Weather-Related Serious Injuries, by event, by roadway, without storm severity index."},"Serious Injuries, by event, by roadway, without storm severity index."]
[null,"SI-23",{"$f":"Lookup!$AG48","v":"Safety - Injuries: Winter Weather-Related Serious Injury Crashes, by event, by roadway, with storm severity index."},"Serious Injury Crashes, by event, by roadway, with storm severity index.",{"$f":"Lookup!$AJ48","v":"Safety - Injuries: Winter Weather-Related Serious Injury Crashes, by event, by roadway, with storm severity index."},"Serious Injury Crashes, by event, by roadway, with storm severity index."]
[null,"SI-24",{"$f":"Lookup!$AG49","v":"Safety - Injuries: Winter Weather-Related Serious Injuries, by event, by roadway, with storm severity index."},"Serious Injuries, by event, by roadway, with storm severity index.",{"$f":"Lookup!$AJ49","v":"Safety - Injuries: Winter Weather-Related Serious Injuries, by event, by roadway, with storm severity index."},"Serious Injuries, by event, by roadway, with storm severity index."]
[null,"MS-1",{"$f":"Lookup!$AG50","v":"Mobility - Level of Service: Accumulation-related threshold, by event, by roadway, without storm severity index, measured by field personnel."},{"$f":"RIGHT(C50,LEN(C50)-29)","v":"Accumulation-related threshold, by event, by roadway, without storm severity index, measured by field personnel."},{"$f":"Lookup!$AJ50","v":"Mobility - Level of Service: Accumulation-related threshold, by event, by roadway, without storm severity index, measured by field personnel."},{"$f":"IFERROR(RIGHT(E50,LEN(E50)-29),\"\")","v":"Accumulation-related threshold, by event, by roadway, without storm severity index, measured by field personnel."}]
[null,"MS-2",{"$f":"Lookup!$AG51","v":"Mobility - Level of Service: Accumulation-related threshold, by event, by roadway, without storm severity index, measured by sensors."},{"$f":"RIGHT(C51,LEN(C51)-29)","v":"Accumulation-related threshold, by event, by roadway, without storm severity index, measured by sensors."},{"$f":"Lookup!$AJ51","v":"Mobility - Level of Service: Accumulation-related threshold, by event, by roadway, without storm severity index, measured by sensors."},{"$f":"IFERROR(RIGHT(E51,LEN(E51)-29),\"\")","v":"Accumulation-related threshold, by event, by roadway, without storm severity index, measured by sensors."}]
[null,"MS-3",{"$f":"Lookup!$AG52","v":"Mobility - Level of Service: Accumulation-related threshold, by event, by roadway, with storm severity index, measured by field personnel."},"Accumulation-related threshold, by event, by roadway, with storm severity index, measured by field personnel.",{"$f":"Lookup!$AJ52","v":"Mobility - Level of Service: Accumulation-related threshold, by event, by roadway, with storm severity index, measured by field personnel."},"Accumulation-related threshold, by event, by roadway, with storm severity index, measured by field personnel."]
[null,"MS-4",{"$f":"Lookup!$AG53","v":"Mobility - Level of Service: Accumulation-related threshold, by event, by roadway, with storm severity index, measured by sensors."},"Accumulation-related threshold, by event, by roadway, with storm severity index, measured by sensors.",{"$f":"Lookup!$AJ53","v":"Mobility - Level of Service: Accumulation-related threshold, by event, by roadway, with storm severity index, measured by sensors."},"Accumulation-related threshold, by event, by roadway, with storm severity index, measured by sensors."]
[null,"MS-5",{"$f":"Lookup!$AG54","v":"Mobility - Level of Service: Friction-related threshold, by event, by roadway, without storm severity index, qualitative estimate by field personnel."},"Friction-related threshold, by event, by roadway, without storm severity index, qualitative estimate by field personnel.",{"$f":"Lookup!$AJ54","v":"Mobility - Level of Service: Friction-related threshold, by event, by roadway, without storm severity index, qualitative estimate by field personnel."},"Friction-related threshold, by event, by roadway, without storm severity index, qualitative estimate by field personnel."]
[null,"MS-6",{"$f":"Lookup!$AG55","v":"Mobility - Level of Service: Friction-related threshold, by event, by roadway, without storm severity index, measured by sensors."},"Friction-related threshold, by event, by roadway, without storm severity index, measured by sensors.",{"$f":"Lookup!$AJ55","v":"Mobility - Level of Service: Friction-related threshold, by event, by roadway, without storm severity index, measured by sensors."},"Friction-related threshold, by event, by roadway, without storm severity index, measured by sensors."]
[null,"MS-7",{"$f":"Lookup!$AG56","v":"Mobility - Level of Service: Friction-related threshold, by event, by roadway, with storm severity index, qualitative estimate by field personnel."},"Friction-related threshold, by event, by roadway, with storm severity index, qualitative estimate by field personnel.",{"$f":"Lookup!$AJ56","v":"Mobility - Level of Service: Friction-related threshold, by event, by roadway, with storm severity index, qualitative estimate by field personnel."},"Friction-related threshold, by event, by roadway, with storm severity index, qualitative estimate by field personnel."]
[null,"MS-8",{"$f":"Lookup!$AG57","v":"Mobility - Level of Service: Friction-related threshold, by event, by roadway, with storm severity index, measured by sensors."},"Friction-related threshold, by event, by roadway, with storm severity index, measured by sensors.",{"$f":"Lookup!$AJ57","v":"Mobility - Level of Service: Friction-related threshold, by event, by roadway, with storm severity index, measured by sensors."},"Friction-related threshold, by event, by roadway, with storm severity index, measured by sensors."]
[null,"MS-9",{"$f":"Lookup!$AG58","v":"Mobility - Level of Service: Travel speed-related threshold, by event, by roadway, without storm severity index, segment-based (e.g. probe data)."},"Travel speed-related threshold, by event, by roadway, without storm severity index, segment-based (e.g. probe data).",{"$f":"Lookup!$AJ58","v":"Mobility - Level of Service: Travel speed-related threshold, by event, by roadway, without storm severity index, segment-based (e.g. probe data)."},"Travel speed-related threshold, by event, by roadway, without storm severity index, segment-based (e.g. probe data)."]
[null,"MS-10",{"$f":"Lookup!$AG59","v":"Mobility - Level of Service: Travel speed-related threshold, by event, by roadway, without storm severity index, point based (e.g. sensor)."},"Travel speed-related threshold, by event, by roadway, without storm severity index, point based (e.g. sensor).",{"$f":"Lookup!$AJ59","v":"Mobility - Level of Service: Travel speed-related threshold, by event, by roadway, without storm severity index, point based (e.g. sensor)."},"Travel speed-related threshold, by event, by roadway, without storm severity index, point based (e.g. sensor)."]
[null,"MS-11",{"$f":"Lookup!$AG60","v":"Mobility - Level of Service: Travel speed-related threshold, by event, by roadway, with storm severity index, segment-based (e.g. probe data)."},"Travel speed-related threshold, by event, by roadway, with storm severity index, segment-based (e.g. probe data).",{"$f":"Lookup!$AJ60","v":"Mobility - Level of Service: Travel speed-related threshold, by event, by roadway, with storm severity index, segment-based (e.g. probe data)."},"Travel speed-related threshold, by event, by roadway, with storm severity index, segment-based (e.g. probe data)."]
[null,"MS-12",{"$f":"Lookup!$AG61","v":"Mobility - Level of Service: Travel speed-related threshold, by event, by roadway, with storm severity index, point based (e.g. sensor)."},"Travel speed-related threshold, by event, by roadway, with storm severity index, point based (e.g. sensor).",{"$f":"Lookup!$AJ61","v":"Mobility - Level of Service: Travel speed-related threshold, by event, by roadway, with storm severity index, point based (e.g. sensor)."},"Travel speed-related threshold, by event, by roadway, with storm severity index, point based (e.g. sensor)."]
[null,"MV-1",{"$f":"Lookup!$AG62","v":"Mobility - Recovery: Road surface condition, by event, by roadway, without storm severity index, observed/ estimated."},{"$f":"RIGHT(C62,LEN(C62)-21)","v":"Road surface condition, by event, by roadway, without storm severity index, observed/ estimated."},{"$f":"Lookup!$AJ62","v":"Mobility - Recovery: Road surface condition, by event, by roadway, without storm severity index, observed/ estimated."},{"$f":"IFERROR(RIGHT(E62,LEN(E62)-21),\"\")","v":"Road surface condition, by event, by roadway, without storm severity index, observed/ estimated."}]
[null,"MV-2",{"$f":"Lookup!$AG63","v":"Mobility - Recovery: Road surface condition, by event, by roadway, without storm severity index, measured (e.g. grip sensors)."},{"$f":"RIGHT(C63,LEN(C63)-21)","v":"Road surface condition, by event, by roadway, without storm severity index, measured (e.g. grip sensors)."},{"$f":"Lookup!$AJ63","v":"Mobility - Recovery: Road surface condition, by event, by roadway, without storm severity index, measured (e.g. grip sensors)."},{"$f":"IFERROR(RIGHT(E63,LEN(E63)-21),\"\")","v":"Road surface condition, by event, by roadway, without storm severity index, measured (e.g. grip sensors)."}]
[null,"MV-3",{"$f":"Lookup!$AG64","v":"Mobility - Recovery: Road surface condition, by event, by roadway, with storm severity index, observed/ estimated."},"Road surface condition, by event, by roadway, with storm severity index, observed/ estimated.",{"$f":"Lookup!$AJ64","v":"Mobility - Recovery: Road surface condition, by event, by roadway, with storm severity index, observed/ estimated."},"Road surface condition, by event, by roadway, with storm severity index, observed/ estimated."]
[null,"MV-4",{"$f":"Lookup!$AG65","v":"Mobility - Recovery: Road surface condition, by event, by roadway, with storm severity index, measured (e.g. grip sensors)."},"Road surface condition, by event, by roadway, with storm severity index, measured (e.g. grip sensors).",{"$f":"Lookup!$AJ65","v":"Mobility - Recovery: Road surface condition, by event, by roadway, with storm severity index, measured (e.g. grip sensors)."},"Road surface condition, by event, by roadway, with storm severity index, measured (e.g. grip sensors)."]
[null,"MV-5",{"$f":"Lookup!$AG66","v":"Mobility - Recovery: Recovery to normal speeds, by event, by roadway, without storm severity index, estimated."},"Recovery to normal speeds, by event, by roadway, without storm severity index, estimated.",{"$f":"Lookup!$AJ66","v":"Mobility - Recovery: Recovery to normal speeds, by event, by roadway, without storm severity index, estimated."},"Recovery to normal speeds, by event, by roadway, without storm severity index, estimated."]
[null,"MV-6",{"$f":"Lookup!$AG67","v":"Mobility - Recovery: Recovery to normal speeds, by event, by roadway, without storm severity index, measured by sensors."},"Recovery to normal speeds, by event, by roadway, without storm severity index, measured by sensors.",{"$f":"Lookup!$AJ67","v":"Mobility - Recovery: Recovery to normal speeds, by event, by roadway, without storm severity index, measured by sensors."},"Recovery to normal speeds, by event, by roadway, without storm severity index, measured by sensors."]
[null,"MV-7",{"$f":"Lookup!$AG68","v":"Mobility - Recovery: Recovery to normal speeds, by event, by roadway, with storm severity index, estimated."},"Recovery to normal speeds, by event, by roadway, with storm severity index, estimated.",{"$f":"Lookup!$AJ68","v":"Mobility - Recovery: Recovery to normal speeds, by event, by roadway, with storm severity index, estimated."},"Recovery to normal speeds, by event, by roadway, with storm severity index, estimated."]
[null,"MV-8",{"$f":"Lookup!$AG69","v":"Mobility - Recovery: Recovery to normal speeds, by event, by roadway, with storm severity index, measured by sensors."},"Recovery to normal speeds, by event, by roadway, with storm severity index, measured by sensors.",{"$f":"Lookup!$AJ69","v":"Mobility - Recovery: Recovery to normal speeds, by event, by roadway, with storm severity index, measured by sensors."},"Recovery to normal speeds, by event, by roadway, with storm severity index, measured by sensors."]
[null,"MB-1",{"$f":"Lookup!$AG70","v":"Mobility - Reliability: Travel Time Index (TTI), by event, by trip, without storm severity index, estimated."},{"$f":"RIGHT(C70,LEN(C70)-24)","v":"Travel Time Index (TTI), by event, by trip, without storm severity index, estimated."},{"$f":"Lookup!$AJ70","v":"Mobility - Reliability: Travel Time Index (TTI), by event, by trip, without storm severity index, estimated."},{"$f":"IFERROR(RIGHT(E70,LEN(E70)-24),\"\")","v":"Travel Time Index (TTI), by event, by trip, without storm severity index, estimated."}]
[null,"MB-2",{"$f":"Lookup!$AG71","v":"Mobility - Reliability: Travel Time Index (TTI), by event, by trip, without storm severity index, measured."},{"$f":"RIGHT(C71,LEN(C71)-24)","v":"Travel Time Index (TTI), by event, by trip, without storm severity index, measured."},{"$f":"Lookup!$AJ71","v":"Mobility - Reliability: Travel Time Index (TTI), by event, by trip, without storm severity index, measured."},{"$f":"IFERROR(RIGHT(E71,LEN(E71)-24),\"\")","v":"Travel Time Index (TTI), by event, by trip, without storm severity index, measured."}]
[null,"MB-3",{"$f":"Lookup!$AG72","v":"Mobility - Reliability: Travel Time Index (TTI), by event, by trip, with storm severity index, estimated."},"Travel Time Index (TTI), by event, by trip, with storm severity index, estimated.",{"$f":"Lookup!$AJ72","v":"Mobility - Reliability: Travel Time Index (TTI), by event, by trip, with storm severity index, estimated."},"Travel Time Index (TTI), by event, by trip, with storm severity index, estimated."]
[null,"MB-4",{"$f":"Lookup!$AG73","v":"Mobility - Reliability: Travel Time Index (TTI), by event, by trip, with storm severity index, measured."},"Travel Time Index (TTI), by event, by trip, with storm severity index, measured.",{"$f":"Lookup!$AJ73","v":"Mobility - Reliability: Travel Time Index (TTI), by event, by trip, with storm severity index, measured."},"Travel Time Index (TTI), by event, by trip, with storm severity index, measured."]
[null,"SE-1",{"$f":"Lookup!$AG74","v":"Sustainability - Efficiency: Cost of snow and ice control, by winter season, state-wide/ region-wide, without seasonal severity index."},{"$f":"RIGHT(C74,LEN(C74)-29)","v":"Cost of snow and ice control, by winter season, state-wide/ region-wide, without seasonal severity index."},{"$f":"Lookup!$AJ74","v":"Sustainability - Efficiency: Cost of snow and ice control, by winter season, state-wide/ region-wide, without seasonal severity index."},{"$f":"IFERROR(RIGHT(E74,LEN(E74)-29),\"\")","v":"Cost of snow and ice control, by winter season, state-wide/ region-wide, without seasonal severity index."}]
[null,"SE-2",{"$f":"Lookup!$AG75","v":"Sustainability - Efficiency: Cost of snow and ice control, by winter season, state-wide/ region-wide, with seasonal severity index."},{"$f":"RIGHT(C75,LEN(C75)-29)","v":"Cost of snow and ice control, by winter season, state-wide/ region-wide, with seasonal severity index."},{"$f":"Lookup!$AJ75","v":"Sustainability - Efficiency: Cost of snow and ice control, by winter season, state-wide/ region-wide, with seasonal severity index."},{"$f":"IFERROR(RIGHT(E75,LEN(E75)-29),\"\")","v":"Cost of snow and ice control, by winter season, state-wide/ region-wide, with seasonal severity index."}]
[null,"SE-3",{"$f":"Lookup!$AG76","v":"Sustainability - Efficiency: Cost of snow and ice control, by event, state-wide/ region-wide, without storm severity index."},"Cost of snow and ice control, by event, state-wide/ region-wide, without storm severity index.",{"$f":"Lookup!$AJ76","v":"Sustainability - Efficiency: Cost of snow and ice control, by event, state-wide/ region-wide, without storm severity index."},"Cost of snow and ice control, by event, state-wide/ region-wide, without storm severity index."]
[null,"SE-4",{"$f":"Lookup!$AG77","v":"Sustainability - Efficiency: Cost of snow and ice control, by event, state-wide/ region-wide, with storm severity index."},"Cost of snow and ice control, by event, state-wide/ region-wide, with storm severity index.",{"$f":"Lookup!$AJ77","v":"Sustainability - Efficiency: Cost of snow and ice control, by event, state-wide/ region-wide, with storm severity index."},"Cost of snow and ice control, by event, state-wide/ region-wide, with storm severity index."]
[null,"SE-5",{"$f":"Lookup!$AG78","v":"Sustainability - Efficiency: Cost of snow and ice control, by winter season, district-wide, without seasonal severity index."},"Cost of snow and ice control, by winter season, district-wide, without seasonal severity index.",{"$f":"Lookup!$AJ78","v":"Sustainability - Efficiency: Cost of snow and ice control, by winter season, district-wide, without seasonal severity index."},"Cost of snow and ice control, by winter season, district-wide, without seasonal severity index."]
[null,"SE-6",{"$f":"Lookup!$AG79","v":"Sustainability - Efficiency: Cost of snow and ice control, by winter season, district-wide, with seasonal severity index."},"Cost of snow and ice control, by winter season, district-wide, with seasonal severity index.",{"$f":"Lookup!$AJ79","v":"Sustainability - Efficiency: Cost of snow and ice control, by winter season, district-wide, with seasonal severity index."},"Cost of snow and ice control, by winter season, district-wide, with seasonal severity index."]
[null,"SE-7",{"$f":"Lookup!$AG80","v":"Sustainability - Efficiency: Cost of snow and ice control, by event, district-wide, without storm severity index."},"Cost of snow and ice control, by event, district-wide, without storm severity index.",{"$f":"Lookup!$AJ80","v":"Sustainability - Efficiency: Cost of snow and ice control, by event, district-wide, without storm severity index."},"Cost of snow and ice control, by event, district-wide, without storm severity index."]
[null,"SE-8",{"$f":"Lookup!$AG81","v":"Sustainability - Efficiency: Cost of snow and ice control, by event, district-wide, with storm severity index."},"Cost of snow and ice control, by event, district-wide, with storm severity index.",{"$f":"Lookup!$AJ81","v":"Sustainability - Efficiency: Cost of snow and ice control, by event, district-wide, with storm severity index."},"Cost of snow and ice control, by event, district-wide, with storm severity index."]
[null,"SE-9",{"$f":"Lookup!$AG82","v":"Sustainability - Efficiency: Cost of snow and ice control, by winter season, by roadway, without seasonal severity index."},"Cost of snow and ice control, by winter season, by roadway, without seasonal severity index.",{"$f":"Lookup!$AJ82","v":"Sustainability - Efficiency: Cost of snow and ice control, by winter season, by roadway, without seasonal severity index."},"Cost of snow and ice control, by winter season, by roadway, without seasonal severity index."]
[null,"SE-10",{"$f":"Lookup!$AG83","v":"Sustainability - Efficiency: Cost of snow and ice control, by winter season, by roadway, with seasonal severity index."},"Cost of snow and ice control, by winter season, by roadway, with seasonal severity index.",{"$f":"Lookup!$AJ83","v":"Sustainability - Efficiency: Cost of snow and ice control, by winter season, by roadway, with seasonal severity index."},"Cost of snow and ice control, by winter season, by roadway, with seasonal severity index."]
[null,"SE-11",{"$f":"Lookup!$AG84","v":"Sustainability - Efficiency: Cost of snow and ice control, by event, by roadway, without storm severity index."},"Cost of snow and ice control, by event, by roadway, without storm severity index.",{"$f":"Lookup!$AJ84","v":"Sustainability - Efficiency: Cost of snow and ice control, by event, by roadway, without storm severity index."},"Cost of snow and ice control, by event, by roadway, without storm severity index."]
[null,"SE-12",{"$f":"Lookup!$AG85","v":"Sustainability - Efficiency: Cost of snow and ice control, by event, by roadway, with storm severity index."},"Cost of snow and ice control, by event, by roadway, with storm severity index.",{"$f":"Lookup!$AJ85","v":"Sustainability - Efficiency: Cost of snow and ice control, by event, by roadway, with storm severity index."},"Cost of snow and ice control, by event, by roadway, with storm severity index."]
[null,"SC-1",{"$f":"Lookup!$AG86","v":"Sustainability - Customer Satisfaction: Level of satisfaction, by winter season, state-wide/ region-wide, with or without seasonal severity index."},{"$f":"RIGHT(C86,LEN(C86)-40)","v":"Level of satisfaction, by winter season, state-wide/ region-wide, with or without seasonal severity index."},{"$f":"Lookup!$AJ86","v":"Sustainability - Customer Satisfaction: Level of satisfaction, by winter season, state-wide/ region-wide, with or without seasonal severity index."},{"$f":"IFERROR(RIGHT(E86,LEN(E86)-40),\"\")","v":"Level of satisfaction, by winter season, state-wide/ region-wide, with or without seasonal severity index."}]
[null,"SC-2",{"$f":"Lookup!$AG87","v":"Sustainability - Customer Satisfaction: Level of satisfaction, by event, state-wide/ region-wide, with or without storm severity index."},{"$f":"RIGHT(C87,LEN(C87)-40)","v":"Level of satisfaction, by event, state-wide/ region-wide, with or without storm severity index."},{"$f":"Lookup!$AJ87","v":"Sustainability - Customer Satisfaction: Level of satisfaction, by event, state-wide/ region-wide, with or without storm severity index."},{"$f":"IFERROR(RIGHT(E87,LEN(E87)-40),\"\")","v":"Level of satisfaction, by event, state-wide/ region-wide, with or without storm severity index."}]
[null,"SV-1",{"$f":"Lookup!$AG88","v":"Sustainability - Environmental Stewardship: Current season usage, by winter season, state-wide/ region-wide, with seasonal severity index."},{"$f":"RIGHT(C88,LEN(C88)-44)","v":"Current season usage, by winter season, state-wide/ region-wide, with seasonal severity index."},{"$f":"Lookup!$AJ88","v":"Sustainability - Environmental Stewardship: Current season usage, by winter season, state-wide/ region-wide, with seasonal severity index."},{"$f":"IFERROR(RIGHT(E88,LEN(E88)-44),\"\")","v":"Current season usage, by winter season, state-wide/ region-wide, with seasonal severity index."}]
[null,"SV-2",{"$f":"Lookup!$AG89","v":"Sustainability - Environmental Stewardship: Current season usage compared to prior seasons, by event, state-wide/ region-wide, with storm severity index."},{"$f":"RIGHT(C89,LEN(C89)-44)","v":"Current season usage compared to prior seasons, by event, state-wide/ region-wide, with storm severity index."},{"$f":"Lookup!$AJ89","v":"Sustainability - Environmental Stewardship: Current season usage compared to prior seasons, by event, state-wide/ region-wide, with storm severity index."},{"$f":"IFERROR(RIGHT(E89,LEN(E89)-44),\"\")","v":"Current season usage compared to prior seasons, by event, state-wide/ region-wide, with storm severity index."}]
[null,"SV-3",{"$f":"Lookup!$AG90","v":"Sustainability - Environmental Stewardship: Current season usage, by event, state-wide/ region-wide, with storm severity index."},{"$f":"RIGHT(C90,LEN(C90)-44)","v":"Current season usage, by event, state-wide/ region-wide, with storm severity index."},{"$f":"Lookup!$AJ90","v":"Sustainability - Environmental Stewardship: Current season usage, by event, state-wide/ region-wide, with storm severity index."},{"$f":"IFERROR(RIGHT(E90,LEN(E90)-44),\"\")","v":"Current season usage, by event, state-wide/ region-wide, with storm severity index."}]
[null,"SV-4",{"$f":"Lookup!$AG91","v":"Sustainability - Environmental Stewardship: Current season usage compared to prior seasons, by winter season, state-wide/ region-wide, with seasonal severity index."},"Current season usage compared to prior seasons, by winter season, state-wide/ region-wide, with seasonal severity index.",{"$f":"Lookup!$AJ91","v":"Sustainability - Environmental Stewardship: Current season usage compared to prior seasons, by winter season, state-wide/ region-wide, with seasonal severity index."},"Current season usage compared to prior seasons, by winter season, state-wide/ region-wide, with seasonal severity index."]

{"sheet":"Lookup3","index":16,"n_rows":91,"n_cols":20,"rows_kept":91,"cut":false,"hidden":true,"merged":[[33,0,38,0],[39,0,47,0],[1,1,9,1],[12,1,12,2],[13,0,26,0],[27,0,28,0],[29,0,32,0]]}
[null,"Ranking Factors",null,null,"ID","Category","Performance Measure","Type","Timeframe","Geography","Severity Index Status","Additional","Concatenate (Total Variations Long)","Total Variations Shortened","Type points","Timeframe points","Geography points","Severity Index Status points","Additional points","Total Points"]
[null,"Data to the right is pasted as values directly from 'Lookup'. Avoiding referencing the cells directly as to not create too many formulas/ computation time. However, just note that these values must be the same as in 'Lookup', so any changes made there have to be done here as well.",null,null,1,"Safety","Fatalities","Winter Weather-Related Fatal Crashes","by winter season","state-wide/ region-wide","without seasonal severity index",null,{"$f":"IF(ISBLANK(L2),CONCATENATE(F2,\" \",\"-\",\" \",G2,\":\",\" \",H2,\",\",\" \",I2,\",\",\" \",J2,\",\",\" \",K2,\".\"),CONCATENATE(F2,\" \",\"-\",\" \",G2,\":\",\" \",H2,\",\",\" \",I2,\",\",\" \",J2,\",\",\" \",K2,\",\",\" \",L2,\".\"))","v":"Safety - Fatalities: Winter Weather-Related Fatal Crashes, by winter season, state-wide/ region-wide, without seasonal severity index."},{"$f":"RIGHT(M2,LEN(M2)-44)","v":"Fatal Crashes, by winter season, state-wide/ region-wide, without seasonal severity index."},{"$f":"IFERROR(VLOOKUP(H2,$B$14:$C$48,2,FALSE),1)","v":1},{"$f":"IFERROR(VLOOKUP(I2,$B$14:$C$48,2,FALSE),1)","v":1},1,1,1,{"$f":"PRODUCT(O2:S2)","v":1}]
[null,null,null,null,2,"Safety","Fatalities","Winter Weather-Related Fatalities","by winter season","state-wide/ region-wide","without seasonal severity index",null,{"$f":"IF(ISBLANK(L3),CONCATENATE(F3,\" \",\"-\",\" \",G3,\":\",\" \",H3,\",\",\" \",I3,\",\",\" \",J3,\",\",\" \",K3,\".\"),CONCATENATE(F3,\" \",\"-\",\" \",G3,\":\",\" \",H3,\",\",\" \",I3,\",\",\" \",J3,\",\",\" \",K3,\",\",\" \",L3,\".\"))","v":"Safety - Fatalities: Winter Weather-Related Fatalities, by winter season, state-wide/ region-wide, without seasonal severity index."},{"$f":"RIGHT(M3,LEN(M3)-44)","v":"Fatalities, by winter season, state-wide/ region-wide, without seasonal severity index."},{"$f":"IFERROR(VLOOKUP(H3,$B$14:$C$48,2,FALSE),1)","v":1.01},{"$f":"IFERROR(VLOOKUP(I3,$B$14:$C$48,2,FALSE),1)","v":1},{"$f":"IFERROR(VLOOKUP(J3,$B$14:$C$48,2,FALSE),1)","v":1},{"$f":"IFERROR(VLOOKUP(K3,$B$14:$C$48,2,FALSE),1)","v":1},{"$f":"IFERROR(VLOOKUP(L3,$B$14:$C$48,2,FALSE),1)","v":1},{"$f":"PRODUCT(O3:S3)","v":1.01}]
[null,null,null,null,3,"Safety","Fatalities","Winter Weather-Related Fatal Crashes","by winter season","state-wide/ region-wide","with seasonal severity index",null,"Safety - Fatalities: Winter Weather-Related Fatal Crashes, by winter season, state-wide/ region-wide, with seasonal severity index.","Fatal Crashes, by winter season, state-wide/ region-wide, with seasonal severity index.",1,1,1,3,1,3]
[null,null,null,null,4,"Safety","Fatalities","Winter Weather-Related Fatalities","by winter season","state-wide/ region-wide","with seasonal severity index",null,"Safety - Fatalities: Winter Weather-Related Fatalities, by winter season, state-wide/ region-wide, with seasonal severity index.","Fatalities, by winter season, state-wide/ region-wide, with seasonal severity index.",1.01,1,1,3,1,3.0300000000000002]
[null,null,null,null,5,"Safety","Fatalities","Winter Weather-Related Fatal Crashes","by winter season","district-wide","without seasonal severity index",null,"Safety - Fatalities: Winter Weather-Related Fatal Crashes, by winter season, district-wide, without seasonal severity index.","Fatal Crashes, by winter season, district-wide, without seasonal severity index.",1,1,2,1,1,2]
[null,null,null,null,6,"Safety","Fatalities","Winter Weather-Related Fatalities","by winter season","district-wide","without seasonal severity index",null,"Safety - Fatalities: Winter Weather-Related Fatalities, by winter season, district-wide, without seasonal severity index.","Fatalities, by winter season, district-wide, without seasonal severity index.",1.01,1,2,1,1,2.02]
[null,null,null,null,7,"Safety","Fatalities","Winter Weather-Related Fatal Crashes","by winter season","district-wide","with seasonal severity index",null,"Safety - Fatalities: Winter Weather-Related Fatal Crashes, by winter season, district-wide, with seasonal severity index.","Fatal Crashes, by winter season, district-wide, with seasonal severity index.",1,1,2,3,1,6]
[null,null,null,null,8,"Safety","Fatalities","Winter Weather-Related Fatalities","by winter season","district-wide","with seasonal severity index",null,"Safety - Fatalities: Winter Weather-Related Fatalities, by winter season, district-wide, with seasonal severity index.","Fatalities, by winter season, district-wide, with seasonal severity index.",1.01,1,2,3,1,6.0600000000000005]
[null,null,null,null,9,"Safety","Fatalities","Winter Weather-Related Fatal Crashes","by winter season","by roadway","without seasonal severity index",null,"Safety - Fatalities: Winter Weather-Related Fatal Crashes, by winter season, by roadway, without seasonal severity index.","Fatal Crashes, by winter season, by roadway, without seasonal severity index.",1,1,3,1,1,3]
[null,null,null,null,10,"Safety","Fatalities","Winter Weather-Related Fatalities","by winter season","by roadway","without seasonal severity index",null,"Safety - Fatalities: Winter Weather-Related Fatalities, by winter season, by roadway, without seasonal severity index.","Fatalities, by winter season, by roadway, without seasonal severity index.",1.01,1,3,1,1,3.0300000000000002]
[null,null,null,null,11,"Safety","Fatalities","Winter Weather-Related Fatal Crashes","by winter season","by roadway","with seasonal severity index",null,"Safety - Fatalities: Winter Weather-Related Fatal Crashes, by winter season, by roadway, with seasonal severity index.","Fatal Crashes, by winter season, by roadway, with seasonal severity index.",1,1,3,3,1,9]
[null,"Point values lookup table:",null,null,12,"Safety","Fatalities","Winter Weather-Related Fatalities","by winter season","by roadway","with seasonal severity index",null,"Safety - Fatalities: Winter Weather-Related Fatalities, by winter season, by roadway, with seasonal severity index.","Fatalities, by winter season, by roadway, with seasonal severity index.",1.01,1,3,3,1,9.09]
["Type","Winter Weather-Related Fatal Crashes",1,null,13,"Safety","Fatalities","Winter Weather-Related Fatal Crashes","by event","state-wide/ region-wide","without storm severity index",null,"Safety - Fatalities: Winter Weather-Related Fatal Crashes, by event, state-wide/ region-wide, without storm severity index.","Fatal Crashes, by event, state-wide/ region-wide, without storm severity index.",1,3,1,1,1,3]
[null,"Winter Weather-Related Fatalities",1.01,null,14,"Safety","Fatalities","Winter Weather-Related Fatalities","by event","state-wide/ region-wide","without storm severity index",null,"Safety - Fatalities: Winter Weather-Related Fatalities, by event, state-wide/ region-wide, without storm severity index.","Fatalities, by event, state-wide/ region-wide, without storm severity index.",1.01,3,1,1,1,3.0300000000000002]
[null,"Winter Weather-Related Serious Injury Crashes ",1,null,15,"Safety","Fatalities","Winter Weather-Related Fatal Crashes","by event","state-wide/ region-wide","with storm severity index",null,"Safety - Fatalities: Winter Weather-Related Fatal Crashes, by event, state-wide/ region-wide, with storm severity index.","Fatal Crashes, by event, state-wide/ region-wide, with storm severity index.",1,3,1,3,1,9]
[null,"Winter Weather-Related Serious Injuries",1.01,null,16,"Safety","Fatalities","Winter Weather-Related Fatalities","by event","state-wide/ region-wide","with storm severity index",null,"Safety - Fatalities: Winter Weather-Related Fatalities, by event, state-wide/ region-wide, with storm severity index.","Fatalities, by event, state-wide/ region-wide, with storm severity index.",1.01,3,1,3,1,9.09]
[null,"Accumulation-related threshold",1,null,17,"Safety","Fatalities","Winter Weather-Related Fatal Crashes","by event","district-wide","without storm severity index",null,"Safety - Fatalities: Winter Weather-Related Fatal Crashes, by event, district-wide, without storm severity index.","Fatal Crashes, by event, district-wide, without storm severity index.",1,3,2,1,1,6]
[null,"Friction-related threshold",1,null,18,"Safety","Fatalities","Winter Weather-Related Fatalities","by event","district-wide","without storm severity index",null,"Safety - Fatalities: Winter Weather-Related Fatalities, by event, district-wide, without storm severity index.","Fatalities, by event, district-wide, without storm severity index.",1.01,3,2,1,1,6.0600000000000005]
[null,"Travel speed-related threshold",1,null,19,"Safety","Fatalities","Winter Weather-Related Fatal Crashes","by event","district-wide","with storm severity index",null,"Safety - Fatalities: Winter Weather-Related Fatal Crashes, by event, district-wide, with storm severity index.","Fatal Crashes, by event, district-wide, with storm severity index.",1,3,2,3,1,18]
[null,"Road surface condition",2,null,20,"Safety","Fatalities","Winter Weather-Related Fatalities","by event","district-wide","with storm severity index",null,"Safety - Fatalities: Winter Weather-Related Fatalities, by event, district-wide, with storm severity index.","Fatalities, by event, district-wide, with storm severity index.",1.01,3,2,3,1,18.18]
[null,"Recovery to normal speeds",1,null,21,"Safety","Fatalities","Winter Weather-Related Fatal Crashes","by event","by roadway","without storm severity index",null,"Safety - Fatalities: Winter Weather-Related Fatal Crashes, by event, by roadway, without storm severity index.","Fatal Crashes, by event, by roadway, without storm severity index.",1,3,3,1,1,9]
[null,"Travel Time Index (TTI)",1,null,22,"Safety","Fatalities","Winter Weather-Related Fatalities","by event","by roadway","without storm severity index",null,"Safety - Fatalities: Winter Weather-Related Fatalities, by event, by roadway, without storm severity index.","Fatalities, by event, by roadway, without storm severity index.",1.01,3,3,1,1,9.09]
[null,"Cost of snow and ice control",1,null,23,"Safety","Fatalities","Winter Weather-Related Fatal Crashes","by event","by roadway","with storm severity index",null,"Safety - Fatalities: Winter Weather-Related Fatal Crashes, by event, by roadway, with storm severity index.","Fatal Crashes, by event, by roadway, with storm severity index.",1,3,3,3,1,27]
[null,"Level of satisfaction",1,null,24,"Safety","Fatalities","Winter Weather-Related Fatalities","by event","by roadway","with storm severity index",null,"Safety - Fatalities: Winter Weather-Related Fatalities, by event, by roadway, with storm severity index.","Fatalities, by event, by roadway, with storm severity index.",1.01,3,3,3,1,27.27]
[null,"Current season usage",1,null,25,"Safety","Injuries","Winter Weather-Related Serious Injury Crashes","by winter season","state-wide/ region-wide","without seasonal severity index",null,"Safety - Injuries: Winter Weather-Related Serious Injury Crashes, by winter season, state-wide/ region-wide, without seasonal severity index.",{"$f":"RIGHT(M26,LEN(M26)-42)","v":"Serious Injury Crashes, by winter season, state-wide/ region-wide, without seasonal severity index."},1,1,1,1,1,1]
[null,"Current season usage compared to prior seasons",2,null,26,"Safety","Injuries","Winter Weather-Related Serious Injuries","by winter season","state-wide/ region-wide","without seasonal severity index",null,"Safety - Injuries: Winter Weather-Related Serious Injuries, by winter season, state-wide/ region-wide, without seasonal severity index.",{"$f":"RIGHT(M27,LEN(M27)-42)","v":"Serious Injuries, by winter season, state-wide/ region-wide, without seasonal severity index."},1.01,1,1,1,1,1.01]
["Timeframe","by winter season",1,null,27,"Safety","Injuries","Winter Weather-Related Serious Injury Crashes","by winter season","state-wide/ region-wide","with seasonal severity index",null,"Safety - Injuries: Winter Weather-Related Serious Injury Crashes, by winter season, state-wide/ region-wide, with seasonal severity index.","Serious Injury Crashes, by winter season, state-wide/ region-wide, with seasonal severity index.",1,1,1,3,1,3]
[null,"by event",3,null,28,"Safety","Injuries","Winter Weather-Related Serious Injuries","by winter season","state-wide/ region-wide","with seasonal severity index",null,"Safety - Injuries: Winter Weather-Related Serious Injuries, by winter season, state-wide/ region-wide, with seasonal severity index.","Serious Injuries, by winter season, state-wide/ region-wide, with seasonal severity index.",1.01,1,1,3,1,3.0300000000000002]
["Geography","state-wide/ region-wide",1,null,29,"Safety","Injuries","Winter Weather-Related Serious Injury Crashes","by winter season","district-wide","without seasonal severity index",null,"Safety - Injuries: Winter Weather-Related Serious Injury Crashes, by winter season, district-wide, without seasonal severity index.","Serious Injury Crashes, by winter season, district-wide, without seasonal severity index.",1,1,2,1,1,2]
[null,"district-wide",2,null,30,"Safety","Injuries","Winter Weather-Related Serious Injuries","by winter season","district-wide","without seasonal severity index",null,"Safety - Injuries: Winter Weather-Related Serious Injuries, by winter season, district-wide, without seasonal severity index.","Serious Injuries, by winter season, district-wide, without seasonal severity index.",1.01,1,2,1,1,2.02]
[null,"by roadway",3,null,31,"Safety","Injuries","Winter Weather-Related Serious Injury Crashes","by winter season","district-wide","with seasonal severity index",null,"Safety - Injuries: Winter Weather-Related Serious Injury Crashes, by winter season, district-wide, with seasonal severity index.","Serious Injury Crashes, by winter season, district-wide, with seasonal severity index.",1,1,2,3,1,6]
[null,"by trip",3,null,32,"Safety","Injuries","Winter Weather-Related Serious Injuries","by winter season","district-wide","with seasonal severity index",null,"Safety - Injuries: Winter Weather-Related Serious Injuries, by winter season, district-wide, with seasonal severity index.","Serious Injuries, by winter season, district-wide, with seasonal severity index.",1.01,1,2,3,1,6.0600000000000005]
["Severity Index Status","without seasonal severity index",1,null,33,"Safety","Injuries","Winter Weather-Related Serious Injury Crashes","by winter season","by roadway","without seasonal severity index",null,"Safety - Injuries: Winter Weather-Related Serious Injury Crashes, by winter season, by roadway, without seasonal severity index.","Serious Injury Crashes, by winter season, by roadway, without seasonal severity index.",1,1,3,1,1,3]
[null,"with seasonal severity index",3,null,34,"Safety","Injuries","Winter Weather-Related Serious Injuries","by winter season","by roadway","without seasonal severity index",null,"Safety - Injuries: Winter Weather-Related Serious Injuries, by winter season, by roadway, without seasonal severity index.","Serious Injuries, by winter season, by roadway, without seasonal severity index.",1.01,1,3,1,1,3.0300000000000002]
[null,"without storm severity index",1,null,35,"Safety","Injuries","Winter Weather-Related Serious Injury Crashes","by winter season","by roadway","with seasonal severity index",null,"Safety - Injuries: Winter Weather-Related Serious Injury Crashes, by winter season, by roadway, with seasonal severity index.","Serious Injury Crashes, by winter season, by roadway, with seasonal severity index.",1,1,3,3,1,9]
[null,"with storm severity index",3,null,36,"Safety","Injuries","Winter Weather-Related Serious Injuries","by winter season","by roadway","with seasonal severity index",null,"Safety - Injuries: Winter Weather-Related Serious Injuries, by winter season, by roadway, with seasonal severity index.","Serious Injuries, by winter season, by roadway, with seasonal severity index.",1.01,1,3,3,1,9.09]
[null,"with or without seasonal severity index",1,null,37,"Safety","Injuries","Winter Weather-Related Serious Injury Crashes","by event","state-wide/ region-wide","without storm severity index",null,"Safety - Injuries: Winter Weather-Related Serious Injury Crashes, by event, state-wide/ region-wide, without storm severity index.","Serious Injury Crashes, by event, state-wide/ region-wide, without storm severity index.",1,3,1,1,1,3]
[null,"with or without storm severity index",1,null,38,"Safety","Injuries","Winter Weather-Related Serious Injuries","by event","state-wide/ region-wide","without storm severity index",null,"Safety - Injuries: Winter Weather-Related Serious Injuries, by event, state-wide/ region-wide, without storm severity index.","Serious Injuries, by event, state-wide/ region-wide, without storm severity index.",1.01,3,1,1,1,3.0300000000000002]
["Additional","measured by field personnel",1,null,39,"Safety","Injuries","Winter Weather-Related Serious Injury Crashes","by event","state-wide/ region-wide","with storm severity index",null,"Safety - Injuries: Winter Weather-Related Serious Injury Crashes, by event, state-wide/ region-wide, with storm severity index.","Serious Injury Crashes, by event, state-wide/ region-wide, with storm severity index.",1,3,1,3,1,9]
[null,"measured by sensors",2,null,40,"Safety","Injuries","Winter Weather-Related Serious Injuries","by event","state-wide/ region-wide","with storm severity index",null,"Safety - Injuries: Winter Weather-Related Serious Injuries, by event, state-wide/ region-wide, with storm severity index.","Serious Injuries, by event, state-wide/ region-wide, with storm severity index.",1.01,3,1,3,1,9.09]
[null,"qualitative estimate by field personnel",1,null,41,"Safety","Injuries","Winter Weather-Related Serious Injury Crashes","by event","district-wide","without storm severity index",null,"Safety - Injuries: Winter Weather-Related Serious Injury Crashes, by event, district-wide, without storm severity index.","Serious Injury Crashes, by event, district-wide, without storm severity index.",1,3,2,1,1,6]
[null,"segment-based (e.g. probe data)",1,null,42,"Safety","Injuries","Winter Weather-Related Serious Injuries","by event","district-wide","without storm severity index",null,"Safety - Injuries: Winter Weather-Related Serious Injuries, by event, district-wide, without storm severity index.","Serious Injuries, by event, district-wide, without storm severity index.",1.01,3,2,1,1,6.0600000000000005]
[null,"point based (e.g. sensor)",2,null,43,"Safety","Injuries","Winter Weather-Related Serious Injury Crashes","by event","district-wide","with storm severity index",null,"Safety - Injuries: Winter Weather-Related Serious Injury Crashes, by event, district-wide, with storm severity index.","Serious Injury Crashes, by event, district-wide, with storm severity index.",1,3,2,3,1,18]
[null,"observed/ estimated",1,null,44,"Safety","Injuries","Winter Weather-Related Serious Injuries","by event","district-wide","with storm severity index",null,"Safety - Injuries: Winter Weather-Related Serious Injuries, by event, district-wide, with storm severity index.","Serious Injuries, by event, district-wide, with storm severity index.",1.01,3,2,3,1,18.18]
[null,"measured (e.g. grip sensors)",2,null,45,"Safety","Injuries","Winter Weather-Related Serious Injury Crashes","by event","by roadway","without storm severity index",null,"Safety - Injuries: Winter Weather-Related Serious Injury Crashes, by event, by roadway, without storm severity index.","Serious Injury Crashes, by event, by roadway, without storm severity index.",1,3,3,1,1,9]
[null,"estimated",1,null,46,"Safety","Injuries","Winter Weather-Related Serious Injuries","by event","by roadway","without storm severity index",null,"Safety - Injuries: Winter Weather-Related Serious Injuries, by event, by roadway, without storm severity index.","Serious Injuries, by event, by roadway, without storm severity index.",1.01,3,3,1,1,9.09]
[null,"measured",2,null,47,"Safety","Injuries","Winter Weather-Related Serious Injury Crashes","by event","by roadway","with storm severity index",null,"Safety - Injuries: Winter Weather-Related Serious Injury Crashes, by event, by roadway, with storm severity index.","Serious Injury Crashes, by event, by roadway, with storm severity index.",1,3,3,3,1,27]
[null,null,null,null,48,"Safety","Injuries","Winter Weather-Related Serious Injuries","by event","by roadway","with storm severity index",null,"Safety - Injuries: Winter Weather-Related Serious Injuries, by event, by roadway, with storm severity index.","Serious Injuries, by event, by roadway, with storm severity index.",1.01,3,3,3,1,27.27]
[null,null,null,null,49,"Mobility","Level of Service","Accumulation-related threshold","by event","by roadway","without storm severity index","measured by field personnel","Mobility - Level of Service: Accumulation-related threshold, by event, by roadway, without storm severity index, measured by field personnel.",{"$f":"RIGHT(M50,LEN(M50)-29)","v":"Accumulation-related threshold, by event, by roadway, without storm severity index, measured by field personnel."},1,3,3,1,1,9]
[null,null,null,null,50,"Mobility","Level of Service","Accumulation-related threshold","by event","by roadway","without storm severity index","measured by sensors","Mobility - Level of Service: Accumulation-related threshold, by event, by roadway, without storm severity index, measured by sensors.",{"$f":"RIGHT(M51,LEN(M51)-29)","v":"Accumulation-related threshold, by event, by roadway, without storm severity index, measured by sensors."},1,3,3,1,2,18]
[null,null,null,null,51,"Mobility","Level of Service","Accumulation-related threshold","by event","by roadway","with storm severity index","measured by field personnel","Mobility - Level of Service: Accumulation-related threshold, by event, by roadway, with storm severity index, measured by field personnel.","Accumulation-related threshold, by event, by roadway, with storm severity index, measured by field personnel.",1,3,3,3,1,27]
[null,null,null,null,52,"Mobility","Level of Service","Accumulation-related threshold","by event","by roadway","with storm severity index","measured by sensors","Mobility - Level of Service: Accumulation-related threshold, by event, by roadway, with storm severity index, measured by sensors.","Accumulation-related threshold, by event, by roadway, with storm severity index, measured by sensors.",1,3,3,3,2,54]
[null,null,null,null,53,"Mobility","Level of Service","Friction-related threshold","by event","by roadway","without storm severity index","qualitative estimate by field personnel","Mobility - Level of Service: Friction-related threshold, by event, by roadway, without storm severity index, qualitative estimate by field personnel.","Friction-related threshold, by event, by roadway, without storm severity index, qualitative estimate by field personnel.",1,3,3,1,1,9]
[null,null,null,null,54,"Mobility","Level of Service","Friction-related threshold","by event","by roadway","without storm severity index","measured by sensors","Mobility - Level of Service: Friction-related threshold, by event, by roadway, without storm severity index, measured by sensors.","Friction-related threshold, by event, by roadway, without storm severity index, measured by sensors.",1,3,3,1,2,18]
[null,null,null,null,55,"Mobility","Level of Service","Friction-related threshold","by event","by roadway","with storm severity index","qualitative estimate by field personnel","Mobility - Level of Service: Friction-related threshold, by event, by roadway, with storm severity index, qualitative estimate by field personnel.","Friction-related threshold, by event, by roadway, with storm severity index, qualitative estimate by field personnel.",1,3,3,3,1,27]
[null,null,null,null,56,"Mobility","Level of Service","Friction-related threshold","by event","by roadway","with storm severity index","measured by sensors","Mobility - Level of Service: Friction-related threshold, by event, by roadway, with storm severity index, measured by sensors.","Friction-related threshold, by event, by roadway, with storm severity index, measured by sensors.",1,3,3,3,2,54]
[null,null,null,null,57,"Mobility","Level of Service","Travel speed-related threshold","by event","by roadway","without storm severity index","segment-based (e.g. probe data)","Mobility - Level of Service: Travel speed-related threshold, by event, by roadway, without storm severity index, segment-based (e.g. probe data).","Travel speed-related threshold, by event, by roadway, without storm severity index, segment-based (e.g. probe data).",1,3,3,1,1,9]
[null,null,null,null,58,"Mobility","Level of Service","Travel speed-related threshold","by event","by roadway","without storm severity index","point based (e.g. sensor)","Mobility - Level of Service: Travel speed-related threshold, by event, by roadway, without storm severity index, point based (e.g. sensor).","Travel speed-related threshold, by event, by roadway, without storm severity index, point based (e.g. sensor).",1,3,3,1,2,18]
[null,null,null,null,59,"Mobility","Level of Service","Travel speed-related threshold","by event","by roadway","with storm severity index","segment-based (e.g. probe data)","Mobility - Level of Service: Travel speed-related threshold, by event, by roadway, with storm severity index, segment-based (e.g. probe data).","Travel speed-related threshold, by event, by roadway, with storm severity index, segment-based (e.g. probe data).",1,3,3,3,1,27]
[null,null,null,null,60,"Mobility","Level of Service","Travel speed-related threshold","by event","by roadway","with storm severity index","point based (e.g. sensor)","Mobility - Level of Service: Travel speed-related threshold, by event, by roadway, with storm severity index, point based (e.g. sensor).","Travel speed-related threshold, by event, by roadway, with storm severity index, point based (e.g. sensor).",1,3,3,3,2,54]
[null,null,null,null,61,"Mobility","Recovery","Road surface condition","by event","by roadway","without storm severity index","observed/ estimated","Mobility - Recovery: Road surface condition, by event, by roadway, without storm severity index, observed/ estimated.",{"$f":"RIGHT(M62,LEN(M62)-21)","v":"Road surface condition, by event, by roadway, without storm severity index, observed/ estimated."},2,3,3,1,1,18]
[null,null,null,null,62,"Mobility","Recovery","Road surface condition","by event","by roadway","without storm severity index","measured (e.g. grip sensors)","Mobility - Recovery: Road surface condition, by event, by roadway, without storm severity index, measured (e.g. grip sensors).",{"$f":"RIGHT(M63,LEN(M63)-21)","v":"Road surface condition, by event, by roadway, without storm severity index, measured (e.g. grip sensors)."},2,3,3,1,2,36]
[null,null,null,null,63,"Mobility","Recovery","Road surface condition","by event","by roadway","with storm severity index","observed/ estimated","Mobility - Recovery: Road surface condition, by event, by roadway, with storm severity index, observed/ estimated.","Road surface condition, by event, by roadway, with storm severity index, observed/ estimated.",2,3,3,3,1,54]
[null,null,null,null,64,"Mobility","Recovery","Road surface condition","by event","by roadway","with storm severity index","measured (e.g. grip sensors)","Mobility - Recovery: Road surface condition, by event, by roadway, with storm severity index, measured (e.g. grip sensors).","Road surface condition, by event, by roadway, with storm severity index, measured (e.g. grip sensors).",2,3,3,3,2,108]
[null,null,null,null,65,"Mobility","Recovery","Recovery to normal speeds","by event","by roadway","without storm severity index","estimated","Mobility - Recovery: Recovery to normal speeds, by event, by roadway, without storm severity index, estimated.","Recovery to normal speeds, by event, by roadway, without storm severity index, estimated.",1,3,3,1,1,9]
[null,null,null,null,66,"Mobility","Recovery","Recovery to normal speeds","by event","by roadway","without storm severity index","measured by sensors",{"$f":"IF(ISBLANK(L67),CONCATENATE(F67,\" \",\"-\",\" \",G67,\":\",\" \",H67,\",\",\" \",I67,\",\",\" \",J67,\",\",\" \",K67,\".\"),CONCATENATE(F67,\" \",\"-\",\" \",G67,\":\",\" \",H67,\",\",\" \",I67,\",\",\" \",J67,\",\",\" \",K67,\",\",\" \",L67,\".\"))","v":"Mobility - Recovery: Recovery to normal speeds, by event, by roadway, without storm severity index, measured by sensors."},"Recovery to normal speeds, by event, by roadway, without storm severity index, measured by sensors.",{"$f":"IFERROR(VLOOKUP(H67,$B$14:$C$48,2,FALSE),1)","v":1},{"$f":"IFERROR(VLOOKUP(I67,$B$14:$C$48,2,FALSE),1)","v":3},{"$f":"IFERROR(VLOOKUP(J67,$B$14:$C$48,2,FALSE),1)","v":3},{"$f":"IFERROR(VLOOKUP(K67,$B$14:$C$48,2,FALSE),1)","v":1},{"$f":"IFERROR(VLOOKUP(L67,$B$14:$C$48,2,FALSE),1)","v":2},{"$f":"PRODUCT(O67:S67)","v":18}]
[null,null,null,null,67,"Mobility","Recovery","Recovery to normal speeds","by event","by roadway","with storm severity index","estimated","Mobility - Recovery: Recovery to normal speeds, by event, by roadway, with storm severity index, estimated.","Recovery to normal speeds, by event, by roadway, with storm severity index, estimated.",1,3,3,3,1,27]
[null,null,null,null,68,"Mobility","Recovery","Recovery to normal speeds","by event","by roadway","with storm severity index","measured by sensors","Mobility - Recovery: Recovery to normal speeds, by event, by roadway, with storm severity index, measured by sensors.","Recovery to normal speeds, by event, by roadway, with storm severity index, measured by sensors.",1,3,3,3,2,54]
[null,null,null,null,69,"Mobility","Reliability","Travel Time Index (TTI)","by event","by trip","without storm severity index","estimated","Mobility - Reliability: Travel Time Index (TTI), by event, by trip, without storm severity index, estimated.",{"$f":"RIGHT(M70,LEN(M70)-24)","v":"Travel Time Index (TTI), by event, by trip, without storm severity index, estimated."},1,3,3,1,1,9]
[null,null,null,null,70,"Mobility","Reliability","Travel Time Index (TTI)","by event","by trip","without storm severity index","measured","Mobility - Reliability: Travel Time Index (TTI), by event, by trip, without storm severity index, measured.",{"$f":"RIGHT(M71,LEN(M71)-24)","v":"Travel Time Index (TTI), by event, by trip, without storm severity index, measured."},1,3,3,1,2,18]
[null,null,null,null,71,"Mobility","Reliability","Travel Time Index (TTI)","by event","by trip","with storm severity index","estimated","Mobility - Reliability: Travel Time Index (TTI), by event, by trip, with storm severity index, estimated.","Travel Time Index (TTI), by event, by trip, with storm severity index, estimated.",1,3,3,3,1,27]
[null,null,null,null,72,"Mobility","Reliability","Travel Time Index (TTI)","by event","by trip","with storm severity index","measured","Mobility - Reliability: Travel Time Index (TTI), by event, by trip, with storm severity index, measured.","Travel Time Index (TTI), by event, by trip, with storm severity index, measured.",1,3,3,3,2,54]
[null,null,null,null,73,"Sustainability","Efficiency","Cost of snow and ice control","by winter season","state-wide/ region-wide","without seasonal severity index",null,"Sustainability - Efficiency: Cost of snow and ice control, by winter season, state-wide/ region-wide, without seasonal severity index.",{"$f":"RIGHT(M74,LEN(M74)-29)","v":"Cost of snow and ice control, by winter season, state-wide/ region-wide, without seasonal severity index."},1,1,1,1,1,1]
[null,null,null,null,74,"Sustainability","Efficiency","Cost of snow and ice control","by winter season","state-wide/ region-wide","with seasonal severity index",null,"Sustainability - Efficiency: Cost of snow and ice control, by winter season, state-wide/ region-wide, with seasonal severity index.",{"$f":"RIGHT(M75,LEN(M75)-29)","v":"Cost of snow and ice control, by winter season, state-wide/ region-wide, with seasonal severity index."},1,1,1,3,1,3]
[null,null,null,null,75,"Sustainability","Efficiency","Cost of snow and ice control","by event","state-wide/ region-wide","without storm severity index",null,"Sustainability - Efficiency: Cost of snow and ice control, by event, state-wide/ region-wide, without storm severity index.","Cost of snow and ice control, by event, state-wide/ region-wide, without storm severity index.",1,3,1,1,1,3]
[null,null,null,null,76,"Sustainability","Efficiency","Cost of snow and ice control","by event","state-wide/ region-wide","with storm severity index",null,"Sustainability - Efficiency: Cost of snow and ice control, by event, state-wide/ region-wide, with storm severity index.","Cost of snow and ice control, by event, state-wide/ region-wide, with storm severity index.",1,3,1,3,1,9]
[null,null,null,null,77,"Sustainability","Efficiency","Cost of snow and ice control","by winter season","district-wide","without seasonal severity index",null,"Sustainability - Efficiency: Cost of snow and ice control, by winter season, district-wide, without seasonal severity index.","Cost of snow and ice control, by winter season, district-wide, without seasonal severity index.",1,1,2,1,1,2]
[null,null,null,null,78,"Sustainability","Efficiency","Cost of snow and ice control","by winter season","district-wide","with seasonal severity index",null,"Sustainability - Efficiency: Cost of snow and ice control, by winter season, district-wide, with seasonal severity index.","Cost of snow and ice control, by winter season, district-wide, with seasonal severity index.",1,1,2,3,1,6]
[null,null,null,null,79,"Sustainability","Efficiency","Cost of snow and ice control","by event","district-wide","without storm severity index",null,"Sustainability - Efficiency: Cost of snow and ice control, by event, district-wide, without storm severity index.","Cost of snow and ice control, by event, district-wide, without storm severity index.",1,3,2,1,1,6]
[null,null,null,null,80,"Sustainability","Efficiency","Cost of snow and ice control","by event","district-wide","with storm severity index",null,"Sustainability - Efficiency: Cost of snow and ice control, by event, district-wide, with storm severity index.","Cost of snow and ice control, by event, district-wide, with storm severity index.",1,3,2,3,1,18]
[null,null,null,null,81,"Sustainability","Efficiency","Cost of snow and ice control","by winter season","by roadway","without seasonal severity index",null,"Sustainability - Efficiency: Cost of snow and ice control, by winter season, by roadway, without seasonal severity index.","Cost of snow and ice control, by winter season, by roadway, without seasonal severity index.",1,1,3,1,1,3]
[null,null,null,null,82,"Sustainability","Efficiency","Cost of snow and ice control","by winter season","by roadway","with seasonal severity index",null,"Sustainability - Efficiency: Cost of snow and ice control, by winter season, by roadway, with seasonal severity index.","Cost of snow and ice control, by winter season, by roadway, with seasonal severity index.",1,1,3,3,1,9]
[null,null,null,null,83,"Sustainability","Efficiency","Cost of snow and ice control","by event","by roadway","without storm severity index",null,"Sustainability - Efficiency: Cost of snow and ice control, by event, by roadway, without storm severity index.","Cost of snow and ice control, by event, by roadway, without storm severity index.",1,3,3,1,1,9]
[null,null,null,null,84,"Sustainability","Efficiency","Cost of snow and ice control","by event","by roadway","with storm severity index",null,"Sustainability - Efficiency: Cost of snow and ice control, by event, by roadway, with storm severity index.","Cost of snow and ice control, by event, by roadway, with storm severity index.",1,3,3,3,1,27]
[null,null,null,null,85,"Sustainability","Customer Satisfaction","Level of satisfaction","by winter season","state-wide/ region-wide","with or without seasonal severity index",null,"Sustainability - Customer Satisfaction: Level of satisfaction, by winter season, state-wide/ region-wide, with or without seasonal severity index.",{"$f":"RIGHT(M86,LEN(M86)-40)","v":"Level of satisfaction, by winter season, state-wide/ region-wide, with or without seasonal severity index."},1,1,1,1,1,1]
[null,null,null,null,86,"Sustainability","Customer Satisfaction","Level of satisfaction","by event","state-wide/ region-wide","with or without storm severity index",null,"Sustainability - Customer Satisfaction: Level of satisfaction, by event, state-wide/ region-wide, with or without storm severity index.",{"$f":"RIGHT(M87,LEN(M87)-40)","v":"Level of satisfaction, by event, state-wide/ region-wide, with or without storm severity index."},1,3,1,1,1,3]
[null,null,null,null,87,"Sustainability","Environmental Stewardship","Current season usage","by winter season","state-wide/ region-wide","with seasonal severity index",null,"Sustainability - Environmental Stewardship: Current season usage, by winter season, state-wide/ region-wide, with seasonal severity index.",{"$f":"RIGHT(M88,LEN(M88)-44)","v":"Current season usage, by winter season, state-wide/ region-wide, with seasonal severity index."},1,1,1,3,1,3]
[null,null,null,null,88,"Sustainability","Environmental Stewardship","Current season usage compared to prior seasons","by event","state-wide/ region-wide","with storm severity index",null,"Sustainability - Environmental Stewardship: Current season usage compared to prior seasons, by event, state-wide/ region-wide, with storm severity index.",{"$f":"RIGHT(M89,LEN(M89)-44)","v":"Current season usage compared to prior seasons, by event, state-wide/ region-wide, with storm severity index."},2,3,1,3,1,18]
[null,null,null,null,89,"Sustainability","Environmental Stewardship","Current season usage","by event","state-wide/ region-wide","with storm severity index",null,"Sustainability - Environmental Stewardship: Current season usage, by event, state-wide/ region-wide, with storm severity index.",{"$f":"RIGHT(M90,LEN(M90)-44)","v":"Current season usage, by event, state-wide/ region-wide, with storm severity index."},1,3,1,3,1,9]
[null,null,null,null,90,"Sustainability","Environmental Stewardship","Current season usage compared to prior seasons","by winter season","state-wide/ region-wide","with seasonal severity index",null,"Sustainability - Environmental Stewardship: Current season usage compared to prior seasons, by winter season, state-wide/ region-wide, with seasonal severity index.","Current season usage compared to prior seasons, by winter season, state-wide/ region-wide, with seasonal severity index.",2,1,1,3,1,6]